Workbook

Sheet Forside
B3: Indtast jeres selskabsspecifikke informationer her
B4: Kontaktperson
B5: Telefonnr
B6: Adresse
B7: Postnr
B8: By
B9: Region

Sheet Produktionsanlæg
A1: =MID(CELL("filename",A1),FIND("]",CELL("filename",A1))+1,255) -> Produktionsanlæg | B1: Enhed | C1: Standard-levetid | D1: Mængde | E1: Mængde | F1: Mængde | G1: Mængde | H1: Mængde | I1: Mængde | J1: Mængde | K1: Mængde | L1: Mængde | M1: Mængde | N1: Mængde | O1: Mængde | P1: Mængde | Q1: Mængde | R1: Mængde | S1: Mængde | T1: Mængde | U1: Mængde | V1: Mængde | W1: Mængde | X1: Mængde | Y1: Mængde | Z1: Mængde | AA1: Mængde | AB1: Mængde | AC1: Mængde | AD1: Mængde | AE1: Mængde | AF1: Mængde | AG1: Mængde | AH1: Mængde | AI1: Mængde | AJ1: Mængde | AK1: Mængde | AL1: Mængde | AM1: Mængde | AN1: Mængde | AO1: Mængde | AT1: Nedskrevet genanskaffelsesværdi | CG1: Afskrivninger (genanskaffelsesværdi) | FL1: Nedskrevet anskaffelsesværdi | GY1: Afskrivninger (anskaffelsesværdi)
A2: Anlægsaktiv | D2: Før 1910 | E2: 1910-1919 | F2: 1920-1929 | G2: 1930-1939 | H2: 1940-1949 | I2: 1950-1959 | J2: 1960-1969 | K2: 1970-1979 | L2: 1980-1984 | M2: 1985-1989 | N2: 1990-1994 | O2: 1995-1999 | P2: 2000 | Q2: 2001 | R2: 2002 | S2: 2003 | T2: 2004 | U2: 2005 | V2: 2006 | W2: 2007 | X2: 2008 | Y2: 2009 | Z2: 2010 | AA2: 2011 | AB2: 2012 | AC2: 2013 | AD2: 2014 | AE2: 2015 | AF2: 2016 | AG2: 2017 | AH2: 2018 | AI2: 2019 | AJ2: 2020 | AK2: 2021 | AL2: 2022 | AM2: 2023 | AN2: 2024 | AO2: 2025 | AP2: Noter | AQ2: Anvendelse | AR2: Type | AS2: Enhed | FL2: =VLOOKUP(FL$3,Prisindeks!$A$1:$C$127,3,FALSE)/100 -> 0.01436864824 | FM2: =VLOOKUP(FM$3,Prisindeks!$A$1:$C$127,3,FALSE)/100 -> 0.02178149625 | FN2: =VLOOKUP(FN$3,Prisindeks!$A$1:$C$127,3,FALSE)/100 -> 0.02804262576 | FO2: =VLOOKUP(FO$3,Prisindeks!$A$1:$C$127,3,FALSE)/100 -> 0.02076421712 | FP2: =VLOOKUP(FP$3,Prisindeks!$A$1:$C$127,3,FALSE)/100 -> 0.04028563171 | FQ2: =VLOOKUP(FQ$3,Prisindeks!$A$1:$C$127,3,FALSE)/100 -> 0.06386375633 | FR2: =VLOOKUP(FR$3,Prisindeks!$A$1:$C$127,3,FALSE)/100 -> 0.08809548591 | FS2: =VLOOKUP(FS$3,Prisindeks!$A$1:$C$127,3,FALSE)/100 -> 0.1861816755 | FT2: =VLOOKUP(FT$3,Prisindeks!$A$1:$C$127,3,FALSE)/100 -> 0.4033237566 | FU2: =VLOOKUP(FU$3,Prisindeks!$A$1:$C$127,3,FALSE)/100 -> 0.5085071515 | FV2: =VLOOKUP(FV$3,Prisindeks!$A$1:$C$127,3,FALSE)/100 -> 0.6041983399 | FW2: =VLOOKUP(FW$3,Prisindeks!$A$1:$C$127,3,FALSE)/100 -> 0.6906097417 | FX2: =VLOOKUP(FX$3,Prisindeks!$A$1:$C$127,3,FALSE)/100 -> 0.7601112954 | FY2: =VLOOKUP(FY$3,Prisindeks!$A$1:$C$127,3,FALSE)/100 -> 0.774608822 | FZ2: =VLOOKUP(FZ$3,Prisindeks!$A$1:$C$127,3,FALSE)/100 -> 0.7885576269 | GA2: =VLOOKUP(GA$3,Prisindeks!$A$1:$C$127,3,FALSE)/100 -> 0.7936047069 | GB2: =VLOOKUP(GB$3,Prisindeks!$A$1:$C$127,3,FALSE)/100 -> 0.7974828149 | GC2: =VLOOKUP(GC$3,Prisindeks!$A$1:$C$127,3,FALSE)/100 -> 0.8221047914 | GD2: =VLOOKUP(GD$3,Prisindeks!$A$1:$C$127,3,FALSE)/100 -> 0.8442976543 | GE2: =VLOOKUP(GE$3,Prisindeks!$A$1:$C$127,3,FALSE)/100 -> 0.8708571583 | GF2: =VLOOKUP(GF$3,Prisindeks!$A$1:$C$127,3,FALSE)/100 -> 0.908713613 | GG2: =VLOOKUP(GG$3,Prisindeks!$A$1:$C$127,3,FALSE)/100 -> 0.8968513608 | GH2: =VLOOKUP(GH$3,Prisindeks!$A$1:$C$127,3,FALSE)/100 -> 0.9138056309 | GI2: =VLOOKUP(GI$3,Prisindeks!$A$1:$C$127,3,FALSE)/100 -> 0.9390108647 | GJ2: =VLOOKUP(GJ$3,Prisindeks!$A$1:$C$127,3,FALSE)/100 -> 0.9623113161 | GK2: =VLOOKUP(GK$3,Prisindeks!$A$1:$C$127,3,FALSE)/100 -> 0.9645256292 | GL2: =VLOOKUP(GL$3,Prisindeks!$A$1:$C$127,3,FALSE)/100 -> 0.9661101953 | GM2: =VLOOKUP(GM$3,Prisindeks!$A$1:$C$127,3,FALSE)/100 -> 0.9698633769 | GN2: =VLOOKUP(GN$3,Prisindeks!$A$1:$C$127,3,FALSE)/100 -> 0.9845889646 | GO2: =VLOOKUP(GO$3,Prisindeks!$A$1:$C$127,3,FALSE)/100 -> 1 | GP2: =VLOOKUP(GP$3,Prisindeks!$A$1:$C$127,3,FALSE)/100 -> 1 | GQ2: =VLOOKUP(GQ$3,Prisindeks!$A$1:$C$127,3,FALSE)/100 -> 1 | GR2: =VLOOKUP(GR$3,Prisindeks!$A$1:$C$127,3,FALSE)/100 -> 1 | GS2: =VLOOKUP(GS$3,Prisindeks!$A$1:$C$127,3,FALSE)/100 -> 1 | GT2: =VLOOKUP(GT$3,Prisindeks!$A$1:$C$127,3,FALSE)/100 -> 1 | GU2: =VLOOKUP(GU$3,Prisindeks!$A$1:$C$127,3,FALSE)/100 -> 1 | GV2: =VLOOKUP(GV$3,Prisindeks!$A$1:$C$127,3,FALSE)/100 -> 1 | GW2: =VLOOKUP(GW$3,Prisindeks!$A$1:$C$127,3,FALSE)/100 -> 1
A3: Indeksår | D3: 1905 | E3: 1915 | F3: 1925 | G3: 1935 | H3: 1945 | I3: 1955 | J3: 1965 | K3: 1975 | L3: 1982 | M3: 1987 | N3: 1992 | O3: 1997 | P3: 2000 | Q3: 2001 | R3: 2002 | S3: 2003 | T3: 2004 | U3: 2005 | V3: 2006 | W3: 2007 | X3: 2008 | Y3: 2009 | Z3: 2010 | AA3: 2011 | AB3: 2012 | AC3: 2013 | AD3: 2014 | AE3: 2015 | AF3: 2016 | AG3: 2017 | AH3: 2018 | AI3: 2019 | AJ3: 2020 | AK3: 2021 | AL3: 2022 | AM3: 2023 | AN3: 2024 | AO3: 2025 | AT3: 1905 | AU3: 1915 | AV3: 1925 | AW3: 1935 | AX3: 1945 | AY3: 1955 | AZ3: 1965 | BA3: 1975 | BB3: 1982 | BC3: 1987 | BD3: 1992 | BE3: 1997 | BF3: 2000 | BG3: 2001 | BH3: 2002 | BI3: 2003 | BJ3: 2004 | BK3: 2005 | BL3: 2006 | BM3: 2007 | BN3: 2008 | BO3: 2009 | BP3: 2010 | BQ3: 2011 | BR3: 2012 | BS3: 2013 | BT3: 2014 | BU3: 2015 | BV3: 2016 | BW3: 2017 | BX3: 2018 | BY3: 2019 | BZ3: 2020 | CA3: 2021 | CB3: 2022 | CC3: 2023 | CD3: 2024 | CE3: 2025 | CG3: 2019 | CH3: 2020 | CI3: 2021 | CJ3: 2022 | CK3: 2023 | CL3: 2024 | CM3: 2025 | CN3: 2026 | CO3: 2027 | CP3: 2028 | CQ3: 2029 | CR3: 2030 | CS3: 2031 | CT3: 2032 | CU3: 2033 | CV3: 2034 | CW3: 2035 | CX3: 2036 | CY3: 2037 | CZ3: 2038 | DA3: 2039 | DB3: 2040 | DC3: 2041 | DD3: 2042 | DE3: 2043 | DF3: 2044 | DG3: 2045 | DH3: 2046 | DI3: 2047 | DJ3: 2048 | DK3: 2049 | DL3: 2050 | DM3: 2051 | DN3: 2052 | DO3: 2053 | DP3: 2054 | DQ3: 2055 | DR3: 2056 | DS3: 2057 | DT3: 2058 | DU3: 2059 | DV3: 2060 | DW3: 2061 | DX3: 2062 | DY3: 2063 | DZ3: 2064 | EA3: 2065 | EB3: 2066 | EC3: 2067 | ED3: 2068 | EE3: 2069 | EF3: 2070 | EG3: 2071 | EH3: 2072 | EI3: 2073 | EJ3: 2074 | EK3: 2075 | EL3: 2076 | EM3: 2077 | EN3: 2078 | EO3: 2079 | EP3: 2080 | EQ3: 2081 | ER3: 2082 | ES3: 2083 | ET3: 2084 | EU3: 2085 | EV3: 2086 | EW3: 2087 | EX3: 2088 | EY3: 2089 | EZ3: 2090 | FA3: 2091 | FB3: 2092 | FC3: 2093 | FD3: 2094 | FE3: 2095 | FF3: 2096 | FG3: 2097 | FH3: 2098 | FI3: 2099 | FJ3: 2100 | FL3: 1905 | FM3: 1915 | FN3: 1925 | FO3: 1935 | FP3: 1945 | FQ3: 1955 | FR3: 1965 | FS3: 1975 | FT3: 1982 | FU3: 1987 | FV3: 1992 | FW3: 1997 | FX3: 2000 | FY3: 2001 | FZ3: 2002 | GA3: 2003 | GB3: 2004 | GC3: 2005 | GD3: 2006 | GE3: 2007 | GF3: 2008 | GG3: 2009 | GH3: 2010 | GI3: 2011 | GJ3: 2012 | GK3: 2013 | GL3: 2014 | GM3: 2015 | GN3: 2016 | GO3: 2017 | GP3: 2018 | GQ3: 2019 | GR3: 2020 | GS3: 2021 | GT3: 2022 | GU3: 2023 | GV3: 2024 | GW3: 2025 | GY3: 2019 | GZ3: 2020 | HA3: 2021 | HB3: 2022 | HC3: 2023 | HD3: 2024 | HE3: 2025 | HF3: 2026 | HG3: 2027 | HH3: 2028 | HI3: 2029 | HJ3: 2030 | HK3: 2031 | HL3: 2032 | HM3: 2033 | HN3: 2034 | HO3: 2035 | HP3: 2036 | HQ3: 2037 | HR3: 2038 | HS3: 2039 | HT3: 2040 | HU3: 2041 | HV3: 2042 | HW3: 2043 | HX3: 2044 | HY3: 2045 | HZ3: 2046 | IA3: 2047 | IB3: 2048 | IC3: 2049 | ID3: 2050 | IE3: 2051 | IF3: 2052 | IG3: 2053 | IH3: 2054 | II3: 2055 | IJ3: 2056 | IK3: 2057 | IL3: 2058 | IM3: 2059 | IN3: 2060 | IO3: 2061 | IP3: 2062 | IQ3: 2063 | IR3: 2064 | IS3: 2065 | IT3: 2066 | IU3: 2067 | IV3: 2068 | IW3: 2069 | IX3: 2070 | IY3: 2071 | IZ3: 2072 | JA3: 2073 | JB3: 2074 | JC3: 2075 | JD3: 2076 | JE3: 2077 | JF3: 2078 | JG3: 2079 | JH3: 2080 | JI3: 2081 | JJ3: 2082 | JK3: 2083 | JL3: 2084 | JM3: 2085 | JN3: 2086 | JO3: 2087 | JP3: 2088 | JQ3: 2089 | JR3: 2090 | JS3: 2091 | JT3: 2092 | JU3: 2093 | JV3: 2094 | JW3: 2095 | JX3: 2096 | JY3: 2097 | JZ3: 2098 | KA3: 2099 | KB3: 2100
A4: Affald
A5: Affaldsanlæg kun fjernnvarme Turnkey. Kapacitet på 5-15 ton affald pr. time;15-50 MJ/s indfyret. Typisk anlæg før 2004 | B5: =IF(D5="","",IF(AS5="","År",RIGHT(AS5,LEN(AS5)-FIND("/",AS5)))) -> MJ/s | C5: 20 | D5: 0 | E5: 0 | F5: 0 | G5: 0 | H5: 0 | I5: 0 | J5: 0 | K5: 0 | L5: 0 | M5: 0 | N5: 0 | O5: 0 | P5: 0 | Q5: 0 | R5: 0 | S5: 0 | T5: 0 | U5: 0 | V5: 0 | W5: 0 | X5: 0 | Y5: 0 | Z5: 0 | AA5: 0 | AB5: 0 | AC5: 0 | AD5: 0 | AE5: 0 | AF5: 0 | AG5: 0 | AH5: 0 | AI5: 0 | AJ5: 0 | AK5: 0 | AL5: 0 | AM5: 0 | AN5: 0 | AO5: 0 | AQ5: Varmeproducerende anlæg fordelt på energikilde | AR5: Affald | AS5: kr./MJ/s | AT5: =IF($C5="","",MAX(D5 * INDEX(Genanskaffelsespriser!$G$2:$G$201,MATCH(1,($AQ5=Genanskaffelsespriser!$A$2:$A$201)*($AR5=Genanskaffelsespriser!$B$2:$B$201)*($AS5=Genanskaffelsespriser!$D$2:$D$201)*($A5=Genanskaffelsespriser!$C$2:$C$201),0)) * (1 - (Analyseår-AT$3)/($C5+D6)),0)) -> 0 | AU5: =IF($C5="","",MAX(E5 * INDEX(Genanskaffelsespriser!$G$2:$G$201,MATCH(1,($AQ5=Genanskaffelsespriser!$A$2:$A$201)*($AR5=Genanskaffelsespriser!$B$2:$B$201)*($AS5=Genanskaffelsespriser!$D$2:$D$201)*($A5=Genanskaffelsespriser!$C$2:$C$201),0)) * (1 - (Analyseår-AU$3)/($C5+E6)),0)) -> 0 | AV5: =IF($C5="","",MAX(F5 * INDEX(Genanskaffelsespriser!$G$2:$G$201,MATCH(1,($AQ5=Genanskaffelsespriser!$A$2:$A$201)*($AR5=Genanskaffelsespriser!$B$2:$B$201)*($AS5=Genanskaffelsespriser!$D$2:$D$201)*($A5=Genanskaffelsespriser!$C$2:$C$201),0)) * (1 - (Analyseår-AV$3)/($C5+F6)),0)) -> 0 | AW5: =IF($C5="","",MAX(G5 * INDEX(Genanskaffelsespriser!$G$2:$G$201,MATCH(1,($AQ5=Genanskaffelsespriser!$A$2:$A$201)*($AR5=Genanskaffelsespriser!$B$2:$B$201)*($AS5=Genanskaffelsespriser!$D$2:$D$201)*($A5=Genanskaffelsespriser!$C$2:$C$201),0)) * (1 - (Analyseår-AW$3)/($C5+G6)),0)) -> 0 | AX5: =IF($C5="","",MAX(H5 * INDEX(Genanskaffelsespriser!$G$2:$G$201,MATCH(1,($AQ5=Genanskaffelsespriser!$A$2:$A$201)*($AR5=Genanskaffelsespriser!$B$2:$B$201)*($AS5=Genanskaffelsespriser!$D$2:$D$201)*($A5=Genanskaffelsespriser!$C$2:$C$201),0)) * (1 - (Analyseår-AX$3)/($C5+H6)),0)) -> 0 | AY5: =IF($C5="","",MAX(I5 * INDEX(Genanskaffelsespriser!$G$2:$G$201,MATCH(1,($AQ5=Genanskaffelsespriser!$A$2:$A$201)*($AR5=Genanskaffelsespriser!$B$2:$B$201)*($AS5=Genanskaffelsespriser!$D$2:$D$201)*($A5=Genanskaffelsespriser!$C$2:$C$201),0)) * (1 - (Analyseår-AY$3)/($C5+I6)),0)) -> 0 | AZ5: =IF($C5="","",MAX(J5 * INDEX(Genanskaffelsespriser!$G$2:$G$201,MATCH(1,($AQ5=Genanskaffelsespriser!$A$2:$A$201)*($AR5=Genanskaffelsespriser!$B$2:$B$201)*($AS5=Genanskaffelsespriser!$D$2:$D$201)*($A5=Genanskaffelsespriser!$C$2:$C$201),0)) * (1 - (Analyseår-AZ$3)/($C5+J6)),0)) -> 0 | BA5: =IF($C5="","",MAX(K5 * INDEX(Genanskaffelsespriser!$G$2:$G$201,MATCH(1,($AQ5=Genanskaffelsespriser!$A$2:$A$201)*($AR5=Genanskaffelsespriser!$B$2:$B$201)*($AS5=Genanskaffelsespriser!$D$2:$D$201)*($A5=Genanskaffelsespriser!$C$2:$C$201),0)) * (1 - (Analyseår-BA$3)/($C5+K6)),0)) -> 0 | BB5: =IF($C5="","",MAX(L5 * INDEX(Genanskaffelsespriser!$G$2:$G$201,MATCH(1,($AQ5=Genanskaffelsespriser!$A$2:$A$201)*($AR5=Genanskaffelsespriser!$B$2:$B$201)*($AS5=Genanskaffelsespriser!$D$2:$D$201)*($A5=Genanskaffelsespriser!$C$2:$C$201),0)) * (1 - (Analyseår-BB$3)/($C5+L6)),0)) -> 0 | BC5: =IF($C5="","",MAX(M5 * INDEX(Genanskaffelsespriser!$G$2:$G$201,MATCH(1,($AQ5=Genanskaffelsespriser!$A$2:$A$201)*($AR5=Genanskaffelsespriser!$B$2:$B$201)*($AS5=Genanskaffelsespriser!$D$2:$D$201)*($A5=Genanskaffelsespriser!$C$2:$C$201),0)) * (1 - (Analyseår-BC$3)/($C5+M6)),0)) -> 0 | BD5: =IF($C5="","",MAX(N5 * INDEX(Genanskaffelsespriser!$G$2:$G$201,MATCH(1,($AQ5=Genanskaffelsespriser!$A$2:$A$201)*($AR5=Genanskaffelsespriser!$B$2:$B$201)*($AS5=Genanskaffelsespriser!$D$2:$D$201)*($A5=Genanskaffelsespriser!$C$2:$C$201),0)) * (1 - (Analyseår-BD$3)/($C5+N6)),0)) -> 0 | BE5: =IF($C5="","",MAX(O5 * INDEX(Genanskaffelsespriser!$G$2:$G$201,MATCH(1,($AQ5=Genanskaffelsespriser!$A$2:$A$201)*($AR5=Genanskaffelsespriser!$B$2:$B$201)*($AS5=Genanskaffelsespriser!$D$2:$D$201)*($A5=Genanskaffelsespriser!$C$2:$C$201),0)) * (1 - (Analyseår-BE$3)/($C5+O6)),0)) -> 0 | BF5: =IF($C5="","",MAX(P5 * INDEX(Genanskaffelsespriser!$G$2:$G$201,MATCH(1,($AQ5=Genanskaffelsespriser!$A$2:$A$201)*($AR5=Genanskaffelsespriser!$B$2:$B$201)*($AS5=Genanskaffelsespriser!$D$2:$D$201)*($A5=Genanskaffelsespriser!$C$2:$C$201),0)) * (1 - (Analyseår-BF$3)/($C5+P6)),0)) -> 0 | BG5: =IF($C5="","",MAX(Q5 * INDEX(Genanskaffelsespriser!$G$2:$G$201,MATCH(1,($AQ5=Genanskaffelsespriser!$A$2:$A$201)*($AR5=Genanskaffelsespriser!$B$2:$B$201)*($AS5=Genanskaffelsespriser!$D$2:$D$201)*($A5=Genanskaffelsespriser!$C$2:$C$201),0)) * (1 - (Analyseår-BG$3)/($C5+Q6)),0)) -> 0 | BH5: =IF($C5="","",MAX(R5 * INDEX(Genanskaffelsespriser!$G$2:$G$201,MATCH(1,($AQ5=Genanskaffelsespriser!$A$2:$A$201)*($AR5=Genanskaffelsespriser!$B$2:$B$201)*($AS5=Genanskaffelsespriser!$D$2:$D$201)*($A5=Genanskaffelsespriser!$C$2:$C$201),0)) * (1 - (Analyseår-BH$3)/($C5+R6)),0)) -> 0 | BI5: =IF($C5="","",MAX(S5 * INDEX(Genanskaffelsespriser!$G$2:$G$201,MATCH(1,($AQ5=Genanskaffelsespriser!$A$2:$A$201)*($AR5=Genanskaffelsespriser!$B$2:$B$201)*($AS5=Genanskaffelsespriser!$D$2:$D$201)*($A5=Genanskaffelsespriser!$C$2:$C$201),0)) * (1 - (Analyseår-BI$3)/($C5+S6)),0)) -> 0 | BJ5: =IF($C5="","",MAX(T5 * INDEX(Genanskaffelsespriser!$G$2:$G$201,MATCH(1,($AQ5=Genanskaffelsespriser!$A$2:$A$201)*($AR5=Genanskaffelsespriser!$B$2:$B$201)*($AS5=Genanskaffelsespriser!$D$2:$D$201)*($A5=Genanskaffelsespriser!$C$2:$C$201),0)) * (1 - (Analyseår-BJ$3)/($C5+T6)),0)) -> 0 | BK5: =IF($C5="","",MAX(U5 * INDEX(Genanskaffelsespriser!$G$2:$G$201,MATCH(1,($AQ5=Genanskaffelsespriser!$A$2:$A$201)*($AR5=Genanskaffelsespriser!$B$2:$B$201)*($AS5=Genanskaffelsespriser!$D$2:$D$201)*($A5=Genanskaffelsespriser!$C$2:$C$201),0)) * (1 - (Analyseår-BK$3)/($C5+U6)),0)) -> 0 | BL5: =IF($C5="","",MAX(V5 * INDEX(Genanskaffelsespriser!$G$2:$G$201,MATCH(1,($AQ5=Genanskaffelsespriser!$A$2:$A$201)*($AR5=Genanskaffelsespriser!$B$2:$B$201)*($AS5=Genanskaffelsespriser!$D$2:$D$201)*($A5=Genanskaffelsespriser!$C$2:$C$201),0)) * (1 - (Analyseår-BL$3)/($C5+V6)),0)) -> 0 | BM5: =IF($C5="","",MAX(W5 * INDEX(Genanskaffelsespriser!$G$2:$G$201,MATCH(1,($AQ5=Genanskaffelsespriser!$A$2:$A$201)*($AR5=Genanskaffelsespriser!$B$2:$B$201)*($AS5=Genanskaffelsespriser!$D$2:$D$201)*($A5=Genanskaffelsespriser!$C$2:$C$201),0)) * (1 - (Analyseår-BM$3)/($C5+W6)),0)) -> 0 | BN5: =IF($C5="","",MAX(X5 * INDEX(Genanskaffelsespriser!$G$2:$G$201,MATCH(1,($AQ5=Genanskaffelsespriser!$A$2:$A$201)*($AR5=Genanskaffelsespriser!$B$2:$B$201)*($AS5=Genanskaffelsespriser!$D$2:$D$201)*($A5=Genanskaffelsespriser!$C$2:$C$201),0)) * (1 - (Analyseår-BN$3)/($C5+X6)),0)) -> 0 | BO5: =IF($C5="","",MAX(Y5 * INDEX(Genanskaffelsespriser!$G$2:$G$201,MATCH(1,($AQ5=Genanskaffelsespriser!$A$2:$A$201)*($AR5=Genanskaffelsespriser!$B$2:$B$201)*($AS5=Genanskaffelsespriser!$D$2:$D$201)*($A5=Genanskaffelsespriser!$C$2:$C$201),0)) * (1 - (Analyseår-BO$3)/($C5+Y6)),0)) -> 0 | BP5: =IF($C5="","",MAX(Z5 * INDEX(Genanskaffelsespriser!$G$2:$G$201,MATCH(1,($AQ5=Genanskaffelsespriser!$A$2:$A$201)*($AR5=Genanskaffelsespriser!$B$2:$B$201)*($AS5=Genanskaffelsespriser!$D$2:$D$201)*($A5=Genanskaffelsespriser!$C$2:$C$201),0)) * (1 - (Analyseår-BP$3)/($C5+Z6)),0)) -> 0 | BQ5: =IF($C5="","",MAX(AA5 * INDEX(Genanskaffelsespriser!$G$2:$G$201,MATCH(1,($AQ5=Genanskaffelsespriser!$A$2:$A$201)*($AR5=Genanskaffelsespriser!$B$2:$B$201)*($AS5=Genanskaffelsespriser!$D$2:$D$201)*($A5=Genanskaffelsespriser!$C$2:$C$201),0)) * (1 - (Analyseår-BQ$3)/($C5+AA6)),0)) -> 0 | BR5: =IF($C5="","",MAX(AB5 * INDEX(Genanskaffelsespriser!$G$2:$G$201,MATCH(1,($AQ5=Genanskaffelsespriser!$A$2:$A$201)*($AR5=Genanskaffelsespriser!$B$2:$B$201)*($AS5=Genanskaffelsespriser!$D$2:$D$201)*($A5=Genanskaffelsespriser!$C$2:$C$201),0)) * (1 - (Analyseår-BR$3)/($C5+AB6)),0)) -> 0 | BS5: =IF($C5="","",MAX(AC5 * INDEX(Genanskaffelsespriser!$G$2:$G$201,MATCH(1,($AQ5=Genanskaffelsespriser!$A$2:$A$201)*($AR5=Genanskaffelsespriser!$B$2:$B$201)*($AS5=Genanskaffelsespriser!$D$2:$D$201)*($A5=Genanskaffelsespriser!$C$2:$C$201),0)) * (1 - (Analyseår-BS$3)/($C5+AC6)),0)) -> 0 | BT5: =IF($C5="","",MAX(AD5 * INDEX(Genanskaffelsespriser!$G$2:$G$201,MATCH(1,($AQ5=Genanskaffelsespriser!$A$2:$A$201)*($AR5=Genanskaffelsespriser!$B$2:$B$201)*($AS5=Genanskaffelsespriser!$D$2:$D$201)*($A5=Genanskaffelsespriser!$C$2:$C$201),0)) * (1 - (Analyseår-BT$3)/($C5+AD6)),0)) -> 0 | BU5: =IF($C5="","",MAX(AE5 * INDEX(Genanskaffelsespriser!$G$2:$G$201,MATCH(1,($AQ5=Genanskaffelsespriser!$A$2:$A$201)*($AR5=Genanskaffelsespriser!$B$2:$B$201)*($AS5=Genanskaffelsespriser!$D$2:$D$201)*($A5=Genanskaffelsespriser!$C$2:$C$201),0)) * (1 - (Analyseår-BU$3)/($C5+AE6)),0)) -> 0 | BV5: =IF($C5="","",MAX(AF5 * INDEX(Genanskaffelsespriser!$G$2:$G$201,MATCH(1,($AQ5=Genanskaffelsespriser!$A$2:$A$201)*($AR5=Genanskaffelsespriser!$B$2:$B$201)*($AS5=Genanskaffelsespriser!$D$2:$D$201)*($A5=Genanskaffelsespriser!$C$2:$C$201),0)) * (1 - (Analyseår-BV$3)/($C5+AF6)),0)) -> 0 | BW5: =IF($C5="","",MAX(AG5 * INDEX(Genanskaffelsespriser!$G$2:$G$201,MATCH(1,($AQ5=Genanskaffelsespriser!$A$2:$A$201)*($AR5=Genanskaffelsespriser!$B$2:$B$201)*($AS5=Genanskaffelsespriser!$D$2:$D$201)*($A5=Genanskaffelsespriser!$C$2:$C$201),0)) * (1 - (Analyseår-BW$3)/($C5+AG6)),0)) -> 0 | BX5: =IF($C5="","",MAX(AH5 * INDEX(Genanskaffelsespriser!$G$2:$G$201,MATCH(1,($AQ5=Genanskaffelsespriser!$A$2:$A$201)*($AR5=Genanskaffelsespriser!$B$2:$B$201)*($AS5=Genanskaffelsespriser!$D$2:$D$201)*($A5=Genanskaffelsespriser!$C$2:$C$201),0)) * (1 - (Analyseår-BX$3)/($C5+AH6)),0)) -> 0 | BY5: =IF($C5="","",MAX(AI5 * INDEX(Genanskaffelsespriser!$G$2:$G$201,MATCH(1,($AQ5=Genanskaffelsespriser!$A$2:$A$201)*($AR5=Genanskaffelsespriser!$B$2:$B$201)*($AS5=Genanskaffelsespriser!$D$2:$D$201)*($A5=Genanskaffelsespriser!$C$2:$C$201),0)) * (1 - (Analyseår-BY$3)/($C5+AI6)),0)) -> 0 | BZ5: =IF($C5="","",MAX(AJ5 * INDEX(Genanskaffelsespriser!$G$2:$G$201,MATCH(1,($AQ5=Genanskaffelsespriser!$A$2:$A$201)*($AR5=Genanskaffelsespriser!$B$2:$B$201)*($AS5=Genanskaffelsespriser!$D$2:$D$201)*($A5=Genanskaffelsespriser!$C$2:$C$201),0)) * (1 - (Analyseår-BZ$3)/($C5+AJ6)),0)) -> 0 | CA5: =IF($C5="","",MAX(AK5 * INDEX(Genanskaffelsespriser!$G$2:$G$201,MATCH(1,($AQ5=Genanskaffelsespriser!$A$2:$A$201)*($AR5=Genanskaffelsespriser!$B$2:$B$201)*($AS5=Genanskaffelsespriser!$D$2:$D$201)*($A5=Genanskaffelsespriser!$C$2:$C$201),0)) * (1 - (Analyseår-CA$3)/($C5+AK6)),0)) -> 0 | CB5: =IF($C5="","",MAX(AL5 * INDEX(Genanskaffelsespriser!$G$2:$G$201,MATCH(1,($AQ5=Genanskaffelsespriser!$A$2:$A$201)*($AR5=Genanskaffelsespriser!$B$2:$B$201)*($AS5=Genanskaffelsespriser!$D$2:$D$201)*($A5=Genanskaffelsespriser!$C$2:$C$201),0)) * (1 - (Analyseår-CB$3)/($C5+AL6)),0)) -> 0 | CC5: =IF($C5="","",MAX(AM5 * INDEX(Genanskaffelsespriser!$G$2:$G$201,MATCH(1,($AQ5=Genanskaffelsespriser!$A$2:$A$201)*($AR5=Genanskaffelsespriser!$B$2:$B$201)*($AS5=Genanskaffelsespriser!$D$2:$D$201)*($A5=Genanskaffelsespriser!$C$2:$C$201),0)) * (1 - (Analyseår-CC$3)/($C5+AM6)),0)) -> 0 | CD5: =IF($C5="","",MAX(AN5 * INDEX(Genanskaffelsespriser!$G$2:$G$201,MATCH(1,($AQ5=Genanskaffelsespriser!$A$2:$A$201)*($AR5=Genanskaffelsespriser!$B$2:$B$201)*($AS5=Genanskaffelsespriser!$D$2:$D$201)*($A5=Genanskaffelsespriser!$C$2:$C$201),0)) * (1 - (Analyseår-CD$3)/($C5+AN6)),0)) -> 0 | CE5: =IF($C5="","",MAX(AO5 * INDEX(Genanskaffelsespriser!$G$2:$G$201,MATCH(1,($AQ5=Genanskaffelsespriser!$A$2:$A$201)*($AR5=Genanskaffelsespriser!$B$2:$B$201)*($AS5=Genanskaffelsespriser!$D$2:$D$201)*($A5=Genanskaffelsespriser!$C$2:$C$201),0)) * (1 - (Analyseår-CE$3)/($C5+AO6)),0)) -> 0 | CG5: =IF($C5="","",SUM(($D$3:$AO$3+$C5+$D6:$AO6>=CG$3)*IFERROR($AT5:$CE5/($D$3:$AO$3+$C5+$D6:$AO6-Analyseår),0))) -> 0 | CH5: =IF($C5="","",SUM(($D$3:$AO$3+$C5+$D6:$AO6>=CH$3)*IFERROR($AT5:$CE5/($D$3:$AO$3+$C5+$D6:$AO6-Analyseår),0))) -> 0 | CI5: =IF($C5="","",SUM(($D$3:$AO$3+$C5+$D6:$AO6>=CI$3)*IFERROR($AT5:$CE5/($D$3:$AO$3+$C5+$D6:$AO6-Analyseår),0))) -> 0 | CJ5: =IF($C5="","",SUM(($D$3:$AO$3+$C5+$D6:$AO6>=CJ$3)*IFERROR($AT5:$CE5/($D$3:$AO$3+$C5+$D6:$AO6-Analyseår),0))) -> 0 | CK5: =IF($C5="","",SUM(($D$3:$AO$3+$C5+$D6:$AO6>=CK$3)*IFERROR($AT5:$CE5/($D$3:$AO$3+$C5+$D6:$AO6-Analyseår),0))) -> 0 | CL5: =IF($C5="","",SUM(($D$3:$AO$3+$C5+$D6:$AO6>=CL$3)*IFERROR($AT5:$CE5/($D$3:$AO$3+$C5+$D6:$AO6-Analyseår),0))) -> 0 | CM5: =IF($C5="","",SUM(($D$3:$AO$3+$C5+$D6:$AO6>=CM$3)*IFERROR($AT5:$CE5/($D$3:$AO$3+$C5+$D6:$AO6-Analyseår),0))) -> 0 | CN5: =IF($C5="","",SUM(($D$3:$AO$3+$C5+$D6:$AO6>=CN$3)*IFERROR($AT5:$CE5/($D$3:$AO$3+$C5+$D6:$AO6-Analyseår),0))) -> 0 | CO5: =IF($C5="","",SUM(($D$3:$AO$3+$C5+$D6:$AO6>=CO$3)*IFERROR($AT5:$CE5/($D$3:$AO$3+$C5+$D6:$AO6-Analyseår),0))) -> 0 | CP5: =IF($C5="","",SUM(($D$3:$AO$3+$C5+$D6:$AO6>=CP$3)*IFERROR($AT5:$CE5/($D$3:$AO$3+$C5+$D6:$AO6-Analyseår),0))) -> 0 | CQ5: =IF($C5="","",SUM(($D$3:$AO$3+$C5+$D6:$AO6>=CQ$3)*IFERROR($AT5:$CE5/($D$3:$AO$3+$C5+$D6:$AO6-Analyseår),0))) -> 0 | CR5: =IF($C5="","",SUM(($D$3:$AO$3+$C5+$D6:$AO6>=CR$3)*IFERROR($AT5:$CE5/($D$3:$AO$3+$C5+$D6:$AO6-Analyseår),0))) -> 0 | CS5: =IF($C5="","",SUM(($D$3:$AO$3+$C5+$D6:$AO6>=CS$3)*IFERROR($AT5:$CE5/($D$3:$AO$3+$C5+$D6:$AO6-Analyseår),0))) -> 0 | CT5: =IF($C5="","",SUM(($D$3:$AO$3+$C5+$D6:$AO6>=CT$3)*IFERROR($AT5:$CE5/($D$3:$AO$3+$C5+$D6:$AO6-Analyseår),0))) -> 0 | CU5: =IF($C5="","",SUM(($D$3:$AO$3+$C5+$D6:$AO6>=CU$3)*IFERROR($AT5:$CE5/($D$3:$AO$3+$C5+$D6:$AO6-Analyseår),0))) -> 0 | CV5: =IF($C5="","",SUM(($D$3:$AO$3+$C5+$D6:$AO6>=CV$3)*IFERROR($AT5:$CE5/($D$3:$AO$3+$C5+$D6:$AO6-Analyseår),0))) -> 0 | CW5: =IF($C5="","",SUM(($D$3:$AO$3+$C5+$D6:$AO6>=CW$3)*IFERROR($AT5:$CE5/($D$3:$AO$3+$C5+$D6:$AO6-Analyseår),0))) -> 0 | CX5: =IF($C5="","",SUM(($D$3:$AO$3+$C5+$D6:$AO6>=CX$3)*IFERROR($AT5:$CE5/($D$3:$AO$3+$C5+$D6:$AO6-Analyseår),0))) -> 0 | CY5: =IF($C5="","",SUM(($D$3:$AO$3+$C5+$D6:$AO6>=CY$3)*IFERROR($AT5:$CE5/($D$3:$AO$3+$C5+$D6:$AO6-Analyseår),0))) -> 0 | CZ5: =IF($C5="","",SUM(($D$3:$AO$3+$C5+$D6:$AO6>=CZ$3)*IFERROR($AT5:$CE5/($D$3:$AO$3+$C5+$D6:$AO6-Analyseår),0))) -> 0 | DA5: =IF($C5="","",SUM(($D$3:$AO$3+$C5+$D6:$AO6>=DA$3)*IFERROR($AT5:$CE5/($D$3:$AO$3+$C5+$D6:$AO6-Analyseår),0))) -> 0 | DB5: =IF($C5="","",SUM(($D$3:$AO$3+$C5+$D6:$AO6>=DB$3)*IFERROR($AT5:$CE5/($D$3:$AO$3+$C5+$D6:$AO6-Analyseår),0))) -> 0 | DC5: =IF($C5="","",SUM(($D$3:$AO$3+$C5+$D6:$AO6>=DC$3)*IFERROR($AT5:$CE5/($D$3:$AO$3+$C5+$D6:$AO6-Analyseår),0))) -> 0 | DD5: =IF($C5="","",SUM(($D$3:$AO$3+$C5+$D6:$AO6>=DD$3)*IFERROR($AT5:$CE5/($D$3:$AO$3+$C5+$D6:$AO6-Analyseår),0))) -> 0 | DE5: =IF($C5="","",SUM(($D$3:$AO$3+$C5+$D6:$AO6>=DE$3)*IFERROR($AT5:$CE5/($D$3:$AO$3+$C5+$D6:$AO6-Analyseår),0))) -> 0 | DF5: =IF($C5="","",SUM(($D$3:$AO$3+$C5+$D6:$AO6>=DF$3)*IFERROR($AT5:$CE5/($D$3:$AO$3+$C5+$D6:$AO6-Analyseår),0))) -> 0 | DG5: =IF($C5="","",SUM(($D$3:$AO$3+$C5+$D6:$AO6>=DG$3)*IFERROR($AT5:$CE5/($D$3:$AO$3+$C5+$D6:$AO6-Analyseår),0))) -> 0 | DH5: =IF($C5="","",SUM(($D$3:$AO$3+$C5+$D6:$AO6>=DH$3)*IFERROR($AT5:$CE5/($D$3:$AO$3+$C5+$D6:$AO6-Analyseår),0))) -> 0 | DI5: =IF($C5="","",SUM(($D$3:$AO$3+$C5+$D6:$AO6>=DI$3)*IFERROR($AT5:$CE5/($D$3:$AO$3+$C5+$D6:$AO6-Analyseår),0))) -> 0 | DJ5: =IF($C5="","",SUM(($D$3:$AO$3+$C5+$D6:$AO6>=DJ$3)*IFERROR($AT5:$CE5/($D$3:$AO$3+$C5+$D6:$AO6-Analyseår),0))) -> 0 | DK5: =IF($C5="","",SUM(($D$3:$AO$3+$C5+$D6:$AO6>=DK$3)*IFERROR($AT5:$CE5/($D$3:$AO$3+$C5+$D6:$AO6-Analyseår),0))) -> 0 | DL5: =IF($C5="","",SUM(($D$3:$AO$3+$C5+$D6:$AO6>=DL$3)*IFERROR($AT5:$CE5/($D$3:$AO$3+$C5+$D6:$AO6-Analyseår),0))) -> 0 | DM5: =IF($C5="","",SUM(($D$3:$AO$3+$C5+$D6:$AO6>=DM$3)*IFERROR($AT5:$CE5/($D$3:$AO$3+$C5+$D6:$AO6-Analyseår),0))) -> 0 | DN5: =IF($C5="","",SUM(($D$3:$AO$3+$C5+$D6:$AO6>=DN$3)*IFERROR($AT5:$CE5/($D$3:$AO$3+$C5+$D6:$AO6-Analyseår),0))) -> 0 | DO5: =IF($C5="","",SUM(($D$3:$AO$3+$C5+$D6:$AO6>=DO$3)*IFERROR($AT5:$CE5/($D$3:$AO$3+$C5+$D6:$AO6-Analyseår),0))) -> 0 | DP5: =IF($C5="","",SUM(($D$3:$AO$3+$C5+$D6:$AO6>=DP$3)*IFERROR($AT5:$CE5/($D$3:$AO$3+$C5+$D6:$AO6-Analyseår),0))) -> 0 | DQ5: =IF($C5="","",SUM(($D$3:$AO$3+$C5+$D6:$AO6>=DQ$3)*IFERROR($AT5:$CE5/($D$3:$AO$3+$C5+$D6:$AO6-Analyseår),0))) -> 0 | DR5: =IF($C5="","",SUM(($D$3:$AO$3+$C5+$D6:$AO6>=DR$3)*IFERROR($AT5:$CE5/($D$3:$AO$3+$C5+$D6:$AO6-Analyseår),0))) -> 0 | DS5: =IF($C5="","",SUM(($D$3:$AO$3+$C5+$D6:$AO6>=DS$3)*IFERROR($AT5:$CE5/($D$3:$AO$3+$C5+$D6:$AO6-Analyseår),0))) -> 0 | DT5: =IF($C5="","",SUM(($D$3:$AO$3+$C5+$D6:$AO6>=DT$3)*IFERROR($AT5:$CE5/($D$3:$AO$3+$C5+$D6:$AO6-Analyseår),0))) -> 0 | DU5: =IF($C5="","",SUM(($D$3:$AO$3+$C5+$D6:$AO6>=DU$3)*IFERROR($AT5:$CE5/($D$3:$AO$3+$C5+$D6:$AO6-Analyseår),0))) -> 0 | DV5: =IF($C5="","",SUM(($D$3:$AO$3+$C5+$D6:$AO6>=DV$3)*IFERROR($AT5:$CE5/($D$3:$AO$3+$C5+$D6:$AO6-Analyseår),0))) -> 0 | DW5: =IF($C5="","",SUM(($D$3:$AO$3+$C5+$D6:$AO6>=DW$3)*IFERROR($AT5:$CE5/($D$3:$AO$3+$C5+$D6:$AO6-Analyseår),0))) -> 0 | DX5: =IF($C5="","",SUM(($D$3:$AO$3+$C5+$D6:$AO6>=DX$3)*IFERROR($AT5:$CE5/($D$3:$AO$3+$C5+$D6:$AO6-Analyseår),0))) -> 0 | DY5: =IF($C5="","",SUM(($D$3:$AO$3+$C5+$D6:$AO6>=DY$3)*IFERROR($AT5:$CE5/($D$3:$AO$3+$C5+$D6:$AO6-Analyseår),0))) -> 0 | DZ5: =IF($C5="","",SUM(($D$3:$AO$3+$C5+$D6:$AO6>=DZ$3)*IFERROR($AT5:$CE5/($D$3:$AO$3+$C5+$D6:$AO6-Analyseår),0))) -> 0 | EA5: =IF($C5="","",SUM(($D$3:$AO$3+$C5+$D6:$AO6>=EA$3)*IFERROR($AT5:$CE5/($D$3:$AO$3+$C5+$D6:$AO6-Analyseår),0))) -> 0 | EB5: =IF($C5="","",SUM(($D$3:$AO$3+$C5+$D6:$AO6>=EB$3)*IFERROR($AT5:$CE5/($D$3:$AO$3+$C5+$D6:$AO6-Analyseår),0))) -> 0 | EC5: =IF($C5="","",SUM(($D$3:$AO$3+$C5+$D6:$AO6>=EC$3)*IFERROR($AT5:$CE5/($D$3:$AO$3+$C5+$D6:$AO6-Analyseår),0))) -> 0 | ED5: =IF($C5="","",SUM(($D$3:$AO$3+$C5+$D6:$AO6>=ED$3)*IFERROR($AT5:$CE5/($D$3:$AO$3+$C5+$D6:$AO6-Analyseår),0))) -> 0 | EE5: =IF($C5="","",SUM(($D$3:$AO$3+$C5+$D6:$AO6>=EE$3)*IFERROR($AT5:$CE5/($D$3:$AO$3+$C5+$D6:$AO6-Analyseår),0))) -> 0 | EF5: =IF($C5="","",SUM(($D$3:$AO$3+$C5+$D6:$AO6>=EF$3)*IFERROR($AT5:$CE5/($D$3:$AO$3+$C5+$D6:$AO6-Analyseår),0))) -> 0 | EG5: =IF($C5="","",SUM(($D$3:$AO$3+$C5+$D6:$AO6>=EG$3)*IFERROR($AT5:$CE5/($D$3:$AO$3+$C5+$D6:$AO6-Analyseår),0))) -> 0 | EH5: =IF($C5="","",SUM(($D$3:$AO$3+$C5+$D6:$AO6>=EH$3)*IFERROR($AT5:$CE5/($D$3:$AO$3+$C5+$D6:$AO6-Analyseår),0))) -> 0 | EI5: =IF($C5="","",SUM(($D$3:$AO$3+$C5+$D6:$AO6>=EI$3)*IFERROR($AT5:$CE5/($D$3:$AO$3+$C5+$D6:$AO6-Analyseår),0))) -> 0 | EJ5: =IF($C5="","",SUM(($D$3:$AO$3+$C5+$D6:$AO6>=EJ$3)*IFERROR($AT5:$CE5/($D$3:$AO$3+$C5+$D6:$AO6-Analyseår),0))) -> 0 | EK5: =IF($C5="","",SUM(($D$3:$AO$3+$C5+$D6:$AO6>=EK$3)*IFERROR($AT5:$CE5/($D$3:$AO$3+$C5+$D6:$AO6-Analyseår),0))) -> 0 | EL5: =IF($C5="","",SUM(($D$3:$AO$3+$C5+$D6:$AO6>=EL$3)*IFERROR($AT5:$CE5/($D$3:$AO$3+$C5+$D6:$AO6-Analyseår),0))) -> 0 | EM5: =IF($C5="","",SUM(($D$3:$AO$3+$C5+$D6:$AO6>=EM$3)*IFERROR($AT5:$CE5/($D$3:$AO$3+$C5+$D6:$AO6-Analyseår),0))) -> 0 | EN5: =IF($C5="","",SUM(($D$3:$AO$3+$C5+$D6:$AO6>=EN$3)*IFERROR($AT5:$CE5/($D$3:$AO$3+$C5+$D6:$AO6-Analyseår),0))) -> 0 | EO5: =IF($C5="","",SUM(($D$3:$AO$3+$C5+$D6:$AO6>=EO$3)*IFERROR($AT5:$CE5/($D$3:$AO$3+$C5+$D6:$AO6-Analyseår),0))) -> 0 | EP5: =IF($C5="","",SUM(($D$3:$AO$3+$C5+$D6:$AO6>=EP$3)*IFERROR($AT5:$CE5/($D$3:$AO$3+$C5+$D6:$AO6-Analyseår),0))) -> 0 | EQ5: =IF($C5="","",SUM(($D$3:$AO$3+$C5+$D6:$AO6>=EQ$3)*IFERROR($AT5:$CE5/($D$3:$AO$3+$C5+$D6:$AO6-Analyseår),0))) -> 0 | ER5: =IF($C5="","",SUM(($D$3:$AO$3+$C5+$D6:$AO6>=ER$3)*IFERROR($AT5:$CE5/($D$3:$AO$3+$C5+$D6:$AO6-Analyseår),0))) -> 0 | ES5: =IF($C5="","",SUM(($D$3:$AO$3+$C5+$D6:$AO6>=ES$3)*IFERROR($AT5:$CE5/($D$3:$AO$3+$C5+$D6:$AO6-Analyseår),0))) -> 0 | ET5: =IF($C5="","",SUM(($D$3:$AO$3+$C5+$D6:$AO6>=ET$3)*IFERROR($AT5:$CE5/($D$3:$AO$3+$C5+$D6:$AO6-Analyseår),0))) -> 0 | EU5: =IF($C5="","",SUM(($D$3:$AO$3+$C5+$D6:$AO6>=EU$3)*IFERROR($AT5:$CE5/($D$3:$AO$3+$C5+$D6:$AO6-Analyseår),0))) -> 0 | EV5: =IF($C5="","",SUM(($D$3:$AO$3+$C5+$D6:$AO6>=EV$3)*IFERROR($AT5:$CE5/($D$3:$AO$3+$C5+$D6:$AO6-Analyseår),0))) -> 0 | EW5: =IF($C5="","",SUM(($D$3:$AO$3+$C5+$D6:$AO6>=EW$3)*IFERROR($AT5:$CE5/($D$3:$AO$3+$C5+$D6:$AO6-Analyseår),0))) -> 0 | EX5: =IF($C5="","",SUM(($D$3:$AO$3+$C5+$D6:$AO6>=EX$3)*IFERROR($AT5:$CE5/($D$3:$AO$3+$C5+$D6:$AO6-Analyseår),0))) -> 0 | EY5: =IF($C5="","",SUM(($D$3:$AO$3+$C5+$D6:$AO6>=EY$3)*IFERROR($AT5:$CE5/($D$3:$AO$3+$C5+$D6:$AO6-Analyseår),0))) -> 0 | EZ5: =IF($C5="","",SUM(($D$3:$AO$3+$C5+$D6:$AO6>=EZ$3)*IFERROR($AT5:$CE5/($D$3:$AO$3+$C5+$D6:$AO6-Analyseår),0))) -> 0 | FA5: =IF($C5="","",SUM(($D$3:$AO$3+$C5+$D6:$AO6>=FA$3)*IFERROR($AT5:$CE5/($D$3:$AO$3+$C5+$D6:$AO6-Analyseår),0))) -> 0 | FB5: =IF($C5="","",SUM(($D$3:$AO$3+$C5+$D6:$AO6>=FB$3)*IFERROR($AT5:$CE5/($D$3:$AO$3+$C5+$D6:$AO6-Analyseår),0))) -> 0 | FC5: =IF($C5="","",SUM(($D$3:$AO$3+$C5+$D6:$AO6>=FC$3)*IFERROR($AT5:$CE5/($D$3:$AO$3+$C5+$D6:$AO6-Analyseår),0))) -> 0 | FD5: =IF($C5="","",SUM(($D$3:$AO$3+$C5+$D6:$AO6>=FD$3)*IFERROR($AT5:$CE5/($D$3:$AO$3+$C5+$D6:$AO6-Analyseår),0))) -> 0 | FE5: =IF($C5="","",SUM(($D$3:$AO$3+$C5+$D6:$AO6>=FE$3)*IFERROR($AT5:$CE5/($D$3:$AO$3+$C5+$D6:$AO6-Analyseår),0))) -> 0 | FF5: =IF($C5="","",SUM(($D$3:$AO$3+$C5+$D6:$AO6>=FF$3)*IFERROR($AT5:$CE5/($D$3:$AO$3+$C5+$D6:$AO6-Analyseår),0))) -> 0 | FG5: =IF($C5="","",SUM(($D$3:$AO$3+$C5+$D6:$AO6>=FG$3)*IFERROR($AT5:$CE5/($D$3:$AO$3+$C5+$D6:$AO6-Analyseår),0))) -> 0 | FH5: =IF($C5="","",SUM(($D$3:$AO$3+$C5+$D6:$AO6>=FH$3)*IFERROR($AT5:$CE5/($D$3:$AO$3+$C5+$D6:$AO6-Analyseår),0))) -> 0 | FI5: =IF($C5="","",SUM(($D$3:$AO$3+$C5+$D6:$AO6>=FI$3)*IFERROR($AT5:$CE5/($D$3:$AO$3+$C5+$D6:$AO6-Analyseår),0))) -> 0 | FJ5: =IF($C5="","",SUM(($D$3:$AO$3+$C5+$D6:$AO6>=FJ$3)*IFERROR($AT5:$CE5/($D$3:$AO$3+$C5+$D6:$AO6-Analyseår),0))) -> 0 | FL5: =IF($C5="","",AT5*FL$2) -> 0 | FM5: =IF($C5="","",AU5*FM$2) -> 0 | FN5: =IF($C5="","",AV5*FN$2) -> 0 | FO5: =IF($C5="","",AW5*FO$2) -> 0 | FP5: =IF($C5="","",AX5*FP$2) -> 0 | FQ5: =IF($C5="","",AY5*FQ$2) -> 0 | FR5: =IF($C5="","",AZ5*FR$2) -> 0 | FS5: =IF($C5="","",BA5*FS$2) -> 0 | FT5: =IF($C5="","",BB5*FT$2) -> 0 | FU5: =IF($C5="","",BC5*FU$2) -> 0 | FV5: =IF($C5="","",BD5*FV$2) -> 0 | FW5: =IF($C5="","",BE5*FW$2) -> 0 | FX5: =IF($C5="","",BF5*FX$2) -> 0 | FY5: =IF($C5="","",BG5*FY$2) -> 0 | FZ5: =IF($C5="","",BH5*FZ$2) -> 0 | GA5: =IF($C5="","",BI5*GA$2) -> 0 | GB5: =IF($C5="","",BJ5*GB$2) -> 0 | GC5: =IF($C5="","",BK5*GC$2) -> 0 | GD5: =IF($C5="","",BL5*GD$2) -> 0 | GE5: =IF($C5="","",BM5*GE$2) -> 0 | GF5: =IF($C5="","",BN5*GF$2) -> 0 | GG5: =IF($C5="","",BO5*GG$2) -> 0 | GH5: =IF($C5="","",BP5*GH$2) -> 0 | GI5: =IF($C5="","",BQ5*GI$2) -> 0 | GJ5: =IF($C5="","",BR5*GJ$2) -> 0 | GK5: =IF($C5="","",BS5*GK$2) -> 0 | GL5: =IF($C5="","",BT5*GL$2) -> 0 | GM5: =IF($C5="","",BU5*GM$2) -> 0 | GN5: =IF($C5="","",BV5*GN$2) -> 0 | GO5: =IF($C5="","",BW5*GO$2) -> 0 | GP5: =IF($C5="","",BX5*GP$2) -> 0 | GQ5: =IF($C5="","",BY5*GQ$2) -> 0 | GR5: =IF($C5="","",BZ5*GR$2) -> 0 | GS5: =IF($C5="","",CA5*GS$2) -> 0 | GT5: =IF($C5="","",CB5*GT$2) -> 0 | GU5: =IF($C5="","",CC5*GU$2) -> 0 | GV5: =IF($C5="","",CD5*GV$2) -> 0 | GW5: =IF($C5="","",CE5*GW$2) -> 0 | GY5: =IF($C5="","",SUM(($D$3:$AO$3+$C5+$D6:$AO6>=CG$3)*IFERROR($FL5:$GW5/($D$3:$AO$3+$C5+$D6:$AO6-(Analyseår)),0))) -> 0 | GZ5: =IF($C5="","",SUM(($D$3:$AO$3+$C5+$D6:$AO6>=CH$3)*IFERROR($FL5:$GW5/($D$3:$AO$3+$C5+$D6:$AO6-(Analyseår)),0))) -> 0 | HA5: =IF($C5="","",SUM(($D$3:$AO$3+$C5+$D6:$AO6>=CI$3)*IFERROR($FL5:$GW5/($D$3:$AO$3+$C5+$D6:$AO6-(Analyseår)),0))) -> 0 | HB5: =IF($C5="","",SUM(($D$3:$AO$3+$C5+$D6:$AO6>=CJ$3)*IFERROR($FL5:$GW5/($D$3:$AO$3+$C5+$D6:$AO6-(Analyseår)),0))) -> 0 | HC5: =IF($C5="","",SUM(($D$3:$AO$3+$C5+$D6:$AO6>=CK$3)*IFERROR($FL5:$GW5/($D$3:$AO$3+$C5+$D6:$AO6-(Analyseår)),0))) -> 0 | HD5: =IF($C5="","",SUM(($D$3:$AO$3+$C5+$D6:$AO6>=CL$3)*IFERROR($FL5:$GW5/($D$3:$AO$3+$C5+$D6:$AO6-(Analyseår)),0))) -> 0 | HE5: =IF($C5="","",SUM(($D$3:$AO$3+$C5+$D6:$AO6>=CM$3)*IFERROR($FL5:$GW5/($D$3:$AO$3+$C5+$D6:$AO6-(Analyseår)),0))) -> 0 | HF5: =IF($C5="","",SUM(($D$3:$AO$3+$C5+$D6:$AO6>=CN$3)*IFERROR($FL5:$GW5/($D$3:$AO$3+$C5+$D6:$AO6-(Analyseår)),0))) -> 0 | HG5: =IF($C5="","",SUM(($D$3:$AO$3+$C5+$D6:$AO6>=CO$3)*IFERROR($FL5:$GW5/($D$3:$AO$3+$C5+$D6:$AO6-(Analyseår)),0))) -> 0 | HH5: =IF($C5="","",SUM(($D$3:$AO$3+$C5+$D6:$AO6>=CP$3)*IFERROR($FL5:$GW5/($D$3:$AO$3+$C5+$D6:$AO6-(Analyseår)),0))) -> 0 | HI5: =IF($C5="","",SUM(($D$3:$AO$3+$C5+$D6:$AO6>=CQ$3)*IFERROR($FL5:$GW5/($D$3:$AO$3+$C5+$D6:$AO6-(Analyseår)),0))) -> 0 | HJ5: =IF($C5="","",SUM(($D$3:$AO$3+$C5+$D6:$AO6>=CR$3)*IFERROR($FL5:$GW5/($D$3:$AO$3+$C5+$D6:$AO6-(Analyseår)),0))) -> 0 | HK5: =IF($C5="","",SUM(($D$3:$AO$3+$C5+$D6:$AO6>=CS$3)*IFERROR($FL5:$GW5/($D$3:$AO$3+$C5+$D6:$AO6-(Analyseår)),0))) -> 0 | HL5: =IF($C5="","",SUM(($D$3:$AO$3+$C5+$D6:$AO6>=CT$3)*IFERROR($FL5:$GW5/($D$3:$AO$3+$C5+$D6:$AO6-(Analyseår)),0))) -> 0 | HM5: =IF($C5="","",SUM(($D$3:$AO$3+$C5+$D6:$AO6>=CU$3)*IFERROR($FL5:$GW5/($D$3:$AO$3+$C5+$D6:$AO6-(Analyseår)),0))) -> 0 | HN5: =IF($C5="","",SUM(($D$3:$AO$3+$C5+$D6:$AO6>=CV$3)*IFERROR($FL5:$GW5/($D$3:$AO$3+$C5+$D6:$AO6-(Analyseår)),0))) -> 0 | HO5: =IF($C5="","",SUM(($D$3:$AO$3+$C5+$D6:$AO6>=CW$3)*IFERROR($FL5:$GW5/($D$3:$AO$3+$C5+$D6:$AO6-(Analyseår)),0))) -> 0 | HP5: =IF($C5="","",SUM(($D$3:$AO$3+$C5+$D6:$AO6>=CX$3)*IFERROR($FL5:$GW5/($D$3:$AO$3+$C5+$D6:$AO6-(Analyseår)),0))) -> 0 | HQ5: =IF($C5="","",SUM(($D$3:$AO$3+$C5+$D6:$AO6>=CY$3)*IFERROR($FL5:$GW5/($D$3:$AO$3+$C5+$D6:$AO6-(Analyseår)),0))) -> 0 | HR5: =IF($C5="","",SUM(($D$3:$AO$3+$C5+$D6:$AO6>=CZ$3)*IFERROR($FL5:$GW5/($D$3:$AO$3+$C5+$D6:$AO6-(Analyseår)),0))) -> 0 | HS5: =IF($C5="","",SUM(($D$3:$AO$3+$C5+$D6:$AO6>=DA$3)*IFERROR($FL5:$GW5/($D$3:$AO$3+$C5+$D6:$AO6-(Analyseår)),0))) -> 0 | HT5: =IF($C5="","",SUM(($D$3:$AO$3+$C5+$D6:$AO6>=DB$3)*IFERROR($FL5:$GW5/($D$3:$AO$3+$C5+$D6:$AO6-(Analyseår)),0))) -> 0 | HU5: =IF($C5="","",SUM(($D$3:$AO$3+$C5+$D6:$AO6>=DC$3)*IFERROR($FL5:$GW5/($D$3:$AO$3+$C5+$D6:$AO6-(Analyseår)),0))) -> 0 | HV5: =IF($C5="","",SUM(($D$3:$AO$3+$C5+$D6:$AO6>=DD$3)*IFERROR($FL5:$GW5/($D$3:$AO$3+$C5+$D6:$AO6-(Analyseår)),0))) -> 0 | HW5: =IF($C5="","",SUM(($D$3:$AO$3+$C5+$D6:$AO6>=DE$3)*IFERROR($FL5:$GW5/($D$3:$AO$3+$C5+$D6:$AO6-(Analyseår)),0))) -> 0 | HX5: =IF($C5="","",SUM(($D$3:$AO$3+$C5+$D6:$AO6>=DF$3)*IFERROR($FL5:$GW5/($D$3:$AO$3+$C5+$D6:$AO6-(Analyseår)),0))) -> 0 | HY5: =IF($C5="","",SUM(($D$3:$AO$3+$C5+$D6:$AO6>=DG$3)*IFERROR($FL5:$GW5/($D$3:$AO$3+$C5+$D6:$AO6-(Analyseår)),0))) -> 0 | HZ5: =IF($C5="","",SUM(($D$3:$AO$3+$C5+$D6:$AO6>=DH$3)*IFERROR($FL5:$GW5/($D$3:$AO$3+$C5+$D6:$AO6-(Analyseår)),0))) -> 0 | IA5: =IF($C5="","",SUM(($D$3:$AO$3+$C5+$D6:$AO6>=DI$3)*IFERROR($FL5:$GW5/($D$3:$AO$3+$C5+$D6:$AO6-(Analyseår)),0))) -> 0 | IB5: =IF($C5="","",SUM(($D$3:$AO$3+$C5+$D6:$AO6>=DJ$3)*IFERROR($FL5:$GW5/($D$3:$AO$3+$C5+$D6:$AO6-(Analyseår)),0))) -> 0 | IC5: =IF($C5="","",SUM(($D$3:$AO$3+$C5+$D6:$AO6>=DK$3)*IFERROR($FL5:$GW5/($D$3:$AO$3+$C5+$D6:$AO6-(Analyseår)),0))) -> 0 | ID5: =IF($C5="","",SUM(($D$3:$AO$3+$C5+$D6:$AO6>=DL$3)*IFERROR($FL5:$GW5/($D$3:$AO$3+$C5+$D6:$AO6-(Analyseår)),0))) -> 0 | IE5: =IF($C5="","",SUM(($D$3:$AO$3+$C5+$D6:$AO6>=DM$3)*IFERROR($FL5:$GW5/($D$3:$AO$3+$C5+$D6:$AO6-(Analyseår)),0))) -> 0 | IF5: =IF($C5="","",SUM(($D$3:$AO$3+$C5+$D6:$AO6>=DN$3)*IFERROR($FL5:$GW5/($D$3:$AO$3+$C5+$D6:$AO6-(Analyseår)),0))) -> 0 | IG5: =IF($C5="","",SUM(($D$3:$AO$3+$C5+$D6:$AO6>=DO$3)*IFERROR($FL5:$GW5/($D$3:$AO$3+$C5+$D6:$AO6-(Analyseår)),0))) -> 0 | IH5: =IF($C5="","",SUM(($D$3:$AO$3+$C5+$D6:$AO6>=DP$3)*IFERROR($FL5:$GW5/($D$3:$AO$3+$C5+$D6:$AO6-(Analyseår)),0))) -> 0 | II5: =IF($C5="","",SUM(($D$3:$AO$3+$C5+$D6:$AO6>=DQ$3)*IFERROR($FL5:$GW5/($D$3:$AO$3+$C5+$D6:$AO6-(Analyseår)),0))) -> 0 | IJ5: =IF($C5="","",SUM(($D$3:$AO$3+$C5+$D6:$AO6>=DR$3)*IFERROR($FL5:$GW5/($D$3:$AO$3+$C5+$D6:$AO6-(Analyseår)),0))) -> 0 | IK5: =IF($C5="","",SUM(($D$3:$AO$3+$C5+$D6:$AO6>=DS$3)*IFERROR($FL5:$GW5/($D$3:$AO$3+$C5+$D6:$AO6-(Analyseår)),0))) -> 0 | IL5: =IF($C5="","",SUM(($D$3:$AO$3+$C5+$D6:$AO6>=DT$3)*IFERROR($FL5:$GW5/($D$3:$AO$3+$C5+$D6:$AO6-(Analyseår)),0))) -> 0 | IM5: =IF($C5="","",SUM(($D$3:$AO$3+$C5+$D6:$AO6>=DU$3)*IFERROR($FL5:$GW5/($D$3:$AO$3+$C5+$D6:$AO6-(Analyseår)),0))) -> 0 | IN5: =IF($C5="","",SUM(($D$3:$AO$3+$C5+$D6:$AO6>=DV$3)*IFERROR($FL5:$GW5/($D$3:$AO$3+$C5+$D6:$AO6-(Analyseår)),0))) -> 0 | IO5: =IF($C5="","",SUM(($D$3:$AO$3+$C5+$D6:$AO6>=DW$3)*IFERROR($FL5:$GW5/($D$3:$AO$3+$C5+$D6:$AO6-(Analyseår)),0))) -> 0 | IP5: =IF($C5="","",SUM(($D$3:$AO$3+$C5+$D6:$AO6>=DX$3)*IFERROR($FL5:$GW5/($D$3:$AO$3+$C5+$D6:$AO6-(Analyseår)),0))) -> 0 | IQ5: =IF($C5="","",SUM(($D$3:$AO$3+$C5+$D6:$AO6>=DY$3)*IFERROR($FL5:$GW5/($D$3:$AO$3+$C5+$D6:$AO6-(Analyseår)),0))) -> 0 | IR5: =IF($C5="","",SUM(($D$3:$AO$3+$C5+$D6:$AO6>=DZ$3)*IFERROR($FL5:$GW5/($D$3:$AO$3+$C5+$D6:$AO6-(Analyseår)),0))) -> 0 | IS5: =IF($C5="","",SUM(($D$3:$AO$3+$C5+$D6:$AO6>=EA$3)*IFERROR($FL5:$GW5/($D$3:$AO$3+$C5+$D6:$AO6-(Analyseår)),0))) -> 0 | IT5: =IF($C5="","",SUM(($D$3:$AO$3+$C5+$D6:$AO6>=EB$3)*IFERROR($FL5:$GW5/($D$3:$AO$3+$C5+$D6:$AO6-(Analyseår)),0))) -> 0 | IU5: =IF($C5="","",SUM(($D$3:$AO$3+$C5+$D6:$AO6>=EC$3)*IFERROR($FL5:$GW5/($D$3:$AO$3+$C5+$D6:$AO6-(Analyseår)),0))) -> 0 | IV5: =IF($C5="","",SUM(($D$3:$AO$3+$C5+$D6:$AO6>=ED$3)*IFERROR($FL5:$GW5/($D$3:$AO$3+$C5+$D6:$AO6-(Analyseår)),0))) -> 0 | IW5: =IF($C5="","",SUM(($D$3:$AO$3+$C5+$D6:$AO6>=EE$3)*IFERROR($FL5:$GW5/($D$3:$AO$3+$C5+$D6:$AO6-(Analyseår)),0))) -> 0 | IX5: =IF($C5="","",SUM(($D$3:$AO$3+$C5+$D6:$AO6>=EF$3)*IFERROR($FL5:$GW5/($D$3:$AO$3+$C5+$D6:$AO6-(Analyseår)),0))) -> 0 | IY5: =IF($C5="","",SUM(($D$3:$AO$3+$C5+$D6:$AO6>=EG$3)*IFERROR($FL5:$GW5/($D$3:$AO$3+$C5+$D6:$AO6-(Analyseår)),0))) -> 0 | IZ5: =IF($C5="","",SUM(($D$3:$AO$3+$C5+$D6:$AO6>=EH$3)*IFERROR($FL5:$GW5/($D$3:$AO$3+$C5+$D6:$AO6-(Analyseår)),0))) -> 0 | JA5: =IF($C5="","",SUM(($D$3:$AO$3+$C5+$D6:$AO6>=EI$3)*IFERROR($FL5:$GW5/($D$3:$AO$3+$C5+$D6:$AO6-(Analyseår)),0))) -> 0 | JB5: =IF($C5="","",SUM(($D$3:$AO$3+$C5+$D6:$AO6>=EJ$3)*IFERROR($FL5:$GW5/($D$3:$AO$3+$C5+$D6:$AO6-(Analyseår)),0))) -> 0 | JC5: =IF($C5="","",SUM(($D$3:$AO$3+$C5+$D6:$AO6>=EK$3)*IFERROR($FL5:$GW5/($D$3:$AO$3+$C5+$D6:$AO6-(Analyseår)),0))) -> 0 | JD5: =IF($C5="","",SUM(($D$3:$AO$3+$C5+$D6:$AO6>=EL$3)*IFERROR($FL5:$GW5/($D$3:$AO$3+$C5+$D6:$AO6-(Analyseår)),0))) -> 0 | JE5: =IF($C5="","",SUM(($D$3:$AO$3+$C5+$D6:$AO6>=EM$3)*IFERROR($FL5:$GW5/($D$3:$AO$3+$C5+$D6:$AO6-(Analyseår)),0))) -> 0 | JF5: =IF($C5="","",SUM(($D$3:$AO$3+$C5+$D6:$AO6>=EN$3)*IFERROR($FL5:$GW5/($D$3:$AO$3+$C5+$D6:$AO6-(Analyseår)),0))) -> 0 | JG5: =IF($C5="","",SUM(($D$3:$AO$3+$C5+$D6:$AO6>=EO$3)*IFERROR($FL5:$GW5/($D$3:$AO$3+$C5+$D6:$AO6-(Analyseår)),0))) -> 0 | JH5: =IF($C5="","",SUM(($D$3:$AO$3+$C5+$D6:$AO6>=EP$3)*IFERROR($FL5:$GW5/($D$3:$AO$3+$C5+$D6:$AO6-(Analyseår)),0))) -> 0 | JI5: =IF($C5="","",SUM(($D$3:$AO$3+$C5+$D6:$AO6>=EQ$3)*IFERROR($FL5:$GW5/($D$3:$AO$3+$C5+$D6:$AO6-(Analyseår)),0))) -> 0 | JJ5: =IF($C5="","",SUM(($D$3:$AO$3+$C5+$D6:$AO6>=ER$3)*IFERROR($FL5:$GW5/($D$3:$AO$3+$C5+$D6:$AO6-(Analyseår)),0))) -> 0 | JK5: =IF($C5="","",SUM(($D$3:$AO$3+$C5+$D6:$AO6>=ES$3)*IFERROR($FL5:$GW5/($D$3:$AO$3+$C5+$D6:$AO6-(Analyseår)),0))) -> 0 | JL5: =IF($C5="","",SUM(($D$3:$AO$3+$C5+$D6:$AO6>=ET$3)*IFERROR($FL5:$GW5/($D$3:$AO$3+$C5+$D6:$AO6-(Analyseår)),0))) -> 0 | JM5: =IF($C5="","",SUM(($D$3:$AO$3+$C5+$D6:$AO6>=EU$3)*IFERROR($FL5:$GW5/($D$3:$AO$3+$C5+$D6:$AO6-(Analyseår)),0))) -> 0 | JN5: =IF($C5="","",SUM(($D$3:$AO$3+$C5+$D6:$AO6>=EV$3)*IFERROR($FL5:$GW5/($D$3:$AO$3+$C5+$D6:$AO6-(Analyseår)),0))) -> 0 | JO5: =IF($C5="","",SUM(($D$3:$AO$3+$C5+$D6:$AO6>=EW$3)*IFERROR($FL5:$GW5/($D$3:$AO$3+$C5+$D6:$AO6-(Analyseår)),0))) -> 0 | JP5: =IF($C5="","",SUM(($D$3:$AO$3+$C5+$D6:$AO6>=EX$3)*IFERROR($FL5:$GW5/($D$3:$AO$3+$C5+$D6:$AO6-(Analyseår)),0))) -> 0 | JQ5: =IF($C5="","",SUM(($D$3:$AO$3+$C5+$D6:$AO6>=EY$3)*IFERROR($FL5:$GW5/($D$3:$AO$3+$C5+$D6:$AO6-(Analyseår)),0))) -> 0 | JR5: =IF($C5="","",SUM(($D$3:$AO$3+$C5+$D6:$AO6>=EZ$3)*IFERROR($FL5:$GW5/($D$3:$AO$3+$C5+$D6:$AO6-(Analyseår)),0))) -> 0 | JS5: =IF($C5="","",SUM(($D$3:$AO$3+$C5+$D6:$AO6>=FA$3)*IFERROR($FL5:$GW5/($D$3:$AO$3+$C5+$D6:$AO6-(Analyseår)),0))) -> 0 | JT5: =IF($C5="","",SUM(($D$3:$AO$3+$C5+$D6:$AO6>=FB$3)*IFERROR($FL5:$GW5/($D$3:$AO$3+$C5+$D6:$AO6-(Analyseår)),0))) -> 0 | JU5: =IF($C5="","",SUM(($D$3:$AO$3+$C5+$D6:$AO6>=FC$3)*IFERROR($FL5:$GW5/($D$3:$AO$3+$C5+$D6:$AO6-(Analyseår)),0))) -> 0 | JV5: =IF($C5="","",SUM(($D$3:$AO$3+$C5+$D6:$AO6>=FD$3)*IFERROR($FL5:$GW5/($D$3:$AO$3+$C5+$D6:$AO6-(Analyseår)),0))) -> 0 | JW5: =IF($C5="","",SUM(($D$3:$AO$3+$C5+$D6:$AO6>=FE$3)*IFERROR($FL5:$GW5/($D$3:$AO$3+$C5+$D6:$AO6-(Analyseår)),0))) -> 0 | JX5: =IF($C5="","",SUM(($D$3:$AO$3+$C5+$D6:$AO6>=FF$3)*IFERROR($FL5:$GW5/($D$3:$AO$3+$C5+$D6:$AO6-(Analyseår)),0))) -> 0 | JY5: =IF($C5="","",SUM(($D$3:$AO$3+$C5+$D6:$AO6>=FG$3)*IFERROR($FL5:$GW5/($D$3:$AO$3+$C5+$D6:$AO6-(Analyseår)),0))) -> 0 | JZ5: =IF($C5="","",SUM(($D$3:$AO$3+$C5+$D6:$AO6>=FH$3)*IFERROR($FL5:$GW5/($D$3:$AO$3+$C5+$D6:$AO6-(Analyseår)),0))) -> 0 | KA5: =IF($C5="","",SUM(($D$3:$AO$3+$C5+$D6:$AO6>=FI$3)*IFERROR($FL5:$GW5/($D$3:$AO$3+$C5+$D6:$AO6-(Analyseår)),0))) -> 0 | KB5: =IF($C5="","",SUM(($D$3:$AO$3+$C5+$D6:$AO6>=FJ$3)*IFERROR($FL5:$GW5/($D$3:$AO$3+$C5+$D6:$AO6-(Analyseår)),0))) -> 0
A6: Levetidsforlængelse | B6: År | D6: 0 | E6: 0 | F6: 0 | G6: 0 | H6: 0 | I6: 0 | J6: 0 | K6: 0 | L6: 0 | M6: 0 | N6: 0 | O6: 0 | P6: 0 | Q6: 0 | R6: 0 | S6: 0 | T6: 0 | U6: 0 | V6: 0 | W6: 0 | X6: 0 | Y6: 0 | Z6: 0 | AA6: 0 | AB6: 0 | AC6: 0 | AD6: 0 | AE6: 0 | AF6: 0 | AG6: 0 | AH6: 0 | AI6: 0 | AJ6: 0 | AK6: 0 | AL6: 0 | AM6: 0 | AN6: 0 | AO6: 0 | AT6: =IF($C6="","",MAX(D6 * INDEX(Genanskaffelsespriser!$G$2:$G$201,MATCH(1,($AQ6=Genanskaffelsespriser!$A$2:$A$201)*($AR6=Genanskaffelsespriser!$B$2:$B$201)*($AS6=Genanskaffelsespriser!$D$2:$D$201)*($A6=Genanskaffelsespriser!$C$2:$C$201),0)) * (1 - (Analyseår-AT$3)/($C6+D7)),0)) ->  | AU6: =IF($C6="","",MAX(E6 * INDEX(Genanskaffelsespriser!$G$2:$G$201,MATCH(1,($AQ6=Genanskaffelsespriser!$A$2:$A$201)*($AR6=Genanskaffelsespriser!$B$2:$B$201)*($AS6=Genanskaffelsespriser!$D$2:$D$201)*($A6=Genanskaffelsespriser!$C$2:$C$201),0)) * (1 - (Analyseår-AU$3)/($C6+E7)),0)) ->  | AV6: =IF($C6="","",MAX(F6 * INDEX(Genanskaffelsespriser!$G$2:$G$201,MATCH(1,($AQ6=Genanskaffelsespriser!$A$2:$A$201)*($AR6=Genanskaffelsespriser!$B$2:$B$201)*($AS6=Genanskaffelsespriser!$D$2:$D$201)*($A6=Genanskaffelsespriser!$C$2:$C$201),0)) * (1 - (Analyseår-AV$3)/($C6+F7)),0)) ->  | AW6: =IF($C6="","",MAX(G6 * INDEX(Genanskaffelsespriser!$G$2:$G$201,MATCH(1,($AQ6=Genanskaffelsespriser!$A$2:$A$201)*($AR6=Genanskaffelsespriser!$B$2:$B$201)*($AS6=Genanskaffelsespriser!$D$2:$D$201)*($A6=Genanskaffelsespriser!$C$2:$C$201),0)) * (1 - (Analyseår-AW$3)/($C6+G7)),0)) ->  | AX6: =IF($C6="","",MAX(H6 * INDEX(Genanskaffelsespriser!$G$2:$G$201,MATCH(1,($AQ6=Genanskaffelsespriser!$A$2:$A$201)*($AR6=Genanskaffelsespriser!$B$2:$B$201)*($AS6=Genanskaffelsespriser!$D$2:$D$201)*($A6=Genanskaffelsespriser!$C$2:$C$201),0)) * (1 - (Analyseår-AX$3)/($C6+H7)),0)) ->  | AY6: =IF($C6="","",MAX(I6 * INDEX(Genanskaffelsespriser!$G$2:$G$201,MATCH(1,($AQ6=Genanskaffelsespriser!$A$2:$A$201)*($AR6=Genanskaffelsespriser!$B$2:$B$201)*($AS6=Genanskaffelsespriser!$D$2:$D$201)*($A6=Genanskaffelsespriser!$C$2:$C$201),0)) * (1 - (Analyseår-AY$3)/($C6+I7)),0)) ->  | AZ6: =IF($C6="","",MAX(J6 * INDEX(Genanskaffelsespriser!$G$2:$G$201,MATCH(1,($AQ6=Genanskaffelsespriser!$A$2:$A$201)*($AR6=Genanskaffelsespriser!$B$2:$B$201)*($AS6=Genanskaffelsespriser!$D$2:$D$201)*($A6=Genanskaffelsespriser!$C$2:$C$201),0)) * (1 - (Analyseår-AZ$3)/($C6+J7)),0)) ->  | BA6: =IF($C6="","",MAX(K6 * INDEX(Genanskaffelsespriser!$G$2:$G$201,MATCH(1,($AQ6=Genanskaffelsespriser!$A$2:$A$201)*($AR6=Genanskaffelsespriser!$B$2:$B$201)*($AS6=Genanskaffelsespriser!$D$2:$D$201)*($A6=Genanskaffelsespriser!$C$2:$C$201),0)) * (1 - (Analyseår-BA$3)/($C6+K7)),0)) ->  | BB6: =IF($C6="","",MAX(L6 * INDEX(Genanskaffelsespriser!$G$2:$G$201,MATCH(1,($AQ6=Genanskaffelsespriser!$A$2:$A$201)*($AR6=Genanskaffelsespriser!$B$2:$B$201)*($AS6=Genanskaffelsespriser!$D$2:$D$201)*($A6=Genanskaffelsespriser!$C$2:$C$201),0)) * (1 - (Analyseår-BB$3)/($C6+L7)),0)) ->  | BC6: =IF($C6="","",MAX(M6 * INDEX(Genanskaffelsespriser!$G$2:$G$201,MATCH(1,($AQ6=Genanskaffelsespriser!$A$2:$A$201)*($AR6=Genanskaffelsespriser!$B$2:$B$201)*($AS6=Genanskaffelsespriser!$D$2:$D$201)*($A6=Genanskaffelsespriser!$C$2:$C$201),0)) * (1 - (Analyseår-BC$3)/($C6+M7)),0)) ->  | BD6: =IF($C6="","",MAX(N6 * INDEX(Genanskaffelsespriser!$G$2:$G$201,MATCH(1,($AQ6=Genanskaffelsespriser!$A$2:$A$201)*($AR6=Genanskaffelsespriser!$B$2:$B$201)*($AS6=Genanskaffelsespriser!$D$2:$D$201)*($A6=Genanskaffelsespriser!$C$2:$C$201),0)) * (1 - (Analyseår-BD$3)/($C6+N7)),0)) ->  | BE6: =IF($C6="","",MAX(O6 * INDEX(Genanskaffelsespriser!$G$2:$G$201,MATCH(1,($AQ6=Genanskaffelsespriser!$A$2:$A$201)*($AR6=Genanskaffelsespriser!$B$2:$B$201)*($AS6=Genanskaffelsespriser!$D$2:$D$201)*($A6=Genanskaffelsespriser!$C$2:$C$201),0)) * (1 - (Analyseår-BE$3)/($C6+O7)),0)) ->  | BF6: =IF($C6="","",MAX(P6 * INDEX(Genanskaffelsespriser!$G$2:$G$201,MATCH(1,($AQ6=Genanskaffelsespriser!$A$2:$A$201)*($AR6=Genanskaffelsespriser!$B$2:$B$201)*($AS6=Genanskaffelsespriser!$D$2:$D$201)*($A6=Genanskaffelsespriser!$C$2:$C$201),0)) * (1 - (Analyseår-BF$3)/($C6+P7)),0)) ->  | BG6: =IF($C6="","",MAX(Q6 * INDEX(Genanskaffelsespriser!$G$2:$G$201,MATCH(1,($AQ6=Genanskaffelsespriser!$A$2:$A$201)*($AR6=Genanskaffelsespriser!$B$2:$B$201)*($AS6=Genanskaffelsespriser!$D$2:$D$201)*($A6=Genanskaffelsespriser!$C$2:$C$201),0)) * (1 - (Analyseår-BG$3)/($C6+Q7)),0)) ->  | BH6: =IF($C6="","",MAX(R6 * INDEX(Genanskaffelsespriser!$G$2:$G$201,MATCH(1,($AQ6=Genanskaffelsespriser!$A$2:$A$201)*($AR6=Genanskaffelsespriser!$B$2:$B$201)*($AS6=Genanskaffelsespriser!$D$2:$D$201)*($A6=Genanskaffelsespriser!$C$2:$C$201),0)) * (1 - (Analyseår-BH$3)/($C6+R7)),0)) ->  | BI6: =IF($C6="","",MAX(S6 * INDEX(Genanskaffelsespriser!$G$2:$G$201,MATCH(1,($AQ6=Genanskaffelsespriser!$A$2:$A$201)*($AR6=Genanskaffelsespriser!$B$2:$B$201)*($AS6=Genanskaffelsespriser!$D$2:$D$201)*($A6=Genanskaffelsespriser!$C$2:$C$201),0)) * (1 - (Analyseår-BI$3)/($C6+S7)),0)) ->  | BJ6: =IF($C6="","",MAX(T6 * INDEX(Genanskaffelsespriser!$G$2:$G$201,MATCH(1,($AQ6=Genanskaffelsespriser!$A$2:$A$201)*($AR6=Genanskaffelsespriser!$B$2:$B$201)*($AS6=Genanskaffelsespriser!$D$2:$D$201)*($A6=Genanskaffelsespriser!$C$2:$C$201),0)) * (1 - (Analyseår-BJ$3)/($C6+T7)),0)) ->  | BK6: =IF($C6="","",MAX(U6 * INDEX(Genanskaffelsespriser!$G$2:$G$201,MATCH(1,($AQ6=Genanskaffelsespriser!$A$2:$A$201)*($AR6=Genanskaffelsespriser!$B$2:$B$201)*($AS6=Genanskaffelsespriser!$D$2:$D$201)*($A6=Genanskaffelsespriser!$C$2:$C$201),0)) * (1 - (Analyseår-BK$3)/($C6+U7)),0)) ->  | BL6: =IF($C6="","",MAX(V6 * INDEX(Genanskaffelsespriser!$G$2:$G$201,MATCH(1,($AQ6=Genanskaffelsespriser!$A$2:$A$201)*($AR6=Genanskaffelsespriser!$B$2:$B$201)*($AS6=Genanskaffelsespriser!$D$2:$D$201)*($A6=Genanskaffelsespriser!$C$2:$C$201),0)) * (1 - (Analyseår-BL$3)/($C6+V7)),0)) ->  | BM6: =IF($C6="","",MAX(W6 * INDEX(Genanskaffelsespriser!$G$2:$G$201,MATCH(1,($AQ6=Genanskaffelsespriser!$A$2:$A$201)*($AR6=Genanskaffelsespriser!$B$2:$B$201)*($AS6=Genanskaffelsespriser!$D$2:$D$201)*($A6=Genanskaffelsespriser!$C$2:$C$201),0)) * (1 - (Analyseår-BM$3)/($C6+W7)),0)) ->  | BN6: =IF($C6="","",MAX(X6 * INDEX(Genanskaffelsespriser!$G$2:$G$201,MATCH(1,($AQ6=Genanskaffelsespriser!$A$2:$A$201)*($AR6=Genanskaffelsespriser!$B$2:$B$201)*($AS6=Genanskaffelsespriser!$D$2:$D$201)*($A6=Genanskaffelsespriser!$C$2:$C$201),0)) * (1 - (Analyseår-BN$3)/($C6+X7)),0)) ->  | BO6: =IF($C6="","",MAX(Y6 * INDEX(Genanskaffelsespriser!$G$2:$G$201,MATCH(1,($AQ6=Genanskaffelsespriser!$A$2:$A$201)*($AR6=Genanskaffelsespriser!$B$2:$B$201)*($AS6=Genanskaffelsespriser!$D$2:$D$201)*($A6=Genanskaffelsespriser!$C$2:$C$201),0)) * (1 - (Analyseår-BO$3)/($C6+Y7)),0)) ->  | BP6: =IF($C6="","",MAX(Z6 * INDEX(Genanskaffelsespriser!$G$2:$G$201,MATCH(1,($AQ6=Genanskaffelsespriser!$A$2:$A$201)*($AR6=Genanskaffelsespriser!$B$2:$B$201)*($AS6=Genanskaffelsespriser!$D$2:$D$201)*($A6=Genanskaffelsespriser!$C$2:$C$201),0)) * (1 - (Analyseår-BP$3)/($C6+Z7)),0)) ->  | BQ6: =IF($C6="","",MAX(AA6 * INDEX(Genanskaffelsespriser!$G$2:$G$201,MATCH(1,($AQ6=Genanskaffelsespriser!$A$2:$A$201)*($AR6=Genanskaffelsespriser!$B$2:$B$201)*($AS6=Genanskaffelsespriser!$D$2:$D$201)*($A6=Genanskaffelsespriser!$C$2:$C$201),0)) * (1 - (Analyseår-BQ$3)/($C6+AA7)),0)) ->  | BR6: =IF($C6="","",MAX(AB6 * INDEX(Genanskaffelsespriser!$G$2:$G$201,MATCH(1,($AQ6=Genanskaffelsespriser!$A$2:$A$201)*($AR6=Genanskaffelsespriser!$B$2:$B$201)*($AS6=Genanskaffelsespriser!$D$2:$D$201)*($A6=Genanskaffelsespriser!$C$2:$C$201),0)) * (1 - (Analyseår-BR$3)/($C6+AB7)),0)) ->  | BS6: =IF($C6="","",MAX(AC6 * INDEX(Genanskaffelsespriser!$G$2:$G$201,MATCH(1,($AQ6=Genanskaffelsespriser!$A$2:$A$201)*($AR6=Genanskaffelsespriser!$B$2:$B$201)*($AS6=Genanskaffelsespriser!$D$2:$D$201)*($A6=Genanskaffelsespriser!$C$2:$C$201),0)) * (1 - (Analyseår-BS$3)/($C6+AC7)),0)) ->  | BT6: =IF($C6="","",MAX(AD6 * INDEX(Genanskaffelsespriser!$G$2:$G$201,MATCH(1,($AQ6=Genanskaffelsespriser!$A$2:$A$201)*($AR6=Genanskaffelsespriser!$B$2:$B$201)*($AS6=Genanskaffelsespriser!$D$2:$D$201)*($A6=Genanskaffelsespriser!$C$2:$C$201),0)) * (1 - (Analyseår-BT$3)/($C6+AD7)),0)) ->  | BU6: =IF($C6="","",MAX(AE6 * INDEX(Genanskaffelsespriser!$G$2:$G$201,MATCH(1,($AQ6=Genanskaffelsespriser!$A$2:$A$201)*($AR6=Genanskaffelsespriser!$B$2:$B$201)*($AS6=Genanskaffelsespriser!$D$2:$D$201)*($A6=Genanskaffelsespriser!$C$2:$C$201),0)) * (1 - (Analyseår-BU$3)/($C6+AE7)),0)) ->  | BV6: =IF($C6="","",MAX(AF6 * INDEX(Genanskaffelsespriser!$G$2:$G$201,MATCH(1,($AQ6=Genanskaffelsespriser!$A$2:$A$201)*($AR6=Genanskaffelsespriser!$B$2:$B$201)*($AS6=Genanskaffelsespriser!$D$2:$D$201)*($A6=Genanskaffelsespriser!$C$2:$C$201),0)) * (1 - (Analyseår-BV$3)/($C6+AF7)),0)) ->  | BW6: =IF($C6="","",MAX(AG6 * INDEX(Genanskaffelsespriser!$G$2:$G$201,MATCH(1,($AQ6=Genanskaffelsespriser!$A$2:$A$201)*($AR6=Genanskaffelsespriser!$B$2:$B$201)*($AS6=Genanskaffelsespriser!$D$2:$D$201)*($A6=Genanskaffelsespriser!$C$2:$C$201),0)) * (1 - (Analyseår-BW$3)/($C6+AG7)),0)) ->  | BX6: =IF($C6="","",MAX(AH6 * INDEX(Genanskaffelsespriser!$G$2:$G$201,MATCH(1,($AQ6=Genanskaffelsespriser!$A$2:$A$201)*($AR6=Genanskaffelsespriser!$B$2:$B$201)*($AS6=Genanskaffelsespriser!$D$2:$D$201)*($A6=Genanskaffelsespriser!$C$2:$C$201),0)) * (1 - (Analyseår-BX$3)/($C6+AH7)),0)) ->  | BY6: =IF($C6="","",MAX(AI6 * INDEX(Genanskaffelsespriser!$G$2:$G$201,MATCH(1,($AQ6=Genanskaffelsespriser!$A$2:$A$201)*($AR6=Genanskaffelsespriser!$B$2:$B$201)*($AS6=Genanskaffelsespriser!$D$2:$D$201)*($A6=Genanskaffelsespriser!$C$2:$C$201),0)) * (1 - (Analyseår-BY$3)/($C6+AI7)),0)) ->  | BZ6: =IF($C6="","",MAX(AJ6 * INDEX(Genanskaffelsespriser!$G$2:$G$201,MATCH(1,($AQ6=Genanskaffelsespriser!$A$2:$A$201)*($AR6=Genanskaffelsespriser!$B$2:$B$201)*($AS6=Genanskaffelsespriser!$D$2:$D$201)*($A6=Genanskaffelsespriser!$C$2:$C$201),0)) * (1 - (Analyseår-BZ$3)/($C6+AJ7)),0)) ->  | CA6: =IF($C6="","",MAX(AK6 * INDEX(Genanskaffelsespriser!$G$2:$G$201,MATCH(1,($AQ6=Genanskaffelsespriser!$A$2:$A$201)*($AR6=Genanskaffelsespriser!$B$2:$B$201)*($AS6=Genanskaffelsespriser!$D$2:$D$201)*($A6=Genanskaffelsespriser!$C$2:$C$201),0)) * (1 - (Analyseår-CA$3)/($C6+AK7)),0)) ->  | CB6: =IF($C6="","",MAX(AL6 * INDEX(Genanskaffelsespriser!$G$2:$G$201,MATCH(1,($AQ6=Genanskaffelsespriser!$A$2:$A$201)*($AR6=Genanskaffelsespriser!$B$2:$B$201)*($AS6=Genanskaffelsespriser!$D$2:$D$201)*($A6=Genanskaffelsespriser!$C$2:$C$201),0)) * (1 - (Analyseår-CB$3)/($C6+AL7)),0)) ->  | CC6: =IF($C6="","",MAX(AM6 * INDEX(Genanskaffelsespriser!$G$2:$G$201,MATCH(1,($AQ6=Genanskaffelsespriser!$A$2:$A$201)*($AR6=Genanskaffelsespriser!$B$2:$B$201)*($AS6=Genanskaffelsespriser!$D$2:$D$201)*($A6=Genanskaffelsespriser!$C$2:$C$201),0)) * (1 - (Analyseår-CC$3)/($C6+AM7)),0)) ->  | CD6: =IF($C6="","",MAX(AN6 * INDEX(Genanskaffelsespriser!$G$2:$G$201,MATCH(1,($AQ6=Genanskaffelsespriser!$A$2:$A$201)*($AR6=Genanskaffelsespriser!$B$2:$B$201)*($AS6=Genanskaffelsespriser!$D$2:$D$201)*($A6=Genanskaffelsespriser!$C$2:$C$201),0)) * (1 - (Analyseår-CD$3)/($C6+AN7)),0)) ->  | CE6: =IF($C6="","",MAX(AO6 * INDEX(Genanskaffelsespriser!$G$2:$G$201,MATCH(1,($AQ6=Genanskaffelsespriser!$A$2:$A$201)*($AR6=Genanskaffelsespriser!$B$2:$B$201)*($AS6=Genanskaffelsespriser!$D$2:$D$201)*($A6=Genanskaffelsespriser!$C$2:$C$201),0)) * (1 - (Analyseår-CE$3)/($C6+AO7)),0)) ->  | CG6: =IF($C6="","",SUM(($D$3:$AO$3+$C6+$D7:$AO7>=CG$3)*IFERROR($AT6:$CE6/($D$3:$AO$3+$C6+$D7:$AO7-Analyseår),0))) ->  | CH6: =IF($C6="","",SUM(($D$3:$AO$3+$C6+$D7:$AO7>=CH$3)*IFERROR($AT6:$CE6/($D$3:$AO$3+$C6+$D7:$AO7-Analyseår),0))) ->  | CI6: =IF($C6="","",SUM(($D$3:$AO$3+$C6+$D7:$AO7>=CI$3)*IFERROR($AT6:$CE6/($D$3:$AO$3+$C6+$D7:$AO7-Analyseår),0))) ->  | CJ6: =IF($C6="","",SUM(($D$3:$AO$3+$C6+$D7:$AO7>=CJ$3)*IFERROR($AT6:$CE6/($D$3:$AO$3+$C6+$D7:$AO7-Analyseår),0))) ->  | CK6: =IF($C6="","",SUM(($D$3:$AO$3+$C6+$D7:$AO7>=CK$3)*IFERROR($AT6:$CE6/($D$3:$AO$3+$C6+$D7:$AO7-Analyseår),0))) ->  | CL6: =IF($C6="","",SUM(($D$3:$AO$3+$C6+$D7:$AO7>=CL$3)*IFERROR($AT6:$CE6/($D$3:$AO$3+$C6+$D7:$AO7-Analyseår),0))) ->  | CM6: =IF($C6="","",SUM(($D$3:$AO$3+$C6+$D7:$AO7>=CM$3)*IFERROR($AT6:$CE6/($D$3:$AO$3+$C6+$D7:$AO7-Analyseår),0))) ->  | CN6: =IF($C6="","",SUM(($D$3:$AO$3+$C6+$D7:$AO7>=CN$3)*IFERROR($AT6:$CE6/($D$3:$AO$3+$C6+$D7:$AO7-Analyseår),0))) ->  | CO6: =IF($C6="","",SUM(($D$3:$AO$3+$C6+$D7:$AO7>=CO$3)*IFERROR($AT6:$CE6/($D$3:$AO$3+$C6+$D7:$AO7-Analyseår),0))) ->  | CP6: =IF($C6="","",SUM(($D$3:$AO$3+$C6+$D7:$AO7>=CP$3)*IFERROR($AT6:$CE6/($D$3:$AO$3+$C6+$D7:$AO7-Analyseår),0))) ->  | CQ6: =IF($C6="","",SUM(($D$3:$AO$3+$C6+$D7:$AO7>=CQ$3)*IFERROR($AT6:$CE6/($D$3:$AO$3+$C6+$D7:$AO7-Analyseår),0))) ->  | CR6: =IF($C6="","",SUM(($D$3:$AO$3+$C6+$D7:$AO7>=CR$3)*IFERROR($AT6:$CE6/($D$3:$AO$3+$C6+$D7:$AO7-Analyseår),0))) ->  | CS6: =IF($C6="","",SUM(($D$3:$AO$3+$C6+$D7:$AO7>=CS$3)*IFERROR($AT6:$CE6/($D$3:$AO$3+$C6+$D7:$AO7-Analyseår),0))) ->  | CT6: =IF($C6="","",SUM(($D$3:$AO$3+$C6+$D7:$AO7>=CT$3)*IFERROR($AT6:$CE6/($D$3:$AO$3+$C6+$D7:$AO7-Analyseår),0))) ->  | CU6: =IF($C6="","",SUM(($D$3:$AO$3+$C6+$D7:$AO7>=CU$3)*IFERROR($AT6:$CE6/($D$3:$AO$3+$C6+$D7:$AO7-Analyseår),0))) ->  | CV6: =IF($C6="","",SUM(($D$3:$AO$3+$C6+$D7:$AO7>=CV$3)*IFERROR($AT6:$CE6/($D$3:$AO$3+$C6+$D7:$AO7-Analyseår),0))) ->  | CW6: =IF($C6="","",SUM(($D$3:$AO$3+$C6+$D7:$AO7>=CW$3)*IFERROR($AT6:$CE6/($D$3:$AO$3+$C6+$D7:$AO7-Analyseår),0))) ->  | CX6: =IF($C6="","",SUM(($D$3:$AO$3+$C6+$D7:$AO7>=CX$3)*IFERROR($AT6:$CE6/($D$3:$AO$3+$C6+$D7:$AO7-Analyseår),0))) ->  | CY6: =IF($C6="","",SUM(($D$3:$AO$3+$C6+$D7:$AO7>=CY$3)*IFERROR($AT6:$CE6/($D$3:$AO$3+$C6+$D7:$AO7-Analyseår),0))) ->  | CZ6: =IF($C6="","",SUM(($D$3:$AO$3+$C6+$D7:$AO7>=CZ$3)*IFERROR($AT6:$CE6/($D$3:$AO$3+$C6+$D7:$AO7-Analyseår),0))) ->  | DA6: =IF($C6="","",SUM(($D$3:$AO$3+$C6+$D7:$AO7>=DA$3)*IFERROR($AT6:$CE6/($D$3:$AO$3+$C6+$D7:$AO7-Analyseår),0))) ->  | DB6: =IF($C6="","",SUM(($D$3:$AO$3+$C6+$D7:$AO7>=DB$3)*IFERROR($AT6:$CE6/($D$3:$AO$3+$C6+$D7:$AO7-Analyseår),0))) ->  | DC6: =IF($C6="","",SUM(($D$3:$AO$3+$C6+$D7:$AO7>=DC$3)*IFERROR($AT6:$CE6/($D$3:$AO$3+$C6+$D7:$AO7-Analyseår),0))) ->  | DD6: =IF($C6="","",SUM(($D$3:$AO$3+$C6+$D7:$AO7>=DD$3)*IFERROR($AT6:$CE6/($D$3:$AO$3+$C6+$D7:$AO7-Analyseår),0))) ->  | DE6: =IF($C6="","",SUM(($D$3:$AO$3+$C6+$D7:$AO7>=DE$3)*IFERROR($AT6:$CE6/($D$3:$AO$3+$C6+$D7:$AO7-Analyseår),0))) ->  | DF6: =IF($C6="","",SUM(($D$3:$AO$3+$C6+$D7:$AO7>=DF$3)*IFERROR($AT6:$CE6/($D$3:$AO$3+$C6+$D7:$AO7-Analyseår),0))) ->  | DG6: =IF($C6="","",SUM(($D$3:$AO$3+$C6+$D7:$AO7>=DG$3)*IFERROR($AT6:$CE6/($D$3:$AO$3+$C6+$D7:$AO7-Analyseår),0))) ->  | DH6: =IF($C6="","",SUM(($D$3:$AO$3+$C6+$D7:$AO7>=DH$3)*IFERROR($AT6:$CE6/($D$3:$AO$3+$C6+$D7:$AO7-Analyseår),0))) ->  | DI6: =IF($C6="","",SUM(($D$3:$AO$3+$C6+$D7:$AO7>=DI$3)*IFERROR($AT6:$CE6/($D$3:$AO$3+$C6+$D7:$AO7-Analyseår),0))) ->  | DJ6: =IF($C6="","",SUM(($D$3:$AO$3+$C6+$D7:$AO7>=DJ$3)*IFERROR($AT6:$CE6/($D$3:$AO$3+$C6+$D7:$AO7-Analyseår),0))) ->  | DK6: =IF($C6="","",SUM(($D$3:$AO$3+$C6+$D7:$AO7>=DK$3)*IFERROR($AT6:$CE6/($D$3:$AO$3+$C6+$D7:$AO7-Analyseår),0))) ->  | DL6: =IF($C6="","",SUM(($D$3:$AO$3+$C6+$D7:$AO7>=DL$3)*IFERROR($AT6:$CE6/($D$3:$AO$3+$C6+$D7:$AO7-Analyseår),0))) ->  | DM6: =IF($C6="","",SUM(($D$3:$AO$3+$C6+$D7:$AO7>=DM$3)*IFERROR($AT6:$CE6/($D$3:$AO$3+$C6+$D7:$AO7-Analyseår),0))) ->  | DN6: =IF($C6="","",SUM(($D$3:$AO$3+$C6+$D7:$AO7>=DN$3)*IFERROR($AT6:$CE6/($D$3:$AO$3+$C6+$D7:$AO7-Analyseår),0))) ->  | DO6: =IF($C6="","",SUM(($D$3:$AO$3+$C6+$D7:$AO7>=DO$3)*IFERROR($AT6:$CE6/($D$3:$AO$3+$C6+$D7:$AO7-Analyseår),0))) ->  | DP6: =IF($C6="","",SUM(($D$3:$AO$3+$C6+$D7:$AO7>=DP$3)*IFERROR($AT6:$CE6/($D$3:$AO$3+$C6+$D7:$AO7-Analyseår),0))) ->  | DQ6: =IF($C6="","",SUM(($D$3:$AO$3+$C6+$D7:$AO7>=DQ$3)*IFERROR($AT6:$CE6/($D$3:$AO$3+$C6+$D7:$AO7-Analyseår),0))) ->  | DR6: =IF($C6="","",SUM(($D$3:$AO$3+$C6+$D7:$AO7>=DR$3)*IFERROR($AT6:$CE6/($D$3:$AO$3+$C6+$D7:$AO7-Analyseår),0))) ->  | DS6: =IF($C6="","",SUM(($D$3:$AO$3+$C6+$D7:$AO7>=DS$3)*IFERROR($AT6:$CE6/($D$3:$AO$3+$C6+$D7:$AO7-Analyseår),0))) ->  | DT6: =IF($C6="","",SUM(($D$3:$AO$3+$C6+$D7:$AO7>=DT$3)*IFERROR($AT6:$CE6/($D$3:$AO$3+$C6+$D7:$AO7-Analyseår),0))) ->  | DU6: =IF($C6="","",SUM(($D$3:$AO$3+$C6+$D7:$AO7>=DU$3)*IFERROR($AT6:$CE6/($D$3:$AO$3+$C6+$D7:$AO7-Analyseår),0))) ->  | DV6: =IF($C6="","",SUM(($D$3:$AO$3+$C6+$D7:$AO7>=DV$3)*IFERROR($AT6:$CE6/($D$3:$AO$3+$C6+$D7:$AO7-Analyseår),0))) ->  | DW6: =IF($C6="","",SUM(($D$3:$AO$3+$C6+$D7:$AO7>=DW$3)*IFERROR($AT6:$CE6/($D$3:$AO$3+$C6+$D7:$AO7-Analyseår),0))) ->  | DX6: =IF($C6="","",SUM(($D$3:$AO$3+$C6+$D7:$AO7>=DX$3)*IFERROR($AT6:$CE6/($D$3:$AO$3+$C6+$D7:$AO7-Analyseår),0))) ->  | DY6: =IF($C6="","",SUM(($D$3:$AO$3+$C6+$D7:$AO7>=DY$3)*IFERROR($AT6:$CE6/($D$3:$AO$3+$C6+$D7:$AO7-Analyseår),0))) ->  | DZ6: =IF($C6="","",SUM(($D$3:$AO$3+$C6+$D7:$AO7>=DZ$3)*IFERROR($AT6:$CE6/($D$3:$AO$3+$C6+$D7:$AO7-Analyseår),0))) ->  | EA6: =IF($C6="","",SUM(($D$3:$AO$3+$C6+$D7:$AO7>=EA$3)*IFERROR($AT6:$CE6/($D$3:$AO$3+$C6+$D7:$AO7-Analyseår),0))) ->  | EB6: =IF($C6="","",SUM(($D$3:$AO$3+$C6+$D7:$AO7>=EB$3)*IFERROR($AT6:$CE6/($D$3:$AO$3+$C6+$D7:$AO7-Analyseår),0))) ->  | EC6: =IF($C6="","",SUM(($D$3:$AO$3+$C6+$D7:$AO7>=EC$3)*IFERROR($AT6:$CE6/($D$3:$AO$3+$C6+$D7:$AO7-Analyseår),0))) ->  | ED6: =IF($C6="","",SUM(($D$3:$AO$3+$C6+$D7:$AO7>=ED$3)*IFERROR($AT6:$CE6/($D$3:$AO$3+$C6+$D7:$AO7-Analyseår),0))) ->  | EE6: =IF($C6="","",SUM(($D$3:$AO$3+$C6+$D7:$AO7>=EE$3)*IFERROR($AT6:$CE6/($D$3:$AO$3+$C6+$D7:$AO7-Analyseår),0))) ->  | EF6: =IF($C6="","",SUM(($D$3:$AO$3+$C6+$D7:$AO7>=EF$3)*IFERROR($AT6:$CE6/($D$3:$AO$3+$C6+$D7:$AO7-Analyseår),0))) ->  | EG6: =IF($C6="","",SUM(($D$3:$AO$3+$C6+$D7:$AO7>=EG$3)*IFERROR($AT6:$CE6/($D$3:$AO$3+$C6+$D7:$AO7-Analyseår),0))) ->  | EH6: =IF($C6="","",SUM(($D$3:$AO$3+$C6+$D7:$AO7>=EH$3)*IFERROR($AT6:$CE6/($D$3:$AO$3+$C6+$D7:$AO7-Analyseår),0))) ->  | EI6: =IF($C6="","",SUM(($D$3:$AO$3+$C6+$D7:$AO7>=EI$3)*IFERROR($AT6:$CE6/($D$3:$AO$3+$C6+$D7:$AO7-Analyseår),0))) ->  | EJ6: =IF($C6="","",SUM(($D$3:$AO$3+$C6+$D7:$AO7>=EJ$3)*IFERROR($AT6:$CE6/($D$3:$AO$3+$C6+$D7:$AO7-Analyseår),0))) ->  | EK6: =IF($C6="","",SUM(($D$3:$AO$3+$C6+$D7:$AO7>=EK$3)*IFERROR($AT6:$CE6/($D$3:$AO$3+$C6+$D7:$AO7-Analyseår),0))) ->  | EL6: =IF($C6="","",SUM(($D$3:$AO$3+$C6+$D7:$AO7>=EL$3)*IFERROR($AT6:$CE6/($D$3:$AO$3+$C6+$D7:$AO7-Analyseår),0))) ->  | EM6: =IF($C6="","",SUM(($D$3:$AO$3+$C6+$D7:$AO7>=EM$3)*IFERROR($AT6:$CE6/($D$3:$AO$3+$C6+$D7:$AO7-Analyseår),0))) ->  | EN6: =IF($C6="","",SUM(($D$3:$AO$3+$C6+$D7:$AO7>=EN$3)*IFERROR($AT6:$CE6/($D$3:$AO$3+$C6+$D7:$AO7-Analyseår),0))) ->  | EO6: =IF($C6="","",SUM(($D$3:$AO$3+$C6+$D7:$AO7>=EO$3)*IFERROR($AT6:$CE6/($D$3:$AO$3+$C6+$D7:$AO7-Analyseår),0))) ->  | EP6: =IF($C6="","",SUM(($D$3:$AO$3+$C6+$D7:$AO7>=EP$3)*IFERROR($AT6:$CE6/($D$3:$AO$3+$C6+$D7:$AO7-Analyseår),0))) ->  | EQ6: =IF($C6="","",SUM(($D$3:$AO$3+$C6+$D7:$AO7>=EQ$3)*IFERROR($AT6:$CE6/($D$3:$AO$3+$C6+$D7:$AO7-Analyseår),0))) ->  | ER6: =IF($C6="","",SUM(($D$3:$AO$3+$C6+$D7:$AO7>=ER$3)*IFERROR($AT6:$CE6/($D$3:$AO$3+$C6+$D7:$AO7-Analyseår),0))) ->  | ES6: =IF($C6="","",SUM(($D$3:$AO$3+$C6+$D7:$AO7>=ES$3)*IFERROR($AT6:$CE6/($D$3:$AO$3+$C6+$D7:$AO7-Analyseår),0))) ->  | ET6: =IF($C6="","",SUM(($D$3:$AO$3+$C6+$D7:$AO7>=ET$3)*IFERROR($AT6:$CE6/($D$3:$AO$3+$C6+$D7:$AO7-Analyseår),0))) ->  | EU6: =IF($C6="","",SUM(($D$3:$AO$3+$C6+$D7:$AO7>=EU$3)*IFERROR($AT6:$CE6/($D$3:$AO$3+$C6+$D7:$AO7-Analyseår),0))) ->  | EV6: =IF($C6="","",SUM(($D$3:$AO$3+$C6+$D7:$AO7>=EV$3)*IFERROR($AT6:$CE6/($D$3:$AO$3+$C6+$D7:$AO7-Analyseår),0))) ->  | EW6: =IF($C6="","",SUM(($D$3:$AO$3+$C6+$D7:$AO7>=EW$3)*IFERROR($AT6:$CE6/($D$3:$AO$3+$C6+$D7:$AO7-Analyseår),0))) ->  | EX6: =IF($C6="","",SUM(($D$3:$AO$3+$C6+$D7:$AO7>=EX$3)*IFERROR($AT6:$CE6/($D$3:$AO$3+$C6+$D7:$AO7-Analyseår),0))) ->  | EY6: =IF($C6="","",SUM(($D$3:$AO$3+$C6+$D7:$AO7>=EY$3)*IFERROR($AT6:$CE6/($D$3:$AO$3+$C6+$D7:$AO7-Analyseår),0))) ->  | EZ6: =IF($C6="","",SUM(($D$3:$AO$3+$C6+$D7:$AO7>=EZ$3)*IFERROR($AT6:$CE6/($D$3:$AO$3+$C6+$D7:$AO7-Analyseår),0))) ->  | FA6: =IF($C6="","",SUM(($D$3:$AO$3+$C6+$D7:$AO7>=FA$3)*IFERROR($AT6:$CE6/($D$3:$AO$3+$C6+$D7:$AO7-Analyseår),0))) ->  | FB6: =IF($C6="","",SUM(($D$3:$AO$3+$C6+$D7:$AO7>=FB$3)*IFERROR($AT6:$CE6/($D$3:$AO$3+$C6+$D7:$AO7-Analyseår),0))) ->  | FC6: =IF($C6="","",SUM(($D$3:$AO$3+$C6+$D7:$AO7>=FC$3)*IFERROR($AT6:$CE6/($D$3:$AO$3+$C6+$D7:$AO7-Analyseår),0))) ->  | FD6: =IF($C6="","",SUM(($D$3:$AO$3+$C6+$D7:$AO7>=FD$3)*IFERROR($AT6:$CE6/($D$3:$AO$3+$C6+$D7:$AO7-Analyseår),0))) ->  | FE6: =IF($C6="","",SUM(($D$3:$AO$3+$C6+$D7:$AO7>=FE$3)*IFERROR($AT6:$CE6/($D$3:$AO$3+$C6+$D7:$AO7-Analyseår),0))) ->  | FF6: =IF($C6="","",SUM(($D$3:$AO$3+$C6+$D7:$AO7>=FF$3)*IFERROR($AT6:$CE6/($D$3:$AO$3+$C6+$D7:$AO7-Analyseår),0))) ->  | FG6: =IF($C6="","",SUM(($D$3:$AO$3+$C6+$D7:$AO7>=FG$3)*IFERROR($AT6:$CE6/($D$3:$AO$3+$C6+$D7:$AO7-Analyseår),0))) ->  | FH6: =IF($C6="","",SUM(($D$3:$AO$3+$C6+$D7:$AO7>=FH$3)*IFERROR($AT6:$CE6/($D$3:$AO$3+$C6+$D7:$AO7-Analyseår),0))) ->  | FI6: =IF($C6="","",SUM(($D$3:$AO$3+$C6+$D7:$AO7>=FI$3)*IFERROR($AT6:$CE6/($D$3:$AO$3+$C6+$D7:$AO7-Analyseår),0))) ->  | FJ6: =IF($C6="","",SUM(($D$3:$AO$3+$C6+$D7:$AO7>=FJ$3)*IFERROR($AT6:$CE6/($D$3:$AO$3+$C6+$D7:$AO7-Analyseår),0))) ->  | FL6: =IF($C6="","",AT6*FL$2) ->  | FM6: =IF($C6="","",AU6*FM$2) ->  | FN6: =IF($C6="","",AV6*FN$2) ->  | FO6: =IF($C6="","",AW6*FO$2) ->  | FP6: =IF($C6="","",AX6*FP$2) ->  | FQ6: =IF($C6="","",AY6*FQ$2) ->  | FR6: =IF($C6="","",AZ6*FR$2) ->  | FS6: =IF($C6="","",BA6*FS$2) ->  | FT6: =IF($C6="","",BB6*FT$2) ->  | FU6: =IF($C6="","",BC6*FU$2) ->  | FV6: =IF($C6="","",BD6*FV$2) ->  | FW6: =IF($C6="","",BE6*FW$2) ->  | FX6: =IF($C6="","",BF6*FX$2) ->  | FY6: =IF($C6="","",BG6*FY$2) ->  | FZ6: =IF($C6="","",BH6*FZ$2) ->  | GA6: =IF($C6="","",BI6*GA$2) ->  | GB6: =IF($C6="","",BJ6*GB$2) ->  | GC6: =IF($C6="","",BK6*GC$2) ->  | GD6: =IF($C6="","",BL6*GD$2) ->  | GE6: =IF($C6="","",BM6*GE$2) ->  | GF6: =IF($C6="","",BN6*GF$2) ->  | GG6: =IF($C6="","",BO6*GG$2) ->  | GH6: =IF($C6="","",BP6*GH$2) ->  | GI6: =IF($C6="","",BQ6*GI$2) ->  | GJ6: =IF($C6="","",BR6*GJ$2) ->  | GK6: =IF($C6="","",BS6*GK$2) ->  | GL6: =IF($C6="","",BT6*GL$2) ->  | GM6: =IF($C6="","",BU6*GM$2) ->  | GN6: =IF($C6="","",BV6*GN$2) ->  | GO6: =IF($C6="","",BW6*GO$2) ->  | GP6: =IF($C6="","",BX6*GP$2) ->  | GQ6: =IF($C6="","",BY6*GQ$2) ->  | GR6: =IF($C6="","",BZ6*GR$2) ->  | GS6: =IF($C6="","",CA6*GS$2) ->  | GT6: =IF($C6="","",CB6*GT$2) ->  | GU6: =IF($C6="","",CC6*GU$2) ->  | GV6: =IF($C6="","",CD6*GV$2) ->  | GW6: =IF($C6="","",CE6*GW$2) ->  | GY6: =IF($C6="","",SUM(($D$3:$AO$3+$C6+$D7:$AO7>=CG$3)*IFERROR($FL6:$GW6/($D$3:$AO$3+$C6+$D7:$AO7-(Analyseår)),0))) ->  | GZ6: =IF($C6="","",SUM(($D$3:$AO$3+$C6+$D7:$AO7>=CH$3)*IFERROR($FL6:$GW6/($D$3:$AO$3+$C6+$D7:$AO7-(Analyseår)),0))) ->  | HA6: =IF($C6="","",SUM(($D$3:$AO$3+$C6+$D7:$AO7>=CI$3)*IFERROR($FL6:$GW6/($D$3:$AO$3+$C6+$D7:$AO7-(Analyseår)),0))) ->  | HB6: =IF($C6="","",SUM(($D$3:$AO$3+$C6+$D7:$AO7>=CJ$3)*IFERROR($FL6:$GW6/($D$3:$AO$3+$C6+$D7:$AO7-(Analyseår)),0))) ->  | HC6: =IF($C6="","",SUM(($D$3:$AO$3+$C6+$D7:$AO7>=CK$3)*IFERROR($FL6:$GW6/($D$3:$AO$3+$C6+$D7:$AO7-(Analyseår)),0))) ->  | HD6: =IF($C6="","",SUM(($D$3:$AO$3+$C6+$D7:$AO7>=CL$3)*IFERROR($FL6:$GW6/($D$3:$AO$3+$C6+$D7:$AO7-(Analyseår)),0))) ->  | HE6: =IF($C6="","",SUM(($D$3:$AO$3+$C6+$D7:$AO7>=CM$3)*IFERROR($FL6:$GW6/($D$3:$AO$3+$C6+$D7:$AO7-(Analyseår)),0))) ->  | HF6: =IF($C6="","",SUM(($D$3:$AO$3+$C6+$D7:$AO7>=CN$3)*IFERROR($FL6:$GW6/($D$3:$AO$3+$C6+$D7:$AO7-(Analyseår)),0))) ->  | HG6: =IF($C6="","",SUM(($D$3:$AO$3+$C6+$D7:$AO7>=CO$3)*IFERROR($FL6:$GW6/($D$3:$AO$3+$C6+$D7:$AO7-(Analyseår)),0))) ->  | HH6: =IF($C6="","",SUM(($D$3:$AO$3+$C6+$D7:$AO7>=CP$3)*IFERROR($FL6:$GW6/($D$3:$AO$3+$C6+$D7:$AO7-(Analyseår)),0))) ->  | HI6: =IF($C6="","",SUM(($D$3:$AO$3+$C6+$D7:$AO7>=CQ$3)*IFERROR($FL6:$GW6/($D$3:$AO$3+$C6+$D7:$AO7-(Analyseår)),0))) ->  | HJ6: =IF($C6="","",SUM(($D$3:$AO$3+$C6+$D7:$AO7>=CR$3)*IFERROR($FL6:$GW6/($D$3:$AO$3+$C6+$D7:$AO7-(Analyseår)),0))) ->  | HK6: =IF($C6="","",SUM(($D$3:$AO$3+$C6+$D7:$AO7>=CS$3)*IFERROR($FL6:$GW6/($D$3:$AO$3+$C6+$D7:$AO7-(Analyseår)),0))) ->  | HL6: =IF($C6="","",SUM(($D$3:$AO$3+$C6+$D7:$AO7>=CT$3)*IFERROR($FL6:$GW6/($D$3:$AO$3+$C6+$D7:$AO7-(Analyseår)),0))) ->  | HM6: =IF($C6="","",SUM(($D$3:$AO$3+$C6+$D7:$AO7>=CU$3)*IFERROR($FL6:$GW6/($D$3:$AO$3+$C6+$D7:$AO7-(Analyseår)),0))) ->  | HN6: =IF($C6="","",SUM(($D$3:$AO$3+$C6+$D7:$AO7>=CV$3)*IFERROR($FL6:$GW6/($D$3:$AO$3+$C6+$D7:$AO7-(Analyseår)),0))) ->  | HO6: =IF($C6="","",SUM(($D$3:$AO$3+$C6+$D7:$AO7>=CW$3)*IFERROR($FL6:$GW6/($D$3:$AO$3+$C6+$D7:$AO7-(Analyseår)),0))) ->  | HP6: =IF($C6="","",SUM(($D$3:$AO$3+$C6+$D7:$AO7>=CX$3)*IFERROR($FL6:$GW6/($D$3:$AO$3+$C6+$D7:$AO7-(Analyseår)),0))) ->  | HQ6: =IF($C6="","",SUM(($D$3:$AO$3+$C6+$D7:$AO7>=CY$3)*IFERROR($FL6:$GW6/($D$3:$AO$3+$C6+$D7:$AO7-(Analyseår)),0))) ->  | HR6: =IF($C6="","",SUM(($D$3:$AO$3+$C6+$D7:$AO7>=CZ$3)*IFERROR($FL6:$GW6/($D$3:$AO$3+$C6+$D7:$AO7-(Analyseår)),0))) ->  | HS6: =IF($C6="","",SUM(($D$3:$AO$3+$C6+$D7:$AO7>=DA$3)*IFERROR($FL6:$GW6/($D$3:$AO$3+$C6+$D7:$AO7-(Analyseår)),0))) ->  | HT6: =IF($C6="","",SUM(($D$3:$AO$3+$C6+$D7:$AO7>=DB$3)*IFERROR($FL6:$GW6/($D$3:$AO$3+$C6+$D7:$AO7-(Analyseår)),0))) ->  | HU6: =IF($C6="","",SUM(($D$3:$AO$3+$C6+$D7:$AO7>=DC$3)*IFERROR($FL6:$GW6/($D$3:$AO$3+$C6+$D7:$AO7-(Analyseår)),0))) ->  | HV6: =IF($C6="","",SUM(($D$3:$AO$3+$C6+$D7:$AO7>=DD$3)*IFERROR($FL6:$GW6/($D$3:$AO$3+$C6+$D7:$AO7-(Analyseår)),0))) ->  | HW6: =IF($C6="","",SUM(($D$3:$AO$3+$C6+$D7:$AO7>=DE$3)*IFERROR($FL6:$GW6/($D$3:$AO$3+$C6+$D7:$AO7-(Analyseår)),0))) ->  | HX6: =IF($C6="","",SUM(($D$3:$AO$3+$C6+$D7:$AO7>=DF$3)*IFERROR($FL6:$GW6/($D$3:$AO$3+$C6+$D7:$AO7-(Analyseår)),0))) ->  | HY6: =IF($C6="","",SUM(($D$3:$AO$3+$C6+$D7:$AO7>=DG$3)*IFERROR($FL6:$GW6/($D$3:$AO$3+$C6+$D7:$AO7-(Analyseår)),0))) ->  | HZ6: =IF($C6="","",SUM(($D$3:$AO$3+$C6+$D7:$AO7>=DH$3)*IFERROR($FL6:$GW6/($D$3:$AO$3+$C6+$D7:$AO7-(Analyseår)),0))) ->  | IA6: =IF($C6="","",SUM(($D$3:$AO$3+$C6+$D7:$AO7>=DI$3)*IFERROR($FL6:$GW6/($D$3:$AO$3+$C6+$D7:$AO7-(Analyseår)),0))) ->  | IB6: =IF($C6="","",SUM(($D$3:$AO$3+$C6+$D7:$AO7>=DJ$3)*IFERROR($FL6:$GW6/($D$3:$AO$3+$C6+$D7:$AO7-(Analyseår)),0))) ->  | IC6: =IF($C6="","",SUM(($D$3:$AO$3+$C6+$D7:$AO7>=DK$3)*IFERROR($FL6:$GW6/($D$3:$AO$3+$C6+$D7:$AO7-(Analyseår)),0))) ->  | ID6: =IF($C6="","",SUM(($D$3:$AO$3+$C6+$D7:$AO7>=DL$3)*IFERROR($FL6:$GW6/($D$3:$AO$3+$C6+$D7:$AO7-(Analyseår)),0))) ->  | IE6: =IF($C6="","",SUM(($D$3:$AO$3+$C6+$D7:$AO7>=DM$3)*IFERROR($FL6:$GW6/($D$3:$AO$3+$C6+$D7:$AO7-(Analyseår)),0))) ->  | IF6: =IF($C6="","",SUM(($D$3:$AO$3+$C6+$D7:$AO7>=DN$3)*IFERROR($FL6:$GW6/($D$3:$AO$3+$C6+$D7:$AO7-(Analyseår)),0))) ->  | IG6: =IF($C6="","",SUM(($D$3:$AO$3+$C6+$D7:$AO7>=DO$3)*IFERROR($FL6:$GW6/($D$3:$AO$3+$C6+$D7:$AO7-(Analyseår)),0))) ->  | IH6: =IF($C6="","",SUM(($D$3:$AO$3+$C6+$D7:$AO7>=DP$3)*IFERROR($FL6:$GW6/($D$3:$AO$3+$C6+$D7:$AO7-(Analyseår)),0))) ->  | II6: =IF($C6="","",SUM(($D$3:$AO$3+$C6+$D7:$AO7>=DQ$3)*IFERROR($FL6:$GW6/($D$3:$AO$3+$C6+$D7:$AO7-(Analyseår)),0))) ->  | IJ6: =IF($C6="","",SUM(($D$3:$AO$3+$C6+$D7:$AO7>=DR$3)*IFERROR($FL6:$GW6/($D$3:$AO$3+$C6+$D7:$AO7-(Analyseår)),0))) ->  | IK6: =IF($C6="","",SUM(($D$3:$AO$3+$C6+$D7:$AO7>=DS$3)*IFERROR($FL6:$GW6/($D$3:$AO$3+$C6+$D7:$AO7-(Analyseår)),0))) ->  | IL6: =IF($C6="","",SUM(($D$3:$AO$3+$C6+$D7:$AO7>=DT$3)*IFERROR($FL6:$GW6/($D$3:$AO$3+$C6+$D7:$AO7-(Analyseår)),0))) ->  | IM6: =IF($C6="","",SUM(($D$3:$AO$3+$C6+$D7:$AO7>=DU$3)*IFERROR($FL6:$GW6/($D$3:$AO$3+$C6+$D7:$AO7-(Analyseår)),0))) ->  | IN6: =IF($C6="","",SUM(($D$3:$AO$3+$C6+$D7:$AO7>=DV$3)*IFERROR($FL6:$GW6/($D$3:$AO$3+$C6+$D7:$AO7-(Analyseår)),0))) ->  | IO6: =IF($C6="","",SUM(($D$3:$AO$3+$C6+$D7:$AO7>=DW$3)*IFERROR($FL6:$GW6/($D$3:$AO$3+$C6+$D7:$AO7-(Analyseår)),0))) ->  | IP6: =IF($C6="","",SUM(($D$3:$AO$3+$C6+$D7:$AO7>=DX$3)*IFERROR($FL6:$GW6/($D$3:$AO$3+$C6+$D7:$AO7-(Analyseår)),0))) ->  | IQ6: =IF($C6="","",SUM(($D$3:$AO$3+$C6+$D7:$AO7>=DY$3)*IFERROR($FL6:$GW6/($D$3:$AO$3+$C6+$D7:$AO7-(Analyseår)),0))) ->  | IR6: =IF($C6="","",SUM(($D$3:$AO$3+$C6+$D7:$AO7>=DZ$3)*IFERROR($FL6:$GW6/($D$3:$AO$3+$C6+$D7:$AO7-(Analyseår)),0))) ->  | IS6: =IF($C6="","",SUM(($D$3:$AO$3+$C6+$D7:$AO7>=EA$3)*IFERROR($FL6:$GW6/($D$3:$AO$3+$C6+$D7:$AO7-(Analyseår)),0))) ->  | IT6: =IF($C6="","",SUM(($D$3:$AO$3+$C6+$D7:$AO7>=EB$3)*IFERROR($FL6:$GW6/($D$3:$AO$3+$C6+$D7:$AO7-(Analyseår)),0))) ->  | IU6: =IF($C6="","",SUM(($D$3:$AO$3+$C6+$D7:$AO7>=EC$3)*IFERROR($FL6:$GW6/($D$3:$AO$3+$C6+$D7:$AO7-(Analyseår)),0))) ->  | IV6: =IF($C6="","",SUM(($D$3:$AO$3+$C6+$D7:$AO7>=ED$3)*IFERROR($FL6:$GW6/($D$3:$AO$3+$C6+$D7:$AO7-(Analyseår)),0))) ->  | IW6: =IF($C6="","",SUM(($D$3:$AO$3+$C6+$D7:$AO7>=EE$3)*IFERROR($FL6:$GW6/($D$3:$AO$3+$C6+$D7:$AO7-(Analyseår)),0))) ->  | IX6: =IF($C6="","",SUM(($D$3:$AO$3+$C6+$D7:$AO7>=EF$3)*IFERROR($FL6:$GW6/($D$3:$AO$3+$C6+$D7:$AO7-(Analyseår)),0))) ->  | IY6: =IF($C6="","",SUM(($D$3:$AO$3+$C6+$D7:$AO7>=EG$3)*IFERROR($FL6:$GW6/($D$3:$AO$3+$C6+$D7:$AO7-(Analyseår)),0))) ->  | IZ6: =IF($C6="","",SUM(($D$3:$AO$3+$C6+$D7:$AO7>=EH$3)*IFERROR($FL6:$GW6/($D$3:$AO$3+$C6+$D7:$AO7-(Analyseår)),0))) ->  | JA6: =IF($C6="","",SUM(($D$3:$AO$3+$C6+$D7:$AO7>=EI$3)*IFERROR($FL6:$GW6/($D$3:$AO$3+$C6+$D7:$AO7-(Analyseår)),0))) ->  | JB6: =IF($C6="","",SUM(($D$3:$AO$3+$C6+$D7:$AO7>=EJ$3)*IFERROR($FL6:$GW6/($D$3:$AO$3+$C6+$D7:$AO7-(Analyseår)),0))) ->  | JC6: =IF($C6="","",SUM(($D$3:$AO$3+$C6+$D7:$AO7>=EK$3)*IFERROR($FL6:$GW6/($D$3:$AO$3+$C6+$D7:$AO7-(Analyseår)),0))) ->  | JD6: =IF($C6="","",SUM(($D$3:$AO$3+$C6+$D7:$AO7>=EL$3)*IFERROR($FL6:$GW6/($D$3:$AO$3+$C6+$D7:$AO7-(Analyseår)),0))) ->  | JE6: =IF($C6="","",SUM(($D$3:$AO$3+$C6+$D7:$AO7>=EM$3)*IFERROR($FL6:$GW6/($D$3:$AO$3+$C6+$D7:$AO7-(Analyseår)),0))) ->  | JF6: =IF($C6="","",SUM(($D$3:$AO$3+$C6+$D7:$AO7>=EN$3)*IFERROR($FL6:$GW6/($D$3:$AO$3+$C6+$D7:$AO7-(Analyseår)),0))) ->  | JG6: =IF($C6="","",SUM(($D$3:$AO$3+$C6+$D7:$AO7>=EO$3)*IFERROR($FL6:$GW6/($D$3:$AO$3+$C6+$D7:$AO7-(Analyseår)),0))) ->  | JH6: =IF($C6="","",SUM(($D$3:$AO$3+$C6+$D7:$AO7>=EP$3)*IFERROR($FL6:$GW6/($D$3:$AO$3+$C6+$D7:$AO7-(Analyseår)),0))) ->  | JI6: =IF($C6="","",SUM(($D$3:$AO$3+$C6+$D7:$AO7>=EQ$3)*IFERROR($FL6:$GW6/($D$3:$AO$3+$C6+$D7:$AO7-(Analyseår)),0))) ->  | JJ6: =IF($C6="","",SUM(($D$3:$AO$3+$C6+$D7:$AO7>=ER$3)*IFERROR($FL6:$GW6/($D$3:$AO$3+$C6+$D7:$AO7-(Analyseår)),0))) ->  | JK6: =IF($C6="","",SUM(($D$3:$AO$3+$C6+$D7:$AO7>=ES$3)*IFERROR($FL6:$GW6/($D$3:$AO$3+$C6+$D7:$AO7-(Analyseår)),0))) ->  | JL6: =IF($C6="","",SUM(($D$3:$AO$3+$C6+$D7:$AO7>=ET$3)*IFERROR($FL6:$GW6/($D$3:$AO$3+$C6+$D7:$AO7-(Analyseår)),0))) ->  | JM6: =IF($C6="","",SUM(($D$3:$AO$3+$C6+$D7:$AO7>=EU$3)*IFERROR($FL6:$GW6/($D$3:$AO$3+$C6+$D7:$AO7-(Analyseår)),0))) ->  | JN6: =IF($C6="","",SUM(($D$3:$AO$3+$C6+$D7:$AO7>=EV$3)*IFERROR($FL6:$GW6/($D$3:$AO$3+$C6+$D7:$AO7-(Analyseår)),0))) ->  | JO6: =IF($C6="","",SUM(($D$3:$AO$3+$C6+$D7:$AO7>=EW$3)*IFERROR($FL6:$GW6/($D$3:$AO$3+$C6+$D7:$AO7-(Analyseår)),0))) ->  | JP6: =IF($C6="","",SUM(($D$3:$AO$3+$C6+$D7:$AO7>=EX$3)*IFERROR($FL6:$GW6/($D$3:$AO$3+$C6+$D7:$AO7-(Analyseår)),0))) ->  | JQ6: =IF($C6="","",SUM(($D$3:$AO$3+$C6+$D7:$AO7>=EY$3)*IFERROR($FL6:$GW6/($D$3:$AO$3+$C6+$D7:$AO7-(Analyseår)),0))) ->  | JR6: =IF($C6="","",SUM(($D$3:$AO$3+$C6+$D7:$AO7>=EZ$3)*IFERROR($FL6:$GW6/($D$3:$AO$3+$C6+$D7:$AO7-(Analyseår)),0))) ->  | JS6: =IF($C6="","",SUM(($D$3:$AO$3+$C6+$D7:$AO7>=FA$3)*IFERROR($FL6:$GW6/($D$3:$AO$3+$C6+$D7:$AO7-(Analyseår)),0))) ->  | JT6: =IF($C6="","",SUM(($D$3:$AO$3+$C6+$D7:$AO7>=FB$3)*IFERROR($FL6:$GW6/($D$3:$AO$3+$C6+$D7:$AO7-(Analyseår)),0))) ->  | JU6: =IF($C6="","",SUM(($D$3:$AO$3+$C6+$D7:$AO7>=FC$3)*IFERROR($FL6:$GW6/($D$3:$AO$3+$C6+$D7:$AO7-(Analyseår)),0))) ->  | JV6: =IF($C6="","",SUM(($D$3:$AO$3+$C6+$D7:$AO7>=FD$3)*IFERROR($FL6:$GW6/($D$3:$AO$3+$C6+$D7:$AO7-(Analyseår)),0))) ->  | JW6: =IF($C6="","",SUM(($D$3:$AO$3+$C6+$D7:$AO7>=FE$3)*IFERROR($FL6:$GW6/($D$3:$AO$3+$C6+$D7:$AO7-(Analyseår)),0))) ->  | JX6: =IF($C6="","",SUM(($D$3:$AO$3+$C6+$D7:$AO7>=FF$3)*IFERROR($FL6:$GW6/($D$3:$AO$3+$C6+$D7:$AO7-(Analyseår)),0))) ->  | JY6: =IF($C6="","",SUM(($D$3:$AO$3+$C6+$D7:$AO7>=FG$3)*IFERROR($FL6:$GW6/($D$3:$AO$3+$C6+$D7:$AO7-(Analyseår)),0))) ->  | JZ6: =IF($C6="","",SUM(($D$3:$AO$3+$C6+$D7:$AO7>=FH$3)*IFERROR($FL6:$GW6/($D$3:$AO$3+$C6+$D7:$AO7-(Analyseår)),0))) ->  | KA6: =IF($C6="","",SUM(($D$3:$AO$3+$C6+$D7:$AO7>=FI$3)*IFERROR($FL6:$GW6/($D$3:$AO$3+$C6+$D7:$AO7-(Analyseår)),0))) ->  | KB6: =IF($C6="","",SUM(($D$3:$AO$3+$C6+$D7:$AO7>=FJ$3)*IFERROR($FL6:$GW6/($D$3:$AO$3+$C6+$D7:$AO7-(Analyseår)),0))) -> 
A7: Affaldsanlæg KV Turnkey. Kapacitet på 25 ton affald pr. time. Typisk anlæg før 2004 | B7: ton/h | C7: 20 | D7: 0 | E7: 0 | F7: 0 | G7: 0 | H7: 0 | I7: 0 | J7: 0 | K7: 0 | L7: 0 | M7: 0 | N7: 0 | O7: 0 | P7: 0 | Q7: 0 | R7: 0 | S7: 0 | T7: 0 | U7: 0 | V7: 0 | W7: 0 | X7: 0 | Y7: 0 | Z7: 0 | AA7: 0 | AB7: 0 | AC7: 0 | AD7: 0 | AE7: 0 | AF7: 0 | AG7: 0 | AH7: 0 | AI7: 0 | AJ7: 0 | AK7: 0 | AL7: 0 | AM7: 0 | AN7: 0 | AO7: 0 | AQ7: Varmeproducerende anlæg fordelt på energikilde | AR7: Affald | AS7: kr./ton/h | AT7: =IF($C7="","",MAX(D7 * INDEX(Genanskaffelsespriser!$G$2:$G$201,MATCH(1,($AQ7=Genanskaffelsespriser!$A$2:$A$201)*($AR7=Genanskaffelsespriser!$B$2:$B$201)*($AS7=Genanskaffelsespriser!$D$2:$D$201)*($A7=Genanskaffelsespriser!$C$2:$C$201),0)) * (1 - (Analyseår-AT$3)/($C7+D8)),0)) -> 0 | AU7: =IF($C7="","",MAX(E7 * INDEX(Genanskaffelsespriser!$G$2:$G$201,MATCH(1,($AQ7=Genanskaffelsespriser!$A$2:$A$201)*($AR7=Genanskaffelsespriser!$B$2:$B$201)*($AS7=Genanskaffelsespriser!$D$2:$D$201)*($A7=Genanskaffelsespriser!$C$2:$C$201),0)) * (1 - (Analyseår-AU$3)/($C7+E8)),0)) -> 0 | AV7: =IF($C7="","",MAX(F7 * INDEX(Genanskaffelsespriser!$G$2:$G$201,MATCH(1,($AQ7=Genanskaffelsespriser!$A$2:$A$201)*($AR7=Genanskaffelsespriser!$B$2:$B$201)*($AS7=Genanskaffelsespriser!$D$2:$D$201)*($A7=Genanskaffelsespriser!$C$2:$C$201),0)) * (1 - (Analyseår-AV$3)/($C7+F8)),0)) -> 0 | AW7: =IF($C7="","",MAX(G7 * INDEX(Genanskaffelsespriser!$G$2:$G$201,MATCH(1,($AQ7=Genanskaffelsespriser!$A$2:$A$201)*($AR7=Genanskaffelsespriser!$B$2:$B$201)*($AS7=Genanskaffelsespriser!$D$2:$D$201)*($A7=Genanskaffelsespriser!$C$2:$C$201),0)) * (1 - (Analyseår-AW$3)/($C7+G8)),0)) -> 0 | AX7: =IF($C7="","",MAX(H7 * INDEX(Genanskaffelsespriser!$G$2:$G$201,MATCH(1,($AQ7=Genanskaffelsespriser!$A$2:$A$201)*($AR7=Genanskaffelsespriser!$B$2:$B$201)*($AS7=Genanskaffelsespriser!$D$2:$D$201)*($A7=Genanskaffelsespriser!$C$2:$C$201),0)) * (1 - (Analyseår-AX$3)/($C7+H8)),0)) -> 0 | AY7: =IF($C7="","",MAX(I7 * INDEX(Genanskaffelsespriser!$G$2:$G$201,MATCH(1,($AQ7=Genanskaffelsespriser!$A$2:$A$201)*($AR7=Genanskaffelsespriser!$B$2:$B$201)*($AS7=Genanskaffelsespriser!$D$2:$D$201)*($A7=Genanskaffelsespriser!$C$2:$C$201),0)) * (1 - (Analyseår-AY$3)/($C7+I8)),0)) -> 0 | AZ7: =IF($C7="","",MAX(J7 * INDEX(Genanskaffelsespriser!$G$2:$G$201,MATCH(1,($AQ7=Genanskaffelsespriser!$A$2:$A$201)*($AR7=Genanskaffelsespriser!$B$2:$B$201)*($AS7=Genanskaffelsespriser!$D$2:$D$201)*($A7=Genanskaffelsespriser!$C$2:$C$201),0)) * (1 - (Analyseår-AZ$3)/($C7+J8)),0)) -> 0 | BA7: =IF($C7="","",MAX(K7 * INDEX(Genanskaffelsespriser!$G$2:$G$201,MATCH(1,($AQ7=Genanskaffelsespriser!$A$2:$A$201)*($AR7=Genanskaffelsespriser!$B$2:$B$201)*($AS7=Genanskaffelsespriser!$D$2:$D$201)*($A7=Genanskaffelsespriser!$C$2:$C$201),0)) * (1 - (Analyseår-BA$3)/($C7+K8)),0)) -> 0 | BB7: =IF($C7="","",MAX(L7 * INDEX(Genanskaffelsespriser!$G$2:$G$201,MATCH(1,($AQ7=Genanskaffelsespriser!$A$2:$A$201)*($AR7=Genanskaffelsespriser!$B$2:$B$201)*($AS7=Genanskaffelsespriser!$D$2:$D$201)*($A7=Genanskaffelsespriser!$C$2:$C$201),0)) * (1 - (Analyseår-BB$3)/($C7+L8)),0)) -> 0 | BC7: =IF($C7="","",MAX(M7 * INDEX(Genanskaffelsespriser!$G$2:$G$201,MATCH(1,($AQ7=Genanskaffelsespriser!$A$2:$A$201)*($AR7=Genanskaffelsespriser!$B$2:$B$201)*($AS7=Genanskaffelsespriser!$D$2:$D$201)*($A7=Genanskaffelsespriser!$C$2:$C$201),0)) * (1 - (Analyseår-BC$3)/($C7+M8)),0)) -> 0 | BD7: =IF($C7="","",MAX(N7 * INDEX(Genanskaffelsespriser!$G$2:$G$201,MATCH(1,($AQ7=Genanskaffelsespriser!$A$2:$A$201)*($AR7=Genanskaffelsespriser!$B$2:$B$201)*($AS7=Genanskaffelsespriser!$D$2:$D$201)*($A7=Genanskaffelsespriser!$C$2:$C$201),0)) * (1 - (Analyseår-BD$3)/($C7+N8)),0)) -> 0 | BE7: =IF($C7="","",MAX(O7 * INDEX(Genanskaffelsespriser!$G$2:$G$201,MATCH(1,($AQ7=Genanskaffelsespriser!$A$2:$A$201)*($AR7=Genanskaffelsespriser!$B$2:$B$201)*($AS7=Genanskaffelsespriser!$D$2:$D$201)*($A7=Genanskaffelsespriser!$C$2:$C$201),0)) * (1 - (Analyseår-BE$3)/($C7+O8)),0)) -> 0 | BF7: =IF($C7="","",MAX(P7 * INDEX(Genanskaffelsespriser!$G$2:$G$201,MATCH(1,($AQ7=Genanskaffelsespriser!$A$2:$A$201)*($AR7=Genanskaffelsespriser!$B$2:$B$201)*($AS7=Genanskaffelsespriser!$D$2:$D$201)*($A7=Genanskaffelsespriser!$C$2:$C$201),0)) * (1 - (Analyseår-BF$3)/($C7+P8)),0)) -> 0 | BG7: =IF($C7="","",MAX(Q7 * INDEX(Genanskaffelsespriser!$G$2:$G$201,MATCH(1,($AQ7=Genanskaffelsespriser!$A$2:$A$201)*($AR7=Genanskaffelsespriser!$B$2:$B$201)*($AS7=Genanskaffelsespriser!$D$2:$D$201)*($A7=Genanskaffelsespriser!$C$2:$C$201),0)) * (1 - (Analyseår-BG$3)/($C7+Q8)),0)) -> 0 | BH7: =IF($C7="","",MAX(R7 * INDEX(Genanskaffelsespriser!$G$2:$G$201,MATCH(1,($AQ7=Genanskaffelsespriser!$A$2:$A$201)*($AR7=Genanskaffelsespriser!$B$2:$B$201)*($AS7=Genanskaffelsespriser!$D$2:$D$201)*($A7=Genanskaffelsespriser!$C$2:$C$201),0)) * (1 - (Analyseår-BH$3)/($C7+R8)),0)) -> 0 | BI7: =IF($C7="","",MAX(S7 * INDEX(Genanskaffelsespriser!$G$2:$G$201,MATCH(1,($AQ7=Genanskaffelsespriser!$A$2:$A$201)*($AR7=Genanskaffelsespriser!$B$2:$B$201)*($AS7=Genanskaffelsespriser!$D$2:$D$201)*($A7=Genanskaffelsespriser!$C$2:$C$201),0)) * (1 - (Analyseår-BI$3)/($C7+S8)),0)) -> 0 | BJ7: =IF($C7="","",MAX(T7 * INDEX(Genanskaffelsespriser!$G$2:$G$201,MATCH(1,($AQ7=Genanskaffelsespriser!$A$2:$A$201)*($AR7=Genanskaffelsespriser!$B$2:$B$201)*($AS7=Genanskaffelsespriser!$D$2:$D$201)*($A7=Genanskaffelsespriser!$C$2:$C$201),0)) * (1 - (Analyseår-BJ$3)/($C7+T8)),0)) -> 0 | BK7: =IF($C7="","",MAX(U7 * INDEX(Genanskaffelsespriser!$G$2:$G$201,MATCH(1,($AQ7=Genanskaffelsespriser!$A$2:$A$201)*($AR7=Genanskaffelsespriser!$B$2:$B$201)*($AS7=Genanskaffelsespriser!$D$2:$D$201)*($A7=Genanskaffelsespriser!$C$2:$C$201),0)) * (1 - (Analyseår-BK$3)/($C7+U8)),0)) -> 0 | BL7: =IF($C7="","",MAX(V7 * INDEX(Genanskaffelsespriser!$G$2:$G$201,MATCH(1,($AQ7=Genanskaffelsespriser!$A$2:$A$201)*($AR7=Genanskaffelsespriser!$B$2:$B$201)*($AS7=Genanskaffelsespriser!$D$2:$D$201)*($A7=Genanskaffelsespriser!$C$2:$C$201),0)) * (1 - (Analyseår-BL$3)/($C7+V8)),0)) -> 0 | BM7: =IF($C7="","",MAX(W7 * INDEX(Genanskaffelsespriser!$G$2:$G$201,MATCH(1,($AQ7=Genanskaffelsespriser!$A$2:$A$201)*($AR7=Genanskaffelsespriser!$B$2:$B$201)*($AS7=Genanskaffelsespriser!$D$2:$D$201)*($A7=Genanskaffelsespriser!$C$2:$C$201),0)) * (1 - (Analyseår-BM$3)/($C7+W8)),0)) -> 0 | BN7: =IF($C7="","",MAX(X7 * INDEX(Genanskaffelsespriser!$G$2:$G$201,MATCH(1,($AQ7=Genanskaffelsespriser!$A$2:$A$201)*($AR7=Genanskaffelsespriser!$B$2:$B$201)*($AS7=Genanskaffelsespriser!$D$2:$D$201)*($A7=Genanskaffelsespriser!$C$2:$C$201),0)) * (1 - (Analyseår-BN$3)/($C7+X8)),0)) -> 0 | BO7: =IF($C7="","",MAX(Y7 * INDEX(Genanskaffelsespriser!$G$2:$G$201,MATCH(1,($AQ7=Genanskaffelsespriser!$A$2:$A$201)*($AR7=Genanskaffelsespriser!$B$2:$B$201)*($AS7=Genanskaffelsespriser!$D$2:$D$201)*($A7=Genanskaffelsespriser!$C$2:$C$201),0)) * (1 - (Analyseår-BO$3)/($C7+Y8)),0)) -> 0 | BP7: =IF($C7="","",MAX(Z7 * INDEX(Genanskaffelsespriser!$G$2:$G$201,MATCH(1,($AQ7=Genanskaffelsespriser!$A$2:$A$201)*($AR7=Genanskaffelsespriser!$B$2:$B$201)*($AS7=Genanskaffelsespriser!$D$2:$D$201)*($A7=Genanskaffelsespriser!$C$2:$C$201),0)) * (1 - (Analyseår-BP$3)/($C7+Z8)),0)) -> 0 | BQ7: =IF($C7="","",MAX(AA7 * INDEX(Genanskaffelsespriser!$G$2:$G$201,MATCH(1,($AQ7=Genanskaffelsespriser!$A$2:$A$201)*($AR7=Genanskaffelsespriser!$B$2:$B$201)*($AS7=Genanskaffelsespriser!$D$2:$D$201)*($A7=Genanskaffelsespriser!$C$2:$C$201),0)) * (1 - (Analyseår-BQ$3)/($C7+AA8)),0)) -> 0 | BR7: =IF($C7="","",MAX(AB7 * INDEX(Genanskaffelsespriser!$G$2:$G$201,MATCH(1,($AQ7=Genanskaffelsespriser!$A$2:$A$201)*($AR7=Genanskaffelsespriser!$B$2:$B$201)*($AS7=Genanskaffelsespriser!$D$2:$D$201)*($A7=Genanskaffelsespriser!$C$2:$C$201),0)) * (1 - (Analyseår-BR$3)/($C7+AB8)),0)) -> 0 | BS7: =IF($C7="","",MAX(AC7 * INDEX(Genanskaffelsespriser!$G$2:$G$201,MATCH(1,($AQ7=Genanskaffelsespriser!$A$2:$A$201)*($AR7=Genanskaffelsespriser!$B$2:$B$201)*($AS7=Genanskaffelsespriser!$D$2:$D$201)*($A7=Genanskaffelsespriser!$C$2:$C$201),0)) * (1 - (Analyseår-BS$3)/($C7+AC8)),0)) -> 0 | BT7: =IF($C7="","",MAX(AD7 * INDEX(Genanskaffelsespriser!$G$2:$G$201,MATCH(1,($AQ7=Genanskaffelsespriser!$A$2:$A$201)*($AR7=Genanskaffelsespriser!$B$2:$B$201)*($AS7=Genanskaffelsespriser!$D$2:$D$201)*($A7=Genanskaffelsespriser!$C$2:$C$201),0)) * (1 - (Analyseår-BT$3)/($C7+AD8)),0)) -> 0 | BU7: =IF($C7="","",MAX(AE7 * INDEX(Genanskaffelsespriser!$G$2:$G$201,MATCH(1,($AQ7=Genanskaffelsespriser!$A$2:$A$201)*($AR7=Genanskaffelsespriser!$B$2:$B$201)*($AS7=Genanskaffelsespriser!$D$2:$D$201)*($A7=Genanskaffelsespriser!$C$2:$C$201),0)) * (1 - (Analyseår-BU$3)/($C7+AE8)),0)) -> 0 | BV7: =IF($C7="","",MAX(AF7 * INDEX(Genanskaffelsespriser!$G$2:$G$201,MATCH(1,($AQ7=Genanskaffelsespriser!$A$2:$A$201)*($AR7=Genanskaffelsespriser!$B$2:$B$201)*($AS7=Genanskaffelsespriser!$D$2:$D$201)*($A7=Genanskaffelsespriser!$C$2:$C$201),0)) * (1 - (Analyseår-BV$3)/($C7+AF8)),0)) -> 0 | BW7: =IF($C7="","",MAX(AG7 * INDEX(Genanskaffelsespriser!$G$2:$G$201,MATCH(1,($AQ7=Genanskaffelsespriser!$A$2:$A$201)*($AR7=Genanskaffelsespriser!$B$2:$B$201)*($AS7=Genanskaffelsespriser!$D$2:$D$201)*($A7=Genanskaffelsespriser!$C$2:$C$201),0)) * (1 - (Analyseår-BW$3)/($C7+AG8)),0)) -> 0 | BX7: =IF($C7="","",MAX(AH7 * INDEX(Genanskaffelsespriser!$G$2:$G$201,MATCH(1,($AQ7=Genanskaffelsespriser!$A$2:$A$201)*($AR7=Genanskaffelsespriser!$B$2:$B$201)*($AS7=Genanskaffelsespriser!$D$2:$D$201)*($A7=Genanskaffelsespriser!$C$2:$C$201),0)) * (1 - (Analyseår-BX$3)/($C7+AH8)),0)) -> 0 | BY7: =IF($C7="","",MAX(AI7 * INDEX(Genanskaffelsespriser!$G$2:$G$201,MATCH(1,($AQ7=Genanskaffelsespriser!$A$2:$A$201)*($AR7=Genanskaffelsespriser!$B$2:$B$201)*($AS7=Genanskaffelsespriser!$D$2:$D$201)*($A7=Genanskaffelsespriser!$C$2:$C$201),0)) * (1 - (Analyseår-BY$3)/($C7+AI8)),0)) -> 0 | BZ7: =IF($C7="","",MAX(AJ7 * INDEX(Genanskaffelsespriser!$G$2:$G$201,MATCH(1,($AQ7=Genanskaffelsespriser!$A$2:$A$201)*($AR7=Genanskaffelsespriser!$B$2:$B$201)*($AS7=Genanskaffelsespriser!$D$2:$D$201)*($A7=Genanskaffelsespriser!$C$2:$C$201),0)) * (1 - (Analyseår-BZ$3)/($C7+AJ8)),0)) -> 0 | CA7: =IF($C7="","",MAX(AK7 * INDEX(Genanskaffelsespriser!$G$2:$G$201,MATCH(1,($AQ7=Genanskaffelsespriser!$A$2:$A$201)*($AR7=Genanskaffelsespriser!$B$2:$B$201)*($AS7=Genanskaffelsespriser!$D$2:$D$201)*($A7=Genanskaffelsespriser!$C$2:$C$201),0)) * (1 - (Analyseår-CA$3)/($C7+AK8)),0)) -> 0 | CB7: =IF($C7="","",MAX(AL7 * INDEX(Genanskaffelsespriser!$G$2:$G$201,MATCH(1,($AQ7=Genanskaffelsespriser!$A$2:$A$201)*($AR7=Genanskaffelsespriser!$B$2:$B$201)*($AS7=Genanskaffelsespriser!$D$2:$D$201)*($A7=Genanskaffelsespriser!$C$2:$C$201),0)) * (1 - (Analyseår-CB$3)/($C7+AL8)),0)) -> 0 | CC7: =IF($C7="","",MAX(AM7 * INDEX(Genanskaffelsespriser!$G$2:$G$201,MATCH(1,($AQ7=Genanskaffelsespriser!$A$2:$A$201)*($AR7=Genanskaffelsespriser!$B$2:$B$201)*($AS7=Genanskaffelsespriser!$D$2:$D$201)*($A7=Genanskaffelsespriser!$C$2:$C$201),0)) * (1 - (Analyseår-CC$3)/($C7+AM8)),0)) -> 0 | CD7: =IF($C7="","",MAX(AN7 * INDEX(Genanskaffelsespriser!$G$2:$G$201,MATCH(1,($AQ7=Genanskaffelsespriser!$A$2:$A$201)*($AR7=Genanskaffelsespriser!$B$2:$B$201)*($AS7=Genanskaffelsespriser!$D$2:$D$201)*($A7=Genanskaffelsespriser!$C$2:$C$201),0)) * (1 - (Analyseår-CD$3)/($C7+AN8)),0)) -> 0 | CE7: =IF($C7="","",MAX(AO7 * INDEX(Genanskaffelsespriser!$G$2:$G$201,MATCH(1,($AQ7=Genanskaffelsespriser!$A$2:$A$201)*($AR7=Genanskaffelsespriser!$B$2:$B$201)*($AS7=Genanskaffelsespriser!$D$2:$D$201)*($A7=Genanskaffelsespriser!$C$2:$C$201),0)) * (1 - (Analyseår-CE$3)/($C7+AO8)),0)) -> 0 | CG7: =IF($C7="","",SUM(($D$3:$AO$3+$C7+$D8:$AO8>=CG$3)*IFERROR($AT7:$CE7/($D$3:$AO$3+$C7+$D8:$AO8-Analyseår),0))) -> 0 | CH7: =IF($C7="","",SUM(($D$3:$AO$3+$C7+$D8:$AO8>=CH$3)*IFERROR($AT7:$CE7/($D$3:$AO$3+$C7+$D8:$AO8-Analyseår),0))) -> 0 | CI7: =IF($C7="","",SUM(($D$3:$AO$3+$C7+$D8:$AO8>=CI$3)*IFERROR($AT7:$CE7/($D$3:$AO$3+$C7+$D8:$AO8-Analyseår),0))) -> 0 | CJ7: =IF($C7="","",SUM(($D$3:$AO$3+$C7+$D8:$AO8>=CJ$3)*IFERROR($AT7:$CE7/($D$3:$AO$3+$C7+$D8:$AO8-Analyseår),0))) -> 0 | CK7: =IF($C7="","",SUM(($D$3:$AO$3+$C7+$D8:$AO8>=CK$3)*IFERROR($AT7:$CE7/($D$3:$AO$3+$C7+$D8:$AO8-Analyseår),0))) -> 0 | CL7: =IF($C7="","",SUM(($D$3:$AO$3+$C7+$D8:$AO8>=CL$3)*IFERROR($AT7:$CE7/($D$3:$AO$3+$C7+$D8:$AO8-Analyseår),0))) -> 0 | CM7: =IF($C7="","",SUM(($D$3:$AO$3+$C7+$D8:$AO8>=CM$3)*IFERROR($AT7:$CE7/($D$3:$AO$3+$C7+$D8:$AO8-Analyseår),0))) -> 0 | CN7: =IF($C7="","",SUM(($D$3:$AO$3+$C7+$D8:$AO8>=CN$3)*IFERROR($AT7:$CE7/($D$3:$AO$3+$C7+$D8:$AO8-Analyseår),0))) -> 0 | CO7: =IF($C7="","",SUM(($D$3:$AO$3+$C7+$D8:$AO8>=CO$3)*IFERROR($AT7:$CE7/($D$3:$AO$3+$C7+$D8:$AO8-Analyseår),0))) -> 0 | CP7: =IF($C7="","",SUM(($D$3:$AO$3+$C7+$D8:$AO8>=CP$3)*IFERROR($AT7:$CE7/($D$3:$AO$3+$C7+$D8:$AO8-Analyseår),0))) -> 0 | CQ7: =IF($C7="","",SUM(($D$3:$AO$3+$C7+$D8:$AO8>=CQ$3)*IFERROR($AT7:$CE7/($D$3:$AO$3+$C7+$D8:$AO8-Analyseår),0))) -> 0 | CR7: =IF($C7="","",SUM(($D$3:$AO$3+$C7+$D8:$AO8>=CR$3)*IFERROR($AT7:$CE7/($D$3:$AO$3+$C7+$D8:$AO8-Analyseår),0))) -> 0 | CS7: =IF($C7="","",SUM(($D$3:$AO$3+$C7+$D8:$AO8>=CS$3)*IFERROR($AT7:$CE7/($D$3:$AO$3+$C7+$D8:$AO8-Analyseår),0))) -> 0 | CT7: =IF($C7="","",SUM(($D$3:$AO$3+$C7+$D8:$AO8>=CT$3)*IFERROR($AT7:$CE7/($D$3:$AO$3+$C7+$D8:$AO8-Analyseår),0))) -> 0 | CU7: =IF($C7="","",SUM(($D$3:$AO$3+$C7+$D8:$AO8>=CU$3)*IFERROR($AT7:$CE7/($D$3:$AO$3+$C7+$D8:$AO8-Analyseår),0))) -> 0 | CV7: =IF($C7="","",SUM(($D$3:$AO$3+$C7+$D8:$AO8>=CV$3)*IFERROR($AT7:$CE7/($D$3:$AO$3+$C7+$D8:$AO8-Analyseår),0))) -> 0 | CW7: =IF($C7="","",SUM(($D$3:$AO$3+$C7+$D8:$AO8>=CW$3)*IFERROR($AT7:$CE7/($D$3:$AO$3+$C7+$D8:$AO8-Analyseår),0))) -> 0 | CX7: =IF($C7="","",SUM(($D$3:$AO$3+$C7+$D8:$AO8>=CX$3)*IFERROR($AT7:$CE7/($D$3:$AO$3+$C7+$D8:$AO8-Analyseår),0))) -> 0 | CY7: =IF($C7="","",SUM(($D$3:$AO$3+$C7+$D8:$AO8>=CY$3)*IFERROR($AT7:$CE7/($D$3:$AO$3+$C7+$D8:$AO8-Analyseår),0))) -> 0 | CZ7: =IF($C7="","",SUM(($D$3:$AO$3+$C7+$D8:$AO8>=CZ$3)*IFERROR($AT7:$CE7/($D$3:$AO$3+$C7+$D8:$AO8-Analyseår),0))) -> 0 | DA7: =IF($C7="","",SUM(($D$3:$AO$3+$C7+$D8:$AO8>=DA$3)*IFERROR($AT7:$CE7/($D$3:$AO$3+$C7+$D8:$AO8-Analyseår),0))) -> 0 | DB7: =IF($C7="","",SUM(($D$3:$AO$3+$C7+$D8:$AO8>=DB$3)*IFERROR($AT7:$CE7/($D$3:$AO$3+$C7+$D8:$AO8-Analyseår),0))) -> 0 | DC7: =IF($C7="","",SUM(($D$3:$AO$3+$C7+$D8:$AO8>=DC$3)*IFERROR($AT7:$CE7/($D$3:$AO$3+$C7+$D8:$AO8-Analyseår),0))) -> 0 | DD7: =IF($C7="","",SUM(($D$3:$AO$3+$C7+$D8:$AO8>=DD$3)*IFERROR($AT7:$CE7/($D$3:$AO$3+$C7+$D8:$AO8-Analyseår),0))) -> 0 | DE7: =IF($C7="","",SUM(($D$3:$AO$3+$C7+$D8:$AO8>=DE$3)*IFERROR($AT7:$CE7/($D$3:$AO$3+$C7+$D8:$AO8-Analyseår),0))) -> 0 | DF7: =IF($C7="","",SUM(($D$3:$AO$3+$C7+$D8:$AO8>=DF$3)*IFERROR($AT7:$CE7/($D$3:$AO$3+$C7+$D8:$AO8-Analyseår),0))) -> 0 | DG7: =IF($C7="","",SUM(($D$3:$AO$3+$C7+$D8:$AO8>=DG$3)*IFERROR($AT7:$CE7/($D$3:$AO$3+$C7+$D8:$AO8-Analyseår),0))) -> 0 | DH7: =IF($C7="","",SUM(($D$3:$AO$3+$C7+$D8:$AO8>=DH$3)*IFERROR($AT7:$CE7/($D$3:$AO$3+$C7+$D8:$AO8-Analyseår),0))) -> 0 | DI7: =IF($C7="","",SUM(($D$3:$AO$3+$C7+$D8:$AO8>=DI$3)*IFERROR($AT7:$CE7/($D$3:$AO$3+$C7+$D8:$AO8-Analyseår),0))) -> 0 | DJ7: =IF($C7="","",SUM(($D$3:$AO$3+$C7+$D8:$AO8>=DJ$3)*IFERROR($AT7:$CE7/($D$3:$AO$3+$C7+$D8:$AO8-Analyseår),0))) -> 0 | DK7: =IF($C7="","",SUM(($D$3:$AO$3+$C7+$D8:$AO8>=DK$3)*IFERROR($AT7:$CE7/($D$3:$AO$3+$C7+$D8:$AO8-Analyseår),0))) -> 0 | DL7: =IF($C7="","",SUM(($D$3:$AO$3+$C7+$D8:$AO8>=DL$3)*IFERROR($AT7:$CE7/($D$3:$AO$3+$C7+$D8:$AO8-Analyseår),0))) -> 0 | DM7: =IF($C7="","",SUM(($D$3:$AO$3+$C7+$D8:$AO8>=DM$3)*IFERROR($AT7:$CE7/($D$3:$AO$3+$C7+$D8:$AO8-Analyseår),0))) -> 0 | DN7: =IF($C7="","",SUM(($D$3:$AO$3+$C7+$D8:$AO8>=DN$3)*IFERROR($AT7:$CE7/($D$3:$AO$3+$C7+$D8:$AO8-Analyseår),0))) -> 0 | DO7: =IF($C7="","",SUM(($D$3:$AO$3+$C7+$D8:$AO8>=DO$3)*IFERROR($AT7:$CE7/($D$3:$AO$3+$C7+$D8:$AO8-Analyseår),0))) -> 0 | DP7: =IF($C7="","",SUM(($D$3:$AO$3+$C7+$D8:$AO8>=DP$3)*IFERROR($AT7:$CE7/($D$3:$AO$3+$C7+$D8:$AO8-Analyseår),0))) -> 0 | DQ7: =IF($C7="","",SUM(($D$3:$AO$3+$C7+$D8:$AO8>=DQ$3)*IFERROR($AT7:$CE7/($D$3:$AO$3+$C7+$D8:$AO8-Analyseår),0))) -> 0 | DR7: =IF($C7="","",SUM(($D$3:$AO$3+$C7+$D8:$AO8>=DR$3)*IFERROR($AT7:$CE7/($D$3:$AO$3+$C7+$D8:$AO8-Analyseår),0))) -> 0 | DS7: =IF($C7="","",SUM(($D$3:$AO$3+$C7+$D8:$AO8>=DS$3)*IFERROR($AT7:$CE7/($D$3:$AO$3+$C7+$D8:$AO8-Analyseår),0))) -> 0 | DT7: =IF($C7="","",SUM(($D$3:$AO$3+$C7+$D8:$AO8>=DT$3)*IFERROR($AT7:$CE7/($D$3:$AO$3+$C7+$D8:$AO8-Analyseår),0))) -> 0 | DU7: =IF($C7="","",SUM(($D$3:$AO$3+$C7+$D8:$AO8>=DU$3)*IFERROR($AT7:$CE7/($D$3:$AO$3+$C7+$D8:$AO8-Analyseår),0))) -> 0 | DV7: =IF($C7="","",SUM(($D$3:$AO$3+$C7+$D8:$AO8>=DV$3)*IFERROR($AT7:$CE7/($D$3:$AO$3+$C7+$D8:$AO8-Analyseår),0))) -> 0 | DW7: =IF($C7="","",SUM(($D$3:$AO$3+$C7+$D8:$AO8>=DW$3)*IFERROR($AT7:$CE7/($D$3:$AO$3+$C7+$D8:$AO8-Analyseår),0))) -> 0 | DX7: =IF($C7="","",SUM(($D$3:$AO$3+$C7+$D8:$AO8>=DX$3)*IFERROR($AT7:$CE7/($D$3:$AO$3+$C7+$D8:$AO8-Analyseår),0))) -> 0 | DY7: =IF($C7="","",SUM(($D$3:$AO$3+$C7+$D8:$AO8>=DY$3)*IFERROR($AT7:$CE7/($D$3:$AO$3+$C7+$D8:$AO8-Analyseår),0))) -> 0 | DZ7: =IF($C7="","",SUM(($D$3:$AO$3+$C7+$D8:$AO8>=DZ$3)*IFERROR($AT7:$CE7/($D$3:$AO$3+$C7+$D8:$AO8-Analyseår),0))) -> 0 | EA7: =IF($C7="","",SUM(($D$3:$AO$3+$C7+$D8:$AO8>=EA$3)*IFERROR($AT7:$CE7/($D$3:$AO$3+$C7+$D8:$AO8-Analyseår),0))) -> 0 | EB7: =IF($C7="","",SUM(($D$3:$AO$3+$C7+$D8:$AO8>=EB$3)*IFERROR($AT7:$CE7/($D$3:$AO$3+$C7+$D8:$AO8-Analyseår),0))) -> 0 | EC7: =IF($C7="","",SUM(($D$3:$AO$3+$C7+$D8:$AO8>=EC$3)*IFERROR($AT7:$CE7/($D$3:$AO$3+$C7+$D8:$AO8-Analyseår),0))) -> 0 | ED7: =IF($C7="","",SUM(($D$3:$AO$3+$C7+$D8:$AO8>=ED$3)*IFERROR($AT7:$CE7/($D$3:$AO$3+$C7+$D8:$AO8-Analyseår),0))) -> 0 | EE7: =IF($C7="","",SUM(($D$3:$AO$3+$C7+$D8:$AO8>=EE$3)*IFERROR($AT7:$CE7/($D$3:$AO$3+$C7+$D8:$AO8-Analyseår),0))) -> 0 | EF7: =IF($C7="","",SUM(($D$3:$AO$3+$C7+$D8:$AO8>=EF$3)*IFERROR($AT7:$CE7/($D$3:$AO$3+$C7+$D8:$AO8-Analyseår),0))) -> 0 | EG7: =IF($C7="","",SUM(($D$3:$AO$3+$C7+$D8:$AO8>=EG$3)*IFERROR($AT7:$CE7/($D$3:$AO$3+$C7+$D8:$AO8-Analyseår),0))) -> 0 | EH7: =IF($C7="","",SUM(($D$3:$AO$3+$C7+$D8:$AO8>=EH$3)*IFERROR($AT7:$CE7/($D$3:$AO$3+$C7+$D8:$AO8-Analyseår),0))) -> 0 | EI7: =IF($C7="","",SUM(($D$3:$AO$3+$C7+$D8:$AO8>=EI$3)*IFERROR($AT7:$CE7/($D$3:$AO$3+$C7+$D8:$AO8-Analyseår),0))) -> 0 | EJ7: =IF($C7="","",SUM(($D$3:$AO$3+$C7+$D8:$AO8>=EJ$3)*IFERROR($AT7:$CE7/($D$3:$AO$3+$C7+$D8:$AO8-Analyseår),0))) -> 0 | EK7: =IF($C7="","",SUM(($D$3:$AO$3+$C7+$D8:$AO8>=EK$3)*IFERROR($AT7:$CE7/($D$3:$AO$3+$C7+$D8:$AO8-Analyseår),0))) -> 0 | EL7: =IF($C7="","",SUM(($D$3:$AO$3+$C7+$D8:$AO8>=EL$3)*IFERROR($AT7:$CE7/($D$3:$AO$3+$C7+$D8:$AO8-Analyseår),0))) -> 0 | EM7: =IF($C7="","",SUM(($D$3:$AO$3+$C7+$D8:$AO8>=EM$3)*IFERROR($AT7:$CE7/($D$3:$AO$3+$C7+$D8:$AO8-Analyseår),0))) -> 0 | EN7: =IF($C7="","",SUM(($D$3:$AO$3+$C7+$D8:$AO8>=EN$3)*IFERROR($AT7:$CE7/($D$3:$AO$3+$C7+$D8:$AO8-Analyseår),0))) -> 0 | EO7: =IF($C7="","",SUM(($D$3:$AO$3+$C7+$D8:$AO8>=EO$3)*IFERROR($AT7:$CE7/($D$3:$AO$3+$C7+$D8:$AO8-Analyseår),0))) -> 0 | EP7: =IF($C7="","",SUM(($D$3:$AO$3+$C7+$D8:$AO8>=EP$3)*IFERROR($AT7:$CE7/($D$3:$AO$3+$C7+$D8:$AO8-Analyseår),0))) -> 0 | EQ7: =IF($C7="","",SUM(($D$3:$AO$3+$C7+$D8:$AO8>=EQ$3)*IFERROR($AT7:$CE7/($D$3:$AO$3+$C7+$D8:$AO8-Analyseår),0))) -> 0 | ER7: =IF($C7="","",SUM(($D$3:$AO$3+$C7+$D8:$AO8>=ER$3)*IFERROR($AT7:$CE7/($D$3:$AO$3+$C7+$D8:$AO8-Analyseår),0))) -> 0 | ES7: =IF($C7="","",SUM(($D$3:$AO$3+$C7+$D8:$AO8>=ES$3)*IFERROR($AT7:$CE7/($D$3:$AO$3+$C7+$D8:$AO8-Analyseår),0))) -> 0 | ET7: =IF($C7="","",SUM(($D$3:$AO$3+$C7+$D8:$AO8>=ET$3)*IFERROR($AT7:$CE7/($D$3:$AO$3+$C7+$D8:$AO8-Analyseår),0))) -> 0 | EU7: =IF($C7="","",SUM(($D$3:$AO$3+$C7+$D8:$AO8>=EU$3)*IFERROR($AT7:$CE7/($D$3:$AO$3+$C7+$D8:$AO8-Analyseår),0))) -> 0 | EV7: =IF($C7="","",SUM(($D$3:$AO$3+$C7+$D8:$AO8>=EV$3)*IFERROR($AT7:$CE7/($D$3:$AO$3+$C7+$D8:$AO8-Analyseår),0))) -> 0 | EW7: =IF($C7="","",SUM(($D$3:$AO$3+$C7+$D8:$AO8>=EW$3)*IFERROR($AT7:$CE7/($D$3:$AO$3+$C7+$D8:$AO8-Analyseår),0))) -> 0 | EX7: =IF($C7="","",SUM(($D$3:$AO$3+$C7+$D8:$AO8>=EX$3)*IFERROR($AT7:$CE7/($D$3:$AO$3+$C7+$D8:$AO8-Analyseår),0))) -> 0 | EY7: =IF($C7="","",SUM(($D$3:$AO$3+$C7+$D8:$AO8>=EY$3)*IFERROR($AT7:$CE7/($D$3:$AO$3+$C7+$D8:$AO8-Analyseår),0))) -> 0 | EZ7: =IF($C7="","",SUM(($D$3:$AO$3+$C7+$D8:$AO8>=EZ$3)*IFERROR($AT7:$CE7/($D$3:$AO$3+$C7+$D8:$AO8-Analyseår),0))) -> 0 | FA7: =IF($C7="","",SUM(($D$3:$AO$3+$C7+$D8:$AO8>=FA$3)*IFERROR($AT7:$CE7/($D$3:$AO$3+$C7+$D8:$AO8-Analyseår),0))) -> 0 | FB7: =IF($C7="","",SUM(($D$3:$AO$3+$C7+$D8:$AO8>=FB$3)*IFERROR($AT7:$CE7/($D$3:$AO$3+$C7+$D8:$AO8-Analyseår),0))) -> 0 | FC7: =IF($C7="","",SUM(($D$3:$AO$3+$C7+$D8:$AO8>=FC$3)*IFERROR($AT7:$CE7/($D$3:$AO$3+$C7+$D8:$AO8-Analyseår),0))) -> 0 | FD7: =IF($C7="","",SUM(($D$3:$AO$3+$C7+$D8:$AO8>=FD$3)*IFERROR($AT7:$CE7/($D$3:$AO$3+$C7+$D8:$AO8-Analyseår),0))) -> 0 | FE7: =IF($C7="","",SUM(($D$3:$AO$3+$C7+$D8:$AO8>=FE$3)*IFERROR($AT7:$CE7/($D$3:$AO$3+$C7+$D8:$AO8-Analyseår),0))) -> 0 | FF7: =IF($C7="","",SUM(($D$3:$AO$3+$C7+$D8:$AO8>=FF$3)*IFERROR($AT7:$CE7/($D$3:$AO$3+$C7+$D8:$AO8-Analyseår),0))) -> 0 | FG7: =IF($C7="","",SUM(($D$3:$AO$3+$C7+$D8:$AO8>=FG$3)*IFERROR($AT7:$CE7/($D$3:$AO$3+$C7+$D8:$AO8-Analyseår),0))) -> 0 | FH7: =IF($C7="","",SUM(($D$3:$AO$3+$C7+$D8:$AO8>=FH$3)*IFERROR($AT7:$CE7/($D$3:$AO$3+$C7+$D8:$AO8-Analyseår),0))) -> 0 | FI7: =IF($C7="","",SUM(($D$3:$AO$3+$C7+$D8:$AO8>=FI$3)*IFERROR($AT7:$CE7/($D$3:$AO$3+$C7+$D8:$AO8-Analyseår),0))) -> 0 | FJ7: =IF($C7="","",SUM(($D$3:$AO$3+$C7+$D8:$AO8>=FJ$3)*IFERROR($AT7:$CE7/($D$3:$AO$3+$C7+$D8:$AO8-Analyseår),0))) -> 0 | FL7: 0 | FM7: 0 | FN7: 0 | FO7: 0 | FP7: 0 | FQ7: 0 | FR7: 0 | FS7: 0 | FT7: 0 | FU7: 0 | FV7: 0 | FW7: 0 | FX7: 0 | FY7: 0 | FZ7: 0 | GA7: 0 | GB7: 0 | GC7: 0 | GD7: 0 | GE7: 0 | GF7: 0 | GG7: 0 | GH7: 0 | GI7: 0 | GJ7: 0 | GK7: 0 | GL7: 0 | GM7: 0 | GN7: 0 | GO7: 0 | GP7: 0 | GQ7: 0 | GR7: 0 | GS7: 0 | GT7: 0 | GU7: 0 | GV7: 0 | GW7: 0 | GY7: =IF($C7="","",SUM(($D$3:$AO$3+$C7+$D8:$AO8>=CG$3)*IFERROR($FL7:$GW7/($D$3:$AO$3+$C7+$D8:$AO8-(Analyseår)),0))) -> 0 | GZ7: =IF($C7="","",SUM(($D$3:$AO$3+$C7+$D8:$AO8>=CH$3)*IFERROR($FL7:$GW7/($D$3:$AO$3+$C7+$D8:$AO8-(Analyseår)),0))) -> 0 | HA7: =IF($C7="","",SUM(($D$3:$AO$3+$C7+$D8:$AO8>=CI$3)*IFERROR($FL7:$GW7/($D$3:$AO$3+$C7+$D8:$AO8-(Analyseår)),0))) -> 0 | HB7: =IF($C7="","",SUM(($D$3:$AO$3+$C7+$D8:$AO8>=CJ$3)*IFERROR($FL7:$GW7/($D$3:$AO$3+$C7+$D8:$AO8-(Analyseår)),0))) -> 0 | HC7: =IF($C7="","",SUM(($D$3:$AO$3+$C7+$D8:$AO8>=CK$3)*IFERROR($FL7:$GW7/($D$3:$AO$3+$C7+$D8:$AO8-(Analyseår)),0))) -> 0 | HD7: =IF($C7="","",SUM(($D$3:$AO$3+$C7+$D8:$AO8>=CL$3)*IFERROR($FL7:$GW7/($D$3:$AO$3+$C7+$D8:$AO8-(Analyseår)),0))) -> 0 | HE7: =IF($C7="","",SUM(($D$3:$AO$3+$C7+$D8:$AO8>=CM$3)*IFERROR($FL7:$GW7/($D$3:$AO$3+$C7+$D8:$AO8-(Analyseår)),0))) -> 0 | HF7: =IF($C7="","",SUM(($D$3:$AO$3+$C7+$D8:$AO8>=CN$3)*IFERROR($FL7:$GW7/($D$3:$AO$3+$C7+$D8:$AO8-(Analyseår)),0))) -> 0 | HG7: =IF($C7="","",SUM(($D$3:$AO$3+$C7+$D8:$AO8>=CO$3)*IFERROR($FL7:$GW7/($D$3:$AO$3+$C7+$D8:$AO8-(Analyseår)),0))) -> 0 | HH7: =IF($C7="","",SUM(($D$3:$AO$3+$C7+$D8:$AO8>=CP$3)*IFERROR($FL7:$GW7/($D$3:$AO$3+$C7+$D8:$AO8-(Analyseår)),0))) -> 0 | HI7: =IF($C7="","",SUM(($D$3:$AO$3+$C7+$D8:$AO8>=CQ$3)*IFERROR($FL7:$GW7/($D$3:$AO$3+$C7+$D8:$AO8-(Analyseår)),0))) -> 0 | HJ7: =IF($C7="","",SUM(($D$3:$AO$3+$C7+$D8:$AO8>=CR$3)*IFERROR($FL7:$GW7/($D$3:$AO$3+$C7+$D8:$AO8-(Analyseår)),0))) -> 0 | HK7: =IF($C7="","",SUM(($D$3:$AO$3+$C7+$D8:$AO8>=CS$3)*IFERROR($FL7:$GW7/($D$3:$AO$3+$C7+$D8:$AO8-(Analyseår)),0))) -> 0 | HL7: =IF($C7="","",SUM(($D$3:$AO$3+$C7+$D8:$AO8>=CT$3)*IFERROR($FL7:$GW7/($D$3:$AO$3+$C7+$D8:$AO8-(Analyseår)),0))) -> 0 | HM7: =IF($C7="","",SUM(($D$3:$AO$3+$C7+$D8:$AO8>=CU$3)*IFERROR($FL7:$GW7/($D$3:$AO$3+$C7+$D8:$AO8-(Analyseår)),0))) -> 0 | HN7: =IF($C7="","",SUM(($D$3:$AO$3+$C7+$D8:$AO8>=CV$3)*IFERROR($FL7:$GW7/($D$3:$AO$3+$C7+$D8:$AO8-(Analyseår)),0))) -> 0 | HO7: =IF($C7="","",SUM(($D$3:$AO$3+$C7+$D8:$AO8>=CW$3)*IFERROR($FL7:$GW7/($D$3:$AO$3+$C7+$D8:$AO8-(Analyseår)),0))) -> 0 | HP7: =IF($C7="","",SUM(($D$3:$AO$3+$C7+$D8:$AO8>=CX$3)*IFERROR($FL7:$GW7/($D$3:$AO$3+$C7+$D8:$AO8-(Analyseår)),0))) -> 0 | HQ7: =IF($C7="","",SUM(($D$3:$AO$3+$C7+$D8:$AO8>=CY$3)*IFERROR($FL7:$GW7/($D$3:$AO$3+$C7+$D8:$AO8-(Analyseår)),0))) -> 0 | HR7: =IF($C7="","",SUM(($D$3:$AO$3+$C7+$D8:$AO8>=CZ$3)*IFERROR($FL7:$GW7/($D$3:$AO$3+$C7+$D8:$AO8-(Analyseår)),0))) -> 0 | HS7: =IF($C7="","",SUM(($D$3:$AO$3+$C7+$D8:$AO8>=DA$3)*IFERROR($FL7:$GW7/($D$3:$AO$3+$C7+$D8:$AO8-(Analyseår)),0))) -> 0 | HT7: =IF($C7="","",SUM(($D$3:$AO$3+$C7+$D8:$AO8>=DB$3)*IFERROR($FL7:$GW7/($D$3:$AO$3+$C7+$D8:$AO8-(Analyseår)),0))) -> 0 | HU7: =IF($C7="","",SUM(($D$3:$AO$3+$C7+$D8:$AO8>=DC$3)*IFERROR($FL7:$GW7/($D$3:$AO$3+$C7+$D8:$AO8-(Analyseår)),0))) -> 0 | HV7: =IF($C7="","",SUM(($D$3:$AO$3+$C7+$D8:$AO8>=DD$3)*IFERROR($FL7:$GW7/($D$3:$AO$3+$C7+$D8:$AO8-(Analyseår)),0))) -> 0 | HW7: =IF($C7="","",SUM(($D$3:$AO$3+$C7+$D8:$AO8>=DE$3)*IFERROR($FL7:$GW7/($D$3:$AO$3+$C7+$D8:$AO8-(Analyseår)),0))) -> 0 | HX7: =IF($C7="","",SUM(($D$3:$AO$3+$C7+$D8:$AO8>=DF$3)*IFERROR($FL7:$GW7/($D$3:$AO$3+$C7+$D8:$AO8-(Analyseår)),0))) -> 0 | HY7: =IF($C7="","",SUM(($D$3:$AO$3+$C7+$D8:$AO8>=DG$3)*IFERROR($FL7:$GW7/($D$3:$AO$3+$C7+$D8:$AO8-(Analyseår)),0))) -> 0 | HZ7: =IF($C7="","",SUM(($D$3:$AO$3+$C7+$D8:$AO8>=DH$3)*IFERROR($FL7:$GW7/($D$3:$AO$3+$C7+$D8:$AO8-(Analyseår)),0))) -> 0 | IA7: =IF($C7="","",SUM(($D$3:$AO$3+$C7+$D8:$AO8>=DI$3)*IFERROR($FL7:$GW7/($D$3:$AO$3+$C7+$D8:$AO8-(Analyseår)),0))) -> 0 | IB7: =IF($C7="","",SUM(($D$3:$AO$3+$C7+$D8:$AO8>=DJ$3)*IFERROR($FL7:$GW7/($D$3:$AO$3+$C7+$D8:$AO8-(Analyseår)),0))) -> 0 | IC7: =IF($C7="","",SUM(($D$3:$AO$3+$C7+$D8:$AO8>=DK$3)*IFERROR($FL7:$GW7/($D$3:$AO$3+$C7+$D8:$AO8-(Analyseår)),0))) -> 0 | ID7: =IF($C7="","",SUM(($D$3:$AO$3+$C7+$D8:$AO8>=DL$3)*IFERROR($FL7:$GW7/($D$3:$AO$3+$C7+$D8:$AO8-(Analyseår)),0))) -> 0 | IE7: =IF($C7="","",SUM(($D$3:$AO$3+$C7+$D8:$AO8>=DM$3)*IFERROR($FL7:$GW7/($D$3:$AO$3+$C7+$D8:$AO8-(Analyseår)),0))) -> 0 | IF7: =IF($C7="","",SUM(($D$3:$AO$3+$C7+$D8:$AO8>=DN$3)*IFERROR($FL7:$GW7/($D$3:$AO$3+$C7+$D8:$AO8-(Analyseår)),0))) -> 0 | IG7: =IF($C7="","",SUM(($D$3:$AO$3+$C7+$D8:$AO8>=DO$3)*IFERROR($FL7:$GW7/($D$3:$AO$3+$C7+$D8:$AO8-(Analyseår)),0))) -> 0 | IH7: =IF($C7="","",SUM(($D$3:$AO$3+$C7+$D8:$AO8>=DP$3)*IFERROR($FL7:$GW7/($D$3:$AO$3+$C7+$D8:$AO8-(Analyseår)),0))) -> 0 | II7: =IF($C7="","",SUM(($D$3:$AO$3+$C7+$D8:$AO8>=DQ$3)*IFERROR($FL7:$GW7/($D$3:$AO$3+$C7+$D8:$AO8-(Analyseår)),0))) -> 0 | IJ7: =IF($C7="","",SUM(($D$3:$AO$3+$C7+$D8:$AO8>=DR$3)*IFERROR($FL7:$GW7/($D$3:$AO$3+$C7+$D8:$AO8-(Analyseår)),0))) -> 0 | IK7: =IF($C7="","",SUM(($D$3:$AO$3+$C7+$D8:$AO8>=DS$3)*IFERROR($FL7:$GW7/($D$3:$AO$3+$C7+$D8:$AO8-(Analyseår)),0))) -> 0 | IL7: =IF($C7="","",SUM(($D$3:$AO$3+$C7+$D8:$AO8>=DT$3)*IFERROR($FL7:$GW7/($D$3:$AO$3+$C7+$D8:$AO8-(Analyseår)),0))) -> 0 | IM7: =IF($C7="","",SUM(($D$3:$AO$3+$C7+$D8:$AO8>=DU$3)*IFERROR($FL7:$GW7/($D$3:$AO$3+$C7+$D8:$AO8-(Analyseår)),0))) -> 0 | IN7: =IF($C7="","",SUM(($D$3:$AO$3+$C7+$D8:$AO8>=DV$3)*IFERROR($FL7:$GW7/($D$3:$AO$3+$C7+$D8:$AO8-(Analyseår)),0))) -> 0 | IO7: =IF($C7="","",SUM(($D$3:$AO$3+$C7+$D8:$AO8>=DW$3)*IFERROR($FL7:$GW7/($D$3:$AO$3+$C7+$D8:$AO8-(Analyseår)),0))) -> 0 | IP7: =IF($C7="","",SUM(($D$3:$AO$3+$C7+$D8:$AO8>=DX$3)*IFERROR($FL7:$GW7/($D$3:$AO$3+$C7+$D8:$AO8-(Analyseår)),0))) -> 0 | IQ7: =IF($C7="","",SUM(($D$3:$AO$3+$C7+$D8:$AO8>=DY$3)*IFERROR($FL7:$GW7/($D$3:$AO$3+$C7+$D8:$AO8-(Analyseår)),0))) -> 0 | IR7: =IF($C7="","",SUM(($D$3:$AO$3+$C7+$D8:$AO8>=DZ$3)*IFERROR($FL7:$GW7/($D$3:$AO$3+$C7+$D8:$AO8-(Analyseår)),0))) -> 0 | IS7: =IF($C7="","",SUM(($D$3:$AO$3+$C7+$D8:$AO8>=EA$3)*IFERROR($FL7:$GW7/($D$3:$AO$3+$C7+$D8:$AO8-(Analyseår)),0))) -> 0 | IT7: =IF($C7="","",SUM(($D$3:$AO$3+$C7+$D8:$AO8>=EB$3)*IFERROR($FL7:$GW7/($D$3:$AO$3+$C7+$D8:$AO8-(Analyseår)),0))) -> 0 | IU7: =IF($C7="","",SUM(($D$3:$AO$3+$C7+$D8:$AO8>=EC$3)*IFERROR($FL7:$GW7/($D$3:$AO$3+$C7+$D8:$AO8-(Analyseår)),0))) -> 0 | IV7: =IF($C7="","",SUM(($D$3:$AO$3+$C7+$D8:$AO8>=ED$3)*IFERROR($FL7:$GW7/($D$3:$AO$3+$C7+$D8:$AO8-(Analyseår)),0))) -> 0 | IW7: =IF($C7="","",SUM(($D$3:$AO$3+$C7+$D8:$AO8>=EE$3)*IFERROR($FL7:$GW7/($D$3:$AO$3+$C7+$D8:$AO8-(Analyseår)),0))) -> 0 | IX7: =IF($C7="","",SUM(($D$3:$AO$3+$C7+$D8:$AO8>=EF$3)*IFERROR($FL7:$GW7/($D$3:$AO$3+$C7+$D8:$AO8-(Analyseår)),0))) -> 0 | IY7: =IF($C7="","",SUM(($D$3:$AO$3+$C7+$D8:$AO8>=EG$3)*IFERROR($FL7:$GW7/($D$3:$AO$3+$C7+$D8:$AO8-(Analyseår)),0))) -> 0 | IZ7: =IF($C7="","",SUM(($D$3:$AO$3+$C7+$D8:$AO8>=EH$3)*IFERROR($FL7:$GW7/($D$3:$AO$3+$C7+$D8:$AO8-(Analyseår)),0))) -> 0 | JA7: =IF($C7="","",SUM(($D$3:$AO$3+$C7+$D8:$AO8>=EI$3)*IFERROR($FL7:$GW7/($D$3:$AO$3+$C7+$D8:$AO8-(Analyseår)),0))) -> 0 | JB7: =IF($C7="","",SUM(($D$3:$AO$3+$C7+$D8:$AO8>=EJ$3)*IFERROR($FL7:$GW7/($D$3:$AO$3+$C7+$D8:$AO8-(Analyseår)),0))) -> 0 | JC7: =IF($C7="","",SUM(($D$3:$AO$3+$C7+$D8:$AO8>=EK$3)*IFERROR($FL7:$GW7/($D$3:$AO$3+$C7+$D8:$AO8-(Analyseår)),0))) -> 0 | JD7: =IF($C7="","",SUM(($D$3:$AO$3+$C7+$D8:$AO8>=EL$3)*IFERROR($FL7:$GW7/($D$3:$AO$3+$C7+$D8:$AO8-(Analyseår)),0))) -> 0 | JE7: =IF($C7="","",SUM(($D$3:$AO$3+$C7+$D8:$AO8>=EM$3)*IFERROR($FL7:$GW7/($D$3:$AO$3+$C7+$D8:$AO8-(Analyseår)),0))) -> 0 | JF7: =IF($C7="","",SUM(($D$3:$AO$3+$C7+$D8:$AO8>=EN$3)*IFERROR($FL7:$GW7/($D$3:$AO$3+$C7+$D8:$AO8-(Analyseår)),0))) -> 0 | JG7: =IF($C7="","",SUM(($D$3:$AO$3+$C7+$D8:$AO8>=EO$3)*IFERROR($FL7:$GW7/($D$3:$AO$3+$C7+$D8:$AO8-(Analyseår)),0))) -> 0 | JH7: =IF($C7="","",SUM(($D$3:$AO$3+$C7+$D8:$AO8>=EP$3)*IFERROR($FL7:$GW7/($D$3:$AO$3+$C7+$D8:$AO8-(Analyseår)),0))) -> 0 | JI7: =IF($C7="","",SUM(($D$3:$AO$3+$C7+$D8:$AO8>=EQ$3)*IFERROR($FL7:$GW7/($D$3:$AO$3+$C7+$D8:$AO8-(Analyseår)),0))) -> 0 | JJ7: =IF($C7="","",SUM(($D$3:$AO$3+$C7+$D8:$AO8>=ER$3)*IFERROR($FL7:$GW7/($D$3:$AO$3+$C7+$D8:$AO8-(Analyseår)),0))) -> 0 | JK7: =IF($C7="","",SUM(($D$3:$AO$3+$C7+$D8:$AO8>=ES$3)*IFERROR($FL7:$GW7/($D$3:$AO$3+$C7+$D8:$AO8-(Analyseår)),0))) -> 0 | JL7: =IF($C7="","",SUM(($D$3:$AO$3+$C7+$D8:$AO8>=ET$3)*IFERROR($FL7:$GW7/($D$3:$AO$3+$C7+$D8:$AO8-(Analyseår)),0))) -> 0 | JM7: =IF($C7="","",SUM(($D$3:$AO$3+$C7+$D8:$AO8>=EU$3)*IFERROR($FL7:$GW7/($D$3:$AO$3+$C7+$D8:$AO8-(Analyseår)),0))) -> 0 | JN7: =IF($C7="","",SUM(($D$3:$AO$3+$C7+$D8:$AO8>=EV$3)*IFERROR($FL7:$GW7/($D$3:$AO$3+$C7+$D8:$AO8-(Analyseår)),0))) -> 0 | JO7: =IF($C7="","",SUM(($D$3:$AO$3+$C7+$D8:$AO8>=EW$3)*IFERROR($FL7:$GW7/($D$3:$AO$3+$C7+$D8:$AO8-(Analyseår)),0))) -> 0 | JP7: =IF($C7="","",SUM(($D$3:$AO$3+$C7+$D8:$AO8>=EX$3)*IFERROR($FL7:$GW7/($D$3:$AO$3+$C7+$D8:$AO8-(Analyseår)),0))) -> 0 | JQ7: =IF($C7="","",SUM(($D$3:$AO$3+$C7+$D8:$AO8>=EY$3)*IFERROR($FL7:$GW7/($D$3:$AO$3+$C7+$D8:$AO8-(Analyseår)),0))) -> 0 | JR7: =IF($C7="","",SUM(($D$3:$AO$3+$C7+$D8:$AO8>=EZ$3)*IFERROR($FL7:$GW7/($D$3:$AO$3+$C7+$D8:$AO8-(Analyseår)),0))) -> 0 | JS7: =IF($C7="","",SUM(($D$3:$AO$3+$C7+$D8:$AO8>=FA$3)*IFERROR($FL7:$GW7/($D$3:$AO$3+$C7+$D8:$AO8-(Analyseår)),0))) -> 0 | JT7: =IF($C7="","",SUM(($D$3:$AO$3+$C7+$D8:$AO8>=FB$3)*IFERROR($FL7:$GW7/($D$3:$AO$3+$C7+$D8:$AO8-(Analyseår)),0))) -> 0 | JU7: =IF($C7="","",SUM(($D$3:$AO$3+$C7+$D8:$AO8>=FC$3)*IFERROR($FL7:$GW7/($D$3:$AO$3+$C7+$D8:$AO8-(Analyseår)),0))) -> 0 | JV7: =IF($C7="","",SUM(($D$3:$AO$3+$C7+$D8:$AO8>=FD$3)*IFERROR($FL7:$GW7/($D$3:$AO$3+$C7+$D8:$AO8-(Analyseår)),0))) -> 0 | JW7: =IF($C7="","",SUM(($D$3:$AO$3+$C7+$D8:$AO8>=FE$3)*IFERROR($FL7:$GW7/($D$3:$AO$3+$C7+$D8:$AO8-(Analyseår)),0))) -> 0 | JX7: =IF($C7="","",SUM(($D$3:$AO$3+$C7+$D8:$AO8>=FF$3)*IFERROR($FL7:$GW7/($D$3:$AO$3+$C7+$D8:$AO8-(Analyseår)),0))) -> 0 | JY7: =IF($C7="","",SUM(($D$3:$AO$3+$C7+$D8:$AO8>=FG$3)*IFERROR($FL7:$GW7/($D$3:$AO$3+$C7+$D8:$AO8-(Analyseår)),0))) -> 0 | JZ7: =IF($C7="","",SUM(($D$3:$AO$3+$C7+$D8:$AO8>=FH$3)*IFERROR($FL7:$GW7/($D$3:$AO$3+$C7+$D8:$AO8-(Analyseår)),0))) -> 0 | KA7: =IF($C7="","",SUM(($D$3:$AO$3+$C7+$D8:$AO8>=FI$3)*IFERROR($FL7:$GW7/($D$3:$AO$3+$C7+$D8:$AO8-(Analyseår)),0))) -> 0 | KB7: =IF($C7="","",SUM(($D$3:$AO$3+$C7+$D8:$AO8>=FJ$3)*IFERROR($FL7:$GW7/($D$3:$AO$3+$C7+$D8:$AO8-(Analyseår)),0))) -> 0
A8: Levetidsforlængelse | B8: År | D8: 0 | E8: 0 | F8: 0 | G8: 0 | H8: 0 | I8: 0 | J8: 0 | K8: 0 | L8: 0 | M8: 0 | N8: 0 | O8: 0 | P8: 0 | Q8: 0 | R8: 0 | S8: 0 | T8: 0 | U8: 0 | V8: 0 | W8: 0 | X8: 0 | Y8: 0 | Z8: 0 | AA8: 0 | AB8: 0 | AC8: 0 | AD8: 0 | AE8: 0 | AF8: 0 | AG8: 0 | AH8: 0 | AI8: 0 | AJ8: 0 | AK8: 0 | AL8: 0 | AM8: 0 | AN8: 0 | AO8: 0 | AT8: =IF($C8="","",MAX(D8 * INDEX(Genanskaffelsespriser!$G$2:$G$201,MATCH(1,($AQ8=Genanskaffelsespriser!$A$2:$A$201)*($AR8=Genanskaffelsespriser!$B$2:$B$201)*($AS8=Genanskaffelsespriser!$D$2:$D$201)*($A8=Genanskaffelsespriser!$C$2:$C$201),0)) * (1 - (Analyseår-AT$3)/($C8+D9)),0)) ->  | AU8: =IF($C8="","",MAX(E8 * INDEX(Genanskaffelsespriser!$G$2:$G$201,MATCH(1,($AQ8=Genanskaffelsespriser!$A$2:$A$201)*($AR8=Genanskaffelsespriser!$B$2:$B$201)*($AS8=Genanskaffelsespriser!$D$2:$D$201)*($A8=Genanskaffelsespriser!$C$2:$C$201),0)) * (1 - (Analyseår-AU$3)/($C8+E9)),0)) ->  | AV8: =IF($C8="","",MAX(F8 * INDEX(Genanskaffelsespriser!$G$2:$G$201,MATCH(1,($AQ8=Genanskaffelsespriser!$A$2:$A$201)*($AR8=Genanskaffelsespriser!$B$2:$B$201)*($AS8=Genanskaffelsespriser!$D$2:$D$201)*($A8=Genanskaffelsespriser!$C$2:$C$201),0)) * (1 - (Analyseår-AV$3)/($C8+F9)),0)) ->  | AW8: =IF($C8="","",MAX(G8 * INDEX(Genanskaffelsespriser!$G$2:$G$201,MATCH(1,($AQ8=Genanskaffelsespriser!$A$2:$A$201)*($AR8=Genanskaffelsespriser!$B$2:$B$201)*($AS8=Genanskaffelsespriser!$D$2:$D$201)*($A8=Genanskaffelsespriser!$C$2:$C$201),0)) * (1 - (Analyseår-AW$3)/($C8+G9)),0)) ->  | AX8: =IF($C8="","",MAX(H8 * INDEX(Genanskaffelsespriser!$G$2:$G$201,MATCH(1,($AQ8=Genanskaffelsespriser!$A$2:$A$201)*($AR8=Genanskaffelsespriser!$B$2:$B$201)*($AS8=Genanskaffelsespriser!$D$2:$D$201)*($A8=Genanskaffelsespriser!$C$2:$C$201),0)) * (1 - (Analyseår-AX$3)/($C8+H9)),0)) ->  | AY8: =IF($C8="","",MAX(I8 * INDEX(Genanskaffelsespriser!$G$2:$G$201,MATCH(1,($AQ8=Genanskaffelsespriser!$A$2:$A$201)*($AR8=Genanskaffelsespriser!$B$2:$B$201)*($AS8=Genanskaffelsespriser!$D$2:$D$201)*($A8=Genanskaffelsespriser!$C$2:$C$201),0)) * (1 - (Analyseår-AY$3)/($C8+I9)),0)) ->  | AZ8: =IF($C8="","",MAX(J8 * INDEX(Genanskaffelsespriser!$G$2:$G$201,MATCH(1,($AQ8=Genanskaffelsespriser!$A$2:$A$201)*($AR8=Genanskaffelsespriser!$B$2:$B$201)*($AS8=Genanskaffelsespriser!$D$2:$D$201)*($A8=Genanskaffelsespriser!$C$2:$C$201),0)) * (1 - (Analyseår-AZ$3)/($C8+J9)),0)) ->  | BA8: =IF($C8="","",MAX(K8 * INDEX(Genanskaffelsespriser!$G$2:$G$201,MATCH(1,($AQ8=Genanskaffelsespriser!$A$2:$A$201)*($AR8=Genanskaffelsespriser!$B$2:$B$201)*($AS8=Genanskaffelsespriser!$D$2:$D$201)*($A8=Genanskaffelsespriser!$C$2:$C$201),0)) * (1 - (Analyseår-BA$3)/($C8+K9)),0)) ->  | BB8: =IF($C8="","",MAX(L8 * INDEX(Genanskaffelsespriser!$G$2:$G$201,MATCH(1,($AQ8=Genanskaffelsespriser!$A$2:$A$201)*($AR8=Genanskaffelsespriser!$B$2:$B$201)*($AS8=Genanskaffelsespriser!$D$2:$D$201)*($A8=Genanskaffelsespriser!$C$2:$C$201),0)) * (1 - (Analyseår-BB$3)/($C8+L9)),0)) ->  | BC8: =IF($C8="","",MAX(M8 * INDEX(Genanskaffelsespriser!$G$2:$G$201,MATCH(1,($AQ8=Genanskaffelsespriser!$A$2:$A$201)*($AR8=Genanskaffelsespriser!$B$2:$B$201)*($AS8=Genanskaffelsespriser!$D$2:$D$201)*($A8=Genanskaffelsespriser!$C$2:$C$201),0)) * (1 - (Analyseår-BC$3)/($C8+M9)),0)) ->  | BD8: =IF($C8="","",MAX(N8 * INDEX(Genanskaffelsespriser!$G$2:$G$201,MATCH(1,($AQ8=Genanskaffelsespriser!$A$2:$A$201)*($AR8=Genanskaffelsespriser!$B$2:$B$201)*($AS8=Genanskaffelsespriser!$D$2:$D$201)*($A8=Genanskaffelsespriser!$C$2:$C$201),0)) * (1 - (Analyseår-BD$3)/($C8+N9)),0)) ->  | BE8: =IF($C8="","",MAX(O8 * INDEX(Genanskaffelsespriser!$G$2:$G$201,MATCH(1,($AQ8=Genanskaffelsespriser!$A$2:$A$201)*($AR8=Genanskaffelsespriser!$B$2:$B$201)*($AS8=Genanskaffelsespriser!$D$2:$D$201)*($A8=Genanskaffelsespriser!$C$2:$C$201),0)) * (1 - (Analyseår-BE$3)/($C8+O9)),0)) ->  | BF8: =IF($C8="","",MAX(P8 * INDEX(Genanskaffelsespriser!$G$2:$G$201,MATCH(1,($AQ8=Genanskaffelsespriser!$A$2:$A$201)*($AR8=Genanskaffelsespriser!$B$2:$B$201)*($AS8=Genanskaffelsespriser!$D$2:$D$201)*($A8=Genanskaffelsespriser!$C$2:$C$201),0)) * (1 - (Analyseår-BF$3)/($C8+P9)),0)) ->  | BG8: =IF($C8="","",MAX(Q8 * INDEX(Genanskaffelsespriser!$G$2:$G$201,MATCH(1,($AQ8=Genanskaffelsespriser!$A$2:$A$201)*($AR8=Genanskaffelsespriser!$B$2:$B$201)*($AS8=Genanskaffelsespriser!$D$2:$D$201)*($A8=Genanskaffelsespriser!$C$2:$C$201),0)) * (1 - (Analyseår-BG$3)/($C8+Q9)),0)) ->  | BH8: =IF($C8="","",MAX(R8 * INDEX(Genanskaffelsespriser!$G$2:$G$201,MATCH(1,($AQ8=Genanskaffelsespriser!$A$2:$A$201)*($AR8=Genanskaffelsespriser!$B$2:$B$201)*($AS8=Genanskaffelsespriser!$D$2:$D$201)*($A8=Genanskaffelsespriser!$C$2:$C$201),0)) * (1 - (Analyseår-BH$3)/($C8+R9)),0)) ->  | BI8: =IF($C8="","",MAX(S8 * INDEX(Genanskaffelsespriser!$G$2:$G$201,MATCH(1,($AQ8=Genanskaffelsespriser!$A$2:$A$201)*($AR8=Genanskaffelsespriser!$B$2:$B$201)*($AS8=Genanskaffelsespriser!$D$2:$D$201)*($A8=Genanskaffelsespriser!$C$2:$C$201),0)) * (1 - (Analyseår-BI$3)/($C8+S9)),0)) ->  | BJ8: =IF($C8="","",MAX(T8 * INDEX(Genanskaffelsespriser!$G$2:$G$201,MATCH(1,($AQ8=Genanskaffelsespriser!$A$2:$A$201)*($AR8=Genanskaffelsespriser!$B$2:$B$201)*($AS8=Genanskaffelsespriser!$D$2:$D$201)*($A8=Genanskaffelsespriser!$C$2:$C$201),0)) * (1 - (Analyseår-BJ$3)/($C8+T9)),0)) ->  | BK8: =IF($C8="","",MAX(U8 * INDEX(Genanskaffelsespriser!$G$2:$G$201,MATCH(1,($AQ8=Genanskaffelsespriser!$A$2:$A$201)*($AR8=Genanskaffelsespriser!$B$2:$B$201)*($AS8=Genanskaffelsespriser!$D$2:$D$201)*($A8=Genanskaffelsespriser!$C$2:$C$201),0)) * (1 - (Analyseår-BK$3)/($C8+U9)),0)) ->  | BL8: =IF($C8="","",MAX(V8 * INDEX(Genanskaffelsespriser!$G$2:$G$201,MATCH(1,($AQ8=Genanskaffelsespriser!$A$2:$A$201)*($AR8=Genanskaffelsespriser!$B$2:$B$201)*($AS8=Genanskaffelsespriser!$D$2:$D$201)*($A8=Genanskaffelsespriser!$C$2:$C$201),0)) * (1 - (Analyseår-BL$3)/($C8+V9)),0)) ->  | BM8: =IF($C8="","",MAX(W8 * INDEX(Genanskaffelsespriser!$G$2:$G$201,MATCH(1,($AQ8=Genanskaffelsespriser!$A$2:$A$201)*($AR8=Genanskaffelsespriser!$B$2:$B$201)*($AS8=Genanskaffelsespriser!$D$2:$D$201)*($A8=Genanskaffelsespriser!$C$2:$C$201),0)) * (1 - (Analyseår-BM$3)/($C8+W9)),0)) ->  | BN8: =IF($C8="","",MAX(X8 * INDEX(Genanskaffelsespriser!$G$2:$G$201,MATCH(1,($AQ8=Genanskaffelsespriser!$A$2:$A$201)*($AR8=Genanskaffelsespriser!$B$2:$B$201)*($AS8=Genanskaffelsespriser!$D$2:$D$201)*($A8=Genanskaffelsespriser!$C$2:$C$201),0)) * (1 - (Analyseår-BN$3)/($C8+X9)),0)) ->  | BO8: =IF($C8="","",MAX(Y8 * INDEX(Genanskaffelsespriser!$G$2:$G$201,MATCH(1,($AQ8=Genanskaffelsespriser!$A$2:$A$201)*($AR8=Genanskaffelsespriser!$B$2:$B$201)*($AS8=Genanskaffelsespriser!$D$2:$D$201)*($A8=Genanskaffelsespriser!$C$2:$C$201),0)) * (1 - (Analyseår-BO$3)/($C8+Y9)),0)) ->  | BP8: =IF($C8="","",MAX(Z8 * INDEX(Genanskaffelsespriser!$G$2:$G$201,MATCH(1,($AQ8=Genanskaffelsespriser!$A$2:$A$201)*($AR8=Genanskaffelsespriser!$B$2:$B$201)*($AS8=Genanskaffelsespriser!$D$2:$D$201)*($A8=Genanskaffelsespriser!$C$2:$C$201),0)) * (1 - (Analyseår-BP$3)/($C8+Z9)),0)) ->  | BQ8: =IF($C8="","",MAX(AA8 * INDEX(Genanskaffelsespriser!$G$2:$G$201,MATCH(1,($AQ8=Genanskaffelsespriser!$A$2:$A$201)*($AR8=Genanskaffelsespriser!$B$2:$B$201)*($AS8=Genanskaffelsespriser!$D$2:$D$201)*($A8=Genanskaffelsespriser!$C$2:$C$201),0)) * (1 - (Analyseår-BQ$3)/($C8+AA9)),0)) ->  | BR8: =IF($C8="","",MAX(AB8 * INDEX(Genanskaffelsespriser!$G$2:$G$201,MATCH(1,($AQ8=Genanskaffelsespriser!$A$2:$A$201)*($AR8=Genanskaffelsespriser!$B$2:$B$201)*($AS8=Genanskaffelsespriser!$D$2:$D$201)*($A8=Genanskaffelsespriser!$C$2:$C$201),0)) * (1 - (Analyseår-BR$3)/($C8+AB9)),0)) ->  | BS8: =IF($C8="","",MAX(AC8 * INDEX(Genanskaffelsespriser!$G$2:$G$201,MATCH(1,($AQ8=Genanskaffelsespriser!$A$2:$A$201)*($AR8=Genanskaffelsespriser!$B$2:$B$201)*($AS8=Genanskaffelsespriser!$D$2:$D$201)*($A8=Genanskaffelsespriser!$C$2:$C$201),0)) * (1 - (Analyseår-BS$3)/($C8+AC9)),0)) ->  | BT8: =IF($C8="","",MAX(AD8 * INDEX(Genanskaffelsespriser!$G$2:$G$201,MATCH(1,($AQ8=Genanskaffelsespriser!$A$2:$A$201)*($AR8=Genanskaffelsespriser!$B$2:$B$201)*($AS8=Genanskaffelsespriser!$D$2:$D$201)*($A8=Genanskaffelsespriser!$C$2:$C$201),0)) * (1 - (Analyseår-BT$3)/($C8+AD9)),0)) ->  | BU8: =IF($C8="","",MAX(AE8 * INDEX(Genanskaffelsespriser!$G$2:$G$201,MATCH(1,($AQ8=Genanskaffelsespriser!$A$2:$A$201)*($AR8=Genanskaffelsespriser!$B$2:$B$201)*($AS8=Genanskaffelsespriser!$D$2:$D$201)*($A8=Genanskaffelsespriser!$C$2:$C$201),0)) * (1 - (Analyseår-BU$3)/($C8+AE9)),0)) ->  | BV8: =IF($C8="","",MAX(AF8 * INDEX(Genanskaffelsespriser!$G$2:$G$201,MATCH(1,($AQ8=Genanskaffelsespriser!$A$2:$A$201)*($AR8=Genanskaffelsespriser!$B$2:$B$201)*($AS8=Genanskaffelsespriser!$D$2:$D$201)*($A8=Genanskaffelsespriser!$C$2:$C$201),0)) * (1 - (Analyseår-BV$3)/($C8+AF9)),0)) ->  | BW8: =IF($C8="","",MAX(AG8 * INDEX(Genanskaffelsespriser!$G$2:$G$201,MATCH(1,($AQ8=Genanskaffelsespriser!$A$2:$A$201)*($AR8=Genanskaffelsespriser!$B$2:$B$201)*($AS8=Genanskaffelsespriser!$D$2:$D$201)*($A8=Genanskaffelsespriser!$C$2:$C$201),0)) * (1 - (Analyseår-BW$3)/($C8+AG9)),0)) ->  | BX8: =IF($C8="","",MAX(AH8 * INDEX(Genanskaffelsespriser!$G$2:$G$201,MATCH(1,($AQ8=Genanskaffelsespriser!$A$2:$A$201)*($AR8=Genanskaffelsespriser!$B$2:$B$201)*($AS8=Genanskaffelsespriser!$D$2:$D$201)*($A8=Genanskaffelsespriser!$C$2:$C$201),0)) * (1 - (Analyseår-BX$3)/($C8+AH9)),0)) ->  | BY8: =IF($C8="","",MAX(AI8 * INDEX(Genanskaffelsespriser!$G$2:$G$201,MATCH(1,($AQ8=Genanskaffelsespriser!$A$2:$A$201)*($AR8=Genanskaffelsespriser!$B$2:$B$201)*($AS8=Genanskaffelsespriser!$D$2:$D$201)*($A8=Genanskaffelsespriser!$C$2:$C$201),0)) * (1 - (Analyseår-BY$3)/($C8+AI9)),0)) ->  | BZ8: =IF($C8="","",MAX(AJ8 * INDEX(Genanskaffelsespriser!$G$2:$G$201,MATCH(1,($AQ8=Genanskaffelsespriser!$A$2:$A$201)*($AR8=Genanskaffelsespriser!$B$2:$B$201)*($AS8=Genanskaffelsespriser!$D$2:$D$201)*($A8=Genanskaffelsespriser!$C$2:$C$201),0)) * (1 - (Analyseår-BZ$3)/($C8+AJ9)),0)) ->  | CA8: =IF($C8="","",MAX(AK8 * INDEX(Genanskaffelsespriser!$G$2:$G$201,MATCH(1,($AQ8=Genanskaffelsespriser!$A$2:$A$201)*($AR8=Genanskaffelsespriser!$B$2:$B$201)*($AS8=Genanskaffelsespriser!$D$2:$D$201)*($A8=Genanskaffelsespriser!$C$2:$C$201),0)) * (1 - (Analyseår-CA$3)/($C8+AK9)),0)) ->  | CB8: =IF($C8="","",MAX(AL8 * INDEX(Genanskaffelsespriser!$G$2:$G$201,MATCH(1,($AQ8=Genanskaffelsespriser!$A$2:$A$201)*($AR8=Genanskaffelsespriser!$B$2:$B$201)*($AS8=Genanskaffelsespriser!$D$2:$D$201)*($A8=Genanskaffelsespriser!$C$2:$C$201),0)) * (1 - (Analyseår-CB$3)/($C8+AL9)),0)) ->  | CC8: =IF($C8="","",MAX(AM8 * INDEX(Genanskaffelsespriser!$G$2:$G$201,MATCH(1,($AQ8=Genanskaffelsespriser!$A$2:$A$201)*($AR8=Genanskaffelsespriser!$B$2:$B$201)*($AS8=Genanskaffelsespriser!$D$2:$D$201)*($A8=Genanskaffelsespriser!$C$2:$C$201),0)) * (1 - (Analyseår-CC$3)/($C8+AM9)),0)) ->  | CD8: =IF($C8="","",MAX(AN8 * INDEX(Genanskaffelsespriser!$G$2:$G$201,MATCH(1,($AQ8=Genanskaffelsespriser!$A$2:$A$201)*($AR8=Genanskaffelsespriser!$B$2:$B$201)*($AS8=Genanskaffelsespriser!$D$2:$D$201)*($A8=Genanskaffelsespriser!$C$2:$C$201),0)) * (1 - (Analyseår-CD$3)/($C8+AN9)),0)) ->  | CE8: =IF($C8="","",MAX(AO8 * INDEX(Genanskaffelsespriser!$G$2:$G$201,MATCH(1,($AQ8=Genanskaffelsespriser!$A$2:$A$201)*($AR8=Genanskaffelsespriser!$B$2:$B$201)*($AS8=Genanskaffelsespriser!$D$2:$D$201)*($A8=Genanskaffelsespriser!$C$2:$C$201),0)) * (1 - (Analyseår-CE$3)/($C8+AO9)),0)) ->  | CG8: =IF($C8="","",SUM(($D$3:$AO$3+$C8+$D9:$AO9>=CG$3)*IFERROR($AT8:$CE8/($D$3:$AO$3+$C8+$D9:$AO9-Analyseår),0))) ->  | CH8: =IF($C8="","",SUM(($D$3:$AO$3+$C8+$D9:$AO9>=CH$3)*IFERROR($AT8:$CE8/($D$3:$AO$3+$C8+$D9:$AO9-Analyseår),0))) ->  | CI8: =IF($C8="","",SUM(($D$3:$AO$3+$C8+$D9:$AO9>=CI$3)*IFERROR($AT8:$CE8/($D$3:$AO$3+$C8+$D9:$AO9-Analyseår),0))) ->  | CJ8: =IF($C8="","",SUM(($D$3:$AO$3+$C8+$D9:$AO9>=CJ$3)*IFERROR($AT8:$CE8/($D$3:$AO$3+$C8+$D9:$AO9-Analyseår),0))) ->  | CK8: =IF($C8="","",SUM(($D$3:$AO$3+$C8+$D9:$AO9>=CK$3)*IFERROR($AT8:$CE8/($D$3:$AO$3+$C8+$D9:$AO9-Analyseår),0))) ->  | CL8: =IF($C8="","",SUM(($D$3:$AO$3+$C8+$D9:$AO9>=CL$3)*IFERROR($AT8:$CE8/($D$3:$AO$3+$C8+$D9:$AO9-Analyseår),0))) ->  | CM8: =IF($C8="","",SUM(($D$3:$AO$3+$C8+$D9:$AO9>=CM$3)*IFERROR($AT8:$CE8/($D$3:$AO$3+$C8+$D9:$AO9-Analyseår),0))) ->  | CN8: =IF($C8="","",SUM(($D$3:$AO$3+$C8+$D9:$AO9>=CN$3)*IFERROR($AT8:$CE8/($D$3:$AO$3+$C8+$D9:$AO9-Analyseår),0))) ->  | CO8: =IF($C8="","",SUM(($D$3:$AO$3+$C8+$D9:$AO9>=CO$3)*IFERROR($AT8:$CE8/($D$3:$AO$3+$C8+$D9:$AO9-Analyseår),0))) ->  | CP8: =IF($C8="","",SUM(($D$3:$AO$3+$C8+$D9:$AO9>=CP$3)*IFERROR($AT8:$CE8/($D$3:$AO$3+$C8+$D9:$AO9-Analyseår),0))) ->  | CQ8: =IF($C8="","",SUM(($D$3:$AO$3+$C8+$D9:$AO9>=CQ$3)*IFERROR($AT8:$CE8/($D$3:$AO$3+$C8+$D9:$AO9-Analyseår),0))) ->  | CR8: =IF($C8="","",SUM(($D$3:$AO$3+$C8+$D9:$AO9>=CR$3)*IFERROR($AT8:$CE8/($D$3:$AO$3+$C8+$D9:$AO9-Analyseår),0))) ->  | CS8: =IF($C8="","",SUM(($D$3:$AO$3+$C8+$D9:$AO9>=CS$3)*IFERROR($AT8:$CE8/($D$3:$AO$3+$C8+$D9:$AO9-Analyseår),0))) ->  | CT8: =IF($C8="","",SUM(($D$3:$AO$3+$C8+$D9:$AO9>=CT$3)*IFERROR($AT8:$CE8/($D$3:$AO$3+$C8+$D9:$AO9-Analyseår),0))) ->  | CU8: =IF($C8="","",SUM(($D$3:$AO$3+$C8+$D9:$AO9>=CU$3)*IFERROR($AT8:$CE8/($D$3:$AO$3+$C8+$D9:$AO9-Analyseår),0))) ->  | CV8: =IF($C8="","",SUM(($D$3:$AO$3+$C8+$D9:$AO9>=CV$3)*IFERROR($AT8:$CE8/($D$3:$AO$3+$C8+$D9:$AO9-Analyseår),0))) ->  | CW8: =IF($C8="","",SUM(($D$3:$AO$3+$C8+$D9:$AO9>=CW$3)*IFERROR($AT8:$CE8/($D$3:$AO$3+$C8+$D9:$AO9-Analyseår),0))) ->  | CX8: =IF($C8="","",SUM(($D$3:$AO$3+$C8+$D9:$AO9>=CX$3)*IFERROR($AT8:$CE8/($D$3:$AO$3+$C8+$D9:$AO9-Analyseår),0))) ->  | CY8: =IF($C8="","",SUM(($D$3:$AO$3+$C8+$D9:$AO9>=CY$3)*IFERROR($AT8:$CE8/($D$3:$AO$3+$C8+$D9:$AO9-Analyseår),0))) ->  | CZ8: =IF($C8="","",SUM(($D$3:$AO$3+$C8+$D9:$AO9>=CZ$3)*IFERROR($AT8:$CE8/($D$3:$AO$3+$C8+$D9:$AO9-Analyseår),0))) ->  | DA8: =IF($C8="","",SUM(($D$3:$AO$3+$C8+$D9:$AO9>=DA$3)*IFERROR($AT8:$CE8/($D$3:$AO$3+$C8+$D9:$AO9-Analyseår),0))) ->  | DB8: =IF($C8="","",SUM(($D$3:$AO$3+$C8+$D9:$AO9>=DB$3)*IFERROR($AT8:$CE8/($D$3:$AO$3+$C8+$D9:$AO9-Analyseår),0))) ->  | DC8: =IF($C8="","",SUM(($D$3:$AO$3+$C8+$D9:$AO9>=DC$3)*IFERROR($AT8:$CE8/($D$3:$AO$3+$C8+$D9:$AO9-Analyseår),0))) ->  | DD8: =IF($C8="","",SUM(($D$3:$AO$3+$C8+$D9:$AO9>=DD$3)*IFERROR($AT8:$CE8/($D$3:$AO$3+$C8+$D9:$AO9-Analyseår),0))) ->  | DE8: =IF($C8="","",SUM(($D$3:$AO$3+$C8+$D9:$AO9>=DE$3)*IFERROR($AT8:$CE8/($D$3:$AO$3+$C8+$D9:$AO9-Analyseår),0))) ->  | DF8: =IF($C8="","",SUM(($D$3:$AO$3+$C8+$D9:$AO9>=DF$3)*IFERROR($AT8:$CE8/($D$3:$AO$3+$C8+$D9:$AO9-Analyseår),0))) ->  | DG8: =IF($C8="","",SUM(($D$3:$AO$3+$C8+$D9:$AO9>=DG$3)*IFERROR($AT8:$CE8/($D$3:$AO$3+$C8+$D9:$AO9-Analyseår),0))) ->  | DH8: =IF($C8="","",SUM(($D$3:$AO$3+$C8+$D9:$AO9>=DH$3)*IFERROR($AT8:$CE8/($D$3:$AO$3+$C8+$D9:$AO9-Analyseår),0))) ->  | DI8: =IF($C8="","",SUM(($D$3:$AO$3+$C8+$D9:$AO9>=DI$3)*IFERROR($AT8:$CE8/($D$3:$AO$3+$C8+$D9:$AO9-Analyseår),0))) ->  | DJ8: =IF($C8="","",SUM(($D$3:$AO$3+$C8+$D9:$AO9>=DJ$3)*IFERROR($AT8:$CE8/($D$3:$AO$3+$C8+$D9:$AO9-Analyseår),0))) ->  | DK8: =IF($C8="","",SUM(($D$3:$AO$3+$C8+$D9:$AO9>=DK$3)*IFERROR($AT8:$CE8/($D$3:$AO$3+$C8+$D9:$AO9-Analyseår),0))) ->  | DL8: =IF($C8="","",SUM(($D$3:$AO$3+$C8+$D9:$AO9>=DL$3)*IFERROR($AT8:$CE8/($D$3:$AO$3+$C8+$D9:$AO9-Analyseår),0))) ->  | DM8: =IF($C8="","",SUM(($D$3:$AO$3+$C8+$D9:$AO9>=DM$3)*IFERROR($AT8:$CE8/($D$3:$AO$3+$C8+$D9:$AO9-Analyseår),0))) ->  | DN8: =IF($C8="","",SUM(($D$3:$AO$3+$C8+$D9:$AO9>=DN$3)*IFERROR($AT8:$CE8/($D$3:$AO$3+$C8+$D9:$AO9-Analyseår),0))) ->  | DO8: =IF($C8="","",SUM(($D$3:$AO$3+$C8+$D9:$AO9>=DO$3)*IFERROR($AT8:$CE8/($D$3:$AO$3+$C8+$D9:$AO9-Analyseår),0))) ->  | DP8: =IF($C8="","",SUM(($D$3:$AO$3+$C8+$D9:$AO9>=DP$3)*IFERROR($AT8:$CE8/($D$3:$AO$3+$C8+$D9:$AO9-Analyseår),0))) ->  | DQ8: =IF($C8="","",SUM(($D$3:$AO$3+$C8+$D9:$AO9>=DQ$3)*IFERROR($AT8:$CE8/($D$3:$AO$3+$C8+$D9:$AO9-Analyseår),0))) ->  | DR8: =IF($C8="","",SUM(($D$3:$AO$3+$C8+$D9:$AO9>=DR$3)*IFERROR($AT8:$CE8/($D$3:$AO$3+$C8+$D9:$AO9-Analyseår),0))) ->  | DS8: =IF($C8="","",SUM(($D$3:$AO$3+$C8+$D9:$AO9>=DS$3)*IFERROR($AT8:$CE8/($D$3:$AO$3+$C8+$D9:$AO9-Analyseår),0))) ->  | DT8: =IF($C8="","",SUM(($D$3:$AO$3+$C8+$D9:$AO9>=DT$3)*IFERROR($AT8:$CE8/($D$3:$AO$3+$C8+$D9:$AO9-Analyseår),0))) ->  | DU8: =IF($C8="","",SUM(($D$3:$AO$3+$C8+$D9:$AO9>=DU$3)*IFERROR($AT8:$CE8/($D$3:$AO$3+$C8+$D9:$AO9-Analyseår),0))) ->  | DV8: =IF($C8="","",SUM(($D$3:$AO$3+$C8+$D9:$AO9>=DV$3)*IFERROR($AT8:$CE8/($D$3:$AO$3+$C8+$D9:$AO9-Analyseår),0))) ->  | DW8: =IF($C8="","",SUM(($D$3:$AO$3+$C8+$D9:$AO9>=DW$3)*IFERROR($AT8:$CE8/($D$3:$AO$3+$C8+$D9:$AO9-Analyseår),0))) ->  | DX8: =IF($C8="","",SUM(($D$3:$AO$3+$C8+$D9:$AO9>=DX$3)*IFERROR($AT8:$CE8/($D$3:$AO$3+$C8+$D9:$AO9-Analyseår),0))) ->  | DY8: =IF($C8="","",SUM(($D$3:$AO$3+$C8+$D9:$AO9>=DY$3)*IFERROR($AT8:$CE8/($D$3:$AO$3+$C8+$D9:$AO9-Analyseår),0))) ->  | DZ8: =IF($C8="","",SUM(($D$3:$AO$3+$C8+$D9:$AO9>=DZ$3)*IFERROR($AT8:$CE8/($D$3:$AO$3+$C8+$D9:$AO9-Analyseår),0))) ->  | EA8: =IF($C8="","",SUM(($D$3:$AO$3+$C8+$D9:$AO9>=EA$3)*IFERROR($AT8:$CE8/($D$3:$AO$3+$C8+$D9:$AO9-Analyseår),0))) ->  | EB8: =IF($C8="","",SUM(($D$3:$AO$3+$C8+$D9:$AO9>=EB$3)*IFERROR($AT8:$CE8/($D$3:$AO$3+$C8+$D9:$AO9-Analyseår),0))) ->  | EC8: =IF($C8="","",SUM(($D$3:$AO$3+$C8+$D9:$AO9>=EC$3)*IFERROR($AT8:$CE8/($D$3:$AO$3+$C8+$D9:$AO9-Analyseår),0))) ->  | ED8: =IF($C8="","",SUM(($D$3:$AO$3+$C8+$D9:$AO9>=ED$3)*IFERROR($AT8:$CE8/($D$3:$AO$3+$C8+$D9:$AO9-Analyseår),0))) ->  | EE8: =IF($C8="","",SUM(($D$3:$AO$3+$C8+$D9:$AO9>=EE$3)*IFERROR($AT8:$CE8/($D$3:$AO$3+$C8+$D9:$AO9-Analyseår),0))) ->  | EF8: =IF($C8="","",SUM(($D$3:$AO$3+$C8+$D9:$AO9>=EF$3)*IFERROR($AT8:$CE8/($D$3:$AO$3+$C8+$D9:$AO9-Analyseår),0))) ->  | EG8: =IF($C8="","",SUM(($D$3:$AO$3+$C8+$D9:$AO9>=EG$3)*IFERROR($AT8:$CE8/($D$3:$AO$3+$C8+$D9:$AO9-Analyseår),0))) ->  | EH8: =IF($C8="","",SUM(($D$3:$AO$3+$C8+$D9:$AO9>=EH$3)*IFERROR($AT8:$CE8/($D$3:$AO$3+$C8+$D9:$AO9-Analyseår),0))) ->  | EI8: =IF($C8="","",SUM(($D$3:$AO$3+$C8+$D9:$AO9>=EI$3)*IFERROR($AT8:$CE8/($D$3:$AO$3+$C8+$D9:$AO9-Analyseår),0))) ->  | EJ8: =IF($C8="","",SUM(($D$3:$AO$3+$C8+$D9:$AO9>=EJ$3)*IFERROR($AT8:$CE8/($D$3:$AO$3+$C8+$D9:$AO9-Analyseår),0))) ->  | EK8: =IF($C8="","",SUM(($D$3:$AO$3+$C8+$D9:$AO9>=EK$3)*IFERROR($AT8:$CE8/($D$3:$AO$3+$C8+$D9:$AO9-Analyseår),0))) ->  | EL8: =IF($C8="","",SUM(($D$3:$AO$3+$C8+$D9:$AO9>=EL$3)*IFERROR($AT8:$CE8/($D$3:$AO$3+$C8+$D9:$AO9-Analyseår),0))) ->  | EM8: =IF($C8="","",SUM(($D$3:$AO$3+$C8+$D9:$AO9>=EM$3)*IFERROR($AT8:$CE8/($D$3:$AO$3+$C8+$D9:$AO9-Analyseår),0))) ->  | EN8: =IF($C8="","",SUM(($D$3:$AO$3+$C8+$D9:$AO9>=EN$3)*IFERROR($AT8:$CE8/($D$3:$AO$3+$C8+$D9:$AO9-Analyseår),0))) ->  | EO8: =IF($C8="","",SUM(($D$3:$AO$3+$C8+$D9:$AO9>=EO$3)*IFERROR($AT8:$CE8/($D$3:$AO$3+$C8+$D9:$AO9-Analyseår),0))) ->  | EP8: =IF($C8="","",SUM(($D$3:$AO$3+$C8+$D9:$AO9>=EP$3)*IFERROR($AT8:$CE8/($D$3:$AO$3+$C8+$D9:$AO9-Analyseår),0))) ->  | EQ8: =IF($C8="","",SUM(($D$3:$AO$3+$C8+$D9:$AO9>=EQ$3)*IFERROR($AT8:$CE8/($D$3:$AO$3+$C8+$D9:$AO9-Analyseår),0))) ->  | ER8: =IF($C8="","",SUM(($D$3:$AO$3+$C8+$D9:$AO9>=ER$3)*IFERROR($AT8:$CE8/($D$3:$AO$3+$C8+$D9:$AO9-Analyseår),0))) ->  | ES8: =IF($C8="","",SUM(($D$3:$AO$3+$C8+$D9:$AO9>=ES$3)*IFERROR($AT8:$CE8/($D$3:$AO$3+$C8+$D9:$AO9-Analyseår),0))) ->  | ET8: =IF($C8="","",SUM(($D$3:$AO$3+$C8+$D9:$AO9>=ET$3)*IFERROR($AT8:$CE8/($D$3:$AO$3+$C8+$D9:$AO9-Analyseår),0))) ->  | EU8: =IF($C8="","",SUM(($D$3:$AO$3+$C8+$D9:$AO9>=EU$3)*IFERROR($AT8:$CE8/($D$3:$AO$3+$C8+$D9:$AO9-Analyseår),0))) ->  | EV8: =IF($C8="","",SUM(($D$3:$AO$3+$C8+$D9:$AO9>=EV$3)*IFERROR($AT8:$CE8/($D$3:$AO$3+$C8+$D9:$AO9-Analyseår),0))) ->  | EW8: =IF($C8="","",SUM(($D$3:$AO$3+$C8+$D9:$AO9>=EW$3)*IFERROR($AT8:$CE8/($D$3:$AO$3+$C8+$D9:$AO9-Analyseår),0))) ->  | EX8: =IF($C8="","",SUM(($D$3:$AO$3+$C8+$D9:$AO9>=EX$3)*IFERROR($AT8:$CE8/($D$3:$AO$3+$C8+$D9:$AO9-Analyseår),0))) ->  | EY8: =IF($C8="","",SUM(($D$3:$AO$3+$C8+$D9:$AO9>=EY$3)*IFERROR($AT8:$CE8/($D$3:$AO$3+$C8+$D9:$AO9-Analyseår),0))) ->  | EZ8: =IF($C8="","",SUM(($D$3:$AO$3+$C8+$D9:$AO9>=EZ$3)*IFERROR($AT8:$CE8/($D$3:$AO$3+$C8+$D9:$AO9-Analyseår),0))) ->  | FA8: =IF($C8="","",SUM(($D$3:$AO$3+$C8+$D9:$AO9>=FA$3)*IFERROR($AT8:$CE8/($D$3:$AO$3+$C8+$D9:$AO9-Analyseår),0))) ->  | FB8: =IF($C8="","",SUM(($D$3:$AO$3+$C8+$D9:$AO9>=FB$3)*IFERROR($AT8:$CE8/($D$3:$AO$3+$C8+$D9:$AO9-Analyseår),0))) ->  | FC8: =IF($C8="","",SUM(($D$3:$AO$3+$C8+$D9:$AO9>=FC$3)*IFERROR($AT8:$CE8/($D$3:$AO$3+$C8+$D9:$AO9-Analyseår),0))) ->  | FD8: =IF($C8="","",SUM(($D$3:$AO$3+$C8+$D9:$AO9>=FD$3)*IFERROR($AT8:$CE8/($D$3:$AO$3+$C8+$D9:$AO9-Analyseår),0))) ->  | FE8: =IF($C8="","",SUM(($D$3:$AO$3+$C8+$D9:$AO9>=FE$3)*IFERROR($AT8:$CE8/($D$3:$AO$3+$C8+$D9:$AO9-Analyseår),0))) ->  | FF8: =IF($C8="","",SUM(($D$3:$AO$3+$C8+$D9:$AO9>=FF$3)*IFERROR($AT8:$CE8/($D$3:$AO$3+$C8+$D9:$AO9-Analyseår),0))) ->  | FG8: =IF($C8="","",SUM(($D$3:$AO$3+$C8+$D9:$AO9>=FG$3)*IFERROR($AT8:$CE8/($D$3:$AO$3+$C8+$D9:$AO9-Analyseår),0))) ->  | FH8: =IF($C8="","",SUM(($D$3:$AO$3+$C8+$D9:$AO9>=FH$3)*IFERROR($AT8:$CE8/($D$3:$AO$3+$C8+$D9:$AO9-Analyseår),0))) ->  | FI8: =IF($C8="","",SUM(($D$3:$AO$3+$C8+$D9:$AO9>=FI$3)*IFERROR($AT8:$CE8/($D$3:$AO$3+$C8+$D9:$AO9-Analyseår),0))) ->  | FJ8: =IF($C8="","",SUM(($D$3:$AO$3+$C8+$D9:$AO9>=FJ$3)*IFERROR($AT8:$CE8/($D$3:$AO$3+$C8+$D9:$AO9-Analyseår),0))) ->  | GY8: =IF($C8="","",SUM(($D$3:$AO$3+$C8+$D9:$AO9>=CG$3)*IFERROR($FL8:$GW8/($D$3:$AO$3+$C8+$D9:$AO9-(Analyseår)),0))) ->  | GZ8: =IF($C8="","",SUM(($D$3:$AO$3+$C8+$D9:$AO9>=CH$3)*IFERROR($FL8:$GW8/($D$3:$AO$3+$C8+$D9:$AO9-(Analyseår)),0))) ->  | HA8: =IF($C8="","",SUM(($D$3:$AO$3+$C8+$D9:$AO9>=CI$3)*IFERROR($FL8:$GW8/($D$3:$AO$3+$C8+$D9:$AO9-(Analyseår)),0))) ->  | HB8: =IF($C8="","",SUM(($D$3:$AO$3+$C8+$D9:$AO9>=CJ$3)*IFERROR($FL8:$GW8/($D$3:$AO$3+$C8+$D9:$AO9-(Analyseår)),0))) ->  | HC8: =IF($C8="","",SUM(($D$3:$AO$3+$C8+$D9:$AO9>=CK$3)*IFERROR($FL8:$GW8/($D$3:$AO$3+$C8+$D9:$AO9-(Analyseår)),0))) ->  | HD8: =IF($C8="","",SUM(($D$3:$AO$3+$C8+$D9:$AO9>=CL$3)*IFERROR($FL8:$GW8/($D$3:$AO$3+$C8+$D9:$AO9-(Analyseår)),0))) ->  | HE8: =IF($C8="","",SUM(($D$3:$AO$3+$C8+$D9:$AO9>=CM$3)*IFERROR($FL8:$GW8/($D$3:$AO$3+$C8+$D9:$AO9-(Analyseår)),0))) ->  | HF8: =IF($C8="","",SUM(($D$3:$AO$3+$C8+$D9:$AO9>=CN$3)*IFERROR($FL8:$GW8/($D$3:$AO$3+$C8+$D9:$AO9-(Analyseår)),0))) ->  | HG8: =IF($C8="","",SUM(($D$3:$AO$3+$C8+$D9:$AO9>=CO$3)*IFERROR($FL8:$GW8/($D$3:$AO$3+$C8+$D9:$AO9-(Analyseår)),0))) ->  | HH8: =IF($C8="","",SUM(($D$3:$AO$3+$C8+$D9:$AO9>=CP$3)*IFERROR($FL8:$GW8/($D$3:$AO$3+$C8+$D9:$AO9-(Analyseår)),0))) ->  | HI8: =IF($C8="","",SUM(($D$3:$AO$3+$C8+$D9:$AO9>=CQ$3)*IFERROR($FL8:$GW8/($D$3:$AO$3+$C8+$D9:$AO9-(Analyseår)),0))) ->  | HJ8: =IF($C8="","",SUM(($D$3:$AO$3+$C8+$D9:$AO9>=CR$3)*IFERROR($FL8:$GW8/($D$3:$AO$3+$C8+$D9:$AO9-(Analyseår)),0))) ->  | HK8: =IF($C8="","",SUM(($D$3:$AO$3+$C8+$D9:$AO9>=CS$3)*IFERROR($FL8:$GW8/($D$3:$AO$3+$C8+$D9:$AO9-(Analyseår)),0))) ->  | HL8: =IF($C8="","",SUM(($D$3:$AO$3+$C8+$D9:$AO9>=CT$3)*IFERROR($FL8:$GW8/($D$3:$AO$3+$C8+$D9:$AO9-(Analyseår)),0))) ->  | HM8: =IF($C8="","",SUM(($D$3:$AO$3+$C8+$D9:$AO9>=CU$3)*IFERROR($FL8:$GW8/($D$3:$AO$3+$C8+$D9:$AO9-(Analyseår)),0))) ->  | HN8: =IF($C8="","",SUM(($D$3:$AO$3+$C8+$D9:$AO9>=CV$3)*IFERROR($FL8:$GW8/($D$3:$AO$3+$C8+$D9:$AO9-(Analyseår)),0))) ->  | HO8: =IF($C8="","",SUM(($D$3:$AO$3+$C8+$D9:$AO9>=CW$3)*IFERROR($FL8:$GW8/($D$3:$AO$3+$C8+$D9:$AO9-(Analyseår)),0))) ->  | HP8: =IF($C8="","",SUM(($D$3:$AO$3+$C8+$D9:$AO9>=CX$3)*IFERROR($FL8:$GW8/($D$3:$AO$3+$C8+$D9:$AO9-(Analyseår)),0))) ->  | HQ8: =IF($C8="","",SUM(($D$3:$AO$3+$C8+$D9:$AO9>=CY$3)*IFERROR($FL8:$GW8/($D$3:$AO$3+$C8+$D9:$AO9-(Analyseår)),0))) ->  | HR8: =IF($C8="","",SUM(($D$3:$AO$3+$C8+$D9:$AO9>=CZ$3)*IFERROR($FL8:$GW8/($D$3:$AO$3+$C8+$D9:$AO9-(Analyseår)),0))) ->  | HS8: =IF($C8="","",SUM(($D$3:$AO$3+$C8+$D9:$AO9>=DA$3)*IFERROR($FL8:$GW8/($D$3:$AO$3+$C8+$D9:$AO9-(Analyseår)),0))) ->  | HT8: =IF($C8="","",SUM(($D$3:$AO$3+$C8+$D9:$AO9>=DB$3)*IFERROR($FL8:$GW8/($D$3:$AO$3+$C8+$D9:$AO9-(Analyseår)),0))) ->  | HU8: =IF($C8="","",SUM(($D$3:$AO$3+$C8+$D9:$AO9>=DC$3)*IFERROR($FL8:$GW8/($D$3:$AO$3+$C8+$D9:$AO9-(Analyseår)),0))) ->  | HV8: =IF($C8="","",SUM(($D$3:$AO$3+$C8+$D9:$AO9>=DD$3)*IFERROR($FL8:$GW8/($D$3:$AO$3+$C8+$D9:$AO9-(Analyseår)),0))) ->  | HW8: =IF($C8="","",SUM(($D$3:$AO$3+$C8+$D9:$AO9>=DE$3)*IFERROR($FL8:$GW8/($D$3:$AO$3+$C8+$D9:$AO9-(Analyseår)),0))) ->  | HX8: =IF($C8="","",SUM(($D$3:$AO$3+$C8+$D9:$AO9>=DF$3)*IFERROR($FL8:$GW8/($D$3:$AO$3+$C8+$D9:$AO9-(Analyseår)),0))) ->  | HY8: =IF($C8="","",SUM(($D$3:$AO$3+$C8+$D9:$AO9>=DG$3)*IFERROR($FL8:$GW8/($D$3:$AO$3+$C8+$D9:$AO9-(Analyseår)),0))) ->  | HZ8: =IF($C8="","",SUM(($D$3:$AO$3+$C8+$D9:$AO9>=DH$3)*IFERROR($FL8:$GW8/($D$3:$AO$3+$C8+$D9:$AO9-(Analyseår)),0))) ->  | IA8: =IF($C8="","",SUM(($D$3:$AO$3+$C8+$D9:$AO9>=DI$3)*IFERROR($FL8:$GW8/($D$3:$AO$3+$C8+$D9:$AO9-(Analyseår)),0))) ->  | IB8: =IF($C8="","",SUM(($D$3:$AO$3+$C8+$D9:$AO9>=DJ$3)*IFERROR($FL8:$GW8/($D$3:$AO$3+$C8+$D9:$AO9-(Analyseår)),0))) ->  | IC8: =IF($C8="","",SUM(($D$3:$AO$3+$C8+$D9:$AO9>=DK$3)*IFERROR($FL8:$GW8/($D$3:$AO$3+$C8+$D9:$AO9-(Analyseår)),0))) ->  | ID8: =IF($C8="","",SUM(($D$3:$AO$3+$C8+$D9:$AO9>=DL$3)*IFERROR($FL8:$GW8/($D$3:$AO$3+$C8+$D9:$AO9-(Analyseår)),0))) ->  | IE8: =IF($C8="","",SUM(($D$3:$AO$3+$C8+$D9:$AO9>=DM$3)*IFERROR($FL8:$GW8/($D$3:$AO$3+$C8+$D9:$AO9-(Analyseår)),0))) ->  | IF8: =IF($C8="","",SUM(($D$3:$AO$3+$C8+$D9:$AO9>=DN$3)*IFERROR($FL8:$GW8/($D$3:$AO$3+$C8+$D9:$AO9-(Analyseår)),0))) ->  | IG8: =IF($C8="","",SUM(($D$3:$AO$3+$C8+$D9:$AO9>=DO$3)*IFERROR($FL8:$GW8/($D$3:$AO$3+$C8+$D9:$AO9-(Analyseår)),0))) ->  | IH8: =IF($C8="","",SUM(($D$3:$AO$3+$C8+$D9:$AO9>=DP$3)*IFERROR($FL8:$GW8/($D$3:$AO$3+$C8+$D9:$AO9-(Analyseår)),0))) ->  | II8: =IF($C8="","",SUM(($D$3:$AO$3+$C8+$D9:$AO9>=DQ$3)*IFERROR($FL8:$GW8/($D$3:$AO$3+$C8+$D9:$AO9-(Analyseår)),0))) ->  | IJ8: =IF($C8="","",SUM(($D$3:$AO$3+$C8+$D9:$AO9>=DR$3)*IFERROR($FL8:$GW8/($D$3:$AO$3+$C8+$D9:$AO9-(Analyseår)),0))) ->  | IK8: =IF($C8="","",SUM(($D$3:$AO$3+$C8+$D9:$AO9>=DS$3)*IFERROR($FL8:$GW8/($D$3:$AO$3+$C8+$D9:$AO9-(Analyseår)),0))) ->  | IL8: =IF($C8="","",SUM(($D$3:$AO$3+$C8+$D9:$AO9>=DT$3)*IFERROR($FL8:$GW8/($D$3:$AO$3+$C8+$D9:$AO9-(Analyseår)),0))) ->  | IM8: =IF($C8="","",SUM(($D$3:$AO$3+$C8+$D9:$AO9>=DU$3)*IFERROR($FL8:$GW8/($D$3:$AO$3+$C8+$D9:$AO9-(Analyseår)),0))) ->  | IN8: =IF($C8="","",SUM(($D$3:$AO$3+$C8+$D9:$AO9>=DV$3)*IFERROR($FL8:$GW8/($D$3:$AO$3+$C8+$D9:$AO9-(Analyseår)),0))) ->  | IO8: =IF($C8="","",SUM(($D$3:$AO$3+$C8+$D9:$AO9>=DW$3)*IFERROR($FL8:$GW8/($D$3:$AO$3+$C8+$D9:$AO9-(Analyseår)),0))) ->  | IP8: =IF($C8="","",SUM(($D$3:$AO$3+$C8+$D9:$AO9>=DX$3)*IFERROR($FL8:$GW8/($D$3:$AO$3+$C8+$D9:$AO9-(Analyseår)),0))) ->  | IQ8: =IF($C8="","",SUM(($D$3:$AO$3+$C8+$D9:$AO9>=DY$3)*IFERROR($FL8:$GW8/($D$3:$AO$3+$C8+$D9:$AO9-(Analyseår)),0))) ->  | IR8: =IF($C8="","",SUM(($D$3:$AO$3+$C8+$D9:$AO9>=DZ$3)*IFERROR($FL8:$GW8/($D$3:$AO$3+$C8+$D9:$AO9-(Analyseår)),0))) ->  | IS8: =IF($C8="","",SUM(($D$3:$AO$3+$C8+$D9:$AO9>=EA$3)*IFERROR($FL8:$GW8/($D$3:$AO$3+$C8+$D9:$AO9-(Analyseår)),0))) ->  | IT8: =IF($C8="","",SUM(($D$3:$AO$3+$C8+$D9:$AO9>=EB$3)*IFERROR($FL8:$GW8/($D$3:$AO$3+$C8+$D9:$AO9-(Analyseår)),0))) ->  | IU8: =IF($C8="","",SUM(($D$3:$AO$3+$C8+$D9:$AO9>=EC$3)*IFERROR($FL8:$GW8/($D$3:$AO$3+$C8+$D9:$AO9-(Analyseår)),0))) ->  | IV8: =IF($C8="","",SUM(($D$3:$AO$3+$C8+$D9:$AO9>=ED$3)*IFERROR($FL8:$GW8/($D$3:$AO$3+$C8+$D9:$AO9-(Analyseår)),0))) ->  | IW8: =IF($C8="","",SUM(($D$3:$AO$3+$C8+$D9:$AO9>=EE$3)*IFERROR($FL8:$GW8/($D$3:$AO$3+$C8+$D9:$AO9-(Analyseår)),0))) ->  | IX8: =IF($C8="","",SUM(($D$3:$AO$3+$C8+$D9:$AO9>=EF$3)*IFERROR($FL8:$GW8/($D$3:$AO$3+$C8+$D9:$AO9-(Analyseår)),0))) ->  | IY8: =IF($C8="","",SUM(($D$3:$AO$3+$C8+$D9:$AO9>=EG$3)*IFERROR($FL8:$GW8/($D$3:$AO$3+$C8+$D9:$AO9-(Analyseår)),0))) ->  | IZ8: =IF($C8="","",SUM(($D$3:$AO$3+$C8+$D9:$AO9>=EH$3)*IFERROR($FL8:$GW8/($D$3:$AO$3+$C8+$D9:$AO9-(Analyseår)),0))) ->  | JA8: =IF($C8="","",SUM(($D$3:$AO$3+$C8+$D9:$AO9>=EI$3)*IFERROR($FL8:$GW8/($D$3:$AO$3+$C8+$D9:$AO9-(Analyseår)),0))) ->  | JB8: =IF($C8="","",SUM(($D$3:$AO$3+$C8+$D9:$AO9>=EJ$3)*IFERROR($FL8:$GW8/($D$3:$AO$3+$C8+$D9:$AO9-(Analyseår)),0))) ->  | JC8: =IF($C8="","",SUM(($D$3:$AO$3+$C8+$D9:$AO9>=EK$3)*IFERROR($FL8:$GW8/($D$3:$AO$3+$C8+$D9:$AO9-(Analyseår)),0))) ->  | JD8: =IF($C8="","",SUM(($D$3:$AO$3+$C8+$D9:$AO9>=EL$3)*IFERROR($FL8:$GW8/($D$3:$AO$3+$C8+$D9:$AO9-(Analyseår)),0))) ->  | JE8: =IF($C8="","",SUM(($D$3:$AO$3+$C8+$D9:$AO9>=EM$3)*IFERROR($FL8:$GW8/($D$3:$AO$3+$C8+$D9:$AO9-(Analyseår)),0))) ->  | JF8: =IF($C8="","",SUM(($D$3:$AO$3+$C8+$D9:$AO9>=EN$3)*IFERROR($FL8:$GW8/($D$3:$AO$3+$C8+$D9:$AO9-(Analyseår)),0))) ->  | JG8: =IF($C8="","",SUM(($D$3:$AO$3+$C8+$D9:$AO9>=EO$3)*IFERROR($FL8:$GW8/($D$3:$AO$3+$C8+$D9:$AO9-(Analyseår)),0))) ->  | JH8: =IF($C8="","",SUM(($D$3:$AO$3+$C8+$D9:$AO9>=EP$3)*IFERROR($FL8:$GW8/($D$3:$AO$3+$C8+$D9:$AO9-(Analyseår)),0))) ->  | JI8: =IF($C8="","",SUM(($D$3:$AO$3+$C8+$D9:$AO9>=EQ$3)*IFERROR($FL8:$GW8/($D$3:$AO$3+$C8+$D9:$AO9-(Analyseår)),0))) ->  | JJ8: =IF($C8="","",SUM(($D$3:$AO$3+$C8+$D9:$AO9>=ER$3)*IFERROR($FL8:$GW8/($D$3:$AO$3+$C8+$D9:$AO9-(Analyseår)),0))) ->  | JK8: =IF($C8="","",SUM(($D$3:$AO$3+$C8+$D9:$AO9>=ES$3)*IFERROR($FL8:$GW8/($D$3:$AO$3+$C8+$D9:$AO9-(Analyseår)),0))) ->  | JL8: =IF($C8="","",SUM(($D$3:$AO$3+$C8+$D9:$AO9>=ET$3)*IFERROR($FL8:$GW8/($D$3:$AO$3+$C8+$D9:$AO9-(Analyseår)),0))) ->  | JM8: =IF($C8="","",SUM(($D$3:$AO$3+$C8+$D9:$AO9>=EU$3)*IFERROR($FL8:$GW8/($D$3:$AO$3+$C8+$D9:$AO9-(Analyseår)),0))) ->  | JN8: =IF($C8="","",SUM(($D$3:$AO$3+$C8+$D9:$AO9>=EV$3)*IFERROR($FL8:$GW8/($D$3:$AO$3+$C8+$D9:$AO9-(Analyseår)),0))) ->  | JO8: =IF($C8="","",SUM(($D$3:$AO$3+$C8+$D9:$AO9>=EW$3)*IFERROR($FL8:$GW8/($D$3:$AO$3+$C8+$D9:$AO9-(Analyseår)),0))) ->  | JP8: =IF($C8="","",SUM(($D$3:$AO$3+$C8+$D9:$AO9>=EX$3)*IFERROR($FL8:$GW8/($D$3:$AO$3+$C8+$D9:$AO9-(Analyseår)),0))) ->  | JQ8: =IF($C8="","",SUM(($D$3:$AO$3+$C8+$D9:$AO9>=EY$3)*IFERROR($FL8:$GW8/($D$3:$AO$3+$C8+$D9:$AO9-(Analyseår)),0))) ->  | JR8: =IF($C8="","",SUM(($D$3:$AO$3+$C8+$D9:$AO9>=EZ$3)*IFERROR($FL8:$GW8/($D$3:$AO$3+$C8+$D9:$AO9-(Analyseår)),0))) ->  | JS8: =IF($C8="","",SUM(($D$3:$AO$3+$C8+$D9:$AO9>=FA$3)*IFERROR($FL8:$GW8/($D$3:$AO$3+$C8+$D9:$AO9-(Analyseår)),0))) ->  | JT8: =IF($C8="","",SUM(($D$3:$AO$3+$C8+$D9:$AO9>=FB$3)*IFERROR($FL8:$GW8/($D$3:$AO$3+$C8+$D9:$AO9-(Analyseår)),0))) ->  | JU8: =IF($C8="","",SUM(($D$3:$AO$3+$C8+$D9:$AO9>=FC$3)*IFERROR($FL8:$GW8/($D$3:$AO$3+$C8+$D9:$AO9-(Analyseår)),0))) ->  | JV8: =IF($C8="","",SUM(($D$3:$AO$3+$C8+$D9:$AO9>=FD$3)*IFERROR($FL8:$GW8/($D$3:$AO$3+$C8+$D9:$AO9-(Analyseår)),0))) ->  | JW8: =IF($C8="","",SUM(($D$3:$AO$3+$C8+$D9:$AO9>=FE$3)*IFERROR($FL8:$GW8/($D$3:$AO$3+$C8+$D9:$AO9-(Analyseår)),0))) ->  | JX8: =IF($C8="","",SUM(($D$3:$AO$3+$C8+$D9:$AO9>=FF$3)*IFERROR($FL8:$GW8/($D$3:$AO$3+$C8+$D9:$AO9-(Analyseår)),0))) ->  | JY8: =IF($C8="","",SUM(($D$3:$AO$3+$C8+$D9:$AO9>=FG$3)*IFERROR($FL8:$GW8/($D$3:$AO$3+$C8+$D9:$AO9-(Analyseår)),0))) ->  | JZ8: =IF($C8="","",SUM(($D$3:$AO$3+$C8+$D9:$AO9>=FH$3)*IFERROR($FL8:$GW8/($D$3:$AO$3+$C8+$D9:$AO9-(Analyseår)),0))) ->  | KA8: =IF($C8="","",SUM(($D$3:$AO$3+$C8+$D9:$AO9>=FI$3)*IFERROR($FL8:$GW8/($D$3:$AO$3+$C8+$D9:$AO9-(Analyseår)),0))) ->  | KB8: =IF($C8="","",SUM(($D$3:$AO$3+$C8+$D9:$AO9>=FJ$3)*IFERROR($FL8:$GW8/($D$3:$AO$3+$C8+$D9:$AO9-(Analyseår)),0))) -> 
A9: Affaldsanlæg KV Turnkey med kapacitet på 35 ton affald pr. time. Typisk anlæg før 2004 | B9: ton/h | C9: 20 | D9: 0 | E9: 0 | F9: 0 | G9: 0 | H9: 0 | I9: 0 | J9: 0 | K9: 0 | L9: 0 | M9: 0 | N9: 0 | O9: 0 | P9: 0 | Q9: 0 | R9: 0 | S9: 0 | T9: 0 | U9: 0 | V9: 0 | W9: 0 | X9: 0 | Y9: 0 | Z9: 0 | AA9: 0 | AB9: 0 | AC9: 0 | AD9: 0 | AE9: 0 | AF9: 0 | AG9: 0 | AH9: 0 | AI9: 0 | AJ9: 0 | AK9: 0 | AL9: 0 | AM9: 0 | AN9: 0 | AO9: 0 | AQ9: Varmeproducerende anlæg fordelt på energikilde | AR9: Affald | AS9: kr./ton/h | AT9: =IF($C9="","",MAX(D9 * INDEX(Genanskaffelsespriser!$G$2:$G$201,MATCH(1,($AQ9=Genanskaffelsespriser!$A$2:$A$201)*($AR9=Genanskaffelsespriser!$B$2:$B$201)*($AS9=Genanskaffelsespriser!$D$2:$D$201)*($A9=Genanskaffelsespriser!$C$2:$C$201),0)) * (1 - (Analyseår-AT$3)/($C9+D10)),0)) -> 0 | AU9: =IF($C9="","",MAX(E9 * INDEX(Genanskaffelsespriser!$G$2:$G$201,MATCH(1,($AQ9=Genanskaffelsespriser!$A$2:$A$201)*($AR9=Genanskaffelsespriser!$B$2:$B$201)*($AS9=Genanskaffelsespriser!$D$2:$D$201)*($A9=Genanskaffelsespriser!$C$2:$C$201),0)) * (1 - (Analyseår-AU$3)/($C9+E10)),0)) -> 0 | AV9: =IF($C9="","",MAX(F9 * INDEX(Genanskaffelsespriser!$G$2:$G$201,MATCH(1,($AQ9=Genanskaffelsespriser!$A$2:$A$201)*($AR9=Genanskaffelsespriser!$B$2:$B$201)*($AS9=Genanskaffelsespriser!$D$2:$D$201)*($A9=Genanskaffelsespriser!$C$2:$C$201),0)) * (1 - (Analyseår-AV$3)/($C9+F10)),0)) -> 0 | AW9: =IF($C9="","",MAX(G9 * INDEX(Genanskaffelsespriser!$G$2:$G$201,MATCH(1,($AQ9=Genanskaffelsespriser!$A$2:$A$201)*($AR9=Genanskaffelsespriser!$B$2:$B$201)*($AS9=Genanskaffelsespriser!$D$2:$D$201)*($A9=Genanskaffelsespriser!$C$2:$C$201),0)) * (1 - (Analyseår-AW$3)/($C9+G10)),0)) -> 0 | AX9: =IF($C9="","",MAX(H9 * INDEX(Genanskaffelsespriser!$G$2:$G$201,MATCH(1,($AQ9=Genanskaffelsespriser!$A$2:$A$201)*($AR9=Genanskaffelsespriser!$B$2:$B$201)*($AS9=Genanskaffelsespriser!$D$2:$D$201)*($A9=Genanskaffelsespriser!$C$2:$C$201),0)) * (1 - (Analyseår-AX$3)/($C9+H10)),0)) -> 0 | AY9: =IF($C9="","",MAX(I9 * INDEX(Genanskaffelsespriser!$G$2:$G$201,MATCH(1,($AQ9=Genanskaffelsespriser!$A$2:$A$201)*($AR9=Genanskaffelsespriser!$B$2:$B$201)*($AS9=Genanskaffelsespriser!$D$2:$D$201)*($A9=Genanskaffelsespriser!$C$2:$C$201),0)) * (1 - (Analyseår-AY$3)/($C9+I10)),0)) -> 0 | AZ9: =IF($C9="","",MAX(J9 * INDEX(Genanskaffelsespriser!$G$2:$G$201,MATCH(1,($AQ9=Genanskaffelsespriser!$A$2:$A$201)*($AR9=Genanskaffelsespriser!$B$2:$B$201)*($AS9=Genanskaffelsespriser!$D$2:$D$201)*($A9=Genanskaffelsespriser!$C$2:$C$201),0)) * (1 - (Analyseår-AZ$3)/($C9+J10)),0)) -> 0 | BA9: =IF($C9="","",MAX(K9 * INDEX(Genanskaffelsespriser!$G$2:$G$201,MATCH(1,($AQ9=Genanskaffelsespriser!$A$2:$A$201)*($AR9=Genanskaffelsespriser!$B$2:$B$201)*($AS9=Genanskaffelsespriser!$D$2:$D$201)*($A9=Genanskaffelsespriser!$C$2:$C$201),0)) * (1 - (Analyseår-BA$3)/($C9+K10)),0)) -> 0 | BB9: =IF($C9="","",MAX(L9 * INDEX(Genanskaffelsespriser!$G$2:$G$201,MATCH(1,($AQ9=Genanskaffelsespriser!$A$2:$A$201)*($AR9=Genanskaffelsespriser!$B$2:$B$201)*($AS9=Genanskaffelsespriser!$D$2:$D$201)*($A9=Genanskaffelsespriser!$C$2:$C$201),0)) * (1 - (Analyseår-BB$3)/($C9+L10)),0)) -> 0 | BC9: =IF($C9="","",MAX(M9 * INDEX(Genanskaffelsespriser!$G$2:$G$201,MATCH(1,($AQ9=Genanskaffelsespriser!$A$2:$A$201)*($AR9=Genanskaffelsespriser!$B$2:$B$201)*($AS9=Genanskaffelsespriser!$D$2:$D$201)*($A9=Genanskaffelsespriser!$C$2:$C$201),0)) * (1 - (Analyseår-BC$3)/($C9+M10)),0)) -> 0 | BD9: =IF($C9="","",MAX(N9 * INDEX(Genanskaffelsespriser!$G$2:$G$201,MATCH(1,($AQ9=Genanskaffelsespriser!$A$2:$A$201)*($AR9=Genanskaffelsespriser!$B$2:$B$201)*($AS9=Genanskaffelsespriser!$D$2:$D$201)*($A9=Genanskaffelsespriser!$C$2:$C$201),0)) * (1 - (Analyseår-BD$3)/($C9+N10)),0)) -> 0 | BE9: =IF($C9="","",MAX(O9 * INDEX(Genanskaffelsespriser!$G$2:$G$201,MATCH(1,($AQ9=Genanskaffelsespriser!$A$2:$A$201)*($AR9=Genanskaffelsespriser!$B$2:$B$201)*($AS9=Genanskaffelsespriser!$D$2:$D$201)*($A9=Genanskaffelsespriser!$C$2:$C$201),0)) * (1 - (Analyseår-BE$3)/($C9+O10)),0)) -> 0 | BF9: =IF($C9="","",MAX(P9 * INDEX(Genanskaffelsespriser!$G$2:$G$201,MATCH(1,($AQ9=Genanskaffelsespriser!$A$2:$A$201)*($AR9=Genanskaffelsespriser!$B$2:$B$201)*($AS9=Genanskaffelsespriser!$D$2:$D$201)*($A9=Genanskaffelsespriser!$C$2:$C$201),0)) * (1 - (Analyseår-BF$3)/($C9+P10)),0)) -> 0 | BG9: =IF($C9="","",MAX(Q9 * INDEX(Genanskaffelsespriser!$G$2:$G$201,MATCH(1,($AQ9=Genanskaffelsespriser!$A$2:$A$201)*($AR9=Genanskaffelsespriser!$B$2:$B$201)*($AS9=Genanskaffelsespriser!$D$2:$D$201)*($A9=Genanskaffelsespriser!$C$2:$C$201),0)) * (1 - (Analyseår-BG$3)/($C9+Q10)),0)) -> 0 | BH9: =IF($C9="","",MAX(R9 * INDEX(Genanskaffelsespriser!$G$2:$G$201,MATCH(1,($AQ9=Genanskaffelsespriser!$A$2:$A$201)*($AR9=Genanskaffelsespriser!$B$2:$B$201)*($AS9=Genanskaffelsespriser!$D$2:$D$201)*($A9=Genanskaffelsespriser!$C$2:$C$201),0)) * (1 - (Analyseår-BH$3)/($C9+R10)),0)) -> 0 | BI9: =IF($C9="","",MAX(S9 * INDEX(Genanskaffelsespriser!$G$2:$G$201,MATCH(1,($AQ9=Genanskaffelsespriser!$A$2:$A$201)*($AR9=Genanskaffelsespriser!$B$2:$B$201)*($AS9=Genanskaffelsespriser!$D$2:$D$201)*($A9=Genanskaffelsespriser!$C$2:$C$201),0)) * (1 - (Analyseår-BI$3)/($C9+S10)),0)) -> 0 | BJ9: =IF($C9="","",MAX(T9 * INDEX(Genanskaffelsespriser!$G$2:$G$201,MATCH(1,($AQ9=Genanskaffelsespriser!$A$2:$A$201)*($AR9=Genanskaffelsespriser!$B$2:$B$201)*($AS9=Genanskaffelsespriser!$D$2:$D$201)*($A9=Genanskaffelsespriser!$C$2:$C$201),0)) * (1 - (Analyseår-BJ$3)/($C9+T10)),0)) -> 0 | BK9: =IF($C9="","",MAX(U9 * INDEX(Genanskaffelsespriser!$G$2:$G$201,MATCH(1,($AQ9=Genanskaffelsespriser!$A$2:$A$201)*($AR9=Genanskaffelsespriser!$B$2:$B$201)*($AS9=Genanskaffelsespriser!$D$2:$D$201)*($A9=Genanskaffelsespriser!$C$2:$C$201),0)) * (1 - (Analyseår-BK$3)/($C9+U10)),0)) -> 0 | BL9: =IF($C9="","",MAX(V9 * INDEX(Genanskaffelsespriser!$G$2:$G$201,MATCH(1,($AQ9=Genanskaffelsespriser!$A$2:$A$201)*($AR9=Genanskaffelsespriser!$B$2:$B$201)*($AS9=Genanskaffelsespriser!$D$2:$D$201)*($A9=Genanskaffelsespriser!$C$2:$C$201),0)) * (1 - (Analyseår-BL$3)/($C9+V10)),0)) -> 0 | BM9: =IF($C9="","",MAX(W9 * INDEX(Genanskaffelsespriser!$G$2:$G$201,MATCH(1,($AQ9=Genanskaffelsespriser!$A$2:$A$201)*($AR9=Genanskaffelsespriser!$B$2:$B$201)*($AS9=Genanskaffelsespriser!$D$2:$D$201)*($A9=Genanskaffelsespriser!$C$2:$C$201),0)) * (1 - (Analyseår-BM$3)/($C9+W10)),0)) -> 0 | BN9: =IF($C9="","",MAX(X9 * INDEX(Genanskaffelsespriser!$G$2:$G$201,MATCH(1,($AQ9=Genanskaffelsespriser!$A$2:$A$201)*($AR9=Genanskaffelsespriser!$B$2:$B$201)*($AS9=Genanskaffelsespriser!$D$2:$D$201)*($A9=Genanskaffelsespriser!$C$2:$C$201),0)) * (1 - (Analyseår-BN$3)/($C9+X10)),0)) -> 0 | BO9: =IF($C9="","",MAX(Y9 * INDEX(Genanskaffelsespriser!$G$2:$G$201,MATCH(1,($AQ9=Genanskaffelsespriser!$A$2:$A$201)*($AR9=Genanskaffelsespriser!$B$2:$B$201)*($AS9=Genanskaffelsespriser!$D$2:$D$201)*($A9=Genanskaffelsespriser!$C$2:$C$201),0)) * (1 - (Analyseår-BO$3)/($C9+Y10)),0)) -> 0 | BP9: =IF($C9="","",MAX(Z9 * INDEX(Genanskaffelsespriser!$G$2:$G$201,MATCH(1,($AQ9=Genanskaffelsespriser!$A$2:$A$201)*($AR9=Genanskaffelsespriser!$B$2:$B$201)*($AS9=Genanskaffelsespriser!$D$2:$D$201)*($A9=Genanskaffelsespriser!$C$2:$C$201),0)) * (1 - (Analyseår-BP$3)/($C9+Z10)),0)) -> 0 | BQ9: =IF($C9="","",MAX(AA9 * INDEX(Genanskaffelsespriser!$G$2:$G$201,MATCH(1,($AQ9=Genanskaffelsespriser!$A$2:$A$201)*($AR9=Genanskaffelsespriser!$B$2:$B$201)*($AS9=Genanskaffelsespriser!$D$2:$D$201)*($A9=Genanskaffelsespriser!$C$2:$C$201),0)) * (1 - (Analyseår-BQ$3)/($C9+AA10)),0)) -> 0 | BR9: =IF($C9="","",MAX(AB9 * INDEX(Genanskaffelsespriser!$G$2:$G$201,MATCH(1,($AQ9=Genanskaffelsespriser!$A$2:$A$201)*($AR9=Genanskaffelsespriser!$B$2:$B$201)*($AS9=Genanskaffelsespriser!$D$2:$D$201)*($A9=Genanskaffelsespriser!$C$2:$C$201),0)) * (1 - (Analyseår-BR$3)/($C9+AB10)),0)) -> 0 | BS9: =IF($C9="","",MAX(AC9 * INDEX(Genanskaffelsespriser!$G$2:$G$201,MATCH(1,($AQ9=Genanskaffelsespriser!$A$2:$A$201)*($AR9=Genanskaffelsespriser!$B$2:$B$201)*($AS9=Genanskaffelsespriser!$D$2:$D$201)*($A9=Genanskaffelsespriser!$C$2:$C$201),0)) * (1 - (Analyseår-BS$3)/($C9+AC10)),0)) -> 0 | BT9: =IF($C9="","",MAX(AD9 * INDEX(Genanskaffelsespriser!$G$2:$G$201,MATCH(1,($AQ9=Genanskaffelsespriser!$A$2:$A$201)*($AR9=Genanskaffelsespriser!$B$2:$B$201)*($AS9=Genanskaffelsespriser!$D$2:$D$201)*($A9=Genanskaffelsespriser!$C$2:$C$201),0)) * (1 - (Analyseår-BT$3)/($C9+AD10)),0)) -> 0 | BU9: =IF($C9="","",MAX(AE9 * INDEX(Genanskaffelsespriser!$G$2:$G$201,MATCH(1,($AQ9=Genanskaffelsespriser!$A$2:$A$201)*($AR9=Genanskaffelsespriser!$B$2:$B$201)*($AS9=Genanskaffelsespriser!$D$2:$D$201)*($A9=Genanskaffelsespriser!$C$2:$C$201),0)) * (1 - (Analyseår-BU$3)/($C9+AE10)),0)) -> 0 | BV9: =IF($C9="","",MAX(AF9 * INDEX(Genanskaffelsespriser!$G$2:$G$201,MATCH(1,($AQ9=Genanskaffelsespriser!$A$2:$A$201)*($AR9=Genanskaffelsespriser!$B$2:$B$201)*($AS9=Genanskaffelsespriser!$D$2:$D$201)*($A9=Genanskaffelsespriser!$C$2:$C$201),0)) * (1 - (Analyseår-BV$3)/($C9+AF10)),0)) -> 0 | BW9: =IF($C9="","",MAX(AG9 * INDEX(Genanskaffelsespriser!$G$2:$G$201,MATCH(1,($AQ9=Genanskaffelsespriser!$A$2:$A$201)*($AR9=Genanskaffelsespriser!$B$2:$B$201)*($AS9=Genanskaffelsespriser!$D$2:$D$201)*($A9=Genanskaffelsespriser!$C$2:$C$201),0)) * (1 - (Analyseår-BW$3)/($C9+AG10)),0)) -> 0 | BX9: =IF($C9="","",MAX(AH9 * INDEX(Genanskaffelsespriser!$G$2:$G$201,MATCH(1,($AQ9=Genanskaffelsespriser!$A$2:$A$201)*($AR9=Genanskaffelsespriser!$B$2:$B$201)*($AS9=Genanskaffelsespriser!$D$2:$D$201)*($A9=Genanskaffelsespriser!$C$2:$C$201),0)) * (1 - (Analyseår-BX$3)/($C9+AH10)),0)) -> 0 | BY9: =IF($C9="","",MAX(AI9 * INDEX(Genanskaffelsespriser!$G$2:$G$201,MATCH(1,($AQ9=Genanskaffelsespriser!$A$2:$A$201)*($AR9=Genanskaffelsespriser!$B$2:$B$201)*($AS9=Genanskaffelsespriser!$D$2:$D$201)*($A9=Genanskaffelsespriser!$C$2:$C$201),0)) * (1 - (Analyseår-BY$3)/($C9+AI10)),0)) -> 0 | BZ9: =IF($C9="","",MAX(AJ9 * INDEX(Genanskaffelsespriser!$G$2:$G$201,MATCH(1,($AQ9=Genanskaffelsespriser!$A$2:$A$201)*($AR9=Genanskaffelsespriser!$B$2:$B$201)*($AS9=Genanskaffelsespriser!$D$2:$D$201)*($A9=Genanskaffelsespriser!$C$2:$C$201),0)) * (1 - (Analyseår-BZ$3)/($C9+AJ10)),0)) -> 0 | CA9: =IF($C9="","",MAX(AK9 * INDEX(Genanskaffelsespriser!$G$2:$G$201,MATCH(1,($AQ9=Genanskaffelsespriser!$A$2:$A$201)*($AR9=Genanskaffelsespriser!$B$2:$B$201)*($AS9=Genanskaffelsespriser!$D$2:$D$201)*($A9=Genanskaffelsespriser!$C$2:$C$201),0)) * (1 - (Analyseår-CA$3)/($C9+AK10)),0)) -> 0 | CB9: =IF($C9="","",MAX(AL9 * INDEX(Genanskaffelsespriser!$G$2:$G$201,MATCH(1,($AQ9=Genanskaffelsespriser!$A$2:$A$201)*($AR9=Genanskaffelsespriser!$B$2:$B$201)*($AS9=Genanskaffelsespriser!$D$2:$D$201)*($A9=Genanskaffelsespriser!$C$2:$C$201),0)) * (1 - (Analyseår-CB$3)/($C9+AL10)),0)) -> 0 | CC9: =IF($C9="","",MAX(AM9 * INDEX(Genanskaffelsespriser!$G$2:$G$201,MATCH(1,($AQ9=Genanskaffelsespriser!$A$2:$A$201)*($AR9=Genanskaffelsespriser!$B$2:$B$201)*($AS9=Genanskaffelsespriser!$D$2:$D$201)*($A9=Genanskaffelsespriser!$C$2:$C$201),0)) * (1 - (Analyseår-CC$3)/($C9+AM10)),0)) -> 0 | CD9: =IF($C9="","",MAX(AN9 * INDEX(Genanskaffelsespriser!$G$2:$G$201,MATCH(1,($AQ9=Genanskaffelsespriser!$A$2:$A$201)*($AR9=Genanskaffelsespriser!$B$2:$B$201)*($AS9=Genanskaffelsespriser!$D$2:$D$201)*($A9=Genanskaffelsespriser!$C$2:$C$201),0)) * (1 - (Analyseår-CD$3)/($C9+AN10)),0)) -> 0 | CE9: =IF($C9="","",MAX(AO9 * INDEX(Genanskaffelsespriser!$G$2:$G$201,MATCH(1,($AQ9=Genanskaffelsespriser!$A$2:$A$201)*($AR9=Genanskaffelsespriser!$B$2:$B$201)*($AS9=Genanskaffelsespriser!$D$2:$D$201)*($A9=Genanskaffelsespriser!$C$2:$C$201),0)) * (1 - (Analyseår-CE$3)/($C9+AO10)),0)) -> 0 | CG9: =IF($C9="","",SUM(($D$3:$AO$3+$C9+$D10:$AO10>=CG$3)*IFERROR($AT9:$CE9/($D$3:$AO$3+$C9+$D10:$AO10-Analyseår),0))) -> 0 | CH9: =IF($C9="","",SUM(($D$3:$AO$3+$C9+$D10:$AO10>=CH$3)*IFERROR($AT9:$CE9/($D$3:$AO$3+$C9+$D10:$AO10-Analyseår),0))) -> 0 | CI9: =IF($C9="","",SUM(($D$3:$AO$3+$C9+$D10:$AO10>=CI$3)*IFERROR($AT9:$CE9/($D$3:$AO$3+$C9+$D10:$AO10-Analyseår),0))) -> 0 | CJ9: =IF($C9="","",SUM(($D$3:$AO$3+$C9+$D10:$AO10>=CJ$3)*IFERROR($AT9:$CE9/($D$3:$AO$3+$C9+$D10:$AO10-Analyseår),0))) -> 0 | CK9: =IF($C9="","",SUM(($D$3:$AO$3+$C9+$D10:$AO10>=CK$3)*IFERROR($AT9:$CE9/($D$3:$AO$3+$C9+$D10:$AO10-Analyseår),0))) -> 0 | CL9: =IF($C9="","",SUM(($D$3:$AO$3+$C9+$D10:$AO10>=CL$3)*IFERROR($AT9:$CE9/($D$3:$AO$3+$C9+$D10:$AO10-Analyseår),0))) -> 0 | CM9: =IF($C9="","",SUM(($D$3:$AO$3+$C9+$D10:$AO10>=CM$3)*IFERROR($AT9:$CE9/($D$3:$AO$3+$C9+$D10:$AO10-Analyseår),0))) -> 0 | CN9: =IF($C9="","",SUM(($D$3:$AO$3+$C9+$D10:$AO10>=CN$3)*IFERROR($AT9:$CE9/($D$3:$AO$3+$C9+$D10:$AO10-Analyseår),0))) -> 0 | CO9: =IF($C9="","",SUM(($D$3:$AO$3+$C9+$D10:$AO10>=CO$3)*IFERROR($AT9:$CE9/($D$3:$AO$3+$C9+$D10:$AO10-Analyseår),0))) -> 0 | CP9: =IF($C9="","",SUM(($D$3:$AO$3+$C9+$D10:$AO10>=CP$3)*IFERROR($AT9:$CE9/($D$3:$AO$3+$C9+$D10:$AO10-Analyseår),0))) -> 0 | CQ9: =IF($C9="","",SUM(($D$3:$AO$3+$C9+$D10:$AO10>=CQ$3)*IFERROR($AT9:$CE9/($D$3:$AO$3+$C9+$D10:$AO10-Analyseår),0))) -> 0 | CR9: =IF($C9="","",SUM(($D$3:$AO$3+$C9+$D10:$AO10>=CR$3)*IFERROR($AT9:$CE9/($D$3:$AO$3+$C9+$D10:$AO10-Analyseår),0))) -> 0 | CS9: =IF($C9="","",SUM(($D$3:$AO$3+$C9+$D10:$AO10>=CS$3)*IFERROR($AT9:$CE9/($D$3:$AO$3+$C9+$D10:$AO10-Analyseår),0))) -> 0 | CT9: =IF($C9="","",SUM(($D$3:$AO$3+$C9+$D10:$AO10>=CT$3)*IFERROR($AT9:$CE9/($D$3:$AO$3+$C9+$D10:$AO10-Analyseår),0))) -> 0 | CU9: =IF($C9="","",SUM(($D$3:$AO$3+$C9+$D10:$AO10>=CU$3)*IFERROR($AT9:$CE9/($D$3:$AO$3+$C9+$D10:$AO10-Analyseår),0))) -> 0 | CV9: =IF($C9="","",SUM(($D$3:$AO$3+$C9+$D10:$AO10>=CV$3)*IFERROR($AT9:$CE9/($D$3:$AO$3+$C9+$D10:$AO10-Analyseår),0))) -> 0 | CW9: =IF($C9="","",SUM(($D$3:$AO$3+$C9+$D10:$AO10>=CW$3)*IFERROR($AT9:$CE9/($D$3:$AO$3+$C9+$D10:$AO10-Analyseår),0))) -> 0 | CX9: =IF($C9="","",SUM(($D$3:$AO$3+$C9+$D10:$AO10>=CX$3)*IFERROR($AT9:$CE9/($D$3:$AO$3+$C9+$D10:$AO10-Analyseår),0))) -> 0 | CY9: =IF($C9="","",SUM(($D$3:$AO$3+$C9+$D10:$AO10>=CY$3)*IFERROR($AT9:$CE9/($D$3:$AO$3+$C9+$D10:$AO10-Analyseår),0))) -> 0 | CZ9: =IF($C9="","",SUM(($D$3:$AO$3+$C9+$D10:$AO10>=CZ$3)*IFERROR($AT9:$CE9/($D$3:$AO$3+$C9+$D10:$AO10-Analyseår),0))) -> 0 | DA9: =IF($C9="","",SUM(($D$3:$AO$3+$C9+$D10:$AO10>=DA$3)*IFERROR($AT9:$CE9/($D$3:$AO$3+$C9+$D10:$AO10-Analyseår),0))) -> 0 | DB9: =IF($C9="","",SUM(($D$3:$AO$3+$C9+$D10:$AO10>=DB$3)*IFERROR($AT9:$CE9/($D$3:$AO$3+$C9+$D10:$AO10-Analyseår),0))) -> 0 | DC9: =IF($C9="","",SUM(($D$3:$AO$3+$C9+$D10:$AO10>=DC$3)*IFERROR($AT9:$CE9/($D$3:$AO$3+$C9+$D10:$AO10-Analyseår),0))) -> 0 | DD9: =IF($C9="","",SUM(($D$3:$AO$3+$C9+$D10:$AO10>=DD$3)*IFERROR($AT9:$CE9/($D$3:$AO$3+$C9+$D10:$AO10-Analyseår),0))) -> 0 | DE9: =IF($C9="","",SUM(($D$3:$AO$3+$C9+$D10:$AO10>=DE$3)*IFERROR($AT9:$CE9/($D$3:$AO$3+$C9+$D10:$AO10-Analyseår),0))) -> 0 | DF9: =IF($C9="","",SUM(($D$3:$AO$3+$C9+$D10:$AO10>=DF$3)*IFERROR($AT9:$CE9/($D$3:$AO$3+$C9+$D10:$AO10-Analyseår),0))) -> 0 | DG9: =IF($C9="","",SUM(($D$3:$AO$3+$C9+$D10:$AO10>=DG$3)*IFERROR($AT9:$CE9/($D$3:$AO$3+$C9+$D10:$AO10-Analyseår),0))) -> 0 | DH9: =IF($C9="","",SUM(($D$3:$AO$3+$C9+$D10:$AO10>=DH$3)*IFERROR($AT9:$CE9/($D$3:$AO$3+$C9+$D10:$AO10-Analyseår),0))) -> 0 | DI9: =IF($C9="","",SUM(($D$3:$AO$3+$C9+$D10:$AO10>=DI$3)*IFERROR($AT9:$CE9/($D$3:$AO$3+$C9+$D10:$AO10-Analyseår),0))) -> 0 | DJ9: =IF($C9="","",SUM(($D$3:$AO$3+$C9+$D10:$AO10>=DJ$3)*IFERROR($AT9:$CE9/($D$3:$AO$3+$C9+$D10:$AO10-Analyseår),0))) -> 0 | DK9: =IF($C9="","",SUM(($D$3:$AO$3+$C9+$D10:$AO10>=DK$3)*IFERROR($AT9:$CE9/($D$3:$AO$3+$C9+$D10:$AO10-Analyseår),0))) -> 0 | DL9: =IF($C9="","",SUM(($D$3:$AO$3+$C9+$D10:$AO10>=DL$3)*IFERROR($AT9:$CE9/($D$3:$AO$3+$C9+$D10:$AO10-Analyseår),0))) -> 0 | DM9: =IF($C9="","",SUM(($D$3:$AO$3+$C9+$D10:$AO10>=DM$3)*IFERROR($AT9:$CE9/($D$3:$AO$3+$C9+$D10:$AO10-Analyseår),0))) -> 0 | DN9: =IF($C9="","",SUM(($D$3:$AO$3+$C9+$D10:$AO10>=DN$3)*IFERROR($AT9:$CE9/($D$3:$AO$3+$C9+$D10:$AO10-Analyseår),0))) -> 0 | DO9: =IF($C9="","",SUM(($D$3:$AO$3+$C9+$D10:$AO10>=DO$3)*IFERROR($AT9:$CE9/($D$3:$AO$3+$C9+$D10:$AO10-Analyseår),0))) -> 0 | DP9: =IF($C9="","",SUM(($D$3:$AO$3+$C9+$D10:$AO10>=DP$3)*IFERROR($AT9:$CE9/($D$3:$AO$3+$C9+$D10:$AO10-Analyseår),0))) -> 0 | DQ9: =IF($C9="","",SUM(($D$3:$AO$3+$C9+$D10:$AO10>=DQ$3)*IFERROR($AT9:$CE9/($D$3:$AO$3+$C9+$D10:$AO10-Analyseår),0))) -> 0 | DR9: =IF($C9="","",SUM(($D$3:$AO$3+$C9+$D10:$AO10>=DR$3)*IFERROR($AT9:$CE9/($D$3:$AO$3+$C9+$D10:$AO10-Analyseår),0))) -> 0 | DS9: =IF($C9="","",SUM(($D$3:$AO$3+$C9+$D10:$AO10>=DS$3)*IFERROR($AT9:$CE9/($D$3:$AO$3+$C9+$D10:$AO10-Analyseår),0))) -> 0 | DT9: =IF($C9="","",SUM(($D$3:$AO$3+$C9+$D10:$AO10>=DT$3)*IFERROR($AT9:$CE9/($D$3:$AO$3+$C9+$D10:$AO10-Analyseår),0))) -> 0 | DU9: =IF($C9="","",SUM(($D$3:$AO$3+$C9+$D10:$AO10>=DU$3)*IFERROR($AT9:$CE9/($D$3:$AO$3+$C9+$D10:$AO10-Analyseår),0))) -> 0 | DV9: =IF($C9="","",SUM(($D$3:$AO$3+$C9+$D10:$AO10>=DV$3)*IFERROR($AT9:$CE9/($D$3:$AO$3+$C9+$D10:$AO10-Analyseår),0))) -> 0 | DW9: =IF($C9="","",SUM(($D$3:$AO$3+$C9+$D10:$AO10>=DW$3)*IFERROR($AT9:$CE9/($D$3:$AO$3+$C9+$D10:$AO10-Analyseår),0))) -> 0 | DX9: =IF($C9="","",SUM(($D$3:$AO$3+$C9+$D10:$AO10>=DX$3)*IFERROR($AT9:$CE9/($D$3:$AO$3+$C9+$D10:$AO10-Analyseår),0))) -> 0 | DY9: =IF($C9="","",SUM(($D$3:$AO$3+$C9+$D10:$AO10>=DY$3)*IFERROR($AT9:$CE9/($D$3:$AO$3+$C9+$D10:$AO10-Analyseår),0))) -> 0 | DZ9: =IF($C9="","",SUM(($D$3:$AO$3+$C9+$D10:$AO10>=DZ$3)*IFERROR($AT9:$CE9/($D$3:$AO$3+$C9+$D10:$AO10-Analyseår),0))) -> 0 | EA9: =IF($C9="","",SUM(($D$3:$AO$3+$C9+$D10:$AO10>=EA$3)*IFERROR($AT9:$CE9/($D$3:$AO$3+$C9+$D10:$AO10-Analyseår),0))) -> 0 | EB9: =IF($C9="","",SUM(($D$3:$AO$3+$C9+$D10:$AO10>=EB$3)*IFERROR($AT9:$CE9/($D$3:$AO$3+$C9+$D10:$AO10-Analyseår),0))) -> 0 | EC9: =IF($C9="","",SUM(($D$3:$AO$3+$C9+$D10:$AO10>=EC$3)*IFERROR($AT9:$CE9/($D$3:$AO$3+$C9+$D10:$AO10-Analyseår),0))) -> 0 | ED9: =IF($C9="","",SUM(($D$3:$AO$3+$C9+$D10:$AO10>=ED$3)*IFERROR($AT9:$CE9/($D$3:$AO$3+$C9+$D10:$AO10-Analyseår),0))) -> 0 | EE9: =IF($C9="","",SUM(($D$3:$AO$3+$C9+$D10:$AO10>=EE$3)*IFERROR($AT9:$CE9/($D$3:$AO$3+$C9+$D10:$AO10-Analyseår),0))) -> 0 | EF9: =IF($C9="","",SUM(($D$3:$AO$3+$C9+$D10:$AO10>=EF$3)*IFERROR($AT9:$CE9/($D$3:$AO$3+$C9+$D10:$AO10-Analyseår),0))) -> 0 | EG9: =IF($C9="","",SUM(($D$3:$AO$3+$C9+$D10:$AO10>=EG$3)*IFERROR($AT9:$CE9/($D$3:$AO$3+$C9+$D10:$AO10-Analyseår),0))) -> 0 | EH9: =IF($C9="","",SUM(($D$3:$AO$3+$C9+$D10:$AO10>=EH$3)*IFERROR($AT9:$CE9/($D$3:$AO$3+$C9+$D10:$AO10-Analyseår),0))) -> 0 | EI9: =IF($C9="","",SUM(($D$3:$AO$3+$C9+$D10:$AO10>=EI$3)*IFERROR($AT9:$CE9/($D$3:$AO$3+$C9+$D10:$AO10-Analyseår),0))) -> 0 | EJ9: =IF($C9="","",SUM(($D$3:$AO$3+$C9+$D10:$AO10>=EJ$3)*IFERROR($AT9:$CE9/($D$3:$AO$3+$C9+$D10:$AO10-Analyseår),0))) -> 0 | EK9: =IF($C9="","",SUM(($D$3:$AO$3+$C9+$D10:$AO10>=EK$3)*IFERROR($AT9:$CE9/($D$3:$AO$3+$C9+$D10:$AO10-Analyseår),0))) -> 0 | EL9: =IF($C9="","",SUM(($D$3:$AO$3+$C9+$D10:$AO10>=EL$3)*IFERROR($AT9:$CE9/($D$3:$AO$3+$C9+$D10:$AO10-Analyseår),0))) -> 0 | EM9: =IF($C9="","",SUM(($D$3:$AO$3+$C9+$D10:$AO10>=EM$3)*IFERROR($AT9:$CE9/($D$3:$AO$3+$C9+$D10:$AO10-Analyseår),0))) -> 0 | EN9: =IF($C9="","",SUM(($D$3:$AO$3+$C9+$D10:$AO10>=EN$3)*IFERROR($AT9:$CE9/($D$3:$AO$3+$C9+$D10:$AO10-Analyseår),0))) -> 0 | EO9: =IF($C9="","",SUM(($D$3:$AO$3+$C9+$D10:$AO10>=EO$3)*IFERROR($AT9:$CE9/($D$3:$AO$3+$C9+$D10:$AO10-Analyseår),0))) -> 0 | EP9: =IF($C9="","",SUM(($D$3:$AO$3+$C9+$D10:$AO10>=EP$3)*IFERROR($AT9:$CE9/($D$3:$AO$3+$C9+$D10:$AO10-Analyseår),0))) -> 0 | EQ9: =IF($C9="","",SUM(($D$3:$AO$3+$C9+$D10:$AO10>=EQ$3)*IFERROR($AT9:$CE9/($D$3:$AO$3+$C9+$D10:$AO10-Analyseår),0))) -> 0 | ER9: =IF($C9="","",SUM(($D$3:$AO$3+$C9+$D10:$AO10>=ER$3)*IFERROR($AT9:$CE9/($D$3:$AO$3+$C9+$D10:$AO10-Analyseår),0))) -> 0 | ES9: =IF($C9="","",SUM(($D$3:$AO$3+$C9+$D10:$AO10>=ES$3)*IFERROR($AT9:$CE9/($D$3:$AO$3+$C9+$D10:$AO10-Analyseår),0))) -> 0 | ET9: =IF($C9="","",SUM(($D$3:$AO$3+$C9+$D10:$AO10>=ET$3)*IFERROR($AT9:$CE9/($D$3:$AO$3+$C9+$D10:$AO10-Analyseår),0))) -> 0 | EU9: =IF($C9="","",SUM(($D$3:$AO$3+$C9+$D10:$AO10>=EU$3)*IFERROR($AT9:$CE9/($D$3:$AO$3+$C9+$D10:$AO10-Analyseår),0))) -> 0 | EV9: =IF($C9="","",SUM(($D$3:$AO$3+$C9+$D10:$AO10>=EV$3)*IFERROR($AT9:$CE9/($D$3:$AO$3+$C9+$D10:$AO10-Analyseår),0))) -> 0 | EW9: =IF($C9="","",SUM(($D$3:$AO$3+$C9+$D10:$AO10>=EW$3)*IFERROR($AT9:$CE9/($D$3:$AO$3+$C9+$D10:$AO10-Analyseår),0))) -> 0 | EX9: =IF($C9="","",SUM(($D$3:$AO$3+$C9+$D10:$AO10>=EX$3)*IFERROR($AT9:$CE9/($D$3:$AO$3+$C9+$D10:$AO10-Analyseår),0))) -> 0 | EY9: =IF($C9="","",SUM(($D$3:$AO$3+$C9+$D10:$AO10>=EY$3)*IFERROR($AT9:$CE9/($D$3:$AO$3+$C9+$D10:$AO10-Analyseår),0))) -> 0 | EZ9: =IF($C9="","",SUM(($D$3:$AO$3+$C9+$D10:$AO10>=EZ$3)*IFERROR($AT9:$CE9/($D$3:$AO$3+$C9+$D10:$AO10-Analyseår),0))) -> 0 | FA9: =IF($C9="","",SUM(($D$3:$AO$3+$C9+$D10:$AO10>=FA$3)*IFERROR($AT9:$CE9/($D$3:$AO$3+$C9+$D10:$AO10-Analyseår),0))) -> 0 | FB9: =IF($C9="","",SUM(($D$3:$AO$3+$C9+$D10:$AO10>=FB$3)*IFERROR($AT9:$CE9/($D$3:$AO$3+$C9+$D10:$AO10-Analyseår),0))) -> 0 | FC9: =IF($C9="","",SUM(($D$3:$AO$3+$C9+$D10:$AO10>=FC$3)*IFERROR($AT9:$CE9/($D$3:$AO$3+$C9+$D10:$AO10-Analyseår),0))) -> 0 | FD9: =IF($C9="","",SUM(($D$3:$AO$3+$C9+$D10:$AO10>=FD$3)*IFERROR($AT9:$CE9/($D$3:$AO$3+$C9+$D10:$AO10-Analyseår),0))) -> 0 | FE9: =IF($C9="","",SUM(($D$3:$AO$3+$C9+$D10:$AO10>=FE$3)*IFERROR($AT9:$CE9/($D$3:$AO$3+$C9+$D10:$AO10-Analyseår),0))) -> 0 | FF9: =IF($C9="","",SUM(($D$3:$AO$3+$C9+$D10:$AO10>=FF$3)*IFERROR($AT9:$CE9/($D$3:$AO$3+$C9+$D10:$AO10-Analyseår),0))) -> 0 | FG9: =IF($C9="","",SUM(($D$3:$AO$3+$C9+$D10:$AO10>=FG$3)*IFERROR($AT9:$CE9/($D$3:$AO$3+$C9+$D10:$AO10-Analyseår),0))) -> 0 | FH9: =IF($C9="","",SUM(($D$3:$AO$3+$C9+$D10:$AO10>=FH$3)*IFERROR($AT9:$CE9/($D$3:$AO$3+$C9+$D10:$AO10-Analyseår),0))) -> 0 | FI9: =IF($C9="","",SUM(($D$3:$AO$3+$C9+$D10:$AO10>=FI$3)*IFERROR($AT9:$CE9/($D$3:$AO$3+$C9+$D10:$AO10-Analyseår),0))) -> 0 | FJ9: =IF($C9="","",SUM(($D$3:$AO$3+$C9+$D10:$AO10>=FJ$3)*IFERROR($AT9:$CE9/($D$3:$AO$3+$C9+$D10:$AO10-Analyseår),0))) -> 0 | FL9: 0 | FM9: 0 | FN9: 0 | FO9: 0 | FP9: 0 | FQ9: 0 | FR9: 0 | FS9: 0 | FT9: 0 | FU9: 0 | FV9: 0 | FW9: 0 | FX9: 0 | FY9: 0 | FZ9: 0 | GA9: 0 | GB9: 0 | GC9: 0 | GD9: 0 | GE9: 0 | GF9: 0 | GG9: 0 | GH9: 0 | GI9: 0 | GJ9: 0 | GK9: 0 | GL9: 0 | GM9: 0 | GN9: 0 | GO9: 0 | GP9: 0 | GQ9: 0 | GR9: 0 | GS9: 0 | GT9: 0 | GU9: 0 | GV9: 0 | GW9: 0 | GY9: =IF($C9="","",SUM(($D$3:$AO$3+$C9+$D10:$AO10>=CG$3)*IFERROR($FL9:$GW9/($D$3:$AO$3+$C9+$D10:$AO10-(Analyseår)),0))) -> 0 | GZ9: =IF($C9="","",SUM(($D$3:$AO$3+$C9+$D10:$AO10>=CH$3)*IFERROR($FL9:$GW9/($D$3:$AO$3+$C9+$D10:$AO10-(Analyseår)),0))) -> 0 | HA9: =IF($C9="","",SUM(($D$3:$AO$3+$C9+$D10:$AO10>=CI$3)*IFERROR($FL9:$GW9/($D$3:$AO$3+$C9+$D10:$AO10-(Analyseår)),0))) -> 0 | HB9: =IF($C9="","",SUM(($D$3:$AO$3+$C9+$D10:$AO10>=CJ$3)*IFERROR($FL9:$GW9/($D$3:$AO$3+$C9+$D10:$AO10-(Analyseår)),0))) -> 0 | HC9: =IF($C9="","",SUM(($D$3:$AO$3+$C9+$D10:$AO10>=CK$3)*IFERROR($FL9:$GW9/($D$3:$AO$3+$C9+$D10:$AO10-(Analyseår)),0))) -> 0 | HD9: =IF($C9="","",SUM(($D$3:$AO$3+$C9+$D10:$AO10>=CL$3)*IFERROR($FL9:$GW9/($D$3:$AO$3+$C9+$D10:$AO10-(Analyseår)),0))) -> 0 | HE9: =IF($C9="","",SUM(($D$3:$AO$3+$C9+$D10:$AO10>=CM$3)*IFERROR($FL9:$GW9/($D$3:$AO$3+$C9+$D10:$AO10-(Analyseår)),0))) -> 0 | HF9: =IF($C9="","",SUM(($D$3:$AO$3+$C9+$D10:$AO10>=CN$3)*IFERROR($FL9:$GW9/($D$3:$AO$3+$C9+$D10:$AO10-(Analyseår)),0))) -> 0 | HG9: =IF($C9="","",SUM(($D$3:$AO$3+$C9+$D10:$AO10>=CO$3)*IFERROR($FL9:$GW9/($D$3:$AO$3+$C9+$D10:$AO10-(Analyseår)),0))) -> 0 | HH9: =IF($C9="","",SUM(($D$3:$AO$3+$C9+$D10:$AO10>=CP$3)*IFERROR($FL9:$GW9/($D$3:$AO$3+$C9+$D10:$AO10-(Analyseår)),0))) -> 0 | HI9: =IF($C9="","",SUM(($D$3:$AO$3+$C9+$D10:$AO10>=CQ$3)*IFERROR($FL9:$GW9/($D$3:$AO$3+$C9+$D10:$AO10-(Analyseår)),0))) -> 0 | HJ9: =IF($C9="","",SUM(($D$3:$AO$3+$C9+$D10:$AO10>=CR$3)*IFERROR($FL9:$GW9/($D$3:$AO$3+$C9+$D10:$AO10-(Analyseår)),0))) -> 0 | HK9: =IF($C9="","",SUM(($D$3:$AO$3+$C9+$D10:$AO10>=CS$3)*IFERROR($FL9:$GW9/($D$3:$AO$3+$C9+$D10:$AO10-(Analyseår)),0))) -> 0 | HL9: =IF($C9="","",SUM(($D$3:$AO$3+$C9+$D10:$AO10>=CT$3)*IFERROR($FL9:$GW9/($D$3:$AO$3+$C9+$D10:$AO10-(Analyseår)),0))) -> 0 | HM9: =IF($C9="","",SUM(($D$3:$AO$3+$C9+$D10:$AO10>=CU$3)*IFERROR($FL9:$GW9/($D$3:$AO$3+$C9+$D10:$AO10-(Analyseår)),0))) -> 0 | HN9: =IF($C9="","",SUM(($D$3:$AO$3+$C9+$D10:$AO10>=CV$3)*IFERROR($FL9:$GW9/($D$3:$AO$3+$C9+$D10:$AO10-(Analyseår)),0))) -> 0 | HO9: =IF($C9="","",SUM(($D$3:$AO$3+$C9+$D10:$AO10>=CW$3)*IFERROR($FL9:$GW9/($D$3:$AO$3+$C9+$D10:$AO10-(Analyseår)),0))) -> 0 | HP9: =IF($C9="","",SUM(($D$3:$AO$3+$C9+$D10:$AO10>=CX$3)*IFERROR($FL9:$GW9/($D$3:$AO$3+$C9+$D10:$AO10-(Analyseår)),0))) -> 0 | HQ9: =IF($C9="","",SUM(($D$3:$AO$3+$C9+$D10:$AO10>=CY$3)*IFERROR($FL9:$GW9/($D$3:$AO$3+$C9+$D10:$AO10-(Analyseår)),0))) -> 0 | HR9: =IF($C9="","",SUM(($D$3:$AO$3+$C9+$D10:$AO10>=CZ$3)*IFERROR($FL9:$GW9/($D$3:$AO$3+$C9+$D10:$AO10-(Analyseår)),0))) -> 0 | HS9: =IF($C9="","",SUM(($D$3:$AO$3+$C9+$D10:$AO10>=DA$3)*IFERROR($FL9:$GW9/($D$3:$AO$3+$C9+$D10:$AO10-(Analyseår)),0))) -> 0 | HT9: =IF($C9="","",SUM(($D$3:$AO$3+$C9+$D10:$AO10>=DB$3)*IFERROR($FL9:$GW9/($D$3:$AO$3+$C9+$D10:$AO10-(Analyseår)),0))) -> 0 | HU9: =IF($C9="","",SUM(($D$3:$AO$3+$C9+$D10:$AO10>=DC$3)*IFERROR($FL9:$GW9/($D$3:$AO$3+$C9+$D10:$AO10-(Analyseår)),0))) -> 0 | HV9: =IF($C9="","",SUM(($D$3:$AO$3+$C9+$D10:$AO10>=DD$3)*IFERROR($FL9:$GW9/($D$3:$AO$3+$C9+$D10:$AO10-(Analyseår)),0))) -> 0 | HW9: =IF($C9="","",SUM(($D$3:$AO$3+$C9+$D10:$AO10>=DE$3)*IFERROR($FL9:$GW9/($D$3:$AO$3+$C9+$D10:$AO10-(Analyseår)),0))) -> 0 | HX9: =IF($C9="","",SUM(($D$3:$AO$3+$C9+$D10:$AO10>=DF$3)*IFERROR($FL9:$GW9/($D$3:$AO$3+$C9+$D10:$AO10-(Analyseår)),0))) -> 0 | HY9: =IF($C9="","",SUM(($D$3:$AO$3+$C9+$D10:$AO10>=DG$3)*IFERROR($FL9:$GW9/($D$3:$AO$3+$C9+$D10:$AO10-(Analyseår)),0))) -> 0 | HZ9: =IF($C9="","",SUM(($D$3:$AO$3+$C9+$D10:$AO10>=DH$3)*IFERROR($FL9:$GW9/($D$3:$AO$3+$C9+$D10:$AO10-(Analyseår)),0))) -> 0 | IA9: =IF($C9="","",SUM(($D$3:$AO$3+$C9+$D10:$AO10>=DI$3)*IFERROR($FL9:$GW9/($D$3:$AO$3+$C9+$D10:$AO10-(Analyseår)),0))) -> 0 | IB9: =IF($C9="","",SUM(($D$3:$AO$3+$C9+$D10:$AO10>=DJ$3)*IFERROR($FL9:$GW9/($D$3:$AO$3+$C9+$D10:$AO10-(Analyseår)),0))) -> 0 | IC9: =IF($C9="","",SUM(($D$3:$AO$3+$C9+$D10:$AO10>=DK$3)*IFERROR($FL9:$GW9/($D$3:$AO$3+$C9+$D10:$AO10-(Analyseår)),0))) -> 0 | ID9: =IF($C9="","",SUM(($D$3:$AO$3+$C9+$D10:$AO10>=DL$3)*IFERROR($FL9:$GW9/($D$3:$AO$3+$C9+$D10:$AO10-(Analyseår)),0))) -> 0 | IE9: =IF($C9="","",SUM(($D$3:$AO$3+$C9+$D10:$AO10>=DM$3)*IFERROR($FL9:$GW9/($D$3:$AO$3+$C9+$D10:$AO10-(Analyseår)),0))) -> 0 | IF9: =IF($C9="","",SUM(($D$3:$AO$3+$C9+$D10:$AO10>=DN$3)*IFERROR($FL9:$GW9/($D$3:$AO$3+$C9+$D10:$AO10-(Analyseår)),0))) -> 0 | IG9: =IF($C9="","",SUM(($D$3:$AO$3+$C9+$D10:$AO10>=DO$3)*IFERROR($FL9:$GW9/($D$3:$AO$3+$C9+$D10:$AO10-(Analyseår)),0))) -> 0 | IH9: =IF($C9="","",SUM(($D$3:$AO$3+$C9+$D10:$AO10>=DP$3)*IFERROR($FL9:$GW9/($D$3:$AO$3+$C9+$D10:$AO10-(Analyseår)),0))) -> 0 | II9: =IF($C9="","",SUM(($D$3:$AO$3+$C9+$D10:$AO10>=DQ$3)*IFERROR($FL9:$GW9/($D$3:$AO$3+$C9+$D10:$AO10-(Analyseår)),0))) -> 0 | IJ9: =IF($C9="","",SUM(($D$3:$AO$3+$C9+$D10:$AO10>=DR$3)*IFERROR($FL9:$GW9/($D$3:$AO$3+$C9+$D10:$AO10-(Analyseår)),0))) -> 0 | IK9: =IF($C9="","",SUM(($D$3:$AO$3+$C9+$D10:$AO10>=DS$3)*IFERROR($FL9:$GW9/($D$3:$AO$3+$C9+$D10:$AO10-(Analyseår)),0))) -> 0 | IL9: =IF($C9="","",SUM(($D$3:$AO$3+$C9+$D10:$AO10>=DT$3)*IFERROR($FL9:$GW9/($D$3:$AO$3+$C9+$D10:$AO10-(Analyseår)),0))) -> 0 | IM9: =IF($C9="","",SUM(($D$3:$AO$3+$C9+$D10:$AO10>=DU$3)*IFERROR($FL9:$GW9/($D$3:$AO$3+$C9+$D10:$AO10-(Analyseår)),0))) -> 0 | IN9: =IF($C9="","",SUM(($D$3:$AO$3+$C9+$D10:$AO10>=DV$3)*IFERROR($FL9:$GW9/($D$3:$AO$3+$C9+$D10:$AO10-(Analyseår)),0))) -> 0 | IO9: =IF($C9="","",SUM(($D$3:$AO$3+$C9+$D10:$AO10>=DW$3)*IFERROR($FL9:$GW9/($D$3:$AO$3+$C9+$D10:$AO10-(Analyseår)),0))) -> 0 | IP9: =IF($C9="","",SUM(($D$3:$AO$3+$C9+$D10:$AO10>=DX$3)*IFERROR($FL9:$GW9/($D$3:$AO$3+$C9+$D10:$AO10-(Analyseår)),0))) -> 0 | IQ9: =IF($C9="","",SUM(($D$3:$AO$3+$C9+$D10:$AO10>=DY$3)*IFERROR($FL9:$GW9/($D$3:$AO$3+$C9+$D10:$AO10-(Analyseår)),0))) -> 0 | IR9: =IF($C9="","",SUM(($D$3:$AO$3+$C9+$D10:$AO10>=DZ$3)*IFERROR($FL9:$GW9/($D$3:$AO$3+$C9+$D10:$AO10-(Analyseår)),0))) -> 0 | IS9: =IF($C9="","",SUM(($D$3:$AO$3+$C9+$D10:$AO10>=EA$3)*IFERROR($FL9:$GW9/($D$3:$AO$3+$C9+$D10:$AO10-(Analyseår)),0))) -> 0 | IT9: =IF($C9="","",SUM(($D$3:$AO$3+$C9+$D10:$AO10>=EB$3)*IFERROR($FL9:$GW9/($D$3:$AO$3+$C9+$D10:$AO10-(Analyseår)),0))) -> 0 | IU9: =IF($C9="","",SUM(($D$3:$AO$3+$C9+$D10:$AO10>=EC$3)*IFERROR($FL9:$GW9/($D$3:$AO$3+$C9+$D10:$AO10-(Analyseår)),0))) -> 0 | IV9: =IF($C9="","",SUM(($D$3:$AO$3+$C9+$D10:$AO10>=ED$3)*IFERROR($FL9:$GW9/($D$3:$AO$3+$C9+$D10:$AO10-(Analyseår)),0))) -> 0 | IW9: =IF($C9="","",SUM(($D$3:$AO$3+$C9+$D10:$AO10>=EE$3)*IFERROR($FL9:$GW9/($D$3:$AO$3+$C9+$D10:$AO10-(Analyseår)),0))) -> 0 | IX9: =IF($C9="","",SUM(($D$3:$AO$3+$C9+$D10:$AO10>=EF$3)*IFERROR($FL9:$GW9/($D$3:$AO$3+$C9+$D10:$AO10-(Analyseår)),0))) -> 0 | IY9: =IF($C9="","",SUM(($D$3:$AO$3+$C9+$D10:$AO10>=EG$3)*IFERROR($FL9:$GW9/($D$3:$AO$3+$C9+$D10:$AO10-(Analyseår)),0))) -> 0 | IZ9: =IF($C9="","",SUM(($D$3:$AO$3+$C9+$D10:$AO10>=EH$3)*IFERROR($FL9:$GW9/($D$3:$AO$3+$C9+$D10:$AO10-(Analyseår)),0))) -> 0 | JA9: =IF($C9="","",SUM(($D$3:$AO$3+$C9+$D10:$AO10>=EI$3)*IFERROR($FL9:$GW9/($D$3:$AO$3+$C9+$D10:$AO10-(Analyseår)),0))) -> 0 | JB9: =IF($C9="","",SUM(($D$3:$AO$3+$C9+$D10:$AO10>=EJ$3)*IFERROR($FL9:$GW9/($D$3:$AO$3+$C9+$D10:$AO10-(Analyseår)),0))) -> 0 | JC9: =IF($C9="","",SUM(($D$3:$AO$3+$C9+$D10:$AO10>=EK$3)*IFERROR($FL9:$GW9/($D$3:$AO$3+$C9+$D10:$AO10-(Analyseår)),0))) -> 0 | JD9: =IF($C9="","",SUM(($D$3:$AO$3+$C9+$D10:$AO10>=EL$3)*IFERROR($FL9:$GW9/($D$3:$AO$3+$C9+$D10:$AO10-(Analyseår)),0))) -> 0 | JE9: =IF($C9="","",SUM(($D$3:$AO$3+$C9+$D10:$AO10>=EM$3)*IFERROR($FL9:$GW9/($D$3:$AO$3+$C9+$D10:$AO10-(Analyseår)),0))) -> 0 | JF9: =IF($C9="","",SUM(($D$3:$AO$3+$C9+$D10:$AO10>=EN$3)*IFERROR($FL9:$GW9/($D$3:$AO$3+$C9+$D10:$AO10-(Analyseår)),0))) -> 0 | JG9: =IF($C9="","",SUM(($D$3:$AO$3+$C9+$D10:$AO10>=EO$3)*IFERROR($FL9:$GW9/($D$3:$AO$3+$C9+$D10:$AO10-(Analyseår)),0))) -> 0 | JH9: =IF($C9="","",SUM(($D$3:$AO$3+$C9+$D10:$AO10>=EP$3)*IFERROR($FL9:$GW9/($D$3:$AO$3+$C9+$D10:$AO10-(Analyseår)),0))) -> 0 | JI9: =IF($C9="","",SUM(($D$3:$AO$3+$C9+$D10:$AO10>=EQ$3)*IFERROR($FL9:$GW9/($D$3:$AO$3+$C9+$D10:$AO10-(Analyseår)),0))) -> 0 | JJ9: =IF($C9="","",SUM(($D$3:$AO$3+$C9+$D10:$AO10>=ER$3)*IFERROR($FL9:$GW9/($D$3:$AO$3+$C9+$D10:$AO10-(Analyseår)),0))) -> 0 | JK9: =IF($C9="","",SUM(($D$3:$AO$3+$C9+$D10:$AO10>=ES$3)*IFERROR($FL9:$GW9/($D$3:$AO$3+$C9+$D10:$AO10-(Analyseår)),0))) -> 0 | JL9: =IF($C9="","",SUM(($D$3:$AO$3+$C9+$D10:$AO10>=ET$3)*IFERROR($FL9:$GW9/($D$3:$AO$3+$C9+$D10:$AO10-(Analyseår)),0))) -> 0 | JM9: =IF($C9="","",SUM(($D$3:$AO$3+$C9+$D10:$AO10>=EU$3)*IFERROR($FL9:$GW9/($D$3:$AO$3+$C9+$D10:$AO10-(Analyseår)),0))) -> 0 | JN9: =IF($C9="","",SUM(($D$3:$AO$3+$C9+$D10:$AO10>=EV$3)*IFERROR($FL9:$GW9/($D$3:$AO$3+$C9+$D10:$AO10-(Analyseår)),0))) -> 0 | JO9: =IF($C9="","",SUM(($D$3:$AO$3+$C9+$D10:$AO10>=EW$3)*IFERROR($FL9:$GW9/($D$3:$AO$3+$C9+$D10:$AO10-(Analyseår)),0))) -> 0 | JP9: =IF($C9="","",SUM(($D$3:$AO$3+$C9+$D10:$AO10>=EX$3)*IFERROR($FL9:$GW9/($D$3:$AO$3+$C9+$D10:$AO10-(Analyseår)),0))) -> 0 | JQ9: =IF($C9="","",SUM(($D$3:$AO$3+$C9+$D10:$AO10>=EY$3)*IFERROR($FL9:$GW9/($D$3:$AO$3+$C9+$D10:$AO10-(Analyseår)),0))) -> 0 | JR9: =IF($C9="","",SUM(($D$3:$AO$3+$C9+$D10:$AO10>=EZ$3)*IFERROR($FL9:$GW9/($D$3:$AO$3+$C9+$D10:$AO10-(Analyseår)),0))) -> 0 | JS9: =IF($C9="","",SUM(($D$3:$AO$3+$C9+$D10:$AO10>=FA$3)*IFERROR($FL9:$GW9/($D$3:$AO$3+$C9+$D10:$AO10-(Analyseår)),0))) -> 0 | JT9: =IF($C9="","",SUM(($D$3:$AO$3+$C9+$D10:$AO10>=FB$3)*IFERROR($FL9:$GW9/($D$3:$AO$3+$C9+$D10:$AO10-(Analyseår)),0))) -> 0 | JU9: =IF($C9="","",SUM(($D$3:$AO$3+$C9+$D10:$AO10>=FC$3)*IFERROR($FL9:$GW9/($D$3:$AO$3+$C9+$D10:$AO10-(Analyseår)),0))) -> 0 | JV9: =IF($C9="","",SUM(($D$3:$AO$3+$C9+$D10:$AO10>=FD$3)*IFERROR($FL9:$GW9/($D$3:$AO$3+$C9+$D10:$AO10-(Analyseår)),0))) -> 0 | JW9: =IF($C9="","",SUM(($D$3:$AO$3+$C9+$D10:$AO10>=FE$3)*IFERROR($FL9:$GW9/($D$3:$AO$3+$C9+$D10:$AO10-(Analyseår)),0))) -> 0 | JX9: =IF($C9="","",SUM(($D$3:$AO$3+$C9+$D10:$AO10>=FF$3)*IFERROR($FL9:$GW9/($D$3:$AO$3+$C9+$D10:$AO10-(Analyseår)),0))) -> 0 | JY9: =IF($C9="","",SUM(($D$3:$AO$3+$C9+$D10:$AO10>=FG$3)*IFERROR($FL9:$GW9/($D$3:$AO$3+$C9+$D10:$AO10-(Analyseår)),0))) -> 0 | JZ9: =IF($C9="","",SUM(($D$3:$AO$3+$C9+$D10:$AO10>=FH$3)*IFERROR($FL9:$GW9/($D$3:$AO$3+$C9+$D10:$AO10-(Analyseår)),0))) -> 0 | KA9: =IF($C9="","",SUM(($D$3:$AO$3+$C9+$D10:$AO10>=FI$3)*IFERROR($FL9:$GW9/($D$3:$AO$3+$C9+$D10:$AO10-(Analyseår)),0))) -> 0 | KB9: =IF($C9="","",SUM(($D$3:$AO$3+$C9+$D10:$AO10>=FJ$3)*IFERROR($FL9:$GW9/($D$3:$AO$3+$C9+$D10:$AO10-(Analyseår)),0))) -> 0
A10: Levetidsforlængelse | B10: År | D10: 0 | E10: 0 | F10: 0 | G10: 0 | H10: 0 | I10: 0 | J10: 0 | K10: 0 | L10: 0 | M10: 0 | N10: 0 | O10: 0 | P10: 0 | Q10: 0 | R10: 0 | S10: 0 | T10: 0 | U10: 0 | V10: 0 | W10: 0 | X10: 0 | Y10: 0 | Z10: 0 | AA10: 0 | AB10: 0 | AC10: 0 | AD10: 0 | AE10: 0 | AF10: 0 | AG10: 0 | AH10: 0 | AI10: 0 | AJ10: 0 | AK10: 0 | AL10: 0 | AM10: 0 | AN10: 0 | AO10: 0 | AT10: =IF($C10="","",MAX(D10 * INDEX(Genanskaffelsespriser!$G$2:$G$201,MATCH(1,($AQ10=Genanskaffelsespriser!$A$2:$A$201)*($AR10=Genanskaffelsespriser!$B$2:$B$201)*($AS10=Genanskaffelsespriser!$D$2:$D$201)*($A10=Genanskaffelsespriser!$C$2:$C$201),0)) * (1 - (Analyseår-AT$3)/($C10+D11)),0)) ->  | AU10: =IF($C10="","",MAX(E10 * INDEX(Genanskaffelsespriser!$G$2:$G$201,MATCH(1,($AQ10=Genanskaffelsespriser!$A$2:$A$201)*($AR10=Genanskaffelsespriser!$B$2:$B$201)*($AS10=Genanskaffelsespriser!$D$2:$D$201)*($A10=Genanskaffelsespriser!$C$2:$C$201),0)) * (1 - (Analyseår-AU$3)/($C10+E11)),0)) ->  | AV10: =IF($C10="","",MAX(F10 * INDEX(Genanskaffelsespriser!$G$2:$G$201,MATCH(1,($AQ10=Genanskaffelsespriser!$A$2:$A$201)*($AR10=Genanskaffelsespriser!$B$2:$B$201)*($AS10=Genanskaffelsespriser!$D$2:$D$201)*($A10=Genanskaffelsespriser!$C$2:$C$201),0)) * (1 - (Analyseår-AV$3)/($C10+F11)),0)) ->  | AW10: =IF($C10="","",MAX(G10 * INDEX(Genanskaffelsespriser!$G$2:$G$201,MATCH(1,($AQ10=Genanskaffelsespriser!$A$2:$A$201)*($AR10=Genanskaffelsespriser!$B$2:$B$201)*($AS10=Genanskaffelsespriser!$D$2:$D$201)*($A10=Genanskaffelsespriser!$C$2:$C$201),0)) * (1 - (Analyseår-AW$3)/($C10+G11)),0)) ->  | AX10: =IF($C10="","",MAX(H10 * INDEX(Genanskaffelsespriser!$G$2:$G$201,MATCH(1,($AQ10=Genanskaffelsespriser!$A$2:$A$201)*($AR10=Genanskaffelsespriser!$B$2:$B$201)*($AS10=Genanskaffelsespriser!$D$2:$D$201)*($A10=Genanskaffelsespriser!$C$2:$C$201),0)) * (1 - (Analyseår-AX$3)/($C10+H11)),0)) ->  | AY10: =IF($C10="","",MAX(I10 * INDEX(Genanskaffelsespriser!$G$2:$G$201,MATCH(1,($AQ10=Genanskaffelsespriser!$A$2:$A$201)*($AR10=Genanskaffelsespriser!$B$2:$B$201)*($AS10=Genanskaffelsespriser!$D$2:$D$201)*($A10=Genanskaffelsespriser!$C$2:$C$201),0)) * (1 - (Analyseår-AY$3)/($C10+I11)),0)) ->  | AZ10: =IF($C10="","",MAX(J10 * INDEX(Genanskaffelsespriser!$G$2:$G$201,MATCH(1,($AQ10=Genanskaffelsespriser!$A$2:$A$201)*($AR10=Genanskaffelsespriser!$B$2:$B$201)*($AS10=Genanskaffelsespriser!$D$2:$D$201)*($A10=Genanskaffelsespriser!$C$2:$C$201),0)) * (1 - (Analyseår-AZ$3)/($C10+J11)),0)) ->  | BA10: =IF($C10="","",MAX(K10 * INDEX(Genanskaffelsespriser!$G$2:$G$201,MATCH(1,($AQ10=Genanskaffelsespriser!$A$2:$A$201)*($AR10=Genanskaffelsespriser!$B$2:$B$201)*($AS10=Genanskaffelsespriser!$D$2:$D$201)*($A10=Genanskaffelsespriser!$C$2:$C$201),0)) * (1 - (Analyseår-BA$3)/($C10+K11)),0)) ->  | BB10: =IF($C10="","",MAX(L10 * INDEX(Genanskaffelsespriser!$G$2:$G$201,MATCH(1,($AQ10=Genanskaffelsespriser!$A$2:$A$201)*($AR10=Genanskaffelsespriser!$B$2:$B$201)*($AS10=Genanskaffelsespriser!$D$2:$D$201)*($A10=Genanskaffelsespriser!$C$2:$C$201),0)) * (1 - (Analyseår-BB$3)/($C10+L11)),0)) ->  | BC10: =IF($C10="","",MAX(M10 * INDEX(Genanskaffelsespriser!$G$2:$G$201,MATCH(1,($AQ10=Genanskaffelsespriser!$A$2:$A$201)*($AR10=Genanskaffelsespriser!$B$2:$B$201)*($AS10=Genanskaffelsespriser!$D$2:$D$201)*($A10=Genanskaffelsespriser!$C$2:$C$201),0)) * (1 - (Analyseår-BC$3)/($C10+M11)),0)) ->  | BD10: =IF($C10="","",MAX(N10 * INDEX(Genanskaffelsespriser!$G$2:$G$201,MATCH(1,($AQ10=Genanskaffelsespriser!$A$2:$A$201)*($AR10=Genanskaffelsespriser!$B$2:$B$201)*($AS10=Genanskaffelsespriser!$D$2:$D$201)*($A10=Genanskaffelsespriser!$C$2:$C$201),0)) * (1 - (Analyseår-BD$3)/($C10+N11)),0)) ->  | BE10: =IF($C10="","",MAX(O10 * INDEX(Genanskaffelsespriser!$G$2:$G$201,MATCH(1,($AQ10=Genanskaffelsespriser!$A$2:$A$201)*($AR10=Genanskaffelsespriser!$B$2:$B$201)*($AS10=Genanskaffelsespriser!$D$2:$D$201)*($A10=Genanskaffelsespriser!$C$2:$C$201),0)) * (1 - (Analyseår-BE$3)/($C10+O11)),0)) ->  | BF10: =IF($C10="","",MAX(P10 * INDEX(Genanskaffelsespriser!$G$2:$G$201,MATCH(1,($AQ10=Genanskaffelsespriser!$A$2:$A$201)*($AR10=Genanskaffelsespriser!$B$2:$B$201)*($AS10=Genanskaffelsespriser!$D$2:$D$201)*($A10=Genanskaffelsespriser!$C$2:$C$201),0)) * (1 - (Analyseår-BF$3)/($C10+P11)),0)) ->  | BG10: =IF($C10="","",MAX(Q10 * INDEX(Genanskaffelsespriser!$G$2:$G$201,MATCH(1,($AQ10=Genanskaffelsespriser!$A$2:$A$201)*($AR10=Genanskaffelsespriser!$B$2:$B$201)*($AS10=Genanskaffelsespriser!$D$2:$D$201)*($A10=Genanskaffelsespriser!$C$2:$C$201),0)) * (1 - (Analyseår-BG$3)/($C10+Q11)),0)) ->  | BH10: =IF($C10="","",MAX(R10 * INDEX(Genanskaffelsespriser!$G$2:$G$201,MATCH(1,($AQ10=Genanskaffelsespriser!$A$2:$A$201)*($AR10=Genanskaffelsespriser!$B$2:$B$201)*($AS10=Genanskaffelsespriser!$D$2:$D$201)*($A10=Genanskaffelsespriser!$C$2:$C$201),0)) * (1 - (Analyseår-BH$3)/($C10+R11)),0)) ->  | BI10: =IF($C10="","",MAX(S10 * INDEX(Genanskaffelsespriser!$G$2:$G$201,MATCH(1,($AQ10=Genanskaffelsespriser!$A$2:$A$201)*($AR10=Genanskaffelsespriser!$B$2:$B$201)*($AS10=Genanskaffelsespriser!$D$2:$D$201)*($A10=Genanskaffelsespriser!$C$2:$C$201),0)) * (1 - (Analyseår-BI$3)/($C10+S11)),0)) ->  | BJ10: =IF($C10="","",MAX(T10 * INDEX(Genanskaffelsespriser!$G$2:$G$201,MATCH(1,($AQ10=Genanskaffelsespriser!$A$2:$A$201)*($AR10=Genanskaffelsespriser!$B$2:$B$201)*($AS10=Genanskaffelsespriser!$D$2:$D$201)*($A10=Genanskaffelsespriser!$C$2:$C$201),0)) * (1 - (Analyseår-BJ$3)/($C10+T11)),0)) ->  | BK10: =IF($C10="","",MAX(U10 * INDEX(Genanskaffelsespriser!$G$2:$G$201,MATCH(1,($AQ10=Genanskaffelsespriser!$A$2:$A$201)*($AR10=Genanskaffelsespriser!$B$2:$B$201)*($AS10=Genanskaffelsespriser!$D$2:$D$201)*($A10=Genanskaffelsespriser!$C$2:$C$201),0)) * (1 - (Analyseår-BK$3)/($C10+U11)),0)) ->  | BL10: =IF($C10="","",MAX(V10 * INDEX(Genanskaffelsespriser!$G$2:$G$201,MATCH(1,($AQ10=Genanskaffelsespriser!$A$2:$A$201)*($AR10=Genanskaffelsespriser!$B$2:$B$201)*($AS10=Genanskaffelsespriser!$D$2:$D$201)*($A10=Genanskaffelsespriser!$C$2:$C$201),0)) * (1 - (Analyseår-BL$3)/($C10+V11)),0)) ->  | BM10: =IF($C10="","",MAX(W10 * INDEX(Genanskaffelsespriser!$G$2:$G$201,MATCH(1,($AQ10=Genanskaffelsespriser!$A$2:$A$201)*($AR10=Genanskaffelsespriser!$B$2:$B$201)*($AS10=Genanskaffelsespriser!$D$2:$D$201)*($A10=Genanskaffelsespriser!$C$2:$C$201),0)) * (1 - (Analyseår-BM$3)/($C10+W11)),0)) ->  | BN10: =IF($C10="","",MAX(X10 * INDEX(Genanskaffelsespriser!$G$2:$G$201,MATCH(1,($AQ10=Genanskaffelsespriser!$A$2:$A$201)*($AR10=Genanskaffelsespriser!$B$2:$B$201)*($AS10=Genanskaffelsespriser!$D$2:$D$201)*($A10=Genanskaffelsespriser!$C$2:$C$201),0)) * (1 - (Analyseår-BN$3)/($C10+X11)),0)) ->  | BO10: =IF($C10="","",MAX(Y10 * INDEX(Genanskaffelsespriser!$G$2:$G$201,MATCH(1,($AQ10=Genanskaffelsespriser!$A$2:$A$201)*($AR10=Genanskaffelsespriser!$B$2:$B$201)*($AS10=Genanskaffelsespriser!$D$2:$D$201)*($A10=Genanskaffelsespriser!$C$2:$C$201),0)) * (1 - (Analyseår-BO$3)/($C10+Y11)),0)) ->  | BP10: =IF($C10="","",MAX(Z10 * INDEX(Genanskaffelsespriser!$G$2:$G$201,MATCH(1,($AQ10=Genanskaffelsespriser!$A$2:$A$201)*($AR10=Genanskaffelsespriser!$B$2:$B$201)*($AS10=Genanskaffelsespriser!$D$2:$D$201)*($A10=Genanskaffelsespriser!$C$2:$C$201),0)) * (1 - (Analyseår-BP$3)/($C10+Z11)),0)) ->  | BQ10: =IF($C10="","",MAX(AA10 * INDEX(Genanskaffelsespriser!$G$2:$G$201,MATCH(1,($AQ10=Genanskaffelsespriser!$A$2:$A$201)*($AR10=Genanskaffelsespriser!$B$2:$B$201)*($AS10=Genanskaffelsespriser!$D$2:$D$201)*($A10=Genanskaffelsespriser!$C$2:$C$201),0)) * (1 - (Analyseår-BQ$3)/($C10+AA11)),0)) ->  | BR10: =IF($C10="","",MAX(AB10 * INDEX(Genanskaffelsespriser!$G$2:$G$201,MATCH(1,($AQ10=Genanskaffelsespriser!$A$2:$A$201)*($AR10=Genanskaffelsespriser!$B$2:$B$201)*($AS10=Genanskaffelsespriser!$D$2:$D$201)*($A10=Genanskaffelsespriser!$C$2:$C$201),0)) * (1 - (Analyseår-BR$3)/($C10+AB11)),0)) ->  | BS10: =IF($C10="","",MAX(AC10 * INDEX(Genanskaffelsespriser!$G$2:$G$201,MATCH(1,($AQ10=Genanskaffelsespriser!$A$2:$A$201)*($AR10=Genanskaffelsespriser!$B$2:$B$201)*($AS10=Genanskaffelsespriser!$D$2:$D$201)*($A10=Genanskaffelsespriser!$C$2:$C$201),0)) * (1 - (Analyseår-BS$3)/($C10+AC11)),0)) ->  | BT10: =IF($C10="","",MAX(AD10 * INDEX(Genanskaffelsespriser!$G$2:$G$201,MATCH(1,($AQ10=Genanskaffelsespriser!$A$2:$A$201)*($AR10=Genanskaffelsespriser!$B$2:$B$201)*($AS10=Genanskaffelsespriser!$D$2:$D$201)*($A10=Genanskaffelsespriser!$C$2:$C$201),0)) * (1 - (Analyseår-BT$3)/($C10+AD11)),0)) ->  | BU10: =IF($C10="","",MAX(AE10 * INDEX(Genanskaffelsespriser!$G$2:$G$201,MATCH(1,($AQ10=Genanskaffelsespriser!$A$2:$A$201)*($AR10=Genanskaffelsespriser!$B$2:$B$201)*($AS10=Genanskaffelsespriser!$D$2:$D$201)*($A10=Genanskaffelsespriser!$C$2:$C$201),0)) * (1 - (Analyseår-BU$3)/($C10+AE11)),0)) ->  | BV10: =IF($C10="","",MAX(AF10 * INDEX(Genanskaffelsespriser!$G$2:$G$201,MATCH(1,($AQ10=Genanskaffelsespriser!$A$2:$A$201)*($AR10=Genanskaffelsespriser!$B$2:$B$201)*($AS10=Genanskaffelsespriser!$D$2:$D$201)*($A10=Genanskaffelsespriser!$C$2:$C$201),0)) * (1 - (Analyseår-BV$3)/($C10+AF11)),0)) ->  | BW10: =IF($C10="","",MAX(AG10 * INDEX(Genanskaffelsespriser!$G$2:$G$201,MATCH(1,($AQ10=Genanskaffelsespriser!$A$2:$A$201)*($AR10=Genanskaffelsespriser!$B$2:$B$201)*($AS10=Genanskaffelsespriser!$D$2:$D$201)*($A10=Genanskaffelsespriser!$C$2:$C$201),0)) * (1 - (Analyseår-BW$3)/($C10+AG11)),0)) ->  | BX10: =IF($C10="","",MAX(AH10 * INDEX(Genanskaffelsespriser!$G$2:$G$201,MATCH(1,($AQ10=Genanskaffelsespriser!$A$2:$A$201)*($AR10=Genanskaffelsespriser!$B$2:$B$201)*($AS10=Genanskaffelsespriser!$D$2:$D$201)*($A10=Genanskaffelsespriser!$C$2:$C$201),0)) * (1 - (Analyseår-BX$3)/($C10+AH11)),0)) ->  | BY10: =IF($C10="","",MAX(AI10 * INDEX(Genanskaffelsespriser!$G$2:$G$201,MATCH(1,($AQ10=Genanskaffelsespriser!$A$2:$A$201)*($AR10=Genanskaffelsespriser!$B$2:$B$201)*($AS10=Genanskaffelsespriser!$D$2:$D$201)*($A10=Genanskaffelsespriser!$C$2:$C$201),0)) * (1 - (Analyseår-BY$3)/($C10+AI11)),0)) ->  | BZ10: =IF($C10="","",MAX(AJ10 * INDEX(Genanskaffelsespriser!$G$2:$G$201,MATCH(1,($AQ10=Genanskaffelsespriser!$A$2:$A$201)*($AR10=Genanskaffelsespriser!$B$2:$B$201)*($AS10=Genanskaffelsespriser!$D$2:$D$201)*($A10=Genanskaffelsespriser!$C$2:$C$201),0)) * (1 - (Analyseår-BZ$3)/($C10+AJ11)),0)) ->  | CA10: =IF($C10="","",MAX(AK10 * INDEX(Genanskaffelsespriser!$G$2:$G$201,MATCH(1,($AQ10=Genanskaffelsespriser!$A$2:$A$201)*($AR10=Genanskaffelsespriser!$B$2:$B$201)*($AS10=Genanskaffelsespriser!$D$2:$D$201)*($A10=Genanskaffelsespriser!$C$2:$C$201),0)) * (1 - (Analyseår-CA$3)/($C10+AK11)),0)) ->  | CB10: =IF($C10="","",MAX(AL10 * INDEX(Genanskaffelsespriser!$G$2:$G$201,MATCH(1,($AQ10=Genanskaffelsespriser!$A$2:$A$201)*($AR10=Genanskaffelsespriser!$B$2:$B$201)*($AS10=Genanskaffelsespriser!$D$2:$D$201)*($A10=Genanskaffelsespriser!$C$2:$C$201),0)) * (1 - (Analyseår-CB$3)/($C10+AL11)),0)) ->  | CC10: =IF($C10="","",MAX(AM10 * INDEX(Genanskaffelsespriser!$G$2:$G$201,MATCH(1,($AQ10=Genanskaffelsespriser!$A$2:$A$201)*($AR10=Genanskaffelsespriser!$B$2:$B$201)*($AS10=Genanskaffelsespriser!$D$2:$D$201)*($A10=Genanskaffelsespriser!$C$2:$C$201),0)) * (1 - (Analyseår-CC$3)/($C10+AM11)),0)) ->  | CD10: =IF($C10="","",MAX(AN10 * INDEX(Genanskaffelsespriser!$G$2:$G$201,MATCH(1,($AQ10=Genanskaffelsespriser!$A$2:$A$201)*($AR10=Genanskaffelsespriser!$B$2:$B$201)*($AS10=Genanskaffelsespriser!$D$2:$D$201)*($A10=Genanskaffelsespriser!$C$2:$C$201),0)) * (1 - (Analyseår-CD$3)/($C10+AN11)),0)) ->  | CE10: =IF($C10="","",MAX(AO10 * INDEX(Genanskaffelsespriser!$G$2:$G$201,MATCH(1,($AQ10=Genanskaffelsespriser!$A$2:$A$201)*($AR10=Genanskaffelsespriser!$B$2:$B$201)*($AS10=Genanskaffelsespriser!$D$2:$D$201)*($A10=Genanskaffelsespriser!$C$2:$C$201),0)) * (1 - (Analyseår-CE$3)/($C10+AO11)),0)) ->  | CG10: =IF($C10="","",SUM(($D$3:$AO$3+$C10+$D11:$AO11>=CG$3)*IFERROR($AT10:$CE10/($D$3:$AO$3+$C10+$D11:$AO11-Analyseår),0))) ->  | CH10: =IF($C10="","",SUM(($D$3:$AO$3+$C10+$D11:$AO11>=CH$3)*IFERROR($AT10:$CE10/($D$3:$AO$3+$C10+$D11:$AO11-Analyseår),0))) ->  | CI10: =IF($C10="","",SUM(($D$3:$AO$3+$C10+$D11:$AO11>=CI$3)*IFERROR($AT10:$CE10/($D$3:$AO$3+$C10+$D11:$AO11-Analyseår),0))) ->  | CJ10: =IF($C10="","",SUM(($D$3:$AO$3+$C10+$D11:$AO11>=CJ$3)*IFERROR($AT10:$CE10/($D$3:$AO$3+$C10+$D11:$AO11-Analyseår),0))) ->  | CK10: =IF($C10="","",SUM(($D$3:$AO$3+$C10+$D11:$AO11>=CK$3)*IFERROR($AT10:$CE10/($D$3:$AO$3+$C10+$D11:$AO11-Analyseår),0))) ->  | CL10: =IF($C10="","",SUM(($D$3:$AO$3+$C10+$D11:$AO11>=CL$3)*IFERROR($AT10:$CE10/($D$3:$AO$3+$C10+$D11:$AO11-Analyseår),0))) ->  | CM10: =IF($C10="","",SUM(($D$3:$AO$3+$C10+$D11:$AO11>=CM$3)*IFERROR($AT10:$CE10/($D$3:$AO$3+$C10+$D11:$AO11-Analyseår),0))) ->  | CN10: =IF($C10="","",SUM(($D$3:$AO$3+$C10+$D11:$AO11>=CN$3)*IFERROR($AT10:$CE10/($D$3:$AO$3+$C10+$D11:$AO11-Analyseår),0))) ->  | CO10: =IF($C10="","",SUM(($D$3:$AO$3+$C10+$D11:$AO11>=CO$3)*IFERROR($AT10:$CE10/($D$3:$AO$3+$C10+$D11:$AO11-Analyseår),0))) ->  | CP10: =IF($C10="","",SUM(($D$3:$AO$3+$C10+$D11:$AO11>=CP$3)*IFERROR($AT10:$CE10/($D$3:$AO$3+$C10+$D11:$AO11-Analyseår),0))) ->  | CQ10: =IF($C10="","",SUM(($D$3:$AO$3+$C10+$D11:$AO11>=CQ$3)*IFERROR($AT10:$CE10/($D$3:$AO$3+$C10+$D11:$AO11-Analyseår),0))) ->  | CR10: =IF($C10="","",SUM(($D$3:$AO$3+$C10+$D11:$AO11>=CR$3)*IFERROR($AT10:$CE10/($D$3:$AO$3+$C10+$D11:$AO11-Analyseår),0))) ->  | CS10: =IF($C10="","",SUM(($D$3:$AO$3+$C10+$D11:$AO11>=CS$3)*IFERROR($AT10:$CE10/($D$3:$AO$3+$C10+$D11:$AO11-Analyseår),0))) ->  | CT10: =IF($C10="","",SUM(($D$3:$AO$3+$C10+$D11:$AO11>=CT$3)*IFERROR($AT10:$CE10/($D$3:$AO$3+$C10+$D11:$AO11-Analyseår),0))) ->  | CU10: =IF($C10="","",SUM(($D$3:$AO$3+$C10+$D11:$AO11>=CU$3)*IFERROR($AT10:$CE10/($D$3:$AO$3+$C10+$D11:$AO11-Analyseår),0))) ->  | CV10: =IF($C10="","",SUM(($D$3:$AO$3+$C10+$D11:$AO11>=CV$3)*IFERROR($AT10:$CE10/($D$3:$AO$3+$C10+$D11:$AO11-Analyseår),0))) ->  | CW10: =IF($C10="","",SUM(($D$3:$AO$3+$C10+$D11:$AO11>=CW$3)*IFERROR($AT10:$CE10/($D$3:$AO$3+$C10+$D11:$AO11-Analyseår),0))) ->  | CX10: =IF($C10="","",SUM(($D$3:$AO$3+$C10+$D11:$AO11>=CX$3)*IFERROR($AT10:$CE10/($D$3:$AO$3+$C10+$D11:$AO11-Analyseår),0))) ->  | CY10: =IF($C10="","",SUM(($D$3:$AO$3+$C10+$D11:$AO11>=CY$3)*IFERROR($AT10:$CE10/($D$3:$AO$3+$C10+$D11:$AO11-Analyseår),0))) ->  | CZ10: =IF($C10="","",SUM(($D$3:$AO$3+$C10+$D11:$AO11>=CZ$3)*IFERROR($AT10:$CE10/($D$3:$AO$3+$C10+$D11:$AO11-Analyseår),0))) ->  | DA10: =IF($C10="","",SUM(($D$3:$AO$3+$C10+$D11:$AO11>=DA$3)*IFERROR($AT10:$CE10/($D$3:$AO$3+$C10+$D11:$AO11-Analyseår),0))) ->  | DB10: =IF($C10="","",SUM(($D$3:$AO$3+$C10+$D11:$AO11>=DB$3)*IFERROR($AT10:$CE10/($D$3:$AO$3+$C10+$D11:$AO11-Analyseår),0))) ->  | DC10: =IF($C10="","",SUM(($D$3:$AO$3+$C10+$D11:$AO11>=DC$3)*IFERROR($AT10:$CE10/($D$3:$AO$3+$C10+$D11:$AO11-Analyseår),0))) ->  | DD10: =IF($C10="","",SUM(($D$3:$AO$3+$C10+$D11:$AO11>=DD$3)*IFERROR($AT10:$CE10/($D$3:$AO$3+$C10+$D11:$AO11-Analyseår),0))) ->  | DE10: =IF($C10="","",SUM(($D$3:$AO$3+$C10+$D11:$AO11>=DE$3)*IFERROR($AT10:$CE10/($D$3:$AO$3+$C10+$D11:$AO11-Analyseår),0))) ->  | DF10: =IF($C10="","",SUM(($D$3:$AO$3+$C10+$D11:$AO11>=DF$3)*IFERROR($AT10:$CE10/($D$3:$AO$3+$C10+$D11:$AO11-Analyseår),0))) ->  | DG10: =IF($C10="","",SUM(($D$3:$AO$3+$C10+$D11:$AO11>=DG$3)*IFERROR($AT10:$CE10/($D$3:$AO$3+$C10+$D11:$AO11-Analyseår),0))) ->  | DH10: =IF($C10="","",SUM(($D$3:$AO$3+$C10+$D11:$AO11>=DH$3)*IFERROR($AT10:$CE10/($D$3:$AO$3+$C10+$D11:$AO11-Analyseår),0))) ->  | DI10: =IF($C10="","",SUM(($D$3:$AO$3+$C10+$D11:$AO11>=DI$3)*IFERROR($AT10:$CE10/($D$3:$AO$3+$C10+$D11:$AO11-Analyseår),0))) ->  | DJ10: =IF($C10="","",SUM(($D$3:$AO$3+$C10+$D11:$AO11>=DJ$3)*IFERROR($AT10:$CE10/($D$3:$AO$3+$C10+$D11:$AO11-Analyseår),0))) ->  | DK10: =IF($C10="","",SUM(($D$3:$AO$3+$C10+$D11:$AO11>=DK$3)*IFERROR($AT10:$CE10/($D$3:$AO$3+$C10+$D11:$AO11-Analyseår),0))) ->  | DL10: =IF($C10="","",SUM(($D$3:$AO$3+$C10+$D11:$AO11>=DL$3)*IFERROR($AT10:$CE10/($D$3:$AO$3+$C10+$D11:$AO11-Analyseår),0))) ->  | DM10: =IF($C10="","",SUM(($D$3:$AO$3+$C10+$D11:$AO11>=DM$3)*IFERROR($AT10:$CE10/($D$3:$AO$3+$C10+$D11:$AO11-Analyseår),0))) ->  | DN10: =IF($C10="","",SUM(($D$3:$AO$3+$C10+$D11:$AO11>=DN$3)*IFERROR($AT10:$CE10/($D$3:$AO$3+$C10+$D11:$AO11-Analyseår),0))) ->  | DO10: =IF($C10="","",SUM(($D$3:$AO$3+$C10+$D11:$AO11>=DO$3)*IFERROR($AT10:$CE10/($D$3:$AO$3+$C10+$D11:$AO11-Analyseår),0))) ->  | DP10: =IF($C10="","",SUM(($D$3:$AO$3+$C10+$D11:$AO11>=DP$3)*IFERROR($AT10:$CE10/($D$3:$AO$3+$C10+$D11:$AO11-Analyseår),0))) ->  | DQ10: =IF($C10="","",SUM(($D$3:$AO$3+$C10+$D11:$AO11>=DQ$3)*IFERROR($AT10:$CE10/($D$3:$AO$3+$C10+$D11:$AO11-Analyseår),0))) ->  | DR10: =IF($C10="","",SUM(($D$3:$AO$3+$C10+$D11:$AO11>=DR$3)*IFERROR($AT10:$CE10/($D$3:$AO$3+$C10+$D11:$AO11-Analyseår),0))) ->  | DS10: =IF($C10="","",SUM(($D$3:$AO$3+$C10+$D11:$AO11>=DS$3)*IFERROR($AT10:$CE10/($D$3:$AO$3+$C10+$D11:$AO11-Analyseår),0))) ->  | DT10: =IF($C10="","",SUM(($D$3:$AO$3+$C10+$D11:$AO11>=DT$3)*IFERROR($AT10:$CE10/($D$3:$AO$3+$C10+$D11:$AO11-Analyseår),0))) ->  | DU10: =IF($C10="","",SUM(($D$3:$AO$3+$C10+$D11:$AO11>=DU$3)*IFERROR($AT10:$CE10/($D$3:$AO$3+$C10+$D11:$AO11-Analyseår),0))) ->  | DV10: =IF($C10="","",SUM(($D$3:$AO$3+$C10+$D11:$AO11>=DV$3)*IFERROR($AT10:$CE10/($D$3:$AO$3+$C10+$D11:$AO11-Analyseår),0))) ->  | DW10: =IF($C10="","",SUM(($D$3:$AO$3+$C10+$D11:$AO11>=DW$3)*IFERROR($AT10:$CE10/($D$3:$AO$3+$C10+$D11:$AO11-Analyseår),0))) ->  | DX10: =IF($C10="","",SUM(($D$3:$AO$3+$C10+$D11:$AO11>=DX$3)*IFERROR($AT10:$CE10/($D$3:$AO$3+$C10+$D11:$AO11-Analyseår),0))) ->  | DY10: =IF($C10="","",SUM(($D$3:$AO$3+$C10+$D11:$AO11>=DY$3)*IFERROR($AT10:$CE10/($D$3:$AO$3+$C10+$D11:$AO11-Analyseår),0))) ->  | DZ10: =IF($C10="","",SUM(($D$3:$AO$3+$C10+$D11:$AO11>=DZ$3)*IFERROR($AT10:$CE10/($D$3:$AO$3+$C10+$D11:$AO11-Analyseår),0))) ->  | EA10: =IF($C10="","",SUM(($D$3:$AO$3+$C10+$D11:$AO11>=EA$3)*IFERROR($AT10:$CE10/($D$3:$AO$3+$C10+$D11:$AO11-Analyseår),0))) ->  | EB10: =IF($C10="","",SUM(($D$3:$AO$3+$C10+$D11:$AO11>=EB$3)*IFERROR($AT10:$CE10/($D$3:$AO$3+$C10+$D11:$AO11-Analyseår),0))) ->  | EC10: =IF($C10="","",SUM(($D$3:$AO$3+$C10+$D11:$AO11>=EC$3)*IFERROR($AT10:$CE10/($D$3:$AO$3+$C10+$D11:$AO11-Analyseår),0))) ->  | ED10: =IF($C10="","",SUM(($D$3:$AO$3+$C10+$D11:$AO11>=ED$3)*IFERROR($AT10:$CE10/($D$3:$AO$3+$C10+$D11:$AO11-Analyseår),0))) ->  | EE10: =IF($C10="","",SUM(($D$3:$AO$3+$C10+$D11:$AO11>=EE$3)*IFERROR($AT10:$CE10/($D$3:$AO$3+$C10+$D11:$AO11-Analyseår),0))) ->  | EF10: =IF($C10="","",SUM(($D$3:$AO$3+$C10+$D11:$AO11>=EF$3)*IFERROR($AT10:$CE10/($D$3:$AO$3+$C10+$D11:$AO11-Analyseår),0))) ->  | EG10: =IF($C10="","",SUM(($D$3:$AO$3+$C10+$D11:$AO11>=EG$3)*IFERROR($AT10:$CE10/($D$3:$AO$3+$C10+$D11:$AO11-Analyseår),0))) ->  | EH10: =IF($C10="","",SUM(($D$3:$AO$3+$C10+$D11:$AO11>=EH$3)*IFERROR($AT10:$CE10/($D$3:$AO$3+$C10+$D11:$AO11-Analyseår),0))) ->  | EI10: =IF($C10="","",SUM(($D$3:$AO$3+$C10+$D11:$AO11>=EI$3)*IFERROR($AT10:$CE10/($D$3:$AO$3+$C10+$D11:$AO11-Analyseår),0))) ->  | EJ10: =IF($C10="","",SUM(($D$3:$AO$3+$C10+$D11:$AO11>=EJ$3)*IFERROR($AT10:$CE10/($D$3:$AO$3+$C10+$D11:$AO11-Analyseår),0))) ->  | EK10: =IF($C10="","",SUM(($D$3:$AO$3+$C10+$D11:$AO11>=EK$3)*IFERROR($AT10:$CE10/($D$3:$AO$3+$C10+$D11:$AO11-Analyseår),0))) ->  | EL10: =IF($C10="","",SUM(($D$3:$AO$3+$C10+$D11:$AO11>=EL$3)*IFERROR($AT10:$CE10/($D$3:$AO$3+$C10+$D11:$AO11-Analyseår),0))) ->  | EM10: =IF($C10="","",SUM(($D$3:$AO$3+$C10+$D11:$AO11>=EM$3)*IFERROR($AT10:$CE10/($D$3:$AO$3+$C10+$D11:$AO11-Analyseår),0))) ->  | EN10: =IF($C10="","",SUM(($D$3:$AO$3+$C10+$D11:$AO11>=EN$3)*IFERROR($AT10:$CE10/($D$3:$AO$3+$C10+$D11:$AO11-Analyseår),0))) ->  | EO10: =IF($C10="","",SUM(($D$3:$AO$3+$C10+$D11:$AO11>=EO$3)*IFERROR($AT10:$CE10/($D$3:$AO$3+$C10+$D11:$AO11-Analyseår),0))) ->  | EP10: =IF($C10="","",SUM(($D$3:$AO$3+$C10+$D11:$AO11>=EP$3)*IFERROR($AT10:$CE10/($D$3:$AO$3+$C10+$D11:$AO11-Analyseår),0))) ->  | EQ10: =IF($C10="","",SUM(($D$3:$AO$3+$C10+$D11:$AO11>=EQ$3)*IFERROR($AT10:$CE10/($D$3:$AO$3+$C10+$D11:$AO11-Analyseår),0))) ->  | ER10: =IF($C10="","",SUM(($D$3:$AO$3+$C10+$D11:$AO11>=ER$3)*IFERROR($AT10:$CE10/($D$3:$AO$3+$C10+$D11:$AO11-Analyseår),0))) ->  | ES10: =IF($C10="","",SUM(($D$3:$AO$3+$C10+$D11:$AO11>=ES$3)*IFERROR($AT10:$CE10/($D$3:$AO$3+$C10+$D11:$AO11-Analyseår),0))) ->  | ET10: =IF($C10="","",SUM(($D$3:$AO$3+$C10+$D11:$AO11>=ET$3)*IFERROR($AT10:$CE10/($D$3:$AO$3+$C10+$D11:$AO11-Analyseår),0))) ->  | EU10: =IF($C10="","",SUM(($D$3:$AO$3+$C10+$D11:$AO11>=EU$3)*IFERROR($AT10:$CE10/($D$3:$AO$3+$C10+$D11:$AO11-Analyseår),0))) ->  | EV10: =IF($C10="","",SUM(($D$3:$AO$3+$C10+$D11:$AO11>=EV$3)*IFERROR($AT10:$CE10/($D$3:$AO$3+$C10+$D11:$AO11-Analyseår),0))) ->  | EW10: =IF($C10="","",SUM(($D$3:$AO$3+$C10+$D11:$AO11>=EW$3)*IFERROR($AT10:$CE10/($D$3:$AO$3+$C10+$D11:$AO11-Analyseår),0))) ->  | EX10: =IF($C10="","",SUM(($D$3:$AO$3+$C10+$D11:$AO11>=EX$3)*IFERROR($AT10:$CE10/($D$3:$AO$3+$C10+$D11:$AO11-Analyseår),0))) ->  | EY10: =IF($C10="","",SUM(($D$3:$AO$3+$C10+$D11:$AO11>=EY$3)*IFERROR($AT10:$CE10/($D$3:$AO$3+$C10+$D11:$AO11-Analyseår),0))) ->  | EZ10: =IF($C10="","",SUM(($D$3:$AO$3+$C10+$D11:$AO11>=EZ$3)*IFERROR($AT10:$CE10/($D$3:$AO$3+$C10+$D11:$AO11-Analyseår),0))) ->  | FA10: =IF($C10="","",SUM(($D$3:$AO$3+$C10+$D11:$AO11>=FA$3)*IFERROR($AT10:$CE10/($D$3:$AO$3+$C10+$D11:$AO11-Analyseår),0))) ->  | FB10: =IF($C10="","",SUM(($D$3:$AO$3+$C10+$D11:$AO11>=FB$3)*IFERROR($AT10:$CE10/($D$3:$AO$3+$C10+$D11:$AO11-Analyseår),0))) ->  | FC10: =IF($C10="","",SUM(($D$3:$AO$3+$C10+$D11:$AO11>=FC$3)*IFERROR($AT10:$CE10/($D$3:$AO$3+$C10+$D11:$AO11-Analyseår),0))) ->  | FD10: =IF($C10="","",SUM(($D$3:$AO$3+$C10+$D11:$AO11>=FD$3)*IFERROR($AT10:$CE10/($D$3:$AO$3+$C10+$D11:$AO11-Analyseår),0))) ->  | FE10: =IF($C10="","",SUM(($D$3:$AO$3+$C10+$D11:$AO11>=FE$3)*IFERROR($AT10:$CE10/($D$3:$AO$3+$C10+$D11:$AO11-Analyseår),0))) ->  | FF10: =IF($C10="","",SUM(($D$3:$AO$3+$C10+$D11:$AO11>=FF$3)*IFERROR($AT10:$CE10/($D$3:$AO$3+$C10+$D11:$AO11-Analyseår),0))) ->  | FG10: =IF($C10="","",SUM(($D$3:$AO$3+$C10+$D11:$AO11>=FG$3)*IFERROR($AT10:$CE10/($D$3:$AO$3+$C10+$D11:$AO11-Analyseår),0))) ->  | FH10: =IF($C10="","",SUM(($D$3:$AO$3+$C10+$D11:$AO11>=FH$3)*IFERROR($AT10:$CE10/($D$3:$AO$3+$C10+$D11:$AO11-Analyseår),0))) ->  | FI10: =IF($C10="","",SUM(($D$3:$AO$3+$C10+$D11:$AO11>=FI$3)*IFERROR($AT10:$CE10/($D$3:$AO$3+$C10+$D11:$AO11-Analyseår),0))) ->  | FJ10: =IF($C10="","",SUM(($D$3:$AO$3+$C10+$D11:$AO11>=FJ$3)*IFERROR($AT10:$CE10/($D$3:$AO$3+$C10+$D11:$AO11-Analyseår),0))) ->  | GY10: =IF($C10="","",SUM(($D$3:$AO$3+$C10+$D11:$AO11>=CG$3)*IFERROR($FL10:$GW10/($D$3:$AO$3+$C10+$D11:$AO11-(Analyseår)),0))) ->  | GZ10: =IF($C10="","",SUM(($D$3:$AO$3+$C10+$D11:$AO11>=CH$3)*IFERROR($FL10:$GW10/($D$3:$AO$3+$C10+$D11:$AO11-(Analyseår)),0))) ->  | HA10: =IF($C10="","",SUM(($D$3:$AO$3+$C10+$D11:$AO11>=CI$3)*IFERROR($FL10:$GW10/($D$3:$AO$3+$C10+$D11:$AO11-(Analyseår)),0))) ->  | HB10: =IF($C10="","",SUM(($D$3:$AO$3+$C10+$D11:$AO11>=CJ$3)*IFERROR($FL10:$GW10/($D$3:$AO$3+$C10+$D11:$AO11-(Analyseår)),0))) ->  | HC10: =IF($C10="","",SUM(($D$3:$AO$3+$C10+$D11:$AO11>=CK$3)*IFERROR($FL10:$GW10/($D$3:$AO$3+$C10+$D11:$AO11-(Analyseår)),0))) ->  | HD10: =IF($C10="","",SUM(($D$3:$AO$3+$C10+$D11:$AO11>=CL$3)*IFERROR($FL10:$GW10/($D$3:$AO$3+$C10+$D11:$AO11-(Analyseår)),0))) ->  | HE10: =IF($C10="","",SUM(($D$3:$AO$3+$C10+$D11:$AO11>=CM$3)*IFERROR($FL10:$GW10/($D$3:$AO$3+$C10+$D11:$AO11-(Analyseår)),0))) ->  | HF10: =IF($C10="","",SUM(($D$3:$AO$3+$C10+$D11:$AO11>=CN$3)*IFERROR($FL10:$GW10/($D$3:$AO$3+$C10+$D11:$AO11-(Analyseår)),0))) ->  | HG10: =IF($C10="","",SUM(($D$3:$AO$3+$C10+$D11:$AO11>=CO$3)*IFERROR($FL10:$GW10/($D$3:$AO$3+$C10+$D11:$AO11-(Analyseår)),0))) ->  | HH10: =IF($C10="","",SUM(($D$3:$AO$3+$C10+$D11:$AO11>=CP$3)*IFERROR($FL10:$GW10/($D$3:$AO$3+$C10+$D11:$AO11-(Analyseår)),0))) ->  | HI10: =IF($C10="","",SUM(($D$3:$AO$3+$C10+$D11:$AO11>=CQ$3)*IFERROR($FL10:$GW10/($D$3:$AO$3+$C10+$D11:$AO11-(Analyseår)),0))) ->  | HJ10: =IF($C10="","",SUM(($D$3:$AO$3+$C10+$D11:$AO11>=CR$3)*IFERROR($FL10:$GW10/($D$3:$AO$3+$C10+$D11:$AO11-(Analyseår)),0))) ->  | HK10: =IF($C10="","",SUM(($D$3:$AO$3+$C10+$D11:$AO11>=CS$3)*IFERROR($FL10:$GW10/($D$3:$AO$3+$C10+$D11:$AO11-(Analyseår)),0))) ->  | HL10: =IF($C10="","",SUM(($D$3:$AO$3+$C10+$D11:$AO11>=CT$3)*IFERROR($FL10:$GW10/($D$3:$AO$3+$C10+$D11:$AO11-(Analyseår)),0))) ->  | HM10: =IF($C10="","",SUM(($D$3:$AO$3+$C10+$D11:$AO11>=CU$3)*IFERROR($FL10:$GW10/($D$3:$AO$3+$C10+$D11:$AO11-(Analyseår)),0))) ->  | HN10: =IF($C10="","",SUM(($D$3:$AO$3+$C10+$D11:$AO11>=CV$3)*IFERROR($FL10:$GW10/($D$3:$AO$3+$C10+$D11:$AO11-(Analyseår)),0))) ->  | HO10: =IF($C10="","",SUM(($D$3:$AO$3+$C10+$D11:$AO11>=CW$3)*IFERROR($FL10:$GW10/($D$3:$AO$3+$C10+$D11:$AO11-(Analyseår)),0))) ->  | HP10: =IF($C10="","",SUM(($D$3:$AO$3+$C10+$D11:$AO11>=CX$3)*IFERROR($FL10:$GW10/($D$3:$AO$3+$C10+$D11:$AO11-(Analyseår)),0))) ->  | HQ10: =IF($C10="","",SUM(($D$3:$AO$3+$C10+$D11:$AO11>=CY$3)*IFERROR($FL10:$GW10/($D$3:$AO$3+$C10+$D11:$AO11-(Analyseår)),0))) ->  | HR10: =IF($C10="","",SUM(($D$3:$AO$3+$C10+$D11:$AO11>=CZ$3)*IFERROR($FL10:$GW10/($D$3:$AO$3+$C10+$D11:$AO11-(Analyseår)),0))) ->  | HS10: =IF($C10="","",SUM(($D$3:$AO$3+$C10+$D11:$AO11>=DA$3)*IFERROR($FL10:$GW10/($D$3:$AO$3+$C10+$D11:$AO11-(Analyseår)),0))) ->  | HT10: =IF($C10="","",SUM(($D$3:$AO$3+$C10+$D11:$AO11>=DB$3)*IFERROR($FL10:$GW10/($D$3:$AO$3+$C10+$D11:$AO11-(Analyseår)),0))) ->  | HU10: =IF($C10="","",SUM(($D$3:$AO$3+$C10+$D11:$AO11>=DC$3)*IFERROR($FL10:$GW10/($D$3:$AO$3+$C10+$D11:$AO11-(Analyseår)),0))) ->  | HV10: =IF($C10="","",SUM(($D$3:$AO$3+$C10+$D11:$AO11>=DD$3)*IFERROR($FL10:$GW10/($D$3:$AO$3+$C10+$D11:$AO11-(Analyseår)),0))) ->  | HW10: =IF($C10="","",SUM(($D$3:$AO$3+$C10+$D11:$AO11>=DE$3)*IFERROR($FL10:$GW10/($D$3:$AO$3+$C10+$D11:$AO11-(Analyseår)),0))) ->  | HX10: =IF($C10="","",SUM(($D$3:$AO$3+$C10+$D11:$AO11>=DF$3)*IFERROR($FL10:$GW10/($D$3:$AO$3+$C10+$D11:$AO11-(Analyseår)),0))) ->  | HY10: =IF($C10="","",SUM(($D$3:$AO$3+$C10+$D11:$AO11>=DG$3)*IFERROR($FL10:$GW10/($D$3:$AO$3+$C10+$D11:$AO11-(Analyseår)),0))) ->  | HZ10: =IF($C10="","",SUM(($D$3:$AO$3+$C10+$D11:$AO11>=DH$3)*IFERROR($FL10:$GW10/($D$3:$AO$3+$C10+$D11:$AO11-(Analyseår)),0))) ->  | IA10: =IF($C10="","",SUM(($D$3:$AO$3+$C10+$D11:$AO11>=DI$3)*IFERROR($FL10:$GW10/($D$3:$AO$3+$C10+$D11:$AO11-(Analyseår)),0))) ->  | IB10: =IF($C10="","",SUM(($D$3:$AO$3+$C10+$D11:$AO11>=DJ$3)*IFERROR($FL10:$GW10/($D$3:$AO$3+$C10+$D11:$AO11-(Analyseår)),0))) ->  | IC10: =IF($C10="","",SUM(($D$3:$AO$3+$C10+$D11:$AO11>=DK$3)*IFERROR($FL10:$GW10/($D$3:$AO$3+$C10+$D11:$AO11-(Analyseår)),0))) ->  | ID10: =IF($C10="","",SUM(($D$3:$AO$3+$C10+$D11:$AO11>=DL$3)*IFERROR($FL10:$GW10/($D$3:$AO$3+$C10+$D11:$AO11-(Analyseår)),0))) ->  | IE10: =IF($C10="","",SUM(($D$3:$AO$3+$C10+$D11:$AO11>=DM$3)*IFERROR($FL10:$GW10/($D$3:$AO$3+$C10+$D11:$AO11-(Analyseår)),0))) ->  | IF10: =IF($C10="","",SUM(($D$3:$AO$3+$C10+$D11:$AO11>=DN$3)*IFERROR($FL10:$GW10/($D$3:$AO$3+$C10+$D11:$AO11-(Analyseår)),0))) ->  | IG10: =IF($C10="","",SUM(($D$3:$AO$3+$C10+$D11:$AO11>=DO$3)*IFERROR($FL10:$GW10/($D$3:$AO$3+$C10+$D11:$AO11-(Analyseår)),0))) ->  | IH10: =IF($C10="","",SUM(($D$3:$AO$3+$C10+$D11:$AO11>=DP$3)*IFERROR($FL10:$GW10/($D$3:$AO$3+$C10+$D11:$AO11-(Analyseår)),0))) ->  | II10: =IF($C10="","",SUM(($D$3:$AO$3+$C10+$D11:$AO11>=DQ$3)*IFERROR($FL10:$GW10/($D$3:$AO$3+$C10+$D11:$AO11-(Analyseår)),0))) ->  | IJ10: =IF($C10="","",SUM(($D$3:$AO$3+$C10+$D11:$AO11>=DR$3)*IFERROR($FL10:$GW10/($D$3:$AO$3+$C10+$D11:$AO11-(Analyseår)),0))) ->  | IK10: =IF($C10="","",SUM(($D$3:$AO$3+$C10+$D11:$AO11>=DS$3)*IFERROR($FL10:$GW10/($D$3:$AO$3+$C10+$D11:$AO11-(Analyseår)),0))) ->  | IL10: =IF($C10="","",SUM(($D$3:$AO$3+$C10+$D11:$AO11>=DT$3)*IFERROR($FL10:$GW10/($D$3:$AO$3+$C10+$D11:$AO11-(Analyseår)),0))) ->  | IM10: =IF($C10="","",SUM(($D$3:$AO$3+$C10+$D11:$AO11>=DU$3)*IFERROR($FL10:$GW10/($D$3:$AO$3+$C10+$D11:$AO11-(Analyseår)),0))) ->  | IN10: =IF($C10="","",SUM(($D$3:$AO$3+$C10+$D11:$AO11>=DV$3)*IFERROR($FL10:$GW10/($D$3:$AO$3+$C10+$D11:$AO11-(Analyseår)),0))) ->  | IO10: =IF($C10="","",SUM(($D$3:$AO$3+$C10+$D11:$AO11>=DW$3)*IFERROR($FL10:$GW10/($D$3:$AO$3+$C10+$D11:$AO11-(Analyseår)),0))) ->  | IP10: =IF($C10="","",SUM(($D$3:$AO$3+$C10+$D11:$AO11>=DX$3)*IFERROR($FL10:$GW10/($D$3:$AO$3+$C10+$D11:$AO11-(Analyseår)),0))) ->  | IQ10: =IF($C10="","",SUM(($D$3:$AO$3+$C10+$D11:$AO11>=DY$3)*IFERROR($FL10:$GW10/($D$3:$AO$3+$C10+$D11:$AO11-(Analyseår)),0))) ->  | IR10: =IF($C10="","",SUM(($D$3:$AO$3+$C10+$D11:$AO11>=DZ$3)*IFERROR($FL10:$GW10/($D$3:$AO$3+$C10+$D11:$AO11-(Analyseår)),0))) ->  | IS10: =IF($C10="","",SUM(($D$3:$AO$3+$C10+$D11:$AO11>=EA$3)*IFERROR($FL10:$GW10/($D$3:$AO$3+$C10+$D11:$AO11-(Analyseår)),0))) ->  | IT10: =IF($C10="","",SUM(($D$3:$AO$3+$C10+$D11:$AO11>=EB$3)*IFERROR($FL10:$GW10/($D$3:$AO$3+$C10+$D11:$AO11-(Analyseår)),0))) ->  | IU10: =IF($C10="","",SUM(($D$3:$AO$3+$C10+$D11:$AO11>=EC$3)*IFERROR($FL10:$GW10/($D$3:$AO$3+$C10+$D11:$AO11-(Analyseår)),0))) ->  | IV10: =IF($C10="","",SUM(($D$3:$AO$3+$C10+$D11:$AO11>=ED$3)*IFERROR($FL10:$GW10/($D$3:$AO$3+$C10+$D11:$AO11-(Analyseår)),0))) ->  | IW10: =IF($C10="","",SUM(($D$3:$AO$3+$C10+$D11:$AO11>=EE$3)*IFERROR($FL10:$GW10/($D$3:$AO$3+$C10+$D11:$AO11-(Analyseår)),0))) ->  | IX10: =IF($C10="","",SUM(($D$3:$AO$3+$C10+$D11:$AO11>=EF$3)*IFERROR($FL10:$GW10/($D$3:$AO$3+$C10+$D11:$AO11-(Analyseår)),0))) ->  | IY10: =IF($C10="","",SUM(($D$3:$AO$3+$C10+$D11:$AO11>=EG$3)*IFERROR($FL10:$GW10/($D$3:$AO$3+$C10+$D11:$AO11-(Analyseår)),0))) ->  | IZ10: =IF($C10="","",SUM(($D$3:$AO$3+$C10+$D11:$AO11>=EH$3)*IFERROR($FL10:$GW10/($D$3:$AO$3+$C10+$D11:$AO11-(Analyseår)),0))) ->  | JA10: =IF($C10="","",SUM(($D$3:$AO$3+$C10+$D11:$AO11>=EI$3)*IFERROR($FL10:$GW10/($D$3:$AO$3+$C10+$D11:$AO11-(Analyseår)),0))) ->  | JB10: =IF($C10="","",SUM(($D$3:$AO$3+$C10+$D11:$AO11>=EJ$3)*IFERROR($FL10:$GW10/($D$3:$AO$3+$C10+$D11:$AO11-(Analyseår)),0))) ->  | JC10: =IF($C10="","",SUM(($D$3:$AO$3+$C10+$D11:$AO11>=EK$3)*IFERROR($FL10:$GW10/($D$3:$AO$3+$C10+$D11:$AO11-(Analyseår)),0))) ->  | JD10: =IF($C10="","",SUM(($D$3:$AO$3+$C10+$D11:$AO11>=EL$3)*IFERROR($FL10:$GW10/($D$3:$AO$3+$C10+$D11:$AO11-(Analyseår)),0))) ->  | JE10: =IF($C10="","",SUM(($D$3:$AO$3+$C10+$D11:$AO11>=EM$3)*IFERROR($FL10:$GW10/($D$3:$AO$3+$C10+$D11:$AO11-(Analyseår)),0))) ->  | JF10: =IF($C10="","",SUM(($D$3:$AO$3+$C10+$D11:$AO11>=EN$3)*IFERROR($FL10:$GW10/($D$3:$AO$3+$C10+$D11:$AO11-(Analyseår)),0))) ->  | JG10: =IF($C10="","",SUM(($D$3:$AO$3+$C10+$D11:$AO11>=EO$3)*IFERROR($FL10:$GW10/($D$3:$AO$3+$C10+$D11:$AO11-(Analyseår)),0))) ->  | JH10: =IF($C10="","",SUM(($D$3:$AO$3+$C10+$D11:$AO11>=EP$3)*IFERROR($FL10:$GW10/($D$3:$AO$3+$C10+$D11:$AO11-(Analyseår)),0))) ->  | JI10: =IF($C10="","",SUM(($D$3:$AO$3+$C10+$D11:$AO11>=EQ$3)*IFERROR($FL10:$GW10/($D$3:$AO$3+$C10+$D11:$AO11-(Analyseår)),0))) ->  | JJ10: =IF($C10="","",SUM(($D$3:$AO$3+$C10+$D11:$AO11>=ER$3)*IFERROR($FL10:$GW10/($D$3:$AO$3+$C10+$D11:$AO11-(Analyseår)),0))) ->  | JK10: =IF($C10="","",SUM(($D$3:$AO$3+$C10+$D11:$AO11>=ES$3)*IFERROR($FL10:$GW10/($D$3:$AO$3+$C10+$D11:$AO11-(Analyseår)),0))) ->  | JL10: =IF($C10="","",SUM(($D$3:$AO$3+$C10+$D11:$AO11>=ET$3)*IFERROR($FL10:$GW10/($D$3:$AO$3+$C10+$D11:$AO11-(Analyseår)),0))) ->  | JM10: =IF($C10="","",SUM(($D$3:$AO$3+$C10+$D11:$AO11>=EU$3)*IFERROR($FL10:$GW10/($D$3:$AO$3+$C10+$D11:$AO11-(Analyseår)),0))) ->  | JN10: =IF($C10="","",SUM(($D$3:$AO$3+$C10+$D11:$AO11>=EV$3)*IFERROR($FL10:$GW10/($D$3:$AO$3+$C10+$D11:$AO11-(Analyseår)),0))) ->  | JO10: =IF($C10="","",SUM(($D$3:$AO$3+$C10+$D11:$AO11>=EW$3)*IFERROR($FL10:$GW10/($D$3:$AO$3+$C10+$D11:$AO11-(Analyseår)),0))) ->  | JP10: =IF($C10="","",SUM(($D$3:$AO$3+$C10+$D11:$AO11>=EX$3)*IFERROR($FL10:$GW10/($D$3:$AO$3+$C10+$D11:$AO11-(Analyseår)),0))) ->  | JQ10: =IF($C10="","",SUM(($D$3:$AO$3+$C10+$D11:$AO11>=EY$3)*IFERROR($FL10:$GW10/($D$3:$AO$3+$C10+$D11:$AO11-(Analyseår)),0))) ->  | JR10: =IF($C10="","",SUM(($D$3:$AO$3+$C10+$D11:$AO11>=EZ$3)*IFERROR($FL10:$GW10/($D$3:$AO$3+$C10+$D11:$AO11-(Analyseår)),0))) ->  | JS10: =IF($C10="","",SUM(($D$3:$AO$3+$C10+$D11:$AO11>=FA$3)*IFERROR($FL10:$GW10/($D$3:$AO$3+$C10+$D11:$AO11-(Analyseår)),0))) ->  | JT10: =IF($C10="","",SUM(($D$3:$AO$3+$C10+$D11:$AO11>=FB$3)*IFERROR($FL10:$GW10/($D$3:$AO$3+$C10+$D11:$AO11-(Analyseår)),0))) ->  | JU10: =IF($C10="","",SUM(($D$3:$AO$3+$C10+$D11:$AO11>=FC$3)*IFERROR($FL10:$GW10/($D$3:$AO$3+$C10+$D11:$AO11-(Analyseår)),0))) ->  | JV10: =IF($C10="","",SUM(($D$3:$AO$3+$C10+$D11:$AO11>=FD$3)*IFERROR($FL10:$GW10/($D$3:$AO$3+$C10+$D11:$AO11-(Analyseår)),0))) ->  | JW10: =IF($C10="","",SUM(($D$3:$AO$3+$C10+$D11:$AO11>=FE$3)*IFERROR($FL10:$GW10/($D$3:$AO$3+$C10+$D11:$AO11-(Analyseår)),0))) ->  | JX10: =IF($C10="","",SUM(($D$3:$AO$3+$C10+$D11:$AO11>=FF$3)*IFERROR($FL10:$GW10/($D$3:$AO$3+$C10+$D11:$AO11-(Analyseår)),0))) ->  | JY10: =IF($C10="","",SUM(($D$3:$AO$3+$C10+$D11:$AO11>=FG$3)*IFERROR($FL10:$GW10/($D$3:$AO$3+$C10+$D11:$AO11-(Analyseår)),0))) ->  | JZ10: =IF($C10="","",SUM(($D$3:$AO$3+$C10+$D11:$AO11>=FH$3)*IFERROR($FL10:$GW10/($D$3:$AO$3+$C10+$D11:$AO11-(Analyseår)),0))) ->  | KA10: =IF($C10="","",SUM(($D$3:$AO$3+$C10+$D11:$AO11>=FI$3)*IFERROR($FL10:$GW10/($D$3:$AO$3+$C10+$D11:$AO11-(Analyseår)),0))) ->  | KB10: =IF($C10="","",SUM(($D$3:$AO$3+$C10+$D11:$AO11>=FJ$3)*IFERROR($FL10:$GW10/($D$3:$AO$3+$C10+$D11:$AO11-(Analyseår)),0))) -> 
A11: Affaldsanlæg. Fjernvarme Turnkey (Ej KV). 36,6 MJ/s ab værk. Med røggaskondensering. Typisk anlæg fra 2004 og frem | B11: MJ/s | C11: 25 | D11: 0 | E11: 0 | F11: 0 | G11: 0 | H11: 0 | I11: 0 | J11: 0 | K11: 0 | L11: 0 | M11: 0 | N11: 0 | O11: 0 | P11: 0 | Q11: 0 | R11: 0 | S11: 0 | T11: 0 | U11: 0 | V11: 0 | W11: 0 | X11: 0 | Y11: 0 | Z11: 0 | AA11: 0 | AB11: 0 | AC11: 0 | AD11: 0 | AE11: 0 | AF11: 0 | AG11: 0 | AH11: 0 | AI11: 0 | AJ11: 0 | AK11: 0 | AL11: 0 | AM11: 0 | AN11: 0 | AO11: 0 | AQ11: Varmeproducerende anlæg fordelt på energikilde | AR11: Affald | AS11: kr./MJ/s | AT11: =IF($C11="","",MAX(D11 * INDEX(Genanskaffelsespriser!$G$2:$G$201,MATCH(1,($AQ11=Genanskaffelsespriser!$A$2:$A$201)*($AR11=Genanskaffelsespriser!$B$2:$B$201)*($AS11=Genanskaffelsespriser!$D$2:$D$201)*($A11=Genanskaffelsespriser!$C$2:$C$201),0)) * (1 - (Analyseår-AT$3)/($C11+D12)),0)) -> 0 | AU11: =IF($C11="","",MAX(E11 * INDEX(Genanskaffelsespriser!$G$2:$G$201,MATCH(1,($AQ11=Genanskaffelsespriser!$A$2:$A$201)*($AR11=Genanskaffelsespriser!$B$2:$B$201)*($AS11=Genanskaffelsespriser!$D$2:$D$201)*($A11=Genanskaffelsespriser!$C$2:$C$201),0)) * (1 - (Analyseår-AU$3)/($C11+E12)),0)) -> 0 | AV11: =IF($C11="","",MAX(F11 * INDEX(Genanskaffelsespriser!$G$2:$G$201,MATCH(1,($AQ11=Genanskaffelsespriser!$A$2:$A$201)*($AR11=Genanskaffelsespriser!$B$2:$B$201)*($AS11=Genanskaffelsespriser!$D$2:$D$201)*($A11=Genanskaffelsespriser!$C$2:$C$201),0)) * (1 - (Analyseår-AV$3)/($C11+F12)),0)) -> 0 | AW11: =IF($C11="","",MAX(G11 * INDEX(Genanskaffelsespriser!$G$2:$G$201,MATCH(1,($AQ11=Genanskaffelsespriser!$A$2:$A$201)*($AR11=Genanskaffelsespriser!$B$2:$B$201)*($AS11=Genanskaffelsespriser!$D$2:$D$201)*($A11=Genanskaffelsespriser!$C$2:$C$201),0)) * (1 - (Analyseår-AW$3)/($C11+G12)),0)) -> 0 | AX11: =IF($C11="","",MAX(H11 * INDEX(Genanskaffelsespriser!$G$2:$G$201,MATCH(1,($AQ11=Genanskaffelsespriser!$A$2:$A$201)*($AR11=Genanskaffelsespriser!$B$2:$B$201)*($AS11=Genanskaffelsespriser!$D$2:$D$201)*($A11=Genanskaffelsespriser!$C$2:$C$201),0)) * (1 - (Analyseår-AX$3)/($C11+H12)),0)) -> 0 | AY11: =IF($C11="","",MAX(I11 * INDEX(Genanskaffelsespriser!$G$2:$G$201,MATCH(1,($AQ11=Genanskaffelsespriser!$A$2:$A$201)*($AR11=Genanskaffelsespriser!$B$2:$B$201)*($AS11=Genanskaffelsespriser!$D$2:$D$201)*($A11=Genanskaffelsespriser!$C$2:$C$201),0)) * (1 - (Analyseår-AY$3)/($C11+I12)),0)) -> 0 | AZ11: =IF($C11="","",MAX(J11 * INDEX(Genanskaffelsespriser!$G$2:$G$201,MATCH(1,($AQ11=Genanskaffelsespriser!$A$2:$A$201)*($AR11=Genanskaffelsespriser!$B$2:$B$201)*($AS11=Genanskaffelsespriser!$D$2:$D$201)*($A11=Genanskaffelsespriser!$C$2:$C$201),0)) * (1 - (Analyseår-AZ$3)/($C11+J12)),0)) -> 0 | BA11: =IF($C11="","",MAX(K11 * INDEX(Genanskaffelsespriser!$G$2:$G$201,MATCH(1,($AQ11=Genanskaffelsespriser!$A$2:$A$201)*($AR11=Genanskaffelsespriser!$B$2:$B$201)*($AS11=Genanskaffelsespriser!$D$2:$D$201)*($A11=Genanskaffelsespriser!$C$2:$C$201),0)) * (1 - (Analyseår-BA$3)/($C11+K12)),0)) -> 0 | BB11: =IF($C11="","",MAX(L11 * INDEX(Genanskaffelsespriser!$G$2:$G$201,MATCH(1,($AQ11=Genanskaffelsespriser!$A$2:$A$201)*($AR11=Genanskaffelsespriser!$B$2:$B$201)*($AS11=Genanskaffelsespriser!$D$2:$D$201)*($A11=Genanskaffelsespriser!$C$2:$C$201),0)) * (1 - (Analyseår-BB$3)/($C11+L12)),0)) -> 0 | BC11: =IF($C11="","",MAX(M11 * INDEX(Genanskaffelsespriser!$G$2:$G$201,MATCH(1,($AQ11=Genanskaffelsespriser!$A$2:$A$201)*($AR11=Genanskaffelsespriser!$B$2:$B$201)*($AS11=Genanskaffelsespriser!$D$2:$D$201)*($A11=Genanskaffelsespriser!$C$2:$C$201),0)) * (1 - (Analyseår-BC$3)/($C11+M12)),0)) -> 0 | BD11: =IF($C11="","",MAX(N11 * INDEX(Genanskaffelsespriser!$G$2:$G$201,MATCH(1,($AQ11=Genanskaffelsespriser!$A$2:$A$201)*($AR11=Genanskaffelsespriser!$B$2:$B$201)*($AS11=Genanskaffelsespriser!$D$2:$D$201)*($A11=Genanskaffelsespriser!$C$2:$C$201),0)) * (1 - (Analyseår-BD$3)/($C11+N12)),0)) -> 0 | BE11: =IF($C11="","",MAX(O11 * INDEX(Genanskaffelsespriser!$G$2:$G$201,MATCH(1,($AQ11=Genanskaffelsespriser!$A$2:$A$201)*($AR11=Genanskaffelsespriser!$B$2:$B$201)*($AS11=Genanskaffelsespriser!$D$2:$D$201)*($A11=Genanskaffelsespriser!$C$2:$C$201),0)) * (1 - (Analyseår-BE$3)/($C11+O12)),0)) -> 0 | BF11: =IF($C11="","",MAX(P11 * INDEX(Genanskaffelsespriser!$G$2:$G$201,MATCH(1,($AQ11=Genanskaffelsespriser!$A$2:$A$201)*($AR11=Genanskaffelsespriser!$B$2:$B$201)*($AS11=Genanskaffelsespriser!$D$2:$D$201)*($A11=Genanskaffelsespriser!$C$2:$C$201),0)) * (1 - (Analyseår-BF$3)/($C11+P12)),0)) -> 0 | BG11: =IF($C11="","",MAX(Q11 * INDEX(Genanskaffelsespriser!$G$2:$G$201,MATCH(1,($AQ11=Genanskaffelsespriser!$A$2:$A$201)*($AR11=Genanskaffelsespriser!$B$2:$B$201)*($AS11=Genanskaffelsespriser!$D$2:$D$201)*($A11=Genanskaffelsespriser!$C$2:$C$201),0)) * (1 - (Analyseår-BG$3)/($C11+Q12)),0)) -> 0 | BH11: =IF($C11="","",MAX(R11 * INDEX(Genanskaffelsespriser!$G$2:$G$201,MATCH(1,($AQ11=Genanskaffelsespriser!$A$2:$A$201)*($AR11=Genanskaffelsespriser!$B$2:$B$201)*($AS11=Genanskaffelsespriser!$D$2:$D$201)*($A11=Genanskaffelsespriser!$C$2:$C$201),0)) * (1 - (Analyseår-BH$3)/($C11+R12)),0)) -> 0 | BI11: =IF($C11="","",MAX(S11 * INDEX(Genanskaffelsespriser!$G$2:$G$201,MATCH(1,($AQ11=Genanskaffelsespriser!$A$2:$A$201)*($AR11=Genanskaffelsespriser!$B$2:$B$201)*($AS11=Genanskaffelsespriser!$D$2:$D$201)*($A11=Genanskaffelsespriser!$C$2:$C$201),0)) * (1 - (Analyseår-BI$3)/($C11+S12)),0)) -> 0 | BJ11: =IF($C11="","",MAX(T11 * INDEX(Genanskaffelsespriser!$G$2:$G$201,MATCH(1,($AQ11=Genanskaffelsespriser!$A$2:$A$201)*($AR11=Genanskaffelsespriser!$B$2:$B$201)*($AS11=Genanskaffelsespriser!$D$2:$D$201)*($A11=Genanskaffelsespriser!$C$2:$C$201),0)) * (1 - (Analyseår-BJ$3)/($C11+T12)),0)) -> 0 | BK11: =IF($C11="","",MAX(U11 * INDEX(Genanskaffelsespriser!$G$2:$G$201,MATCH(1,($AQ11=Genanskaffelsespriser!$A$2:$A$201)*($AR11=Genanskaffelsespriser!$B$2:$B$201)*($AS11=Genanskaffelsespriser!$D$2:$D$201)*($A11=Genanskaffelsespriser!$C$2:$C$201),0)) * (1 - (Analyseår-BK$3)/($C11+U12)),0)) -> 0 | BL11: =IF($C11="","",MAX(V11 * INDEX(Genanskaffelsespriser!$G$2:$G$201,MATCH(1,($AQ11=Genanskaffelsespriser!$A$2:$A$201)*($AR11=Genanskaffelsespriser!$B$2:$B$201)*($AS11=Genanskaffelsespriser!$D$2:$D$201)*($A11=Genanskaffelsespriser!$C$2:$C$201),0)) * (1 - (Analyseår-BL$3)/($C11+V12)),0)) -> 0 | BM11: =IF($C11="","",MAX(W11 * INDEX(Genanskaffelsespriser!$G$2:$G$201,MATCH(1,($AQ11=Genanskaffelsespriser!$A$2:$A$201)*($AR11=Genanskaffelsespriser!$B$2:$B$201)*($AS11=Genanskaffelsespriser!$D$2:$D$201)*($A11=Genanskaffelsespriser!$C$2:$C$201),0)) * (1 - (Analyseår-BM$3)/($C11+W12)),0)) -> 0 | BN11: =IF($C11="","",MAX(X11 * INDEX(Genanskaffelsespriser!$G$2:$G$201,MATCH(1,($AQ11=Genanskaffelsespriser!$A$2:$A$201)*($AR11=Genanskaffelsespriser!$B$2:$B$201)*($AS11=Genanskaffelsespriser!$D$2:$D$201)*($A11=Genanskaffelsespriser!$C$2:$C$201),0)) * (1 - (Analyseår-BN$3)/($C11+X12)),0)) -> 0 | BO11: =IF($C11="","",MAX(Y11 * INDEX(Genanskaffelsespriser!$G$2:$G$201,MATCH(1,($AQ11=Genanskaffelsespriser!$A$2:$A$201)*($AR11=Genanskaffelsespriser!$B$2:$B$201)*($AS11=Genanskaffelsespriser!$D$2:$D$201)*($A11=Genanskaffelsespriser!$C$2:$C$201),0)) * (1 - (Analyseår-BO$3)/($C11+Y12)),0)) -> 0 | BP11: =IF($C11="","",MAX(Z11 * INDEX(Genanskaffelsespriser!$G$2:$G$201,MATCH(1,($AQ11=Genanskaffelsespriser!$A$2:$A$201)*($AR11=Genanskaffelsespriser!$B$2:$B$201)*($AS11=Genanskaffelsespriser!$D$2:$D$201)*($A11=Genanskaffelsespriser!$C$2:$C$201),0)) * (1 - (Analyseår-BP$3)/($C11+Z12)),0)) -> 0 | BQ11: =IF($C11="","",MAX(AA11 * INDEX(Genanskaffelsespriser!$G$2:$G$201,MATCH(1,($AQ11=Genanskaffelsespriser!$A$2:$A$201)*($AR11=Genanskaffelsespriser!$B$2:$B$201)*($AS11=Genanskaffelsespriser!$D$2:$D$201)*($A11=Genanskaffelsespriser!$C$2:$C$201),0)) * (1 - (Analyseår-BQ$3)/($C11+AA12)),0)) -> 0 | BR11: =IF($C11="","",MAX(AB11 * INDEX(Genanskaffelsespriser!$G$2:$G$201,MATCH(1,($AQ11=Genanskaffelsespriser!$A$2:$A$201)*($AR11=Genanskaffelsespriser!$B$2:$B$201)*($AS11=Genanskaffelsespriser!$D$2:$D$201)*($A11=Genanskaffelsespriser!$C$2:$C$201),0)) * (1 - (Analyseår-BR$3)/($C11+AB12)),0)) -> 0 | BS11: =IF($C11="","",MAX(AC11 * INDEX(Genanskaffelsespriser!$G$2:$G$201,MATCH(1,($AQ11=Genanskaffelsespriser!$A$2:$A$201)*($AR11=Genanskaffelsespriser!$B$2:$B$201)*($AS11=Genanskaffelsespriser!$D$2:$D$201)*($A11=Genanskaffelsespriser!$C$2:$C$201),0)) * (1 - (Analyseår-BS$3)/($C11+AC12)),0)) -> 0 | BT11: =IF($C11="","",MAX(AD11 * INDEX(Genanskaffelsespriser!$G$2:$G$201,MATCH(1,($AQ11=Genanskaffelsespriser!$A$2:$A$201)*($AR11=Genanskaffelsespriser!$B$2:$B$201)*($AS11=Genanskaffelsespriser!$D$2:$D$201)*($A11=Genanskaffelsespriser!$C$2:$C$201),0)) * (1 - (Analyseår-BT$3)/($C11+AD12)),0)) -> 0 | BU11: =IF($C11="","",MAX(AE11 * INDEX(Genanskaffelsespriser!$G$2:$G$201,MATCH(1,($AQ11=Genanskaffelsespriser!$A$2:$A$201)*($AR11=Genanskaffelsespriser!$B$2:$B$201)*($AS11=Genanskaffelsespriser!$D$2:$D$201)*($A11=Genanskaffelsespriser!$C$2:$C$201),0)) * (1 - (Analyseår-BU$3)/($C11+AE12)),0)) -> 0 | BV11: =IF($C11="","",MAX(AF11 * INDEX(Genanskaffelsespriser!$G$2:$G$201,MATCH(1,($AQ11=Genanskaffelsespriser!$A$2:$A$201)*($AR11=Genanskaffelsespriser!$B$2:$B$201)*($AS11=Genanskaffelsespriser!$D$2:$D$201)*($A11=Genanskaffelsespriser!$C$2:$C$201),0)) * (1 - (Analyseår-BV$3)/($C11+AF12)),0)) -> 0 | BW11: =IF($C11="","",MAX(AG11 * INDEX(Genanskaffelsespriser!$G$2:$G$201,MATCH(1,($AQ11=Genanskaffelsespriser!$A$2:$A$201)*($AR11=Genanskaffelsespriser!$B$2:$B$201)*($AS11=Genanskaffelsespriser!$D$2:$D$201)*($A11=Genanskaffelsespriser!$C$2:$C$201),0)) * (1 - (Analyseår-BW$3)/($C11+AG12)),0)) -> 0 | BX11: =IF($C11="","",MAX(AH11 * INDEX(Genanskaffelsespriser!$G$2:$G$201,MATCH(1,($AQ11=Genanskaffelsespriser!$A$2:$A$201)*($AR11=Genanskaffelsespriser!$B$2:$B$201)*($AS11=Genanskaffelsespriser!$D$2:$D$201)*($A11=Genanskaffelsespriser!$C$2:$C$201),0)) * (1 - (Analyseår-BX$3)/($C11+AH12)),0)) -> 0 | BY11: =IF($C11="","",MAX(AI11 * INDEX(Genanskaffelsespriser!$G$2:$G$201,MATCH(1,($AQ11=Genanskaffelsespriser!$A$2:$A$201)*($AR11=Genanskaffelsespriser!$B$2:$B$201)*($AS11=Genanskaffelsespriser!$D$2:$D$201)*($A11=Genanskaffelsespriser!$C$2:$C$201),0)) * (1 - (Analyseår-BY$3)/($C11+AI12)),0)) -> 0 | BZ11: =IF($C11="","",MAX(AJ11 * INDEX(Genanskaffelsespriser!$G$2:$G$201,MATCH(1,($AQ11=Genanskaffelsespriser!$A$2:$A$201)*($AR11=Genanskaffelsespriser!$B$2:$B$201)*($AS11=Genanskaffelsespriser!$D$2:$D$201)*($A11=Genanskaffelsespriser!$C$2:$C$201),0)) * (1 - (Analyseår-BZ$3)/($C11+AJ12)),0)) -> 0 | CA11: =IF($C11="","",MAX(AK11 * INDEX(Genanskaffelsespriser!$G$2:$G$201,MATCH(1,($AQ11=Genanskaffelsespriser!$A$2:$A$201)*($AR11=Genanskaffelsespriser!$B$2:$B$201)*($AS11=Genanskaffelsespriser!$D$2:$D$201)*($A11=Genanskaffelsespriser!$C$2:$C$201),0)) * (1 - (Analyseår-CA$3)/($C11+AK12)),0)) -> 0 | CB11: =IF($C11="","",MAX(AL11 * INDEX(Genanskaffelsespriser!$G$2:$G$201,MATCH(1,($AQ11=Genanskaffelsespriser!$A$2:$A$201)*($AR11=Genanskaffelsespriser!$B$2:$B$201)*($AS11=Genanskaffelsespriser!$D$2:$D$201)*($A11=Genanskaffelsespriser!$C$2:$C$201),0)) * (1 - (Analyseår-CB$3)/($C11+AL12)),0)) -> 0 | CC11: =IF($C11="","",MAX(AM11 * INDEX(Genanskaffelsespriser!$G$2:$G$201,MATCH(1,($AQ11=Genanskaffelsespriser!$A$2:$A$201)*($AR11=Genanskaffelsespriser!$B$2:$B$201)*($AS11=Genanskaffelsespriser!$D$2:$D$201)*($A11=Genanskaffelsespriser!$C$2:$C$201),0)) * (1 - (Analyseår-CC$3)/($C11+AM12)),0)) -> 0 | CD11: =IF($C11="","",MAX(AN11 * INDEX(Genanskaffelsespriser!$G$2:$G$201,MATCH(1,($AQ11=Genanskaffelsespriser!$A$2:$A$201)*($AR11=Genanskaffelsespriser!$B$2:$B$201)*($AS11=Genanskaffelsespriser!$D$2:$D$201)*($A11=Genanskaffelsespriser!$C$2:$C$201),0)) * (1 - (Analyseår-CD$3)/($C11+AN12)),0)) -> 0 | CE11: =IF($C11="","",MAX(AO11 * INDEX(Genanskaffelsespriser!$G$2:$G$201,MATCH(1,($AQ11=Genanskaffelsespriser!$A$2:$A$201)*($AR11=Genanskaffelsespriser!$B$2:$B$201)*($AS11=Genanskaffelsespriser!$D$2:$D$201)*($A11=Genanskaffelsespriser!$C$2:$C$201),0)) * (1 - (Analyseår-CE$3)/($C11+AO12)),0)) -> 0 | CG11: =IF($C11="","",SUM(($D$3:$AO$3+$C11+$D12:$AO12>=CG$3)*IFERROR($AT11:$CE11/($D$3:$AO$3+$C11+$D12:$AO12-Analyseår),0))) -> 0 | CH11: =IF($C11="","",SUM(($D$3:$AO$3+$C11+$D12:$AO12>=CH$3)*IFERROR($AT11:$CE11/($D$3:$AO$3+$C11+$D12:$AO12-Analyseår),0))) -> 0 | CI11: =IF($C11="","",SUM(($D$3:$AO$3+$C11+$D12:$AO12>=CI$3)*IFERROR($AT11:$CE11/($D$3:$AO$3+$C11+$D12:$AO12-Analyseår),0))) -> 0 | CJ11: =IF($C11="","",SUM(($D$3:$AO$3+$C11+$D12:$AO12>=CJ$3)*IFERROR($AT11:$CE11/($D$3:$AO$3+$C11+$D12:$AO12-Analyseår),0))) -> 0 | CK11: =IF($C11="","",SUM(($D$3:$AO$3+$C11+$D12:$AO12>=CK$3)*IFERROR($AT11:$CE11/($D$3:$AO$3+$C11+$D12:$AO12-Analyseår),0))) -> 0 | CL11: =IF($C11="","",SUM(($D$3:$AO$3+$C11+$D12:$AO12>=CL$3)*IFERROR($AT11:$CE11/($D$3:$AO$3+$C11+$D12:$AO12-Analyseår),0))) -> 0 | CM11: =IF($C11="","",SUM(($D$3:$AO$3+$C11+$D12:$AO12>=CM$3)*IFERROR($AT11:$CE11/($D$3:$AO$3+$C11+$D12:$AO12-Analyseår),0))) -> 0 | CN11: =IF($C11="","",SUM(($D$3:$AO$3+$C11+$D12:$AO12>=CN$3)*IFERROR($AT11:$CE11/($D$3:$AO$3+$C11+$D12:$AO12-Analyseår),0))) -> 0 | CO11: =IF($C11="","",SUM(($D$3:$AO$3+$C11+$D12:$AO12>=CO$3)*IFERROR($AT11:$CE11/($D$3:$AO$3+$C11+$D12:$AO12-Analyseår),0))) -> 0 | CP11: =IF($C11="","",SUM(($D$3:$AO$3+$C11+$D12:$AO12>=CP$3)*IFERROR($AT11:$CE11/($D$3:$AO$3+$C11+$D12:$AO12-Analyseår),0))) -> 0 | CQ11: =IF($C11="","",SUM(($D$3:$AO$3+$C11+$D12:$AO12>=CQ$3)*IFERROR($AT11:$CE11/($D$3:$AO$3+$C11+$D12:$AO12-Analyseår),0))) -> 0 | CR11: =IF($C11="","",SUM(($D$3:$AO$3+$C11+$D12:$AO12>=CR$3)*IFERROR($AT11:$CE11/($D$3:$AO$3+$C11+$D12:$AO12-Analyseår),0))) -> 0 | CS11: =IF($C11="","",SUM(($D$3:$AO$3+$C11+$D12:$AO12>=CS$3)*IFERROR($AT11:$CE11/($D$3:$AO$3+$C11+$D12:$AO12-Analyseår),0))) -> 0 | CT11: =IF($C11="","",SUM(($D$3:$AO$3+$C11+$D12:$AO12>=CT$3)*IFERROR($AT11:$CE11/($D$3:$AO$3+$C11+$D12:$AO12-Analyseår),0))) -> 0 | CU11: =IF($C11="","",SUM(($D$3:$AO$3+$C11+$D12:$AO12>=CU$3)*IFERROR($AT11:$CE11/($D$3:$AO$3+$C11+$D12:$AO12-Analyseår),0))) -> 0 | CV11: =IF($C11="","",SUM(($D$3:$AO$3+$C11+$D12:$AO12>=CV$3)*IFERROR($AT11:$CE11/($D$3:$AO$3+$C11+$D12:$AO12-Analyseår),0))) -> 0 | CW11: =IF($C11="","",SUM(($D$3:$AO$3+$C11+$D12:$AO12>=CW$3)*IFERROR($AT11:$CE11/($D$3:$AO$3+$C11+$D12:$AO12-Analyseår),0))) -> 0 | CX11: =IF($C11="","",SUM(($D$3:$AO$3+$C11+$D12:$AO12>=CX$3)*IFERROR($AT11:$CE11/($D$3:$AO$3+$C11+$D12:$AO12-Analyseår),0))) -> 0 | CY11: =IF($C11="","",SUM(($D$3:$AO$3+$C11+$D12:$AO12>=CY$3)*IFERROR($AT11:$CE11/($D$3:$AO$3+$C11+$D12:$AO12-Analyseår),0))) -> 0 | CZ11: =IF($C11="","",SUM(($D$3:$AO$3+$C11+$D12:$AO12>=CZ$3)*IFERROR($AT11:$CE11/($D$3:$AO$3+$C11+$D12:$AO12-Analyseår),0))) -> 0 | DA11: =IF($C11="","",SUM(($D$3:$AO$3+$C11+$D12:$AO12>=DA$3)*IFERROR($AT11:$CE11/($D$3:$AO$3+$C11+$D12:$AO12-Analyseår),0))) -> 0 | DB11: =IF($C11="","",SUM(($D$3:$AO$3+$C11+$D12:$AO12>=DB$3)*IFERROR($AT11:$CE11/($D$3:$AO$3+$C11+$D12:$AO12-Analyseår),0))) -> 0 | DC11: =IF($C11="","",SUM(($D$3:$AO$3+$C11+$D12:$AO12>=DC$3)*IFERROR($AT11:$CE11/($D$3:$AO$3+$C11+$D12:$AO12-Analyseår),0))) -> 0 | DD11: =IF($C11="","",SUM(($D$3:$AO$3+$C11+$D12:$AO12>=DD$3)*IFERROR($AT11:$CE11/($D$3:$AO$3+$C11+$D12:$AO12-Analyseår),0))) -> 0 | DE11: =IF($C11="","",SUM(($D$3:$AO$3+$C11+$D12:$AO12>=DE$3)*IFERROR($AT11:$CE11/($D$3:$AO$3+$C11+$D12:$AO12-Analyseår),0))) -> 0 | DF11: =IF($C11="","",SUM(($D$3:$AO$3+$C11+$D12:$AO12>=DF$3)*IFERROR($AT11:$CE11/($D$3:$AO$3+$C11+$D12:$AO12-Analyseår),0))) -> 0 | DG11: =IF($C11="","",SUM(($D$3:$AO$3+$C11+$D12:$AO12>=DG$3)*IFERROR($AT11:$CE11/($D$3:$AO$3+$C11+$D12:$AO12-Analyseår),0))) -> 0 | DH11: =IF($C11="","",SUM(($D$3:$AO$3+$C11+$D12:$AO12>=DH$3)*IFERROR($AT11:$CE11/($D$3:$AO$3+$C11+$D12:$AO12-Analyseår),0))) -> 0 | DI11: =IF($C11="","",SUM(($D$3:$AO$3+$C11+$D12:$AO12>=DI$3)*IFERROR($AT11:$CE11/($D$3:$AO$3+$C11+$D12:$AO12-Analyseår),0))) -> 0 | DJ11: =IF($C11="","",SUM(($D$3:$AO$3+$C11+$D12:$AO12>=DJ$3)*IFERROR($AT11:$CE11/($D$3:$AO$3+$C11+$D12:$AO12-Analyseår),0))) -> 0 | DK11: =IF($C11="","",SUM(($D$3:$AO$3+$C11+$D12:$AO12>=DK$3)*IFERROR($AT11:$CE11/($D$3:$AO$3+$C11+$D12:$AO12-Analyseår),0))) -> 0 | DL11: =IF($C11="","",SUM(($D$3:$AO$3+$C11+$D12:$AO12>=DL$3)*IFERROR($AT11:$CE11/($D$3:$AO$3+$C11+$D12:$AO12-Analyseår),0))) -> 0 | DM11: =IF($C11="","",SUM(($D$3:$AO$3+$C11+$D12:$AO12>=DM$3)*IFERROR($AT11:$CE11/($D$3:$AO$3+$C11+$D12:$AO12-Analyseår),0))) -> 0 | DN11: =IF($C11="","",SUM(($D$3:$AO$3+$C11+$D12:$AO12>=DN$3)*IFERROR($AT11:$CE11/($D$3:$AO$3+$C11+$D12:$AO12-Analyseår),0))) -> 0 | DO11: =IF($C11="","",SUM(($D$3:$AO$3+$C11+$D12:$AO12>=DO$3)*IFERROR($AT11:$CE11/($D$3:$AO$3+$C11+$D12:$AO12-Analyseår),0))) -> 0 | DP11: =IF($C11="","",SUM(($D$3:$AO$3+$C11+$D12:$AO12>=DP$3)*IFERROR($AT11:$CE11/($D$3:$AO$3+$C11+$D12:$AO12-Analyseår),0))) -> 0 | DQ11: =IF($C11="","",SUM(($D$3:$AO$3+$C11+$D12:$AO12>=DQ$3)*IFERROR($AT11:$CE11/($D$3:$AO$3+$C11+$D12:$AO12-Analyseår),0))) -> 0 | DR11: =IF($C11="","",SUM(($D$3:$AO$3+$C11+$D12:$AO12>=DR$3)*IFERROR($AT11:$CE11/($D$3:$AO$3+$C11+$D12:$AO12-Analyseår),0))) -> 0 | DS11: =IF($C11="","",SUM(($D$3:$AO$3+$C11+$D12:$AO12>=DS$3)*IFERROR($AT11:$CE11/($D$3:$AO$3+$C11+$D12:$AO12-Analyseår),0))) -> 0 | DT11: =IF($C11="","",SUM(($D$3:$AO$3+$C11+$D12:$AO12>=DT$3)*IFERROR($AT11:$CE11/($D$3:$AO$3+$C11+$D12:$AO12-Analyseår),0))) -> 0 | DU11: =IF($C11="","",SUM(($D$3:$AO$3+$C11+$D12:$AO12>=DU$3)*IFERROR($AT11:$CE11/($D$3:$AO$3+$C11+$D12:$AO12-Analyseår),0))) -> 0 | DV11: =IF($C11="","",SUM(($D$3:$AO$3+$C11+$D12:$AO12>=DV$3)*IFERROR($AT11:$CE11/($D$3:$AO$3+$C11+$D12:$AO12-Analyseår),0))) -> 0 | DW11: =IF($C11="","",SUM(($D$3:$AO$3+$C11+$D12:$AO12>=DW$3)*IFERROR($AT11:$CE11/($D$3:$AO$3+$C11+$D12:$AO12-Analyseår),0))) -> 0 | DX11: =IF($C11="","",SUM(($D$3:$AO$3+$C11+$D12:$AO12>=DX$3)*IFERROR($AT11:$CE11/($D$3:$AO$3+$C11+$D12:$AO12-Analyseår),0))) -> 0 | DY11: =IF($C11="","",SUM(($D$3:$AO$3+$C11+$D12:$AO12>=DY$3)*IFERROR($AT11:$CE11/($D$3:$AO$3+$C11+$D12:$AO12-Analyseår),0))) -> 0 | DZ11: =IF($C11="","",SUM(($D$3:$AO$3+$C11+$D12:$AO12>=DZ$3)*IFERROR($AT11:$CE11/($D$3:$AO$3+$C11+$D12:$AO12-Analyseår),0))) -> 0 | EA11: =IF($C11="","",SUM(($D$3:$AO$3+$C11+$D12:$AO12>=EA$3)*IFERROR($AT11:$CE11/($D$3:$AO$3+$C11+$D12:$AO12-Analyseår),0))) -> 0 | EB11: =IF($C11="","",SUM(($D$3:$AO$3+$C11+$D12:$AO12>=EB$3)*IFERROR($AT11:$CE11/($D$3:$AO$3+$C11+$D12:$AO12-Analyseår),0))) -> 0 | EC11: =IF($C11="","",SUM(($D$3:$AO$3+$C11+$D12:$AO12>=EC$3)*IFERROR($AT11:$CE11/($D$3:$AO$3+$C11+$D12:$AO12-Analyseår),0))) -> 0 | ED11: =IF($C11="","",SUM(($D$3:$AO$3+$C11+$D12:$AO12>=ED$3)*IFERROR($AT11:$CE11/($D$3:$AO$3+$C11+$D12:$AO12-Analyseår),0))) -> 0 | EE11: =IF($C11="","",SUM(($D$3:$AO$3+$C11+$D12:$AO12>=EE$3)*IFERROR($AT11:$CE11/($D$3:$AO$3+$C11+$D12:$AO12-Analyseår),0))) -> 0 | EF11: =IF($C11="","",SUM(($D$3:$AO$3+$C11+$D12:$AO12>=EF$3)*IFERROR($AT11:$CE11/($D$3:$AO$3+$C11+$D12:$AO12-Analyseår),0))) -> 0 | EG11: =IF($C11="","",SUM(($D$3:$AO$3+$C11+$D12:$AO12>=EG$3)*IFERROR($AT11:$CE11/($D$3:$AO$3+$C11+$D12:$AO12-Analyseår),0))) -> 0 | EH11: =IF($C11="","",SUM(($D$3:$AO$3+$C11+$D12:$AO12>=EH$3)*IFERROR($AT11:$CE11/($D$3:$AO$3+$C11+$D12:$AO12-Analyseår),0))) -> 0 | EI11: =IF($C11="","",SUM(($D$3:$AO$3+$C11+$D12:$AO12>=EI$3)*IFERROR($AT11:$CE11/($D$3:$AO$3+$C11+$D12:$AO12-Analyseår),0))) -> 0 | EJ11: =IF($C11="","",SUM(($D$3:$AO$3+$C11+$D12:$AO12>=EJ$3)*IFERROR($AT11:$CE11/($D$3:$AO$3+$C11+$D12:$AO12-Analyseår),0))) -> 0 | EK11: =IF($C11="","",SUM(($D$3:$AO$3+$C11+$D12:$AO12>=EK$3)*IFERROR($AT11:$CE11/($D$3:$AO$3+$C11+$D12:$AO12-Analyseår),0))) -> 0 | EL11: =IF($C11="","",SUM(($D$3:$AO$3+$C11+$D12:$AO12>=EL$3)*IFERROR($AT11:$CE11/($D$3:$AO$3+$C11+$D12:$AO12-Analyseår),0))) -> 0 | EM11: =IF($C11="","",SUM(($D$3:$AO$3+$C11+$D12:$AO12>=EM$3)*IFERROR($AT11:$CE11/($D$3:$AO$3+$C11+$D12:$AO12-Analyseår),0))) -> 0 | EN11: =IF($C11="","",SUM(($D$3:$AO$3+$C11+$D12:$AO12>=EN$3)*IFERROR($AT11:$CE11/($D$3:$AO$3+$C11+$D12:$AO12-Analyseår),0))) -> 0 | EO11: =IF($C11="","",SUM(($D$3:$AO$3+$C11+$D12:$AO12>=EO$3)*IFERROR($AT11:$CE11/($D$3:$AO$3+$C11+$D12:$AO12-Analyseår),0))) -> 0 | EP11: =IF($C11="","",SUM(($D$3:$AO$3+$C11+$D12:$AO12>=EP$3)*IFERROR($AT11:$CE11/($D$3:$AO$3+$C11+$D12:$AO12-Analyseår),0))) -> 0 | EQ11: =IF($C11="","",SUM(($D$3:$AO$3+$C11+$D12:$AO12>=EQ$3)*IFERROR($AT11:$CE11/($D$3:$AO$3+$C11+$D12:$AO12-Analyseår),0))) -> 0 | ER11: =IF($C11="","",SUM(($D$3:$AO$3+$C11+$D12:$AO12>=ER$3)*IFERROR($AT11:$CE11/($D$3:$AO$3+$C11+$D12:$AO12-Analyseår),0))) -> 0 | ES11: =IF($C11="","",SUM(($D$3:$AO$3+$C11+$D12:$AO12>=ES$3)*IFERROR($AT11:$CE11/($D$3:$AO$3+$C11+$D12:$AO12-Analyseår),0))) -> 0 | ET11: =IF($C11="","",SUM(($D$3:$AO$3+$C11+$D12:$AO12>=ET$3)*IFERROR($AT11:$CE11/($D$3:$AO$3+$C11+$D12:$AO12-Analyseår),0))) -> 0 | EU11: =IF($C11="","",SUM(($D$3:$AO$3+$C11+$D12:$AO12>=EU$3)*IFERROR($AT11:$CE11/($D$3:$AO$3+$C11+$D12:$AO12-Analyseår),0))) -> 0 | EV11: =IF($C11="","",SUM(($D$3:$AO$3+$C11+$D12:$AO12>=EV$3)*IFERROR($AT11:$CE11/($D$3:$AO$3+$C11+$D12:$AO12-Analyseår),0))) -> 0 | EW11: =IF($C11="","",SUM(($D$3:$AO$3+$C11+$D12:$AO12>=EW$3)*IFERROR($AT11:$CE11/($D$3:$AO$3+$C11+$D12:$AO12-Analyseår),0))) -> 0 | EX11: =IF($C11="","",SUM(($D$3:$AO$3+$C11+$D12:$AO12>=EX$3)*IFERROR($AT11:$CE11/($D$3:$AO$3+$C11+$D12:$AO12-Analyseår),0))) -> 0 | EY11: =IF($C11="","",SUM(($D$3:$AO$3+$C11+$D12:$AO12>=EY$3)*IFERROR($AT11:$CE11/($D$3:$AO$3+$C11+$D12:$AO12-Analyseår),0))) -> 0 | EZ11: =IF($C11="","",SUM(($D$3:$AO$3+$C11+$D12:$AO12>=EZ$3)*IFERROR($AT11:$CE11/($D$3:$AO$3+$C11+$D12:$AO12-Analyseår),0))) -> 0 | FA11: =IF($C11="","",SUM(($D$3:$AO$3+$C11+$D12:$AO12>=FA$3)*IFERROR($AT11:$CE11/($D$3:$AO$3+$C11+$D12:$AO12-Analyseår),0))) -> 0 | FB11: =IF($C11="","",SUM(($D$3:$AO$3+$C11+$D12:$AO12>=FB$3)*IFERROR($AT11:$CE11/($D$3:$AO$3+$C11+$D12:$AO12-Analyseår),0))) -> 0 | FC11: =IF($C11="","",SUM(($D$3:$AO$3+$C11+$D12:$AO12>=FC$3)*IFERROR($AT11:$CE11/($D$3:$AO$3+$C11+$D12:$AO12-Analyseår),0))) -> 0 | FD11: =IF($C11="","",SUM(($D$3:$AO$3+$C11+$D12:$AO12>=FD$3)*IFERROR($AT11:$CE11/($D$3:$AO$3+$C11+$D12:$AO12-Analyseår),0))) -> 0 | FE11: =IF($C11="","",SUM(($D$3:$AO$3+$C11+$D12:$AO12>=FE$3)*IFERROR($AT11:$CE11/($D$3:$AO$3+$C11+$D12:$AO12-Analyseår),0))) -> 0 | FF11: =IF($C11="","",SUM(($D$3:$AO$3+$C11+$D12:$AO12>=FF$3)*IFERROR($AT11:$CE11/($D$3:$AO$3+$C11+$D12:$AO12-Analyseår),0))) -> 0 | FG11: =IF($C11="","",SUM(($D$3:$AO$3+$C11+$D12:$AO12>=FG$3)*IFERROR($AT11:$CE11/($D$3:$AO$3+$C11+$D12:$AO12-Analyseår),0))) -> 0 | FH11: =IF($C11="","",SUM(($D$3:$AO$3+$C11+$D12:$AO12>=FH$3)*IFERROR($AT11:$CE11/($D$3:$AO$3+$C11+$D12:$AO12-Analyseår),0))) -> 0 | FI11: =IF($C11="","",SUM(($D$3:$AO$3+$C11+$D12:$AO12>=FI$3)*IFERROR($AT11:$CE11/($D$3:$AO$3+$C11+$D12:$AO12-Analyseår),0))) -> 0 | FJ11: =IF($C11="","",SUM(($D$3:$AO$3+$C11+$D12:$AO12>=FJ$3)*IFERROR($AT11:$CE11/($D$3:$AO$3+$C11+$D12:$AO12-Analyseår),0))) -> 0 | FL11: 0 | FM11: 0 | FN11: 0 | FO11: 0 | FP11: 0 | FQ11: 0 | FR11: 0 | FS11: 0 | FT11: 0 | FU11: 0 | FV11: 0 | FW11: 0 | FX11: 0 | FY11: 0 | FZ11: 0 | GA11: 0 | GB11: 0 | GC11: 0 | GD11: 0 | GE11: 0 | GF11: 0 | GG11: 0 | GH11: 0 | GI11: 0 | GJ11: 0 | GK11: 0 | GL11: 0 | GM11: 0 | GN11: 0 | GO11: 0 | GP11: 0 | GQ11: 0 | GR11: 0 | GS11: 0 | GT11: 0 | GU11: 0 | GV11: 0 | GW11: 0 | GY11: =IF($C11="","",SUM(($D$3:$AO$3+$C11+$D12:$AO12>=CG$3)*IFERROR($FL11:$GW11/($D$3:$AO$3+$C11+$D12:$AO12-(Analyseår)),0))) -> 0 | GZ11: =IF($C11="","",SUM(($D$3:$AO$3+$C11+$D12:$AO12>=CH$3)*IFERROR($FL11:$GW11/($D$3:$AO$3+$C11+$D12:$AO12-(Analyseår)),0))) -> 0 | HA11: =IF($C11="","",SUM(($D$3:$AO$3+$C11+$D12:$AO12>=CI$3)*IFERROR($FL11:$GW11/($D$3:$AO$3+$C11+$D12:$AO12-(Analyseår)),0))) -> 0 | HB11: =IF($C11="","",SUM(($D$3:$AO$3+$C11+$D12:$AO12>=CJ$3)*IFERROR($FL11:$GW11/($D$3:$AO$3+$C11+$D12:$AO12-(Analyseår)),0))) -> 0 | HC11: =IF($C11="","",SUM(($D$3:$AO$3+$C11+$D12:$AO12>=CK$3)*IFERROR($FL11:$GW11/($D$3:$AO$3+$C11+$D12:$AO12-(Analyseår)),0))) -> 0 | HD11: =IF($C11="","",SUM(($D$3:$AO$3+$C11+$D12:$AO12>=CL$3)*IFERROR($FL11:$GW11/($D$3:$AO$3+$C11+$D12:$AO12-(Analyseår)),0))) -> 0 | HE11: =IF($C11="","",SUM(($D$3:$AO$3+$C11+$D12:$AO12>=CM$3)*IFERROR($FL11:$GW11/($D$3:$AO$3+$C11+$D12:$AO12-(Analyseår)),0))) -> 0 | HF11: =IF($C11="","",SUM(($D$3:$AO$3+$C11+$D12:$AO12>=CN$3)*IFERROR($FL11:$GW11/($D$3:$AO$3+$C11+$D12:$AO12-(Analyseår)),0))) -> 0 | HG11: =IF($C11="","",SUM(($D$3:$AO$3+$C11+$D12:$AO12>=CO$3)*IFERROR($FL11:$GW11/($D$3:$AO$3+$C11+$D12:$AO12-(Analyseår)),0))) -> 0 | HH11: =IF($C11="","",SUM(($D$3:$AO$3+$C11+$D12:$AO12>=CP$3)*IFERROR($FL11:$GW11/($D$3:$AO$3+$C11+$D12:$AO12-(Analyseår)),0))) -> 0 | HI11: =IF($C11="","",SUM(($D$3:$AO$3+$C11+$D12:$AO12>=CQ$3)*IFERROR($FL11:$GW11/($D$3:$AO$3+$C11+$D12:$AO12-(Analyseår)),0))) -> 0 | HJ11: =IF($C11="","",SUM(($D$3:$AO$3+$C11+$D12:$AO12>=CR$3)*IFERROR($FL11:$GW11/($D$3:$AO$3+$C11+$D12:$AO12-(Analyseår)),0))) -> 0 | HK11: =IF($C11="","",SUM(($D$3:$AO$3+$C11+$D12:$AO12>=CS$3)*IFERROR($FL11:$GW11/($D$3:$AO$3+$C11+$D12:$AO12-(Analyseår)),0))) -> 0 | HL11: =IF($C11="","",SUM(($D$3:$AO$3+$C11+$D12:$AO12>=CT$3)*IFERROR($FL11:$GW11/($D$3:$AO$3+$C11+$D12:$AO12-(Analyseår)),0))) -> 0 | HM11: =IF($C11="","",SUM(($D$3:$AO$3+$C11+$D12:$AO12>=CU$3)*IFERROR($FL11:$GW11/($D$3:$AO$3+$C11+$D12:$AO12-(Analyseår)),0))) -> 0 | HN11: =IF($C11="","",SUM(($D$3:$AO$3+$C11+$D12:$AO12>=CV$3)*IFERROR($FL11:$GW11/($D$3:$AO$3+$C11+$D12:$AO12-(Analyseår)),0))) -> 0 | HO11: =IF($C11="","",SUM(($D$3:$AO$3+$C11+$D12:$AO12>=CW$3)*IFERROR($FL11:$GW11/($D$3:$AO$3+$C11+$D12:$AO12-(Analyseår)),0))) -> 0 | HP11: =IF($C11="","",SUM(($D$3:$AO$3+$C11+$D12:$AO12>=CX$3)*IFERROR($FL11:$GW11/($D$3:$AO$3+$C11+$D12:$AO12-(Analyseår)),0))) -> 0 | HQ11: =IF($C11="","",SUM(($D$3:$AO$3+$C11+$D12:$AO12>=CY$3)*IFERROR($FL11:$GW11/($D$3:$AO$3+$C11+$D12:$AO12-(Analyseår)),0))) -> 0 | HR11: =IF($C11="","",SUM(($D$3:$AO$3+$C11+$D12:$AO12>=CZ$3)*IFERROR($FL11:$GW11/($D$3:$AO$3+$C11+$D12:$AO12-(Analyseår)),0))) -> 0 | HS11: =IF($C11="","",SUM(($D$3:$AO$3+$C11+$D12:$AO12>=DA$3)*IFERROR($FL11:$GW11/($D$3:$AO$3+$C11+$D12:$AO12-(Analyseår)),0))) -> 0 | HT11: =IF($C11="","",SUM(($D$3:$AO$3+$C11+$D12:$AO12>=DB$3)*IFERROR($FL11:$GW11/($D$3:$AO$3+$C11+$D12:$AO12-(Analyseår)),0))) -> 0 | HU11: =IF($C11="","",SUM(($D$3:$AO$3+$C11+$D12:$AO12>=DC$3)*IFERROR($FL11:$GW11/($D$3:$AO$3+$C11+$D12:$AO12-(Analyseår)),0))) -> 0 | HV11: =IF($C11="","",SUM(($D$3:$AO$3+$C11+$D12:$AO12>=DD$3)*IFERROR($FL11:$GW11/($D$3:$AO$3+$C11+$D12:$AO12-(Analyseår)),0))) -> 0 | HW11: =IF($C11="","",SUM(($D$3:$AO$3+$C11+$D12:$AO12>=DE$3)*IFERROR($FL11:$GW11/($D$3:$AO$3+$C11+$D12:$AO12-(Analyseår)),0))) -> 0 | HX11: =IF($C11="","",SUM(($D$3:$AO$3+$C11+$D12:$AO12>=DF$3)*IFERROR($FL11:$GW11/($D$3:$AO$3+$C11+$D12:$AO12-(Analyseår)),0))) -> 0 | HY11: =IF($C11="","",SUM(($D$3:$AO$3+$C11+$D12:$AO12>=DG$3)*IFERROR($FL11:$GW11/($D$3:$AO$3+$C11+$D12:$AO12-(Analyseår)),0))) -> 0 | HZ11: =IF($C11="","",SUM(($D$3:$AO$3+$C11+$D12:$AO12>=DH$3)*IFERROR($FL11:$GW11/($D$3:$AO$3+$C11+$D12:$AO12-(Analyseår)),0))) -> 0 | IA11: =IF($C11="","",SUM(($D$3:$AO$3+$C11+$D12:$AO12>=DI$3)*IFERROR($FL11:$GW11/($D$3:$AO$3+$C11+$D12:$AO12-(Analyseår)),0))) -> 0 | IB11: =IF($C11="","",SUM(($D$3:$AO$3+$C11+$D12:$AO12>=DJ$3)*IFERROR($FL11:$GW11/($D$3:$AO$3+$C11+$D12:$AO12-(Analyseår)),0))) -> 0 | IC11: =IF($C11="","",SUM(($D$3:$AO$3+$C11+$D12:$AO12>=DK$3)*IFERROR($FL11:$GW11/($D$3:$AO$3+$C11+$D12:$AO12-(Analyseår)),0))) -> 0 | ID11: =IF($C11="","",SUM(($D$3:$AO$3+$C11+$D12:$AO12>=DL$3)*IFERROR($FL11:$GW11/($D$3:$AO$3+$C11+$D12:$AO12-(Analyseår)),0))) -> 0 | IE11: =IF($C11="","",SUM(($D$3:$AO$3+$C11+$D12:$AO12>=DM$3)*IFERROR($FL11:$GW11/($D$3:$AO$3+$C11+$D12:$AO12-(Analyseår)),0))) -> 0 | IF11: =IF($C11="","",SUM(($D$3:$AO$3+$C11+$D12:$AO12>=DN$3)*IFERROR($FL11:$GW11/($D$3:$AO$3+$C11+$D12:$AO12-(Analyseår)),0))) -> 0 | IG11: =IF($C11="","",SUM(($D$3:$AO$3+$C11+$D12:$AO12>=DO$3)*IFERROR($FL11:$GW11/($D$3:$AO$3+$C11+$D12:$AO12-(Analyseår)),0))) -> 0 | IH11: =IF($C11="","",SUM(($D$3:$AO$3+$C11+$D12:$AO12>=DP$3)*IFERROR($FL11:$GW11/($D$3:$AO$3+$C11+$D12:$AO12-(Analyseår)),0))) -> 0 | II11: =IF($C11="","",SUM(($D$3:$AO$3+$C11+$D12:$AO12>=DQ$3)*IFERROR($FL11:$GW11/($D$3:$AO$3+$C11+$D12:$AO12-(Analyseår)),0))) -> 0 | IJ11: =IF($C11="","",SUM(($D$3:$AO$3+$C11+$D12:$AO12>=DR$3)*IFERROR($FL11:$GW11/($D$3:$AO$3+$C11+$D12:$AO12-(Analyseår)),0))) -> 0 | IK11: =IF($C11="","",SUM(($D$3:$AO$3+$C11+$D12:$AO12>=DS$3)*IFERROR($FL11:$GW11/($D$3:$AO$3+$C11+$D12:$AO12-(Analyseår)),0))) -> 0 | IL11: =IF($C11="","",SUM(($D$3:$AO$3+$C11+$D12:$AO12>=DT$3)*IFERROR($FL11:$GW11/($D$3:$AO$3+$C11+$D12:$AO12-(Analyseår)),0))) -> 0 | IM11: =IF($C11="","",SUM(($D$3:$AO$3+$C11+$D12:$AO12>=DU$3)*IFERROR($FL11:$GW11/($D$3:$AO$3+$C11+$D12:$AO12-(Analyseår)),0))) -> 0 | IN11: =IF($C11="","",SUM(($D$3:$AO$3+$C11+$D12:$AO12>=DV$3)*IFERROR($FL11:$GW11/($D$3:$AO$3+$C11+$D12:$AO12-(Analyseår)),0))) -> 0 | IO11: =IF($C11="","",SUM(($D$3:$AO$3+$C11+$D12:$AO12>=DW$3)*IFERROR($FL11:$GW11/($D$3:$AO$3+$C11+$D12:$AO12-(Analyseår)),0))) -> 0 | IP11: =IF($C11="","",SUM(($D$3:$AO$3+$C11+$D12:$AO12>=DX$3)*IFERROR($FL11:$GW11/($D$3:$AO$3+$C11+$D12:$AO12-(Analyseår)),0))) -> 0 | IQ11: =IF($C11="","",SUM(($D$3:$AO$3+$C11+$D12:$AO12>=DY$3)*IFERROR($FL11:$GW11/($D$3:$AO$3+$C11+$D12:$AO12-(Analyseår)),0))) -> 0 | IR11: =IF($C11="","",SUM(($D$3:$AO$3+$C11+$D12:$AO12>=DZ$3)*IFERROR($FL11:$GW11/($D$3:$AO$3+$C11+$D12:$AO12-(Analyseår)),0))) -> 0 | IS11: =IF($C11="","",SUM(($D$3:$AO$3+$C11+$D12:$AO12>=EA$3)*IFERROR($FL11:$GW11/($D$3:$AO$3+$C11+$D12:$AO12-(Analyseår)),0))) -> 0 | IT11: =IF($C11="","",SUM(($D$3:$AO$3+$C11+$D12:$AO12>=EB$3)*IFERROR($FL11:$GW11/($D$3:$AO$3+$C11+$D12:$AO12-(Analyseår)),0))) -> 0 | IU11: =IF($C11="","",SUM(($D$3:$AO$3+$C11+$D12:$AO12>=EC$3)*IFERROR($FL11:$GW11/($D$3:$AO$3+$C11+$D12:$AO12-(Analyseår)),0))) -> 0 | IV11: =IF($C11="","",SUM(($D$3:$AO$3+$C11+$D12:$AO12>=ED$3)*IFERROR($FL11:$GW11/($D$3:$AO$3+$C11+$D12:$AO12-(Analyseår)),0))) -> 0 | IW11: =IF($C11="","",SUM(($D$3:$AO$3+$C11+$D12:$AO12>=EE$3)*IFERROR($FL11:$GW11/($D$3:$AO$3+$C11+$D12:$AO12-(Analyseår)),0))) -> 0 | IX11: =IF($C11="","",SUM(($D$3:$AO$3+$C11+$D12:$AO12>=EF$3)*IFERROR($FL11:$GW11/($D$3:$AO$3+$C11+$D12:$AO12-(Analyseår)),0))) -> 0 | IY11: =IF($C11="","",SUM(($D$3:$AO$3+$C11+$D12:$AO12>=EG$3)*IFERROR($FL11:$GW11/($D$3:$AO$3+$C11+$D12:$AO12-(Analyseår)),0))) -> 0 | IZ11: =IF($C11="","",SUM(($D$3:$AO$3+$C11+$D12:$AO12>=EH$3)*IFERROR($FL11:$GW11/($D$3:$AO$3+$C11+$D12:$AO12-(Analyseår)),0))) -> 0 | JA11: =IF($C11="","",SUM(($D$3:$AO$3+$C11+$D12:$AO12>=EI$3)*IFERROR($FL11:$GW11/($D$3:$AO$3+$C11+$D12:$AO12-(Analyseår)),0))) -> 0 | JB11: =IF($C11="","",SUM(($D$3:$AO$3+$C11+$D12:$AO12>=EJ$3)*IFERROR($FL11:$GW11/($D$3:$AO$3+$C11+$D12:$AO12-(Analyseår)),0))) -> 0 | JC11: =IF($C11="","",SUM(($D$3:$AO$3+$C11+$D12:$AO12>=EK$3)*IFERROR($FL11:$GW11/($D$3:$AO$3+$C11+$D12:$AO12-(Analyseår)),0))) -> 0 | JD11: =IF($C11="","",SUM(($D$3:$AO$3+$C11+$D12:$AO12>=EL$3)*IFERROR($FL11:$GW11/($D$3:$AO$3+$C11+$D12:$AO12-(Analyseår)),0))) -> 0 | JE11: =IF($C11="","",SUM(($D$3:$AO$3+$C11+$D12:$AO12>=EM$3)*IFERROR($FL11:$GW11/($D$3:$AO$3+$C11+$D12:$AO12-(Analyseår)),0))) -> 0 | JF11: =IF($C11="","",SUM(($D$3:$AO$3+$C11+$D12:$AO12>=EN$3)*IFERROR($FL11:$GW11/($D$3:$AO$3+$C11+$D12:$AO12-(Analyseår)),0))) -> 0 | JG11: =IF($C11="","",SUM(($D$3:$AO$3+$C11+$D12:$AO12>=EO$3)*IFERROR($FL11:$GW11/($D$3:$AO$3+$C11+$D12:$AO12-(Analyseår)),0))) -> 0 | JH11: =IF($C11="","",SUM(($D$3:$AO$3+$C11+$D12:$AO12>=EP$3)*IFERROR($FL11:$GW11/($D$3:$AO$3+$C11+$D12:$AO12-(Analyseår)),0))) -> 0 | JI11: =IF($C11="","",SUM(($D$3:$AO$3+$C11+$D12:$AO12>=EQ$3)*IFERROR($FL11:$GW11/($D$3:$AO$3+$C11+$D12:$AO12-(Analyseår)),0))) -> 0 | JJ11: =IF($C11="","",SUM(($D$3:$AO$3+$C11+$D12:$AO12>=ER$3)*IFERROR($FL11:$GW11/($D$3:$AO$3+$C11+$D12:$AO12-(Analyseår)),0))) -> 0 | JK11: =IF($C11="","",SUM(($D$3:$AO$3+$C11+$D12:$AO12>=ES$3)*IFERROR($FL11:$GW11/($D$3:$AO$3+$C11+$D12:$AO12-(Analyseår)),0))) -> 0 | JL11: =IF($C11="","",SUM(($D$3:$AO$3+$C11+$D12:$AO12>=ET$3)*IFERROR($FL11:$GW11/($D$3:$AO$3+$C11+$D12:$AO12-(Analyseår)),0))) -> 0 | JM11: =IF($C11="","",SUM(($D$3:$AO$3+$C11+$D12:$AO12>=EU$3)*IFERROR($FL11:$GW11/($D$3:$AO$3+$C11+$D12:$AO12-(Analyseår)),0))) -> 0 | JN11: =IF($C11="","",SUM(($D$3:$AO$3+$C11+$D12:$AO12>=EV$3)*IFERROR($FL11:$GW11/($D$3:$AO$3+$C11+$D12:$AO12-(Analyseår)),0))) -> 0 | JO11: =IF($C11="","",SUM(($D$3:$AO$3+$C11+$D12:$AO12>=EW$3)*IFERROR($FL11:$GW11/($D$3:$AO$3+$C11+$D12:$AO12-(Analyseår)),0))) -> 0 | JP11: =IF($C11="","",SUM(($D$3:$AO$3+$C11+$D12:$AO12>=EX$3)*IFERROR($FL11:$GW11/($D$3:$AO$3+$C11+$D12:$AO12-(Analyseår)),0))) -> 0 | JQ11: =IF($C11="","",SUM(($D$3:$AO$3+$C11+$D12:$AO12>=EY$3)*IFERROR($FL11:$GW11/($D$3:$AO$3+$C11+$D12:$AO12-(Analyseår)),0))) -> 0 | JR11: =IF($C11="","",SUM(($D$3:$AO$3+$C11+$D12:$AO12>=EZ$3)*IFERROR($FL11:$GW11/($D$3:$AO$3+$C11+$D12:$AO12-(Analyseår)),0))) -> 0 | JS11: =IF($C11="","",SUM(($D$3:$AO$3+$C11+$D12:$AO12>=FA$3)*IFERROR($FL11:$GW11/($D$3:$AO$3+$C11+$D12:$AO12-(Analyseår)),0))) -> 0 | JT11: =IF($C11="","",SUM(($D$3:$AO$3+$C11+$D12:$AO12>=FB$3)*IFERROR($FL11:$GW11/($D$3:$AO$3+$C11+$D12:$AO12-(Analyseår)),0))) -> 0 | JU11: =IF($C11="","",SUM(($D$3:$AO$3+$C11+$D12:$AO12>=FC$3)*IFERROR($FL11:$GW11/($D$3:$AO$3+$C11+$D12:$AO12-(Analyseår)),0))) -> 0 | JV11: =IF($C11="","",SUM(($D$3:$AO$3+$C11+$D12:$AO12>=FD$3)*IFERROR($FL11:$GW11/($D$3:$AO$3+$C11+$D12:$AO12-(Analyseår)),0))) -> 0 | JW11: =IF($C11="","",SUM(($D$3:$AO$3+$C11+$D12:$AO12>=FE$3)*IFERROR($FL11:$GW11/($D$3:$AO$3+$C11+$D12:$AO12-(Analyseår)),0))) -> 0 | JX11: =IF($C11="","",SUM(($D$3:$AO$3+$C11+$D12:$AO12>=FF$3)*IFERROR($FL11:$GW11/($D$3:$AO$3+$C11+$D12:$AO12-(Analyseår)),0))) -> 0 | JY11: =IF($C11="","",SUM(($D$3:$AO$3+$C11+$D12:$AO12>=FG$3)*IFERROR($FL11:$GW11/($D$3:$AO$3+$C11+$D12:$AO12-(Analyseår)),0))) -> 0 | JZ11: =IF($C11="","",SUM(($D$3:$AO$3+$C11+$D12:$AO12>=FH$3)*IFERROR($FL11:$GW11/($D$3:$AO$3+$C11+$D12:$AO12-(Analyseår)),0))) -> 0 | KA11: =IF($C11="","",SUM(($D$3:$AO$3+$C11+$D12:$AO12>=FI$3)*IFERROR($FL11:$GW11/($D$3:$AO$3+$C11+$D12:$AO12-(Analyseår)),0))) -> 0 | KB11: =IF($C11="","",SUM(($D$3:$AO$3+$C11+$D12:$AO12>=FJ$3)*IFERROR($FL11:$GW11/($D$3:$AO$3+$C11+$D12:$AO12-(Analyseår)),0))) -> 0
A12: Levetidsforlængelse | B12: År | D12: 0 | E12: 0 | F12: 0 | G12: 0 | H12: 0 | I12: 0 | J12: 0 | K12: 0 | L12: 0 | M12: 0 | N12: 0 | O12: 0 | P12: 0 | Q12: 0 | R12: 0 | S12: 0 | T12: 0 | U12: 0 | V12: 0 | W12: 0 | X12: 0 | Y12: 0 | Z12: 0 | AA12: 0 | AB12: 0 | AC12: 0 | AD12: 0 | AE12: 0 | AF12: 0 | AG12: 0 | AH12: 0 | AI12: 0 | AJ12: 0 | AK12: 0 | AL12: 0 | AM12: 0 | AN12: 0 | AO12: 0 | AT12: =IF($C12="","",MAX(D12 * INDEX(Genanskaffelsespriser!$G$2:$G$201,MATCH(1,($AQ12=Genanskaffelsespriser!$A$2:$A$201)*($AR12=Genanskaffelsespriser!$B$2:$B$201)*($AS12=Genanskaffelsespriser!$D$2:$D$201)*($A12=Genanskaffelsespriser!$C$2:$C$201),0)) * (1 - (Analyseår-AT$3)/($C12+D13)),0)) ->  | AU12: =IF($C12="","",MAX(E12 * INDEX(Genanskaffelsespriser!$G$2:$G$201,MATCH(1,($AQ12=Genanskaffelsespriser!$A$2:$A$201)*($AR12=Genanskaffelsespriser!$B$2:$B$201)*($AS12=Genanskaffelsespriser!$D$2:$D$201)*($A12=Genanskaffelsespriser!$C$2:$C$201),0)) * (1 - (Analyseår-AU$3)/($C12+E13)),0)) ->  | AV12: =IF($C12="","",MAX(F12 * INDEX(Genanskaffelsespriser!$G$2:$G$201,MATCH(1,($AQ12=Genanskaffelsespriser!$A$2:$A$201)*($AR12=Genanskaffelsespriser!$B$2:$B$201)*($AS12=Genanskaffelsespriser!$D$2:$D$201)*($A12=Genanskaffelsespriser!$C$2:$C$201),0)) * (1 - (Analyseår-AV$3)/($C12+F13)),0)) ->  | AW12: =IF($C12="","",MAX(G12 * INDEX(Genanskaffelsespriser!$G$2:$G$201,MATCH(1,($AQ12=Genanskaffelsespriser!$A$2:$A$201)*($AR12=Genanskaffelsespriser!$B$2:$B$201)*($AS12=Genanskaffelsespriser!$D$2:$D$201)*($A12=Genanskaffelsespriser!$C$2:$C$201),0)) * (1 - (Analyseår-AW$3)/($C12+G13)),0)) ->  | AX12: =IF($C12="","",MAX(H12 * INDEX(Genanskaffelsespriser!$G$2:$G$201,MATCH(1,($AQ12=Genanskaffelsespriser!$A$2:$A$201)*($AR12=Genanskaffelsespriser!$B$2:$B$201)*($AS12=Genanskaffelsespriser!$D$2:$D$201)*($A12=Genanskaffelsespriser!$C$2:$C$201),0)) * (1 - (Analyseår-AX$3)/($C12+H13)),0)) ->  | AY12: =IF($C12="","",MAX(I12 * INDEX(Genanskaffelsespriser!$G$2:$G$201,MATCH(1,($AQ12=Genanskaffelsespriser!$A$2:$A$201)*($AR12=Genanskaffelsespriser!$B$2:$B$201)*($AS12=Genanskaffelsespriser!$D$2:$D$201)*($A12=Genanskaffelsespriser!$C$2:$C$201),0)) * (1 - (Analyseår-AY$3)/($C12+I13)),0)) ->  | AZ12: =IF($C12="","",MAX(J12 * INDEX(Genanskaffelsespriser!$G$2:$G$201,MATCH(1,($AQ12=Genanskaffelsespriser!$A$2:$A$201)*($AR12=Genanskaffelsespriser!$B$2:$B$201)*($AS12=Genanskaffelsespriser!$D$2:$D$201)*($A12=Genanskaffelsespriser!$C$2:$C$201),0)) * (1 - (Analyseår-AZ$3)/($C12+J13)),0)) ->  | BA12: =IF($C12="","",MAX(K12 * INDEX(Genanskaffelsespriser!$G$2:$G$201,MATCH(1,($AQ12=Genanskaffelsespriser!$A$2:$A$201)*($AR12=Genanskaffelsespriser!$B$2:$B$201)*($AS12=Genanskaffelsespriser!$D$2:$D$201)*($A12=Genanskaffelsespriser!$C$2:$C$201),0)) * (1 - (Analyseår-BA$3)/($C12+K13)),0)) ->  | BB12: =IF($C12="","",MAX(L12 * INDEX(Genanskaffelsespriser!$G$2:$G$201,MATCH(1,($AQ12=Genanskaffelsespriser!$A$2:$A$201)*($AR12=Genanskaffelsespriser!$B$2:$B$201)*($AS12=Genanskaffelsespriser!$D$2:$D$201)*($A12=Genanskaffelsespriser!$C$2:$C$201),0)) * (1 - (Analyseår-BB$3)/($C12+L13)),0)) ->  | BC12: =IF($C12="","",MAX(M12 * INDEX(Genanskaffelsespriser!$G$2:$G$201,MATCH(1,($AQ12=Genanskaffelsespriser!$A$2:$A$201)*($AR12=Genanskaffelsespriser!$B$2:$B$201)*($AS12=Genanskaffelsespriser!$D$2:$D$201)*($A12=Genanskaffelsespriser!$C$2:$C$201),0)) * (1 - (Analyseår-BC$3)/($C12+M13)),0)) ->  | BD12: =IF($C12="","",MAX(N12 * INDEX(Genanskaffelsespriser!$G$2:$G$201,MATCH(1,($AQ12=Genanskaffelsespriser!$A$2:$A$201)*($AR12=Genanskaffelsespriser!$B$2:$B$201)*($AS12=Genanskaffelsespriser!$D$2:$D$201)*($A12=Genanskaffelsespriser!$C$2:$C$201),0)) * (1 - (Analyseår-BD$3)/($C12+N13)),0)) ->  | BE12: =IF($C12="","",MAX(O12 * INDEX(Genanskaffelsespriser!$G$2:$G$201,MATCH(1,($AQ12=Genanskaffelsespriser!$A$2:$A$201)*($AR12=Genanskaffelsespriser!$B$2:$B$201)*($AS12=Genanskaffelsespriser!$D$2:$D$201)*($A12=Genanskaffelsespriser!$C$2:$C$201),0)) * (1 - (Analyseår-BE$3)/($C12+O13)),0)) ->  | BF12: =IF($C12="","",MAX(P12 * INDEX(Genanskaffelsespriser!$G$2:$G$201,MATCH(1,($AQ12=Genanskaffelsespriser!$A$2:$A$201)*($AR12=Genanskaffelsespriser!$B$2:$B$201)*($AS12=Genanskaffelsespriser!$D$2:$D$201)*($A12=Genanskaffelsespriser!$C$2:$C$201),0)) * (1 - (Analyseår-BF$3)/($C12+P13)),0)) ->  | BG12: =IF($C12="","",MAX(Q12 * INDEX(Genanskaffelsespriser!$G$2:$G$201,MATCH(1,($AQ12=Genanskaffelsespriser!$A$2:$A$201)*($AR12=Genanskaffelsespriser!$B$2:$B$201)*($AS12=Genanskaffelsespriser!$D$2:$D$201)*($A12=Genanskaffelsespriser!$C$2:$C$201),0)) * (1 - (Analyseår-BG$3)/($C12+Q13)),0)) ->  | BH12: =IF($C12="","",MAX(R12 * INDEX(Genanskaffelsespriser!$G$2:$G$201,MATCH(1,($AQ12=Genanskaffelsespriser!$A$2:$A$201)*($AR12=Genanskaffelsespriser!$B$2:$B$201)*($AS12=Genanskaffelsespriser!$D$2:$D$201)*($A12=Genanskaffelsespriser!$C$2:$C$201),0)) * (1 - (Analyseår-BH$3)/($C12+R13)),0)) ->  | BI12: =IF($C12="","",MAX(S12 * INDEX(Genanskaffelsespriser!$G$2:$G$201,MATCH(1,($AQ12=Genanskaffelsespriser!$A$2:$A$201)*($AR12=Genanskaffelsespriser!$B$2:$B$201)*($AS12=Genanskaffelsespriser!$D$2:$D$201)*($A12=Genanskaffelsespriser!$C$2:$C$201),0)) * (1 - (Analyseår-BI$3)/($C12+S13)),0)) ->  | BJ12: =IF($C12="","",MAX(T12 * INDEX(Genanskaffelsespriser!$G$2:$G$201,MATCH(1,($AQ12=Genanskaffelsespriser!$A$2:$A$201)*($AR12=Genanskaffelsespriser!$B$2:$B$201)*($AS12=Genanskaffelsespriser!$D$2:$D$201)*($A12=Genanskaffelsespriser!$C$2:$C$201),0)) * (1 - (Analyseår-BJ$3)/($C12+T13)),0)) ->  | BK12: =IF($C12="","",MAX(U12 * INDEX(Genanskaffelsespriser!$G$2:$G$201,MATCH(1,($AQ12=Genanskaffelsespriser!$A$2:$A$201)*($AR12=Genanskaffelsespriser!$B$2:$B$201)*($AS12=Genanskaffelsespriser!$D$2:$D$201)*($A12=Genanskaffelsespriser!$C$2:$C$201),0)) * (1 - (Analyseår-BK$3)/($C12+U13)),0)) ->  | BL12: =IF($C12="","",MAX(V12 * INDEX(Genanskaffelsespriser!$G$2:$G$201,MATCH(1,($AQ12=Genanskaffelsespriser!$A$2:$A$201)*($AR12=Genanskaffelsespriser!$B$2:$B$201)*($AS12=Genanskaffelsespriser!$D$2:$D$201)*($A12=Genanskaffelsespriser!$C$2:$C$201),0)) * (1 - (Analyseår-BL$3)/($C12+V13)),0)) ->  | BM12: =IF($C12="","",MAX(W12 * INDEX(Genanskaffelsespriser!$G$2:$G$201,MATCH(1,($AQ12=Genanskaffelsespriser!$A$2:$A$201)*($AR12=Genanskaffelsespriser!$B$2:$B$201)*($AS12=Genanskaffelsespriser!$D$2:$D$201)*($A12=Genanskaffelsespriser!$C$2:$C$201),0)) * (1 - (Analyseår-BM$3)/($C12+W13)),0)) ->  | BN12: =IF($C12="","",MAX(X12 * INDEX(Genanskaffelsespriser!$G$2:$G$201,MATCH(1,($AQ12=Genanskaffelsespriser!$A$2:$A$201)*($AR12=Genanskaffelsespriser!$B$2:$B$201)*($AS12=Genanskaffelsespriser!$D$2:$D$201)*($A12=Genanskaffelsespriser!$C$2:$C$201),0)) * (1 - (Analyseår-BN$3)/($C12+X13)),0)) ->  | BO12: =IF($C12="","",MAX(Y12 * INDEX(Genanskaffelsespriser!$G$2:$G$201,MATCH(1,($AQ12=Genanskaffelsespriser!$A$2:$A$201)*($AR12=Genanskaffelsespriser!$B$2:$B$201)*($AS12=Genanskaffelsespriser!$D$2:$D$201)*($A12=Genanskaffelsespriser!$C$2:$C$201),0)) * (1 - (Analyseår-BO$3)/($C12+Y13)),0)) ->  | BP12: =IF($C12="","",MAX(Z12 * INDEX(Genanskaffelsespriser!$G$2:$G$201,MATCH(1,($AQ12=Genanskaffelsespriser!$A$2:$A$201)*($AR12=Genanskaffelsespriser!$B$2:$B$201)*($AS12=Genanskaffelsespriser!$D$2:$D$201)*($A12=Genanskaffelsespriser!$C$2:$C$201),0)) * (1 - (Analyseår-BP$3)/($C12+Z13)),0)) ->  | BQ12: =IF($C12="","",MAX(AA12 * INDEX(Genanskaffelsespriser!$G$2:$G$201,MATCH(1,($AQ12=Genanskaffelsespriser!$A$2:$A$201)*($AR12=Genanskaffelsespriser!$B$2:$B$201)*($AS12=Genanskaffelsespriser!$D$2:$D$201)*($A12=Genanskaffelsespriser!$C$2:$C$201),0)) * (1 - (Analyseår-BQ$3)/($C12+AA13)),0)) ->  | BR12: =IF($C12="","",MAX(AB12 * INDEX(Genanskaffelsespriser!$G$2:$G$201,MATCH(1,($AQ12=Genanskaffelsespriser!$A$2:$A$201)*($AR12=Genanskaffelsespriser!$B$2:$B$201)*($AS12=Genanskaffelsespriser!$D$2:$D$201)*($A12=Genanskaffelsespriser!$C$2:$C$201),0)) * (1 - (Analyseår-BR$3)/($C12+AB13)),0)) ->  | BS12: =IF($C12="","",MAX(AC12 * INDEX(Genanskaffelsespriser!$G$2:$G$201,MATCH(1,($AQ12=Genanskaffelsespriser!$A$2:$A$201)*($AR12=Genanskaffelsespriser!$B$2:$B$201)*($AS12=Genanskaffelsespriser!$D$2:$D$201)*($A12=Genanskaffelsespriser!$C$2:$C$201),0)) * (1 - (Analyseår-BS$3)/($C12+AC13)),0)) ->  | BT12: =IF($C12="","",MAX(AD12 * INDEX(Genanskaffelsespriser!$G$2:$G$201,MATCH(1,($AQ12=Genanskaffelsespriser!$A$2:$A$201)*($AR12=Genanskaffelsespriser!$B$2:$B$201)*($AS12=Genanskaffelsespriser!$D$2:$D$201)*($A12=Genanskaffelsespriser!$C$2:$C$201),0)) * (1 - (Analyseår-BT$3)/($C12+AD13)),0)) ->  | BU12: =IF($C12="","",MAX(AE12 * INDEX(Genanskaffelsespriser!$G$2:$G$201,MATCH(1,($AQ12=Genanskaffelsespriser!$A$2:$A$201)*($AR12=Genanskaffelsespriser!$B$2:$B$201)*($AS12=Genanskaffelsespriser!$D$2:$D$201)*($A12=Genanskaffelsespriser!$C$2:$C$201),0)) * (1 - (Analyseår-BU$3)/($C12+AE13)),0)) ->  | BV12: =IF($C12="","",MAX(AF12 * INDEX(Genanskaffelsespriser!$G$2:$G$201,MATCH(1,($AQ12=Genanskaffelsespriser!$A$2:$A$201)*($AR12=Genanskaffelsespriser!$B$2:$B$201)*($AS12=Genanskaffelsespriser!$D$2:$D$201)*($A12=Genanskaffelsespriser!$C$2:$C$201),0)) * (1 - (Analyseår-BV$3)/($C12+AF13)),0)) ->  | BW12: =IF($C12="","",MAX(AG12 * INDEX(Genanskaffelsespriser!$G$2:$G$201,MATCH(1,($AQ12=Genanskaffelsespriser!$A$2:$A$201)*($AR12=Genanskaffelsespriser!$B$2:$B$201)*($AS12=Genanskaffelsespriser!$D$2:$D$201)*($A12=Genanskaffelsespriser!$C$2:$C$201),0)) * (1 - (Analyseår-BW$3)/($C12+AG13)),0)) ->  | BX12: =IF($C12="","",MAX(AH12 * INDEX(Genanskaffelsespriser!$G$2:$G$201,MATCH(1,($AQ12=Genanskaffelsespriser!$A$2:$A$201)*($AR12=Genanskaffelsespriser!$B$2:$B$201)*($AS12=Genanskaffelsespriser!$D$2:$D$201)*($A12=Genanskaffelsespriser!$C$2:$C$201),0)) * (1 - (Analyseår-BX$3)/($C12+AH13)),0)) ->  | BY12: =IF($C12="","",MAX(AI12 * INDEX(Genanskaffelsespriser!$G$2:$G$201,MATCH(1,($AQ12=Genanskaffelsespriser!$A$2:$A$201)*($AR12=Genanskaffelsespriser!$B$2:$B$201)*($AS12=Genanskaffelsespriser!$D$2:$D$201)*($A12=Genanskaffelsespriser!$C$2:$C$201),0)) * (1 - (Analyseår-BY$3)/($C12+AI13)),0)) ->  | BZ12: =IF($C12="","",MAX(AJ12 * INDEX(Genanskaffelsespriser!$G$2:$G$201,MATCH(1,($AQ12=Genanskaffelsespriser!$A$2:$A$201)*($AR12=Genanskaffelsespriser!$B$2:$B$201)*($AS12=Genanskaffelsespriser!$D$2:$D$201)*($A12=Genanskaffelsespriser!$C$2:$C$201),0)) * (1 - (Analyseår-BZ$3)/($C12+AJ13)),0)) ->  | CA12: =IF($C12="","",MAX(AK12 * INDEX(Genanskaffelsespriser!$G$2:$G$201,MATCH(1,($AQ12=Genanskaffelsespriser!$A$2:$A$201)*($AR12=Genanskaffelsespriser!$B$2:$B$201)*($AS12=Genanskaffelsespriser!$D$2:$D$201)*($A12=Genanskaffelsespriser!$C$2:$C$201),0)) * (1 - (Analyseår-CA$3)/($C12+AK13)),0)) ->  | CB12: =IF($C12="","",MAX(AL12 * INDEX(Genanskaffelsespriser!$G$2:$G$201,MATCH(1,($AQ12=Genanskaffelsespriser!$A$2:$A$201)*($AR12=Genanskaffelsespriser!$B$2:$B$201)*($AS12=Genanskaffelsespriser!$D$2:$D$201)*($A12=Genanskaffelsespriser!$C$2:$C$201),0)) * (1 - (Analyseår-CB$3)/($C12+AL13)),0)) ->  | CC12: =IF($C12="","",MAX(AM12 * INDEX(Genanskaffelsespriser!$G$2:$G$201,MATCH(1,($AQ12=Genanskaffelsespriser!$A$2:$A$201)*($AR12=Genanskaffelsespriser!$B$2:$B$201)*($AS12=Genanskaffelsespriser!$D$2:$D$201)*($A12=Genanskaffelsespriser!$C$2:$C$201),0)) * (1 - (Analyseår-CC$3)/($C12+AM13)),0)) ->  | CD12: =IF($C12="","",MAX(AN12 * INDEX(Genanskaffelsespriser!$G$2:$G$201,MATCH(1,($AQ12=Genanskaffelsespriser!$A$2:$A$201)*($AR12=Genanskaffelsespriser!$B$2:$B$201)*($AS12=Genanskaffelsespriser!$D$2:$D$201)*($A12=Genanskaffelsespriser!$C$2:$C$201),0)) * (1 - (Analyseår-CD$3)/($C12+AN13)),0)) ->  | CE12: =IF($C12="","",MAX(AO12 * INDEX(Genanskaffelsespriser!$G$2:$G$201,MATCH(1,($AQ12=Genanskaffelsespriser!$A$2:$A$201)*($AR12=Genanskaffelsespriser!$B$2:$B$201)*($AS12=Genanskaffelsespriser!$D$2:$D$201)*($A12=Genanskaffelsespriser!$C$2:$C$201),0)) * (1 - (Analyseår-CE$3)/($C12+AO13)),0)) ->  | CG12: =IF($C12="","",SUM(($D$3:$AO$3+$C12+$D13:$AO13>=CG$3)*IFERROR($AT12:$CE12/($D$3:$AO$3+$C12+$D13:$AO13-Analyseår),0))) ->  | CH12: =IF($C12="","",SUM(($D$3:$AO$3+$C12+$D13:$AO13>=CH$3)*IFERROR($AT12:$CE12/($D$3:$AO$3+$C12+$D13:$AO13-Analyseår),0))) ->  | CI12: =IF($C12="","",SUM(($D$3:$AO$3+$C12+$D13:$AO13>=CI$3)*IFERROR($AT12:$CE12/($D$3:$AO$3+$C12+$D13:$AO13-Analyseår),0))) ->  | CJ12: =IF($C12="","",SUM(($D$3:$AO$3+$C12+$D13:$AO13>=CJ$3)*IFERROR($AT12:$CE12/($D$3:$AO$3+$C12+$D13:$AO13-Analyseår),0))) ->  | CK12: =IF($C12="","",SUM(($D$3:$AO$3+$C12+$D13:$AO13>=CK$3)*IFERROR($AT12:$CE12/($D$3:$AO$3+$C12+$D13:$AO13-Analyseår),0))) ->  | CL12: =IF($C12="","",SUM(($D$3:$AO$3+$C12+$D13:$AO13>=CL$3)*IFERROR($AT12:$CE12/($D$3:$AO$3+$C12+$D13:$AO13-Analyseår),0))) ->  | CM12: =IF($C12="","",SUM(($D$3:$AO$3+$C12+$D13:$AO13>=CM$3)*IFERROR($AT12:$CE12/($D$3:$AO$3+$C12+$D13:$AO13-Analyseår),0))) ->  | CN12: =IF($C12="","",SUM(($D$3:$AO$3+$C12+$D13:$AO13>=CN$3)*IFERROR($AT12:$CE12/($D$3:$AO$3+$C12+$D13:$AO13-Analyseår),0))) ->  | CO12: =IF($C12="","",SUM(($D$3:$AO$3+$C12+$D13:$AO13>=CO$3)*IFERROR($AT12:$CE12/($D$3:$AO$3+$C12+$D13:$AO13-Analyseår),0))) ->  | CP12: =IF($C12="","",SUM(($D$3:$AO$3+$C12+$D13:$AO13>=CP$3)*IFERROR($AT12:$CE12/($D$3:$AO$3+$C12+$D13:$AO13-Analyseår),0))) ->  | CQ12: =IF($C12="","",SUM(($D$3:$AO$3+$C12+$D13:$AO13>=CQ$3)*IFERROR($AT12:$CE12/($D$3:$AO$3+$C12+$D13:$AO13-Analyseår),0))) ->  | CR12: =IF($C12="","",SUM(($D$3:$AO$3+$C12+$D13:$AO13>=CR$3)*IFERROR($AT12:$CE12/($D$3:$AO$3+$C12+$D13:$AO13-Analyseår),0))) ->  | CS12: =IF($C12="","",SUM(($D$3:$AO$3+$C12+$D13:$AO13>=CS$3)*IFERROR($AT12:$CE12/($D$3:$AO$3+$C12+$D13:$AO13-Analyseår),0))) ->  | CT12: =IF($C12="","",SUM(($D$3:$AO$3+$C12+$D13:$AO13>=CT$3)*IFERROR($AT12:$CE12/($D$3:$AO$3+$C12+$D13:$AO13-Analyseår),0))) ->  | CU12: =IF($C12="","",SUM(($D$3:$AO$3+$C12+$D13:$AO13>=CU$3)*IFERROR($AT12:$CE12/($D$3:$AO$3+$C12+$D13:$AO13-Analyseår),0))) ->  | CV12: =IF($C12="","",SUM(($D$3:$AO$3+$C12+$D13:$AO13>=CV$3)*IFERROR($AT12:$CE12/($D$3:$AO$3+$C12+$D13:$AO13-Analyseår),0))) ->  | CW12: =IF($C12="","",SUM(($D$3:$AO$3+$C12+$D13:$AO13>=CW$3)*IFERROR($AT12:$CE12/($D$3:$AO$3+$C12+$D13:$AO13-Analyseår),0))) ->  | CX12: =IF($C12="","",SUM(($D$3:$AO$3+$C12+$D13:$AO13>=CX$3)*IFERROR($AT12:$CE12/($D$3:$AO$3+$C12+$D13:$AO13-Analyseår),0))) ->  | CY12: =IF($C12="","",SUM(($D$3:$AO$3+$C12+$D13:$AO13>=CY$3)*IFERROR($AT12:$CE12/($D$3:$AO$3+$C12+$D13:$AO13-Analyseår),0))) ->  | CZ12: =IF($C12="","",SUM(($D$3:$AO$3+$C12+$D13:$AO13>=CZ$3)*IFERROR($AT12:$CE12/($D$3:$AO$3+$C12+$D13:$AO13-Analyseår),0))) ->  | DA12: =IF($C12="","",SUM(($D$3:$AO$3+$C12+$D13:$AO13>=DA$3)*IFERROR($AT12:$CE12/($D$3:$AO$3+$C12+$D13:$AO13-Analyseår),0))) ->  | DB12: =IF($C12="","",SUM(($D$3:$AO$3+$C12+$D13:$AO13>=DB$3)*IFERROR($AT12:$CE12/($D$3:$AO$3+$C12+$D13:$AO13-Analyseår),0))) ->  | DC12: =IF($C12="","",SUM(($D$3:$AO$3+$C12+$D13:$AO13>=DC$3)*IFERROR($AT12:$CE12/($D$3:$AO$3+$C12+$D13:$AO13-Analyseår),0))) ->  | DD12: =IF($C12="","",SUM(($D$3:$AO$3+$C12+$D13:$AO13>=DD$3)*IFERROR($AT12:$CE12/($D$3:$AO$3+$C12+$D13:$AO13-Analyseår),0))) ->  | DE12: =IF($C12="","",SUM(($D$3:$AO$3+$C12+$D13:$AO13>=DE$3)*IFERROR($AT12:$CE12/($D$3:$AO$3+$C12+$D13:$AO13-Analyseår),0))) ->  | DF12: =IF($C12="","",SUM(($D$3:$AO$3+$C12+$D13:$AO13>=DF$3)*IFERROR($AT12:$CE12/($D$3:$AO$3+$C12+$D13:$AO13-Analyseår),0))) ->  | DG12: =IF($C12="","",SUM(($D$3:$AO$3+$C12+$D13:$AO13>=DG$3)*IFERROR($AT12:$CE12/($D$3:$AO$3+$C12+$D13:$AO13-Analyseår),0))) ->  | DH12: =IF($C12="","",SUM(($D$3:$AO$3+$C12+$D13:$AO13>=DH$3)*IFERROR($AT12:$CE12/($D$3:$AO$3+$C12+$D13:$AO13-Analyseår),0))) ->  | DI12: =IF($C12="","",SUM(($D$3:$AO$3+$C12+$D13:$AO13>=DI$3)*IFERROR($AT12:$CE12/($D$3:$AO$3+$C12+$D13:$AO13-Analyseår),0))) ->  | DJ12: =IF($C12="","",SUM(($D$3:$AO$3+$C12+$D13:$AO13>=DJ$3)*IFERROR($AT12:$CE12/($D$3:$AO$3+$C12+$D13:$AO13-Analyseår),0))) ->  | DK12: =IF($C12="","",SUM(($D$3:$AO$3+$C12+$D13:$AO13>=DK$3)*IFERROR($AT12:$CE12/($D$3:$AO$3+$C12+$D13:$AO13-Analyseår),0))) ->  | DL12: =IF($C12="","",SUM(($D$3:$AO$3+$C12+$D13:$AO13>=DL$3)*IFERROR($AT12:$CE12/($D$3:$AO$3+$C12+$D13:$AO13-Analyseår),0))) ->  | DM12: =IF($C12="","",SUM(($D$3:$AO$3+$C12+$D13:$AO13>=DM$3)*IFERROR($AT12:$CE12/($D$3:$AO$3+$C12+$D13:$AO13-Analyseår),0))) ->  | DN12: =IF($C12="","",SUM(($D$3:$AO$3+$C12+$D13:$AO13>=DN$3)*IFERROR($AT12:$CE12/($D$3:$AO$3+$C12+$D13:$AO13-Analyseår),0))) ->  | DO12: =IF($C12="","",SUM(($D$3:$AO$3+$C12+$D13:$AO13>=DO$3)*IFERROR($AT12:$CE12/($D$3:$AO$3+$C12+$D13:$AO13-Analyseår),0))) ->  | DP12: =IF($C12="","",SUM(($D$3:$AO$3+$C12+$D13:$AO13>=DP$3)*IFERROR($AT12:$CE12/($D$3:$AO$3+$C12+$D13:$AO13-Analyseår),0))) ->  | DQ12: =IF($C12="","",SUM(($D$3:$AO$3+$C12+$D13:$AO13>=DQ$3)*IFERROR($AT12:$CE12/($D$3:$AO$3+$C12+$D13:$AO13-Analyseår),0))) ->  | DR12: =IF($C12="","",SUM(($D$3:$AO$3+$C12+$D13:$AO13>=DR$3)*IFERROR($AT12:$CE12/($D$3:$AO$3+$C12+$D13:$AO13-Analyseår),0))) ->  | DS12: =IF($C12="","",SUM(($D$3:$AO$3+$C12+$D13:$AO13>=DS$3)*IFERROR($AT12:$CE12/($D$3:$AO$3+$C12+$D13:$AO13-Analyseår),0))) ->  | DT12: =IF($C12="","",SUM(($D$3:$AO$3+$C12+$D13:$AO13>=DT$3)*IFERROR($AT12:$CE12/($D$3:$AO$3+$C12+$D13:$AO13-Analyseår),0))) ->  | DU12: =IF($C12="","",SUM(($D$3:$AO$3+$C12+$D13:$AO13>=DU$3)*IFERROR($AT12:$CE12/($D$3:$AO$3+$C12+$D13:$AO13-Analyseår),0))) ->  | DV12: =IF($C12="","",SUM(($D$3:$AO$3+$C12+$D13:$AO13>=DV$3)*IFERROR($AT12:$CE12/($D$3:$AO$3+$C12+$D13:$AO13-Analyseår),0))) ->  | DW12: =IF($C12="","",SUM(($D$3:$AO$3+$C12+$D13:$AO13>=DW$3)*IFERROR($AT12:$CE12/($D$3:$AO$3+$C12+$D13:$AO13-Analyseår),0))) ->  | DX12: =IF($C12="","",SUM(($D$3:$AO$3+$C12+$D13:$AO13>=DX$3)*IFERROR($AT12:$CE12/($D$3:$AO$3+$C12+$D13:$AO13-Analyseår),0))) ->  | DY12: =IF($C12="","",SUM(($D$3:$AO$3+$C12+$D13:$AO13>=DY$3)*IFERROR($AT12:$CE12/($D$3:$AO$3+$C12+$D13:$AO13-Analyseår),0))) ->  | DZ12: =IF($C12="","",SUM(($D$3:$AO$3+$C12+$D13:$AO13>=DZ$3)*IFERROR($AT12:$CE12/($D$3:$AO$3+$C12+$D13:$AO13-Analyseår),0))) ->  | EA12: =IF($C12="","",SUM(($D$3:$AO$3+$C12+$D13:$AO13>=EA$3)*IFERROR($AT12:$CE12/($D$3:$AO$3+$C12+$D13:$AO13-Analyseår),0))) ->  | EB12: =IF($C12="","",SUM(($D$3:$AO$3+$C12+$D13:$AO13>=EB$3)*IFERROR($AT12:$CE12/($D$3:$AO$3+$C12+$D13:$AO13-Analyseår),0))) ->  | EC12: =IF($C12="","",SUM(($D$3:$AO$3+$C12+$D13:$AO13>=EC$3)*IFERROR($AT12:$CE12/($D$3:$AO$3+$C12+$D13:$AO13-Analyseår),0))) ->  | ED12: =IF($C12="","",SUM(($D$3:$AO$3+$C12+$D13:$AO13>=ED$3)*IFERROR($AT12:$CE12/($D$3:$AO$3+$C12+$D13:$AO13-Analyseår),0))) ->  | EE12: =IF($C12="","",SUM(($D$3:$AO$3+$C12+$D13:$AO13>=EE$3)*IFERROR($AT12:$CE12/($D$3:$AO$3+$C12+$D13:$AO13-Analyseår),0))) ->  | EF12: =IF($C12="","",SUM(($D$3:$AO$3+$C12+$D13:$AO13>=EF$3)*IFERROR($AT12:$CE12/($D$3:$AO$3+$C12+$D13:$AO13-Analyseår),0))) ->  | EG12: =IF($C12="","",SUM(($D$3:$AO$3+$C12+$D13:$AO13>=EG$3)*IFERROR($AT12:$CE12/($D$3:$AO$3+$C12+$D13:$AO13-Analyseår),0))) ->  | EH12: =IF($C12="","",SUM(($D$3:$AO$3+$C12+$D13:$AO13>=EH$3)*IFERROR($AT12:$CE12/($D$3:$AO$3+$C12+$D13:$AO13-Analyseår),0))) ->  | EI12: =IF($C12="","",SUM(($D$3:$AO$3+$C12+$D13:$AO13>=EI$3)*IFERROR($AT12:$CE12/($D$3:$AO$3+$C12+$D13:$AO13-Analyseår),0))) ->  | EJ12: =IF($C12="","",SUM(($D$3:$AO$3+$C12+$D13:$AO13>=EJ$3)*IFERROR($AT12:$CE12/($D$3:$AO$3+$C12+$D13:$AO13-Analyseår),0))) ->  | EK12: =IF($C12="","",SUM(($D$3:$AO$3+$C12+$D13:$AO13>=EK$3)*IFERROR($AT12:$CE12/($D$3:$AO$3+$C12+$D13:$AO13-Analyseår),0))) ->  | EL12: =IF($C12="","",SUM(($D$3:$AO$3+$C12+$D13:$AO13>=EL$3)*IFERROR($AT12:$CE12/($D$3:$AO$3+$C12+$D13:$AO13-Analyseår),0))) ->  | EM12: =IF($C12="","",SUM(($D$3:$AO$3+$C12+$D13:$AO13>=EM$3)*IFERROR($AT12:$CE12/($D$3:$AO$3+$C12+$D13:$AO13-Analyseår),0))) ->  | EN12: =IF($C12="","",SUM(($D$3:$AO$3+$C12+$D13:$AO13>=EN$3)*IFERROR($AT12:$CE12/($D$3:$AO$3+$C12+$D13:$AO13-Analyseår),0))) ->  | EO12: =IF($C12="","",SUM(($D$3:$AO$3+$C12+$D13:$AO13>=EO$3)*IFERROR($AT12:$CE12/($D$3:$AO$3+$C12+$D13:$AO13-Analyseår),0))) ->  | EP12: =IF($C12="","",SUM(($D$3:$AO$3+$C12+$D13:$AO13>=EP$3)*IFERROR($AT12:$CE12/($D$3:$AO$3+$C12+$D13:$AO13-Analyseår),0))) ->  | EQ12: =IF($C12="","",SUM(($D$3:$AO$3+$C12+$D13:$AO13>=EQ$3)*IFERROR($AT12:$CE12/($D$3:$AO$3+$C12+$D13:$AO13-Analyseår),0))) ->  | ER12: =IF($C12="","",SUM(($D$3:$AO$3+$C12+$D13:$AO13>=ER$3)*IFERROR($AT12:$CE12/($D$3:$AO$3+$C12+$D13:$AO13-Analyseår),0))) ->  | ES12: =IF($C12="","",SUM(($D$3:$AO$3+$C12+$D13:$AO13>=ES$3)*IFERROR($AT12:$CE12/($D$3:$AO$3+$C12+$D13:$AO13-Analyseår),0))) ->  | ET12: =IF($C12="","",SUM(($D$3:$AO$3+$C12+$D13:$AO13>=ET$3)*IFERROR($AT12:$CE12/($D$3:$AO$3+$C12+$D13:$AO13-Analyseår),0))) ->  | EU12: =IF($C12="","",SUM(($D$3:$AO$3+$C12+$D13:$AO13>=EU$3)*IFERROR($AT12:$CE12/($D$3:$AO$3+$C12+$D13:$AO13-Analyseår),0))) ->  | EV12: =IF($C12="","",SUM(($D$3:$AO$3+$C12+$D13:$AO13>=EV$3)*IFERROR($AT12:$CE12/($D$3:$AO$3+$C12+$D13:$AO13-Analyseår),0))) ->  | EW12: =IF($C12="","",SUM(($D$3:$AO$3+$C12+$D13:$AO13>=EW$3)*IFERROR($AT12:$CE12/($D$3:$AO$3+$C12+$D13:$AO13-Analyseår),0))) ->  | EX12: =IF($C12="","",SUM(($D$3:$AO$3+$C12+$D13:$AO13>=EX$3)*IFERROR($AT12:$CE12/($D$3:$AO$3+$C12+$D13:$AO13-Analyseår),0))) ->  | EY12: =IF($C12="","",SUM(($D$3:$AO$3+$C12+$D13:$AO13>=EY$3)*IFERROR($AT12:$CE12/($D$3:$AO$3+$C12+$D13:$AO13-Analyseår),0))) ->  | EZ12: =IF($C12="","",SUM(($D$3:$AO$3+$C12+$D13:$AO13>=EZ$3)*IFERROR($AT12:$CE12/($D$3:$AO$3+$C12+$D13:$AO13-Analyseår),0))) ->  | FA12: =IF($C12="","",SUM(($D$3:$AO$3+$C12+$D13:$AO13>=FA$3)*IFERROR($AT12:$CE12/($D$3:$AO$3+$C12+$D13:$AO13-Analyseår),0))) ->  | FB12: =IF($C12="","",SUM(($D$3:$AO$3+$C12+$D13:$AO13>=FB$3)*IFERROR($AT12:$CE12/($D$3:$AO$3+$C12+$D13:$AO13-Analyseår),0))) ->  | FC12: =IF($C12="","",SUM(($D$3:$AO$3+$C12+$D13:$AO13>=FC$3)*IFERROR($AT12:$CE12/($D$3:$AO$3+$C12+$D13:$AO13-Analyseår),0))) ->  | FD12: =IF($C12="","",SUM(($D$3:$AO$3+$C12+$D13:$AO13>=FD$3)*IFERROR($AT12:$CE12/($D$3:$AO$3+$C12+$D13:$AO13-Analyseår),0))) ->  | FE12: =IF($C12="","",SUM(($D$3:$AO$3+$C12+$D13:$AO13>=FE$3)*IFERROR($AT12:$CE12/($D$3:$AO$3+$C12+$D13:$AO13-Analyseår),0))) ->  | FF12: =IF($C12="","",SUM(($D$3:$AO$3+$C12+$D13:$AO13>=FF$3)*IFERROR($AT12:$CE12/($D$3:$AO$3+$C12+$D13:$AO13-Analyseår),0))) ->  | FG12: =IF($C12="","",SUM(($D$3:$AO$3+$C12+$D13:$AO13>=FG$3)*IFERROR($AT12:$CE12/($D$3:$AO$3+$C12+$D13:$AO13-Analyseår),0))) ->  | FH12: =IF($C12="","",SUM(($D$3:$AO$3+$C12+$D13:$AO13>=FH$3)*IFERROR($AT12:$CE12/($D$3:$AO$3+$C12+$D13:$AO13-Analyseår),0))) ->  | FI12: =IF($C12="","",SUM(($D$3:$AO$3+$C12+$D13:$AO13>=FI$3)*IFERROR($AT12:$CE12/($D$3:$AO$3+$C12+$D13:$AO13-Analyseår),0))) ->  | FJ12: =IF($C12="","",SUM(($D$3:$AO$3+$C12+$D13:$AO13>=FJ$3)*IFERROR($AT12:$CE12/($D$3:$AO$3+$C12+$D13:$AO13-Analyseår),0))) ->  | GY12: =IF($C12="","",SUM(($D$3:$AO$3+$C12+$D13:$AO13>=CG$3)*IFERROR($FL12:$GW12/($D$3:$AO$3+$C12+$D13:$AO13-(Analyseår)),0))) ->  | GZ12: =IF($C12="","",SUM(($D$3:$AO$3+$C12+$D13:$AO13>=CH$3)*IFERROR($FL12:$GW12/($D$3:$AO$3+$C12+$D13:$AO13-(Analyseår)),0))) ->  | HA12: =IF($C12="","",SUM(($D$3:$AO$3+$C12+$D13:$AO13>=CI$3)*IFERROR($FL12:$GW12/($D$3:$AO$3+$C12+$D13:$AO13-(Analyseår)),0))) ->  | HB12: =IF($C12="","",SUM(($D$3:$AO$3+$C12+$D13:$AO13>=CJ$3)*IFERROR($FL12:$GW12/($D$3:$AO$3+$C12+$D13:$AO13-(Analyseår)),0))) ->  | HC12: =IF($C12="","",SUM(($D$3:$AO$3+$C12+$D13:$AO13>=CK$3)*IFERROR($FL12:$GW12/($D$3:$AO$3+$C12+$D13:$AO13-(Analyseår)),0))) ->  | HD12: =IF($C12="","",SUM(($D$3:$AO$3+$C12+$D13:$AO13>=CL$3)*IFERROR($FL12:$GW12/($D$3:$AO$3+$C12+$D13:$AO13-(Analyseår)),0))) ->  | HE12: =IF($C12="","",SUM(($D$3:$AO$3+$C12+$D13:$AO13>=CM$3)*IFERROR($FL12:$GW12/($D$3:$AO$3+$C12+$D13:$AO13-(Analyseår)),0))) ->  | HF12: =IF($C12="","",SUM(($D$3:$AO$3+$C12+$D13:$AO13>=CN$3)*IFERROR($FL12:$GW12/($D$3:$AO$3+$C12+$D13:$AO13-(Analyseår)),0))) ->  | HG12: =IF($C12="","",SUM(($D$3:$AO$3+$C12+$D13:$AO13>=CO$3)*IFERROR($FL12:$GW12/($D$3:$AO$3+$C12+$D13:$AO13-(Analyseår)),0))) ->  | HH12: =IF($C12="","",SUM(($D$3:$AO$3+$C12+$D13:$AO13>=CP$3)*IFERROR($FL12:$GW12/($D$3:$AO$3+$C12+$D13:$AO13-(Analyseår)),0))) ->  | HI12: =IF($C12="","",SUM(($D$3:$AO$3+$C12+$D13:$AO13>=CQ$3)*IFERROR($FL12:$GW12/($D$3:$AO$3+$C12+$D13:$AO13-(Analyseår)),0))) ->  | HJ12: =IF($C12="","",SUM(($D$3:$AO$3+$C12+$D13:$AO13>=CR$3)*IFERROR($FL12:$GW12/($D$3:$AO$3+$C12+$D13:$AO13-(Analyseår)),0))) ->  | HK12: =IF($C12="","",SUM(($D$3:$AO$3+$C12+$D13:$AO13>=CS$3)*IFERROR($FL12:$GW12/($D$3:$AO$3+$C12+$D13:$AO13-(Analyseår)),0))) ->  | HL12: =IF($C12="","",SUM(($D$3:$AO$3+$C12+$D13:$AO13>=CT$3)*IFERROR($FL12:$GW12/($D$3:$AO$3+$C12+$D13:$AO13-(Analyseår)),0))) ->  | HM12: =IF($C12="","",SUM(($D$3:$AO$3+$C12+$D13:$AO13>=CU$3)*IFERROR($FL12:$GW12/($D$3:$AO$3+$C12+$D13:$AO13-(Analyseår)),0))) ->  | HN12: =IF($C12="","",SUM(($D$3:$AO$3+$C12+$D13:$AO13>=CV$3)*IFERROR($FL12:$GW12/($D$3:$AO$3+$C12+$D13:$AO13-(Analyseår)),0))) ->  | HO12: =IF($C12="","",SUM(($D$3:$AO$3+$C12+$D13:$AO13>=CW$3)*IFERROR($FL12:$GW12/($D$3:$AO$3+$C12+$D13:$AO13-(Analyseår)),0))) ->  | HP12: =IF($C12="","",SUM(($D$3:$AO$3+$C12+$D13:$AO13>=CX$3)*IFERROR($FL12:$GW12/($D$3:$AO$3+$C12+$D13:$AO13-(Analyseår)),0))) ->  | HQ12: =IF($C12="","",SUM(($D$3:$AO$3+$C12+$D13:$AO13>=CY$3)*IFERROR($FL12:$GW12/($D$3:$AO$3+$C12+$D13:$AO13-(Analyseår)),0))) ->  | HR12: =IF($C12="","",SUM(($D$3:$AO$3+$C12+$D13:$AO13>=CZ$3)*IFERROR($FL12:$GW12/($D$3:$AO$3+$C12+$D13:$AO13-(Analyseår)),0))) ->  | HS12: =IF($C12="","",SUM(($D$3:$AO$3+$C12+$D13:$AO13>=DA$3)*IFERROR($FL12:$GW12/($D$3:$AO$3+$C12+$D13:$AO13-(Analyseår)),0))) ->  | HT12: =IF($C12="","",SUM(($D$3:$AO$3+$C12+$D13:$AO13>=DB$3)*IFERROR($FL12:$GW12/($D$3:$AO$3+$C12+$D13:$AO13-(Analyseår)),0))) ->  | HU12: =IF($C12="","",SUM(($D$3:$AO$3+$C12+$D13:$AO13>=DC$3)*IFERROR($FL12:$GW12/($D$3:$AO$3+$C12+$D13:$AO13-(Analyseår)),0))) ->  | HV12: =IF($C12="","",SUM(($D$3:$AO$3+$C12+$D13:$AO13>=DD$3)*IFERROR($FL12:$GW12/($D$3:$AO$3+$C12+$D13:$AO13-(Analyseår)),0))) ->  | HW12: =IF($C12="","",SUM(($D$3:$AO$3+$C12+$D13:$AO13>=DE$3)*IFERROR($FL12:$GW12/($D$3:$AO$3+$C12+$D13:$AO13-(Analyseår)),0))) ->  | HX12: =IF($C12="","",SUM(($D$3:$AO$3+$C12+$D13:$AO13>=DF$3)*IFERROR($FL12:$GW12/($D$3:$AO$3+$C12+$D13:$AO13-(Analyseår)),0))) ->  | HY12: =IF($C12="","",SUM(($D$3:$AO$3+$C12+$D13:$AO13>=DG$3)*IFERROR($FL12:$GW12/($D$3:$AO$3+$C12+$D13:$AO13-(Analyseår)),0))) ->  | HZ12: =IF($C12="","",SUM(($D$3:$AO$3+$C12+$D13:$AO13>=DH$3)*IFERROR($FL12:$GW12/($D$3:$AO$3+$C12+$D13:$AO13-(Analyseår)),0))) ->  | IA12: =IF($C12="","",SUM(($D$3:$AO$3+$C12+$D13:$AO13>=DI$3)*IFERROR($FL12:$GW12/($D$3:$AO$3+$C12+$D13:$AO13-(Analyseår)),0))) ->  | IB12: =IF($C12="","",SUM(($D$3:$AO$3+$C12+$D13:$AO13>=DJ$3)*IFERROR($FL12:$GW12/($D$3:$AO$3+$C12+$D13:$AO13-(Analyseår)),0))) ->  | IC12: =IF($C12="","",SUM(($D$3:$AO$3+$C12+$D13:$AO13>=DK$3)*IFERROR($FL12:$GW12/($D$3:$AO$3+$C12+$D13:$AO13-(Analyseår)),0))) ->  | ID12: =IF($C12="","",SUM(($D$3:$AO$3+$C12+$D13:$AO13>=DL$3)*IFERROR($FL12:$GW12/($D$3:$AO$3+$C12+$D13:$AO13-(Analyseår)),0))) ->  | IE12: =IF($C12="","",SUM(($D$3:$AO$3+$C12+$D13:$AO13>=DM$3)*IFERROR($FL12:$GW12/($D$3:$AO$3+$C12+$D13:$AO13-(Analyseår)),0))) ->  | IF12: =IF($C12="","",SUM(($D$3:$AO$3+$C12+$D13:$AO13>=DN$3)*IFERROR($FL12:$GW12/($D$3:$AO$3+$C12+$D13:$AO13-(Analyseår)),0))) ->  | IG12: =IF($C12="","",SUM(($D$3:$AO$3+$C12+$D13:$AO13>=DO$3)*IFERROR($FL12:$GW12/($D$3:$AO$3+$C12+$D13:$AO13-(Analyseår)),0))) ->  | IH12: =IF($C12="","",SUM(($D$3:$AO$3+$C12+$D13:$AO13>=DP$3)*IFERROR($FL12:$GW12/($D$3:$AO$3+$C12+$D13:$AO13-(Analyseår)),0))) ->  | II12: =IF($C12="","",SUM(($D$3:$AO$3+$C12+$D13:$AO13>=DQ$3)*IFERROR($FL12:$GW12/($D$3:$AO$3+$C12+$D13:$AO13-(Analyseår)),0))) ->  | IJ12: =IF($C12="","",SUM(($D$3:$AO$3+$C12+$D13:$AO13>=DR$3)*IFERROR($FL12:$GW12/($D$3:$AO$3+$C12+$D13:$AO13-(Analyseår)),0))) ->  | IK12: =IF($C12="","",SUM(($D$3:$AO$3+$C12+$D13:$AO13>=DS$3)*IFERROR($FL12:$GW12/($D$3:$AO$3+$C12+$D13:$AO13-(Analyseår)),0))) ->  | IL12: =IF($C12="","",SUM(($D$3:$AO$3+$C12+$D13:$AO13>=DT$3)*IFERROR($FL12:$GW12/($D$3:$AO$3+$C12+$D13:$AO13-(Analyseår)),0))) ->  | IM12: =IF($C12="","",SUM(($D$3:$AO$3+$C12+$D13:$AO13>=DU$3)*IFERROR($FL12:$GW12/($D$3:$AO$3+$C12+$D13:$AO13-(Analyseår)),0))) ->  | IN12: =IF($C12="","",SUM(($D$3:$AO$3+$C12+$D13:$AO13>=DV$3)*IFERROR($FL12:$GW12/($D$3:$AO$3+$C12+$D13:$AO13-(Analyseår)),0))) ->  | IO12: =IF($C12="","",SUM(($D$3:$AO$3+$C12+$D13:$AO13>=DW$3)*IFERROR($FL12:$GW12/($D$3:$AO$3+$C12+$D13:$AO13-(Analyseår)),0))) ->  | IP12: =IF($C12="","",SUM(($D$3:$AO$3+$C12+$D13:$AO13>=DX$3)*IFERROR($FL12:$GW12/($D$3:$AO$3+$C12+$D13:$AO13-(Analyseår)),0))) ->  | IQ12: =IF($C12="","",SUM(($D$3:$AO$3+$C12+$D13:$AO13>=DY$3)*IFERROR($FL12:$GW12/($D$3:$AO$3+$C12+$D13:$AO13-(Analyseår)),0))) ->  | IR12: =IF($C12="","",SUM(($D$3:$AO$3+$C12+$D13:$AO13>=DZ$3)*IFERROR($FL12:$GW12/($D$3:$AO$3+$C12+$D13:$AO13-(Analyseår)),0))) ->  | IS12: =IF($C12="","",SUM(($D$3:$AO$3+$C12+$D13:$AO13>=EA$3)*IFERROR($FL12:$GW12/($D$3:$AO$3+$C12+$D13:$AO13-(Analyseår)),0))) ->  | IT12: =IF($C12="","",SUM(($D$3:$AO$3+$C12+$D13:$AO13>=EB$3)*IFERROR($FL12:$GW12/($D$3:$AO$3+$C12+$D13:$AO13-(Analyseår)),0))) ->  | IU12: =IF($C12="","",SUM(($D$3:$AO$3+$C12+$D13:$AO13>=EC$3)*IFERROR($FL12:$GW12/($D$3:$AO$3+$C12+$D13:$AO13-(Analyseår)),0))) ->  | IV12: =IF($C12="","",SUM(($D$3:$AO$3+$C12+$D13:$AO13>=ED$3)*IFERROR($FL12:$GW12/($D$3:$AO$3+$C12+$D13:$AO13-(Analyseår)),0))) ->  | IW12: =IF($C12="","",SUM(($D$3:$AO$3+$C12+$D13:$AO13>=EE$3)*IFERROR($FL12:$GW12/($D$3:$AO$3+$C12+$D13:$AO13-(Analyseår)),0))) ->  | IX12: =IF($C12="","",SUM(($D$3:$AO$3+$C12+$D13:$AO13>=EF$3)*IFERROR($FL12:$GW12/($D$3:$AO$3+$C12+$D13:$AO13-(Analyseår)),0))) ->  | IY12: =IF($C12="","",SUM(($D$3:$AO$3+$C12+$D13:$AO13>=EG$3)*IFERROR($FL12:$GW12/($D$3:$AO$3+$C12+$D13:$AO13-(Analyseår)),0))) ->  | IZ12: =IF($C12="","",SUM(($D$3:$AO$3+$C12+$D13:$AO13>=EH$3)*IFERROR($FL12:$GW12/($D$3:$AO$3+$C12+$D13:$AO13-(Analyseår)),0))) ->  | JA12: =IF($C12="","",SUM(($D$3:$AO$3+$C12+$D13:$AO13>=EI$3)*IFERROR($FL12:$GW12/($D$3:$AO$3+$C12+$D13:$AO13-(Analyseår)),0))) ->  | JB12: =IF($C12="","",SUM(($D$3:$AO$3+$C12+$D13:$AO13>=EJ$3)*IFERROR($FL12:$GW12/($D$3:$AO$3+$C12+$D13:$AO13-(Analyseår)),0))) ->  | JC12: =IF($C12="","",SUM(($D$3:$AO$3+$C12+$D13:$AO13>=EK$3)*IFERROR($FL12:$GW12/($D$3:$AO$3+$C12+$D13:$AO13-(Analyseår)),0))) ->  | JD12: =IF($C12="","",SUM(($D$3:$AO$3+$C12+$D13:$AO13>=EL$3)*IFERROR($FL12:$GW12/($D$3:$AO$3+$C12+$D13:$AO13-(Analyseår)),0))) ->  | JE12: =IF($C12="","",SUM(($D$3:$AO$3+$C12+$D13:$AO13>=EM$3)*IFERROR($FL12:$GW12/($D$3:$AO$3+$C12+$D13:$AO13-(Analyseår)),0))) ->  | JF12: =IF($C12="","",SUM(($D$3:$AO$3+$C12+$D13:$AO13>=EN$3)*IFERROR($FL12:$GW12/($D$3:$AO$3+$C12+$D13:$AO13-(Analyseår)),0))) ->  | JG12: =IF($C12="","",SUM(($D$3:$AO$3+$C12+$D13:$AO13>=EO$3)*IFERROR($FL12:$GW12/($D$3:$AO$3+$C12+$D13:$AO13-(Analyseår)),0))) ->  | JH12: =IF($C12="","",SUM(($D$3:$AO$3+$C12+$D13:$AO13>=EP$3)*IFERROR($FL12:$GW12/($D$3:$AO$3+$C12+$D13:$AO13-(Analyseår)),0))) ->  | JI12: =IF($C12="","",SUM(($D$3:$AO$3+$C12+$D13:$AO13>=EQ$3)*IFERROR($FL12:$GW12/($D$3:$AO$3+$C12+$D13:$AO13-(Analyseår)),0))) ->  | JJ12: =IF($C12="","",SUM(($D$3:$AO$3+$C12+$D13:$AO13>=ER$3)*IFERROR($FL12:$GW12/($D$3:$AO$3+$C12+$D13:$AO13-(Analyseår)),0))) ->  | JK12: =IF($C12="","",SUM(($D$3:$AO$3+$C12+$D13:$AO13>=ES$3)*IFERROR($FL12:$GW12/($D$3:$AO$3+$C12+$D13:$AO13-(Analyseår)),0))) ->  | JL12: =IF($C12="","",SUM(($D$3:$AO$3+$C12+$D13:$AO13>=ET$3)*IFERROR($FL12:$GW12/($D$3:$AO$3+$C12+$D13:$AO13-(Analyseår)),0))) ->  | JM12: =IF($C12="","",SUM(($D$3:$AO$3+$C12+$D13:$AO13>=EU$3)*IFERROR($FL12:$GW12/($D$3:$AO$3+$C12+$D13:$AO13-(Analyseår)),0))) ->  | JN12: =IF($C12="","",SUM(($D$3:$AO$3+$C12+$D13:$AO13>=EV$3)*IFERROR($FL12:$GW12/($D$3:$AO$3+$C12+$D13:$AO13-(Analyseår)),0))) ->  | JO12: =IF($C12="","",SUM(($D$3:$AO$3+$C12+$D13:$AO13>=EW$3)*IFERROR($FL12:$GW12/($D$3:$AO$3+$C12+$D13:$AO13-(Analyseår)),0))) ->  | JP12: =IF($C12="","",SUM(($D$3:$AO$3+$C12+$D13:$AO13>=EX$3)*IFERROR($FL12:$GW12/($D$3:$AO$3+$C12+$D13:$AO13-(Analyseår)),0))) ->  | JQ12: =IF($C12="","",SUM(($D$3:$AO$3+$C12+$D13:$AO13>=EY$3)*IFERROR($FL12:$GW12/($D$3:$AO$3+$C12+$D13:$AO13-(Analyseår)),0))) ->  | JR12: =IF($C12="","",SUM(($D$3:$AO$3+$C12+$D13:$AO13>=EZ$3)*IFERROR($FL12:$GW12/($D$3:$AO$3+$C12+$D13:$AO13-(Analyseår)),0))) ->  | JS12: =IF($C12="","",SUM(($D$3:$AO$3+$C12+$D13:$AO13>=FA$3)*IFERROR($FL12:$GW12/($D$3:$AO$3+$C12+$D13:$AO13-(Analyseår)),0))) ->  | JT12: =IF($C12="","",SUM(($D$3:$AO$3+$C12+$D13:$AO13>=FB$3)*IFERROR($FL12:$GW12/($D$3:$AO$3+$C12+$D13:$AO13-(Analyseår)),0))) ->  | JU12: =IF($C12="","",SUM(($D$3:$AO$3+$C12+$D13:$AO13>=FC$3)*IFERROR($FL12:$GW12/($D$3:$AO$3+$C12+$D13:$AO13-(Analyseår)),0))) ->  | JV12: =IF($C12="","",SUM(($D$3:$AO$3+$C12+$D13:$AO13>=FD$3)*IFERROR($FL12:$GW12/($D$3:$AO$3+$C12+$D13:$AO13-(Analyseår)),0))) ->  | JW12: =IF($C12="","",SUM(($D$3:$AO$3+$C12+$D13:$AO13>=FE$3)*IFERROR($FL12:$GW12/($D$3:$AO$3+$C12+$D13:$AO13-(Analyseår)),0))) ->  | JX12: =IF($C12="","",SUM(($D$3:$AO$3+$C12+$D13:$AO13>=FF$3)*IFERROR($FL12:$GW12/($D$3:$AO$3+$C12+$D13:$AO13-(Analyseår)),0))) ->  | JY12: =IF($C12="","",SUM(($D$3:$AO$3+$C12+$D13:$AO13>=FG$3)*IFERROR($FL12:$GW12/($D$3:$AO$3+$C12+$D13:$AO13-(Analyseår)),0))) ->  | JZ12: =IF($C12="","",SUM(($D$3:$AO$3+$C12+$D13:$AO13>=FH$3)*IFERROR($FL12:$GW12/($D$3:$AO$3+$C12+$D13:$AO13-(Analyseår)),0))) ->  | KA12: =IF($C12="","",SUM(($D$3:$AO$3+$C12+$D13:$AO13>=FI$3)*IFERROR($FL12:$GW12/($D$3:$AO$3+$C12+$D13:$AO13-(Analyseår)),0))) ->  | KB12: =IF($C12="","",SUM(($D$3:$AO$3+$C12+$D13:$AO13>=FJ$3)*IFERROR($FL12:$GW12/($D$3:$AO$3+$C12+$D13:$AO13-(Analyseår)),0))) -> 
